{"text_format":"1","workbook":"xlsx","n_sheets":4,"sheets":["Índice","Equilibrio Oferta-Utilización","Catálogo","Datos"],"not_rendered":{"charts":0,"images":1,"macros":1,"external_links":1,"defined_names":7,"comments":1,"pivot_tables":0},"unopened":[],"bounds":{"document_bytes":16777216,"sheet_cells":100000,"rows_first":2000,"rows_last":500,"rows_between":2000,"halvings":0,"cell_chars":16384,"cell_head_chars":4096},"cells_cut":0,"cells_raw":0,"read":"whole","date_system":"1900"}

{"sheet":"Índice","index":0,"n_rows":26,"n_cols":3,"rows_kept":26,"cut":false,"hidden":false,"merged":[[12,1,12,2],[13,1,13,2],[14,1,14,2]]}
[]
[]
[]
[]
[]
[]
[]
[]
[]
[]
[]
[]
[null,"CUENTAS NACIONALES ANUALES"]
[null,"Equilibrios de oferta y utilización"]
[null,"Año de referencia 2013"]
[]
[null,"3","EQUILIBRIOS DE OFERTA Y UTILIZACIÓN. AÑOS 2013 - 2023"]
[null," "]
[null,null,"Equilibrios de oferta y utilización por producto. Millones de quetzales "]
[]
[null,null,"Catálogo"]
[]
[null,null,"Generar todos los equilibrios"]
[]
[]
[null,"Nota:","Para generar un equilibrio de oferta y utilización debe habilitar macros (en las opciones de Excel) y posteriormente seleccionar el código NPG correspondiente en la hoja catálogo."]

{"sheet":"Equilibrio Oferta-Utilización","index":1,"n_rows":55,"n_cols":14,"rows_kept":55,"cut":false,"hidden":false,"merged":[[6,2,6,7]]}
[]
[null,{"$f":"+CONCATENATE(\"Cuadro \",IFERROR(INDEX(Catálogo!$B$7:$D$158,MATCH($C$8,Catálogo!$C$7:$C$158,0),1),3))","v":"Cuadro 3.1"}]
[null,"Equilibrio de oferta y utilización"]
[null,"Años 2013 - 2023"]
[null,"Millones de quetzales"]
[]
[null,"Producto:",{"$f":"IFERROR(+VLOOKUP($C$8,Catálogo!$C:$D,2,0),\"\")","v":"Maíz"}]
[null,"Código NPG:","P001",null,null,null,null,null,null,null,null,null,null,"Catálogo"]
[]
[null,"Concepto",null,2013,2014,2015,2016,2017,2018,2019,2020,2021,"2022 p/","2023 p/"]
[null,"Producción (PB)",null,{"$f":"+SUMIFS(Datos!$C:$C,Datos!$A:$A,$C$8,Datos!$B:$B,$C$7,Datos!$D:$D,$B11,Datos!$E:$E,D$10)","v":4738.5275949999996},{"$f":"+SUMIFS(Datos!$C:$C,Datos!$A:$A,$C$8,Datos!$B:$B,$C$7,Datos!$D:$D,$B11,Datos!$E:$E,E$10)","v":5080.6027539999995},{"$f":"+SUMIFS(Datos!$C:$C,Datos!$A:$A,$C$8,Datos!$B:$B,$C$7,Datos!$D:$D,$B11,Datos!$E:$E,F$10)","v":5175.017296},{"$f":"+SUMIFS(Datos!$C:$C,Datos!$A:$A,$C$8,Datos!$B:$B,$C$7,Datos!$D:$D,$B11,Datos!$E:$E,G$10)","v":5476.1529330000003},{"$f":"+SUMIFS(Datos!$C:$C,Datos!$A:$A,$C$8,Datos!$B:$B,$C$7,Datos!$D:$D,$B11,Datos!$E:$E,H$10)","v":4756.5473279999997},{"$f":"+SUMIFS(Datos!$C:$C,Datos!$A:$A,$C$8,Datos!$B:$B,$C$7,Datos!$D:$D,$B11,Datos!$E:$E,I$10)","v":5390.4606519999998},{"$f":"+SUMIFS(Datos!$C:$C,Datos!$A:$A,$C$8,Datos!$B:$B,$C$7,Datos!$D:$D,$B11,Datos!$E:$E,J$10)","v":5873.9922310000002},{"$f":"+SUMIFS(Datos!$C:$C,Datos!$A:$A,$C$8,Datos!$B:$B,$C$7,Datos!$D:$D,$B11,Datos!$E:$E,K$10)","v":5947.6382899999999},{"$f":"+SUMIFS(Datos!$C:$C,Datos!$A:$A,$C$8,Datos!$B:$B,$C$7,Datos!$D:$D,$B11,Datos!$E:$E,L$10)","v":6685.43984},{"$f":"+SUMIFS(Datos!$C:$C,Datos!$A:$A,$C$8,Datos!$B:$B,$C$7,Datos!$D:$D,$B11,Datos!$E:$E,M$10)","v":8902.3375799999994},{"$f":"+SUMIFS(Datos!$C:$C,Datos!$A:$A,$C$8,Datos!$B:$B,$C$7,Datos!$D:$D,$B11,Datos!$E:$E,N$10)","v":9871.8922060000004}]
[null,"Impuestos sobre los productos, excepto IVA e impuestos sobre las importaciones",null,{"$f":"+SUMIFS(Datos!$C:$C,Datos!$A:$A,$C$8,Datos!$B:$B,$C$7,Datos!$D:$D,$B12,Datos!$E:$E,D$10)","v":0},{"$f":"+SUMIFS(Datos!$C:$C,Datos!$A:$A,$C$8,Datos!$B:$B,$C$7,Datos!$D:$D,$B12,Datos!$E:$E,E$10)","v":0},{"$f":"+SUMIFS(Datos!$C:$C,Datos!$A:$A,$C$8,Datos!$B:$B,$C$7,Datos!$D:$D,$B12,Datos!$E:$E,F$10)","v":0},{"$f":"+SUMIFS(Datos!$C:$C,Datos!$A:$A,$C$8,Datos!$B:$B,$C$7,Datos!$D:$D,$B12,Datos!$E:$E,G$10)","v":0},{"$f":"+SUMIFS(Datos!$C:$C,Datos!$A:$A,$C$8,Datos!$B:$B,$C$7,Datos!$D:$D,$B12,Datos!$E:$E,H$10)","v":0},{"$f":"+SUMIFS(Datos!$C:$C,Datos!$A:$A,$C$8,Datos!$B:$B,$C$7,Datos!$D:$D,$B12,Datos!$E:$E,I$10)","v":0},{"$f":"+SUMIFS(Datos!$C:$C,Datos!$A:$A,$C$8,Datos!$B:$B,$C$7,Datos!$D:$D,$B12,Datos!$E:$E,J$10)","v":0},{"$f":"+SUMIFS(Datos!$C:$C,Datos!$A:$A,$C$8,Datos!$B:$B,$C$7,Datos!$D:$D,$B12,Datos!$E:$E,K$10)","v":0},{"$f":"+SUMIFS(Datos!$C:$C,Datos!$A:$A,$C$8,Datos!$B:$B,$C$7,Datos!$D:$D,$B12,Datos!$E:$E,L$10)","v":0},{"$f":"+SUMIFS(Datos!$C:$C,Datos!$A:$A,$C$8,Datos!$B:$B,$C$7,Datos!$D:$D,$B12,Datos!$E:$E,M$10)","v":0},{"$f":"+SUMIFS(Datos!$C:$C,Datos!$A:$A,$C$8,Datos!$B:$B,$C$7,Datos!$D:$D,$B12,Datos!$E:$E,N$10)","v":0}]
[null,"Subvenciones a los productos",null,{"$f":"+SUMIFS(Datos!$C:$C,Datos!$A:$A,$C$8,Datos!$B:$B,$C$7,Datos!$D:$D,$B13,Datos!$E:$E,D$10)","v":0},{"$f":"+SUMIFS(Datos!$C:$C,Datos!$A:$A,$C$8,Datos!$B:$B,$C$7,Datos!$D:$D,$B13,Datos!$E:$E,E$10)","v":0},{"$f":"+SUMIFS(Datos!$C:$C,Datos!$A:$A,$C$8,Datos!$B:$B,$C$7,Datos!$D:$D,$B13,Datos!$E:$E,F$10)","v":0},{"$f":"+SUMIFS(Datos!$C:$C,Datos!$A:$A,$C$8,Datos!$B:$B,$C$7,Datos!$D:$D,$B13,Datos!$E:$E,G$10)","v":0},{"$f":"+SUMIFS(Datos!$C:$C,Datos!$A:$A,$C$8,Datos!$B:$B,$C$7,Datos!$D:$D,$B13,Datos!$E:$E,H$10)","v":0},{"$f":"+SUMIFS(Datos!$C:$C,Datos!$A:$A,$C$8,Datos!$B:$B,$C$7,Datos!$D:$D,$B13,Datos!$E:$E,I$10)","v":0},{"$f":"+SUMIFS(Datos!$C:$C,Datos!$A:$A,$C$8,Datos!$B:$B,$C$7,Datos!$D:$D,$B13,Datos!$E:$E,J$10)","v":0},{"$f":"+SUMIFS(Datos!$C:$C,Datos!$A:$A,$C$8,Datos!$B:$B,$C$7,Datos!$D:$D,$B13,Datos!$E:$E,K$10)","v":0},{"$f":"+SUMIFS(Datos!$C:$C,Datos!$A:$A,$C$8,Datos!$B:$B,$C$7,Datos!$D:$D,$B13,Datos!$E:$E,L$10)","v":0},{"$f":"+SUMIFS(Datos!$C:$C,Datos!$A:$A,$C$8,Datos!$B:$B,$C$7,Datos!$D:$D,$B13,Datos!$E:$E,M$10)","v":0},{"$f":"+SUMIFS(Datos!$C:$C,Datos!$A:$A,$C$8,Datos!$B:$B,$C$7,Datos!$D:$D,$B13,Datos!$E:$E,N$10)","v":0}]
[null,"Importaciones (CIF)",null,{"$f":"+SUMIFS(Datos!$C:$C,Datos!$A:$A,$C$8,Datos!$B:$B,$C$7,Datos!$D:$D,$B14,Datos!$E:$E,D$10)","v":1926.576568},{"$f":"+SUMIFS(Datos!$C:$C,Datos!$A:$A,$C$8,Datos!$B:$B,$C$7,Datos!$D:$D,$B14,Datos!$E:$E,E$10)","v":1956.010428},{"$f":"+SUMIFS(Datos!$C:$C,Datos!$A:$A,$C$8,Datos!$B:$B,$C$7,Datos!$D:$D,$B14,Datos!$E:$E,F$10)","v":1937.5284630000001},{"$f":"+SUMIFS(Datos!$C:$C,Datos!$A:$A,$C$8,Datos!$B:$B,$C$7,Datos!$D:$D,$B14,Datos!$E:$E,G$10)","v":1962.7691789999999},{"$f":"+SUMIFS(Datos!$C:$C,Datos!$A:$A,$C$8,Datos!$B:$B,$C$7,Datos!$D:$D,$B14,Datos!$E:$E,H$10)","v":1866.521152},{"$f":"+SUMIFS(Datos!$C:$C,Datos!$A:$A,$C$8,Datos!$B:$B,$C$7,Datos!$D:$D,$B14,Datos!$E:$E,I$10)","v":2096.1708669999998},{"$f":"+SUMIFS(Datos!$C:$C,Datos!$A:$A,$C$8,Datos!$B:$B,$C$7,Datos!$D:$D,$B14,Datos!$E:$E,J$10)","v":2504.7953699999998},{"$f":"+SUMIFS(Datos!$C:$C,Datos!$A:$A,$C$8,Datos!$B:$B,$C$7,Datos!$D:$D,$B14,Datos!$E:$E,K$10)","v":2725.1497610000001},{"$f":"+SUMIFS(Datos!$C:$C,Datos!$A:$A,$C$8,Datos!$B:$B,$C$7,Datos!$D:$D,$B14,Datos!$E:$E,L$10)","v":3673.0260309999999},{"$f":"+SUMIFS(Datos!$C:$C,Datos!$A:$A,$C$8,Datos!$B:$B,$C$7,Datos!$D:$D,$B14,Datos!$E:$E,M$10)","v":4859.7301390000002},{"$f":"+SUMIFS(Datos!$C:$C,Datos!$A:$A,$C$8,Datos!$B:$B,$C$7,Datos!$D:$D,$B14,Datos!$E:$E,N$10)","v":4494.0957600000002}]
[null,"Ajuste CIF/FOB",null,{"$f":"+SUMIFS(Datos!$C:$C,Datos!$A:$A,$C$8,Datos!$B:$B,$C$7,Datos!$D:$D,$B15,Datos!$E:$E,D$10)","v":0},{"$f":"+SUMIFS(Datos!$C:$C,Datos!$A:$A,$C$8,Datos!$B:$B,$C$7,Datos!$D:$D,$B15,Datos!$E:$E,E$10)","v":0},{"$f":"+SUMIFS(Datos!$C:$C,Datos!$A:$A,$C$8,Datos!$B:$B,$C$7,Datos!$D:$D,$B15,Datos!$E:$E,F$10)","v":0},{"$f":"+SUMIFS(Datos!$C:$C,Datos!$A:$A,$C$8,Datos!$B:$B,$C$7,Datos!$D:$D,$B15,Datos!$E:$E,G$10)","v":0},{"$f":"+SUMIFS(Datos!$C:$C,Datos!$A:$A,$C$8,Datos!$B:$B,$C$7,Datos!$D:$D,$B15,Datos!$E:$E,H$10)","v":0},{"$f":"+SUMIFS(Datos!$C:$C,Datos!$A:$A,$C$8,Datos!$B:$B,$C$7,Datos!$D:$D,$B15,Datos!$E:$E,I$10)","v":0},{"$f":"+SUMIFS(Datos!$C:$C,Datos!$A:$A,$C$8,Datos!$B:$B,$C$7,Datos!$D:$D,$B15,Datos!$E:$E,J$10)","v":0},{"$f":"+SUMIFS(Datos!$C:$C,Datos!$A:$A,$C$8,Datos!$B:$B,$C$7,Datos!$D:$D,$B15,Datos!$E:$E,K$10)","v":0},{"$f":"+SUMIFS(Datos!$C:$C,Datos!$A:$A,$C$8,Datos!$B:$B,$C$7,Datos!$D:$D,$B15,Datos!$E:$E,L$10)","v":0},{"$f":"+SUMIFS(Datos!$C:$C,Datos!$A:$A,$C$8,Datos!$B:$B,$C$7,Datos!$D:$D,$B15,Datos!$E:$E,M$10)","v":0},{"$f":"+SUMIFS(Datos!$C:$C,Datos!$A:$A,$C$8,Datos!$B:$B,$C$7,Datos!$D:$D,$B15,Datos!$E:$E,N$10)","v":0}]
[null,"Impuestos y derechos sobre las importaciones excepto IVA",null,{"$f":"+SUMIFS(Datos!$C:$C,Datos!$A:$A,$C$8,Datos!$B:$B,$C$7,Datos!$D:$D,$B16,Datos!$E:$E,D$10)","v":1.3095000000000001E-2},{"$f":"+SUMIFS(Datos!$C:$C,Datos!$A:$A,$C$8,Datos!$B:$B,$C$7,Datos!$D:$D,$B16,Datos!$E:$E,E$10)","v":1.2174000000000001E-2},{"$f":"+SUMIFS(Datos!$C:$C,Datos!$A:$A,$C$8,Datos!$B:$B,$C$7,Datos!$D:$D,$B16,Datos!$E:$E,F$10)","v":1.2119E-2},{"$f":"+SUMIFS(Datos!$C:$C,Datos!$A:$A,$C$8,Datos!$B:$B,$C$7,Datos!$D:$D,$B16,Datos!$E:$E,G$10)","v":1.207867},{"$f":"+SUMIFS(Datos!$C:$C,Datos!$A:$A,$C$8,Datos!$B:$B,$C$7,Datos!$D:$D,$B16,Datos!$E:$E,H$10)","v":0.11444600000000001},{"$f":"+SUMIFS(Datos!$C:$C,Datos!$A:$A,$C$8,Datos!$B:$B,$C$7,Datos!$D:$D,$B16,Datos!$E:$E,I$10)","v":0.12887000000000001},{"$f":"+SUMIFS(Datos!$C:$C,Datos!$A:$A,$C$8,Datos!$B:$B,$C$7,Datos!$D:$D,$B16,Datos!$E:$E,J$10)","v":0.15424299999999999},{"$f":"+SUMIFS(Datos!$C:$C,Datos!$A:$A,$C$8,Datos!$B:$B,$C$7,Datos!$D:$D,$B16,Datos!$E:$E,K$10)","v":0.16805700000000001},{"$f":"+SUMIFS(Datos!$C:$C,Datos!$A:$A,$C$8,Datos!$B:$B,$C$7,Datos!$D:$D,$B16,Datos!$E:$E,L$10)","v":0.22651199999999999},{"$f":"+SUMIFS(Datos!$C:$C,Datos!$A:$A,$C$8,Datos!$B:$B,$C$7,Datos!$D:$D,$B16,Datos!$E:$E,M$10)","v":0.343692},{"$f":"+SUMIFS(Datos!$C:$C,Datos!$A:$A,$C$8,Datos!$B:$B,$C$7,Datos!$D:$D,$B16,Datos!$E:$E,N$10)","v":0.31783400000000001}]
[null,"Impuesto tipo valor agregado (IVA)",null,{"$f":"+SUMIFS(Datos!$C:$C,Datos!$A:$A,$C$8,Datos!$B:$B,$C$7,Datos!$D:$D,$B17,Datos!$E:$E,D$10)","v":56.302073999999998},{"$f":"+SUMIFS(Datos!$C:$C,Datos!$A:$A,$C$8,Datos!$B:$B,$C$7,Datos!$D:$D,$B17,Datos!$E:$E,E$10)","v":64.448783000000006},{"$f":"+SUMIFS(Datos!$C:$C,Datos!$A:$A,$C$8,Datos!$B:$B,$C$7,Datos!$D:$D,$B17,Datos!$E:$E,F$10)","v":63.156509},{"$f":"+SUMIFS(Datos!$C:$C,Datos!$A:$A,$C$8,Datos!$B:$B,$C$7,Datos!$D:$D,$B17,Datos!$E:$E,G$10)","v":66.6374},{"$f":"+SUMIFS(Datos!$C:$C,Datos!$A:$A,$C$8,Datos!$B:$B,$C$7,Datos!$D:$D,$B17,Datos!$E:$E,H$10)","v":74.990100999999996},{"$f":"+SUMIFS(Datos!$C:$C,Datos!$A:$A,$C$8,Datos!$B:$B,$C$7,Datos!$D:$D,$B17,Datos!$E:$E,I$10)","v":75.529437000000001},{"$f":"+SUMIFS(Datos!$C:$C,Datos!$A:$A,$C$8,Datos!$B:$B,$C$7,Datos!$D:$D,$B17,Datos!$E:$E,J$10)","v":83.781882999999993},{"$f":"+SUMIFS(Datos!$C:$C,Datos!$A:$A,$C$8,Datos!$B:$B,$C$7,Datos!$D:$D,$B17,Datos!$E:$E,K$10)","v":106.756379},{"$f":"+SUMIFS(Datos!$C:$C,Datos!$A:$A,$C$8,Datos!$B:$B,$C$7,Datos!$D:$D,$B17,Datos!$E:$E,L$10)","v":119.76886},{"$f":"+SUMIFS(Datos!$C:$C,Datos!$A:$A,$C$8,Datos!$B:$B,$C$7,Datos!$D:$D,$B17,Datos!$E:$E,M$10)","v":157.708034},{"$f":"+SUMIFS(Datos!$C:$C,Datos!$A:$A,$C$8,Datos!$B:$B,$C$7,Datos!$D:$D,$B17,Datos!$E:$E,N$10)","v":184.79911000000001}]
[null,"Márgenes de comercio, transporte y distribución de energía",null,{"$f":"+SUMIFS(Datos!$C:$C,Datos!$A:$A,$C$8,Datos!$B:$B,$C$7,Datos!$D:$D,$B18,Datos!$E:$E,D$10)","v":1236.1941449999999},{"$f":"+SUMIFS(Datos!$C:$C,Datos!$A:$A,$C$8,Datos!$B:$B,$C$7,Datos!$D:$D,$B18,Datos!$E:$E,E$10)","v":1105.7036350000001},{"$f":"+SUMIFS(Datos!$C:$C,Datos!$A:$A,$C$8,Datos!$B:$B,$C$7,Datos!$D:$D,$B18,Datos!$E:$E,F$10)","v":1264.3501940000001},{"$f":"+SUMIFS(Datos!$C:$C,Datos!$A:$A,$C$8,Datos!$B:$B,$C$7,Datos!$D:$D,$B18,Datos!$E:$E,G$10)","v":1207.606935},{"$f":"+SUMIFS(Datos!$C:$C,Datos!$A:$A,$C$8,Datos!$B:$B,$C$7,Datos!$D:$D,$B18,Datos!$E:$E,H$10)","v":1775.4645109999999},{"$f":"+SUMIFS(Datos!$C:$C,Datos!$A:$A,$C$8,Datos!$B:$B,$C$7,Datos!$D:$D,$B18,Datos!$E:$E,I$10)","v":1862.0701730000001},{"$f":"+SUMIFS(Datos!$C:$C,Datos!$A:$A,$C$8,Datos!$B:$B,$C$7,Datos!$D:$D,$B18,Datos!$E:$E,J$10)","v":2076.7218400000002},{"$f":"+SUMIFS(Datos!$C:$C,Datos!$A:$A,$C$8,Datos!$B:$B,$C$7,Datos!$D:$D,$B18,Datos!$E:$E,K$10)","v":2337.9927269999998},{"$f":"+SUMIFS(Datos!$C:$C,Datos!$A:$A,$C$8,Datos!$B:$B,$C$7,Datos!$D:$D,$B18,Datos!$E:$E,L$10)","v":2567.6841599999998},{"$f":"+SUMIFS(Datos!$C:$C,Datos!$A:$A,$C$8,Datos!$B:$B,$C$7,Datos!$D:$D,$B18,Datos!$E:$E,M$10)","v":3442.9034539999998},{"$f":"+SUMIFS(Datos!$C:$C,Datos!$A:$A,$C$8,Datos!$B:$B,$C$7,Datos!$D:$D,$B18,Datos!$E:$E,N$10)","v":4137.5133660000001}]
[null,"Oferta total",null,{"$f":"+SUM(D11:D18)","v":7957.6134770000008},8206.7777740000001,8440.0645810000005,8714.3743140000006,8473.637537999999,9424.3599990000002,{"$f":"+SUM(J11:J18)","v":10539.445567000001},11117.705214000001,13046.145402999999,{"$f":"+SUM(M11:M18)","v":17363.022899},18688.618276000001]
[null,"Consumo intermedio (PC)",null,{"$f":"+SUMIFS(Datos!$C:$C,Datos!$A:$A,$C$8,Datos!$B:$B,$C$7,Datos!$D:$D,$B20,Datos!$E:$E,D$10)","v":3302.630165},{"$f":"+SUMIFS(Datos!$C:$C,Datos!$A:$A,$C$8,Datos!$B:$B,$C$7,Datos!$D:$D,$B20,Datos!$E:$E,E$10)","v":3412.4971310000001},{"$f":"+SUMIFS(Datos!$C:$C,Datos!$A:$A,$C$8,Datos!$B:$B,$C$7,Datos!$D:$D,$B20,Datos!$E:$E,F$10)","v":3476.5390120000002},{"$f":"+SUMIFS(Datos!$C:$C,Datos!$A:$A,$C$8,Datos!$B:$B,$C$7,Datos!$D:$D,$B20,Datos!$E:$E,G$10)","v":3597.5077160000001},{"$f":"+SUMIFS(Datos!$C:$C,Datos!$A:$A,$C$8,Datos!$B:$B,$C$7,Datos!$D:$D,$B20,Datos!$E:$E,H$10)","v":3274.1293620000001},{"$f":"+SUMIFS(Datos!$C:$C,Datos!$A:$A,$C$8,Datos!$B:$B,$C$7,Datos!$D:$D,$B20,Datos!$E:$E,I$10)","v":3704.2621789999998},{"$f":"+SUMIFS(Datos!$C:$C,Datos!$A:$A,$C$8,Datos!$B:$B,$C$7,Datos!$D:$D,$B20,Datos!$E:$E,J$10)","v":4065.477832},{"$f":"+SUMIFS(Datos!$C:$C,Datos!$A:$A,$C$8,Datos!$B:$B,$C$7,Datos!$D:$D,$B20,Datos!$E:$E,K$10)","v":4188.7452910000002},{"$f":"+SUMIFS(Datos!$C:$C,Datos!$A:$A,$C$8,Datos!$B:$B,$C$7,Datos!$D:$D,$B20,Datos!$E:$E,L$10)","v":5290.644644},{"$f":"+SUMIFS(Datos!$C:$C,Datos!$A:$A,$C$8,Datos!$B:$B,$C$7,Datos!$D:$D,$B20,Datos!$E:$E,M$10)","v":6889.4930350000004},{"$f":"+SUMIFS(Datos!$C:$C,Datos!$A:$A,$C$8,Datos!$B:$B,$C$7,Datos!$D:$D,$B20,Datos!$E:$E,N$10)","v":6840.5706200000004}]
[null,"Consumo final privado (PC)",null,{"$f":"+SUMIFS(Datos!$C:$C,Datos!$A:$A,$C$8,Datos!$B:$B,$C$7,Datos!$D:$D,$B21,Datos!$E:$E,D$10)","v":4580.0363850000003},{"$f":"+SUMIFS(Datos!$C:$C,Datos!$A:$A,$C$8,Datos!$B:$B,$C$7,Datos!$D:$D,$B21,Datos!$E:$E,E$10)","v":4664.5760769999997},{"$f":"+SUMIFS(Datos!$C:$C,Datos!$A:$A,$C$8,Datos!$B:$B,$C$7,Datos!$D:$D,$B21,Datos!$E:$E,F$10)","v":4908.7973549999997},{"$f":"+SUMIFS(Datos!$C:$C,Datos!$A:$A,$C$8,Datos!$B:$B,$C$7,Datos!$D:$D,$B21,Datos!$E:$E,G$10)","v":5030.7944020000004},{"$f":"+SUMIFS(Datos!$C:$C,Datos!$A:$A,$C$8,Datos!$B:$B,$C$7,Datos!$D:$D,$B21,Datos!$E:$E,H$10)","v":5138.9054400000005},{"$f":"+SUMIFS(Datos!$C:$C,Datos!$A:$A,$C$8,Datos!$B:$B,$C$7,Datos!$D:$D,$B21,Datos!$E:$E,I$10)","v":5726.608776},{"$f":"+SUMIFS(Datos!$C:$C,Datos!$A:$A,$C$8,Datos!$B:$B,$C$7,Datos!$D:$D,$B21,Datos!$E:$E,J$10)","v":6291.0989529999997},{"$f":"+SUMIFS(Datos!$C:$C,Datos!$A:$A,$C$8,Datos!$B:$B,$C$7,Datos!$D:$D,$B21,Datos!$E:$E,K$10)","v":6762.6794760000002},{"$f":"+SUMIFS(Datos!$C:$C,Datos!$A:$A,$C$8,Datos!$B:$B,$C$7,Datos!$D:$D,$B21,Datos!$E:$E,L$10)","v":7480.7803089999998},{"$f":"+SUMIFS(Datos!$C:$C,Datos!$A:$A,$C$8,Datos!$B:$B,$C$7,Datos!$D:$D,$B21,Datos!$E:$E,M$10)","v":10028.960501},{"$f":"+SUMIFS(Datos!$C:$C,Datos!$A:$A,$C$8,Datos!$B:$B,$C$7,Datos!$D:$D,$B21,Datos!$E:$E,N$10)","v":11450.845321000001}]
[null,"Consumo final del gobierno (PC)",null,{"$f":"+SUMIFS(Datos!$C:$C,Datos!$A:$A,$C$8,Datos!$B:$B,$C$7,Datos!$D:$D,$B22,Datos!$E:$E,D$10)","v":0},{"$f":"+SUMIFS(Datos!$C:$C,Datos!$A:$A,$C$8,Datos!$B:$B,$C$7,Datos!$D:$D,$B22,Datos!$E:$E,E$10)","v":121.93507},{"$f":"+SUMIFS(Datos!$C:$C,Datos!$A:$A,$C$8,Datos!$B:$B,$C$7,Datos!$D:$D,$B22,Datos!$E:$E,F$10)","v":34.290210000000002},{"$f":"+SUMIFS(Datos!$C:$C,Datos!$A:$A,$C$8,Datos!$B:$B,$C$7,Datos!$D:$D,$B22,Datos!$E:$E,G$10)","v":60.153328000000002},{"$f":"+SUMIFS(Datos!$C:$C,Datos!$A:$A,$C$8,Datos!$B:$B,$C$7,Datos!$D:$D,$B22,Datos!$E:$E,H$10)","v":70.978345000000004},{"$f":"+SUMIFS(Datos!$C:$C,Datos!$A:$A,$C$8,Datos!$B:$B,$C$7,Datos!$D:$D,$B22,Datos!$E:$E,I$10)","v":5.1579550000000003},{"$f":"+SUMIFS(Datos!$C:$C,Datos!$A:$A,$C$8,Datos!$B:$B,$C$7,Datos!$D:$D,$B22,Datos!$E:$E,J$10)","v":11.485080999999999},{"$f":"+SUMIFS(Datos!$C:$C,Datos!$A:$A,$C$8,Datos!$B:$B,$C$7,Datos!$D:$D,$B22,Datos!$E:$E,K$10)","v":169.92567199999999},{"$f":"+SUMIFS(Datos!$C:$C,Datos!$A:$A,$C$8,Datos!$B:$B,$C$7,Datos!$D:$D,$B22,Datos!$E:$E,L$10)","v":207.84014500000001},{"$f":"+SUMIFS(Datos!$C:$C,Datos!$A:$A,$C$8,Datos!$B:$B,$C$7,Datos!$D:$D,$B22,Datos!$E:$E,M$10)","v":250.561893},{"$f":"+SUMIFS(Datos!$C:$C,Datos!$A:$A,$C$8,Datos!$B:$B,$C$7,Datos!$D:$D,$B22,Datos!$E:$E,N$10)","v":352.77388400000001}]
[null,"Formación bruta de capital fijo (PC)",null,{"$f":"+SUMIFS(Datos!$C:$C,Datos!$A:$A,$C$8,Datos!$B:$B,$C$7,Datos!$D:$D,$B23,Datos!$E:$E,D$10)","v":0},{"$f":"+SUMIFS(Datos!$C:$C,Datos!$A:$A,$C$8,Datos!$B:$B,$C$7,Datos!$D:$D,$B23,Datos!$E:$E,E$10)","v":0},{"$f":"+SUMIFS(Datos!$C:$C,Datos!$A:$A,$C$8,Datos!$B:$B,$C$7,Datos!$D:$D,$B23,Datos!$E:$E,F$10)","v":0},{"$f":"+SUMIFS(Datos!$C:$C,Datos!$A:$A,$C$8,Datos!$B:$B,$C$7,Datos!$D:$D,$B23,Datos!$E:$E,G$10)","v":0},{"$f":"+SUMIFS(Datos!$C:$C,Datos!$A:$A,$C$8,Datos!$B:$B,$C$7,Datos!$D:$D,$B23,Datos!$E:$E,H$10)","v":0},{"$f":"+SUMIFS(Datos!$C:$C,Datos!$A:$A,$C$8,Datos!$B:$B,$C$7,Datos!$D:$D,$B23,Datos!$E:$E,I$10)","v":0},{"$f":"+SUMIFS(Datos!$C:$C,Datos!$A:$A,$C$8,Datos!$B:$B,$C$7,Datos!$D:$D,$B23,Datos!$E:$E,J$10)","v":0},{"$f":"+SUMIFS(Datos!$C:$C,Datos!$A:$A,$C$8,Datos!$B:$B,$C$7,Datos!$D:$D,$B23,Datos!$E:$E,K$10)","v":0},{"$f":"+SUMIFS(Datos!$C:$C,Datos!$A:$A,$C$8,Datos!$B:$B,$C$7,Datos!$D:$D,$B23,Datos!$E:$E,L$10)","v":0},{"$f":"+SUMIFS(Datos!$C:$C,Datos!$A:$A,$C$8,Datos!$B:$B,$C$7,Datos!$D:$D,$B23,Datos!$E:$E,M$10)","v":0},{"$f":"+SUMIFS(Datos!$C:$C,Datos!$A:$A,$C$8,Datos!$B:$B,$C$7,Datos!$D:$D,$B23,Datos!$E:$E,N$10)","v":0}]
[null,"Variación de existencias (PC)",null,{"$f":"+SUMIFS(Datos!$C:$C,Datos!$A:$A,$C$8,Datos!$B:$B,$C$7,Datos!$D:$D,$B24,Datos!$E:$E,D$10)","v":38.522311999999999},{"$f":"+SUMIFS(Datos!$C:$C,Datos!$A:$A,$C$8,Datos!$B:$B,$C$7,Datos!$D:$D,$B24,Datos!$E:$E,E$10)","v":-7.9680280000000003},{"$f":"+SUMIFS(Datos!$C:$C,Datos!$A:$A,$C$8,Datos!$B:$B,$C$7,Datos!$D:$D,$B24,Datos!$E:$E,F$10)","v":-3.6261860000000001},{"$f":"+SUMIFS(Datos!$C:$C,Datos!$A:$A,$C$8,Datos!$B:$B,$C$7,Datos!$D:$D,$B24,Datos!$E:$E,G$10)","v":4.3459149999999998},{"$f":"+SUMIFS(Datos!$C:$C,Datos!$A:$A,$C$8,Datos!$B:$B,$C$7,Datos!$D:$D,$B24,Datos!$E:$E,H$10)","v":-19.729437000000001},{"$f":"+SUMIFS(Datos!$C:$C,Datos!$A:$A,$C$8,Datos!$B:$B,$C$7,Datos!$D:$D,$B24,Datos!$E:$E,I$10)","v":-20.213403},{"$f":"+SUMIFS(Datos!$C:$C,Datos!$A:$A,$C$8,Datos!$B:$B,$C$7,Datos!$D:$D,$B24,Datos!$E:$E,J$10)","v":162.05027200000001},{"$f":"+SUMIFS(Datos!$C:$C,Datos!$A:$A,$C$8,Datos!$B:$B,$C$7,Datos!$D:$D,$B24,Datos!$E:$E,K$10)","v":-13.196681999999999},{"$f":"+SUMIFS(Datos!$C:$C,Datos!$A:$A,$C$8,Datos!$B:$B,$C$7,Datos!$D:$D,$B24,Datos!$E:$E,L$10)","v":39.685733999999997},{"$f":"+SUMIFS(Datos!$C:$C,Datos!$A:$A,$C$8,Datos!$B:$B,$C$7,Datos!$D:$D,$B24,Datos!$E:$E,M$10)","v":102.174311},{"$f":"+SUMIFS(Datos!$C:$C,Datos!$A:$A,$C$8,Datos!$B:$B,$C$7,Datos!$D:$D,$B24,Datos!$E:$E,N$10)","v":-38.710821000000003}]
[null,"Exportaciones (FOB)",null,{"$f":"+SUMIFS(Datos!$C:$C,Datos!$A:$A,$C$8,Datos!$B:$B,$C$7,Datos!$D:$D,$B25,Datos!$E:$E,D$10)","v":36.424615000000003},{"$f":"+SUMIFS(Datos!$C:$C,Datos!$A:$A,$C$8,Datos!$B:$B,$C$7,Datos!$D:$D,$B25,Datos!$E:$E,E$10)","v":15.737524000000001},{"$f":"+SUMIFS(Datos!$C:$C,Datos!$A:$A,$C$8,Datos!$B:$B,$C$7,Datos!$D:$D,$B25,Datos!$E:$E,F$10)","v":24.06419},{"$f":"+SUMIFS(Datos!$C:$C,Datos!$A:$A,$C$8,Datos!$B:$B,$C$7,Datos!$D:$D,$B25,Datos!$E:$E,G$10)","v":21.572953999999999},{"$f":"+SUMIFS(Datos!$C:$C,Datos!$A:$A,$C$8,Datos!$B:$B,$C$7,Datos!$D:$D,$B25,Datos!$E:$E,H$10)","v":9.3538289999999993},{"$f":"+SUMIFS(Datos!$C:$C,Datos!$A:$A,$C$8,Datos!$B:$B,$C$7,Datos!$D:$D,$B25,Datos!$E:$E,I$10)","v":8.544492},{"$f":"+SUMIFS(Datos!$C:$C,Datos!$A:$A,$C$8,Datos!$B:$B,$C$7,Datos!$D:$D,$B25,Datos!$E:$E,J$10)","v":9.3334299999999999},{"$f":"+SUMIFS(Datos!$C:$C,Datos!$A:$A,$C$8,Datos!$B:$B,$C$7,Datos!$D:$D,$B25,Datos!$E:$E,K$10)","v":9.5514569999999992},{"$f":"+SUMIFS(Datos!$C:$C,Datos!$A:$A,$C$8,Datos!$B:$B,$C$7,Datos!$D:$D,$B25,Datos!$E:$E,L$10)","v":27.194572000000001},{"$f":"+SUMIFS(Datos!$C:$C,Datos!$A:$A,$C$8,Datos!$B:$B,$C$7,Datos!$D:$D,$B25,Datos!$E:$E,M$10)","v":91.833158999999995},{"$f":"+SUMIFS(Datos!$C:$C,Datos!$A:$A,$C$8,Datos!$B:$B,$C$7,Datos!$D:$D,$B25,Datos!$E:$E,N$10)","v":83.139270999999994}]
[null,"Utilización total",null,{"$f":"+SUM(D20:D25)","v":7957.6134769999999},8206.7777739999983,8440.0645809999987,{"$f":"+SUM(G20:G25)","v":8714.3743149999991},8473.6375389999994,{"$f":"+SUM(I20:I25)","v":9424.3599990000021},10539.445568000001,11117.705214,13046.145404000001,17363.022899,18688.618274999997]
[]
[null,"Estructura porcentual"]
[]
[null,"Concepto",null,2013,2014,2015,2016,2017,2018,2019,2020,2021,"2022 p/","2023 p/"]
[null,"Producción (PB)",null,{"$f":"+IFERROR(D11/D$19*100,0)","v":59.547094222354872},61.907400125977865,61.314901637717689,62.84046032085557,{"$f":"+IFERROR(H11/H$19*100,0)","v":56.133476404546215},{"$f":"+IFERROR(I11/I$19*100,0)","v":57.19710041394822},55.73340830557563,53.49699578749776,51.244560239706239,51.271818460325349,{"$f":"+IFERROR(N11/N$19*100,0)","v":52.823018054135787}]
[null,"Impuestos sobre los productos, excepto IVA e impuestos sobre las importaciones ",null,0,0,0,0,0,0,0,0,0,0,{"$f":"+IFERROR(N12/N$19*100,0)","v":0}]
[null,"Subvenciones a los productos",null,0,0,0,0,0,0,0,0,0,0,{"$f":"+IFERROR(N13/N$19*100,0)","v":0}]
[null,"Importaciones (CIF)",null,24.210481868319071,23.834085457959667,22.956322720109291,22.523351743644181,22.027389578909791,22.242050040771151,23.7659121068261,24.51180084868906,28.154109260160297,27.988963484462666,{"$f":"+IFERROR(N14/N$19*100,0)","v":24.047233956141831}]
[null,"Ajuste CIF/FOB",null,0,0,0,0,0,0,0,0,0,0,{"$f":"+IFERROR(N15/N$19*100,0)","v":0}]
[null,"Impuestos y derechos sobre las importaciones excepto IVA",null,1.6455938753306702E-4,1.4834080238615218E-4,1.4358894868271384E-4,1.3860627928955404E-2,1.3506124080333542E-3,1.3674138086159076E-3,1.4634830553416339E-3,1.5116159024289812E-3,1.7362369727069952E-3,1.9794479452065602E-3,{"$f":"+IFERROR(N16/N$19*100,0)","v":1.7006821762107674E-3}]
[null,"Impuesto tipo valor agregado (IVA)",null,0.7075246135380997,0.78531166280852682,0.74829414388813908,0.76468370073275693,0.88498122162657,0.80142775751365891,0.79493634145546499,0.96023753953798607,0.91804020498237582,0.90829825496044803,{"$f":"+IFERROR(N17/N$19*100,0)","v":0.98883238595182699}]
[null,"Márgenes de comercio, transporte y distribución de energía",null,15.534734736400416,13.47305441245155,14.980337909336194,13.857643606838529,20.952802182509402,19.758054373958345,19.704279763087467,21.029454208372751,19.681554058178392,19.828940352306333,{"$f":"+IFERROR(N18/N$19*100,0)","v":22.139214921594345}]
[null,"Oferta total",null,100,100,100,100,100,100,100,100,100,100,{"$f":"+IFERROR(N19/N$19*100,0)","v":100}]
[null,"Consumo intermedio (PC)",null,41.502771836627119,41.581449199357841,41.190905337694595,41.28245570333668,38.639006534291539,39.305185491567087,38.573925033868903,37.676347864713222,40.553316558800582,39.679110458333795,{"$f":"+IFERROR(N20/N$19*100,0)","v":36.602869826843694}]
[null,"Consumo final privado (PC)",null,57.555401481081518,56.838094139430751,58.16066106947244,57.729840614234604,60.645801958776225,60.763900960995109,59.690985763976279,60.82801572651951,57.340923912129426,57.760451963566808,{"$f":"+IFERROR(N21/N$19*100,0)","v":61.271759912316384}]
[null,"Consumo final del gobierno (PC)",null,0,1.4857849616240868,0.40627900024832758,0.6902770736317948,0.83763725651112475,5.473002941894517E-2,0.10897234514840963,1.5284239753543798,1.593115350011403,1.4430775934438858,{"$f":"+IFERROR(N22/N$19*100,0)","v":1.8876402674082848}]
[null,"Formación bruta de capital fijo (PC)",null,0,0,0,0,0,0,0,0,0,0,{"$f":"+IFERROR(N23/N$19*100,0)","v":0}]
[null,"Variación de existencias (PC)",null,0.48409378152559895,-9.7090821994030518E-2,-4.2963960348871649E-2,4.9870648693826576E-2,-0.23283314764790691,-0.21448037853121915,1.5375597413529485,-0.11869969338080705,0.30419509191484367,0.5884592308283173,{"$f":"+IFERROR(N24/N$19*100,0)","v":-0.20713581083579941}]
[null,"Exportaciones (FOB)",null,0.45773290076577056,0.19176252158134774,0.28511855293349919,0.24755597157838585,0.11038740987035126,9.0663896550074896E-2,8.8557125141609447E-2,8.5912126793686705E-2,0.20844909480885082,0.52890075382719792,{"$f":"+IFERROR(N25/N$19*100,0)","v":0.44486579891659395}]
[null,"Utilización total",null,99.999999999999986,99.999999999999972,99.999999999999972,100.00000001147527,100.00000001180132,100.00000000000003,100.00000000948816,99.999999999999986,100.00000000766511,100,{"$f":"+IFERROR(N26/N$19*100,0)","v":99.99999999464913}]
[]
[null,"Fuente:   Banco de Guatemala"]
[null,"p/ Cifras preliminares"]
[]
[null,"Notas:    NPG","Nomenclatura de Productos para Guatemala"]
[null,"           CIF","Costo, seguro y flete"]
[null,"           FOB","Libre a bordo"]
[null,"           PB","Precio básico"]
[null,"           PC","Precio de comprador"]

{"sheet":"Catálogo","index":2,"n_rows":159,"n_cols":4,"rows_kept":159,"cut":false,"hidden":false,"merged":[[1,1,1,3]]}
[]
[null,"Productos"]
[]
[null,null,null,"Índice"]
[]
[null,"Cuadro","Código\nNPG 1/","Concepto"]
[null,"3.1","P001","Maíz"]
[null,"3.2","P002","Frijoles"]
[null,"3.3","P003","Leguminosas (legumbres secas) y semillas oleaginosas"]
[null,"3.4","P004","Arroz"]
[null,"3.5","P005","Otros cereales"]
[null,"3.6","P006","Hortalizas"]
[null,"3.7","P007","Sandías y melones"]
[null,"3.8","P008","Ejotes y arvejas"]
[null,"3.9","P009","Raíces y tubérculos"]
[null,"3.10","P010","Caña de azúcar y otras plantas azucareras"]
[null,"3.11","P011","Tabaco y otras plantas no perennes"]
[null,"3.12","P012","Bananos, plátanos y otros"]
[null,"3.13","P013","Frutas tropicales y subtropicales"]
[null,"3.14","P014","Berries, otras frutas y semillas de frutas"]
[null,"3.15","P015","Palma africana"]
[null,"3.16","P016","Café en grano"]
[null,"3.17","P017","Cardamomo"]
[null,"3.18","P018","Caucho natural"]
[null,"3.19","P019","Propagación de plantas"]
[null,"3.20","P020","Otros frutos oleaginosos, otras plantas bebestibles y especias aromáticas"]
[null,"3.21","P021","Ganado bovino"]
[null,"3.22","P022","Ganado porcino y otro tipo de animales vivos n.c.p."]
[null,"3.23","P023","Aves de corral"]
[null,"3.24","P024","Leche cruda"]
[null,"3.25","P025","Huevos"]
[null,"3.26","P026","Otros productos de animales vivos"]
[null,"3.27","P027","Troncos de madera y leña"]
[null,"3.28","P028","Productos forestales no madereros"]
[null,"3.29","P029","Peces vivos, frescos o refrigerados"]
[null,"3.30","P030","Crustáceos sin congelar y otros productos de la pesca"]
[null,"3.31","P031","Petróleo crudo y gas natural"]
[null,"3.32","P032","Minerales metálicos"]
[null,"3.33","P033","Minerales no metálicos"]
[null,"3.34","P034","Carne y despojos comestibles de ganado bovino; cueros y pieles de bovino y de otros animales"]
[null,"3.35","P035","Carne y despojos comestibles de ganado porcino"]
[null,"3.36","P036","Carne y despojos comestibles de aves"]
[null,"3.37","P037","Carne y despojos de otros animales y conservas y preparados de carne"]
[null,"3.38","P038","Pescado congelado, preparado o en conserva y sus productos"]
[null,"3.39","P039","Crustáceos, moluscos y demás invertebrados acuáticos congelados, preparados o en conserva y sus productos"]
[null,"3.40","P040","Vegetales preparados o en conserva, legumbres y papas"]
[null,"3.41","P041","Preparaciones y conservas de frutas y nueces"]
[null,"3.42","P042","Jugos de frutas"]
[null,"3.43","P043","Aceites de origen vegetal"]
[null,"3.44","P044","Margarina, grasas y otros aceites de origen animal y vegetal"]
[null,"3.45","P045","Leche líquida y crema procesada"]
[null,"3.46","P046","Otros productos lácteos n.c.p."]
[null,"3.47","P047","Harina de trigo"]
[null,"3.48","P048","Arroz sin cáscara"]
[null,"3.49","P049","Otros productos de molinería, almidones y productos de almidón"]
[null,"3.50","P050","Pan y otros productos de panadería y repostería n.c.p."]
[null,"3.51","P051","Tortillas de maíz, incluso tostadas, horneadas o fritas"]
[null,"3.52","P052","Azúcar de caña sin refinar y refinada, melaza y los demás azúcares n.c.p."]
[null,"3.53","P053","Productos alimenticios n.c.p."]
[null,"3.54","P054","Preparados para alimentación animal"]
[null,"3.55","P055","Aguardientes, licores, vinos, demás bebidas espirituosas y productos del tabaco"]
[null,"3.56","P056","Malta y cerveza de malta"]
[null,"3.57","P057","Bebidas no alcohólicas"]
[null,"3.58","P058","Aguas minerales y otras aguas embotelladas"]
[null,"3.59","P059","Hilados, tejidos, telas y otros productos textiles excepto prendas de vestir"]
[null,"3.60","P060","Prendas de vestir, adobo y teñido de pieles"]
[null,"3.61","P061","Cuero de piel curtida o adobada y cuero artificial o regenerado y artículos de cuero"]
[null,"3.62","P062","Calzado y sus partes, de cualquier material y de cualquier uso"]
[null,"3.63","P063","Madera aserrada y acepillada, productos de madera, corcho, paja y materiales trenzables"]
[null,"3.64","P064","Pasta de papel y papel"]
[null,"3.65","P065","Envases de papel y cartón"]
[null,"3.66","P066","Productos de la edición"]
[null,"3.67","P067","Productos de la impresión"]
[null,"3.68","P068","Gasolinas, diésel oil y fuel oils"]
[null,"3.69","P069","Aceites, grasas lubricantes y otros aceites preparados"]
[null,"3.70","P070","Gases de petróleo, otros productos de la refinación de petróleo n.c.p."]
[null,"3.71","P071","Abonos, fertilizantes y pesticidas"]
[null,"3.72","P072","Pinturas, barnices, tintas y productos relacionados"]
[null,"3.73","P073","Jabón, preparados de limpieza, perfumes y preparados de toilet"]
[null,"3.74","P074","Otros productos químicos"]
[null,"3.75","P075","Productos farmacéuticos"]
[null,"3.76","P076","Productos de caucho y plástico"]
[null,"3.77","P077","Vidrio y productos de vidrio"]
[null,"3.78","P078","Productos de cerámica y arcilla"]
[null,"3.79","P079","Cemento, cal y yeso"]
[null,"3.80","P080","Artículos de hormigón, cemento y yeso"]
[null,"3.81","P081","Piedras talladas para construcción y otros productos minerales no metálicos n.c.p."]
[null,"3.82","P082","Métales básicos de hierro y acero, productos primarios de metales preciosos y otros metales no ferrosos"]
[null,"3.83","P083","Productos metálicos estructurales y sus partes de hierro o de acero"]
[null,"3.84","P084","Otros productos elaborados de metal"]
[null,"3.85","P085","Maquinaria para usos generales y especiales, sus partes y piezas, excepto electrodomésticos"]
[null,"3.86","P086","Electrodomésticos y sus partes"]
[null,"3.87","P087","Maquinaria de oficina, contabilidad e informática, sus partes y piezas"]
[null,"3.88","P088","Maquinaria y aparatos eléctricos, sus partes y piezas"]
[null,"3.89","P089","Equipo y aparatos de radio, televisión y comunicaciones"]
[null,"3.90","P090","Aparatos médicos, instrumentos ópticos y de precisión, relojes"]
[null,"3.91","P091","Equipo de transporte"]
[null,"3.92","P092","Muebles"]
[null,"3.93","P093","Otros artículos n.c.p."]
[null,"3.94","P094","Residuos y desechos"]
[null,"3.95","P095","Generación y distribución de energía eléctrica, gas, vapor y aire acondicionado"]
[null,"3.96","P096","Agua natural y distribución de agua natural"]
[null,"3.97","P097","Evacuación de aguas residuales, recogida, tratamiento y eliminación de desechos"]
[null,"3.98","P098","Edificaciones residenciales"]
[null,"3.99","P099","Edificaciones no residenciales"]
[null,"3.100","P100","Obras de ingeniería civil"]
[null,"3.101","P101","Servicios generales y especializados de construcción"]
[null,"3.102","P102","Servicios de comercio"]
[null,"3.103","P103","Mantenimiento y reparación de vehículos automotores y motocicletas"]
[null,"3.104","P104","Servicio de transporte de pasajeros por vía terrestre"]
[null,"3.105","P105","Servicio de transporte de carga por vía terrestre"]
[null,"3.106","P106","Otros tipos de transporte"]
[null,"3.107","P107","Servicios de almacenamiento y depósito"]
[null,"3.108","P108","Otros servicios de apoyo al transporte"]
[null,"3.109","P109","Servicios postales y de mensajería"]
[null,"3.110","P110","Servicio de alojamiento"]
[null,"3.111","P111","Servicio de suministro de comidas y bebidas"]
[null,"3.112","P112","Servicios de información, telecomunicaciones y radiodifusión"]
[null,"3.113","P113","Servicios de banco central"]
[null,"3.114","P114","Otros servicios financieros y servicios de banca de inversión"]
[null,"3.115","P115","Servicios de Intermediación Financiera Medidos Indirectamente (SIFMI)"]
[null,"3.116","P116","Servicios de seguro, reaseguro y fondos de pensiones"]
[null,"3.117","P117","Servicios auxiliares de la intermediación financiera"]
[null,"3.118","P118","Servicios de alquiler de vivienda"]
[null,"3.119","P119","Otros servicios inmobiliarios, excepto alquiler de vivienda"]
[null,"3.120","P120","Servicios jurídicos, de contabilidad, auditoría, teneduría de libros y consultoría fiscal"]
[null,"3.121","P121","Servicios de tecnología de la información"]
[null,"3.122","P122","Servicios de arquitectura e ingeniería, ensayos y análisis técnicos"]
[null,"3.123","P123","Otros servicios profesionales, científicos y técnicos"]
[null,"3.124","P124","Servicios de publicidad y estudios de mercado"]
[null,"3.125","P125","Servicios de arrendamiento o alquiler sin operador"]
[null,"3.126","P126","Servicios  de agencias de empleo y de dotación de recursos humanos"]
[null,"3.127","P127","Servicios de agencias de viajes, operadores turísticos y actividades conexas"]
[null,"3.128","P128","Servicios de seguridad, sistemas de seguridad e investigación privada"]
[null,"3.129","P129","Servicios de limpieza"]
[null,"3.130","P130","Servicios telefónicos de centros de llamadas"]
[null,"3.131","P131","Servicios administrativos, de apoyo de oficina y otros servicios de apoyo a las empresas"]
[null,"3.132","P132","Servicios de mantenimiento, reparación e instalación de productos metálicos elaborados, maquinaria y equipo"]
[null,"3.133","P133","Servicios de reparación de otros bienes"]
[null,"3.134","P134","Servicios de apoyo a la agricultura, caza, silvicultura y pesca"]
[null,"3.135","P135","Servicios de apoyo a la explotación de minas y canteras y los relacionados con la distribución de electricidad, gas y agua"]
[null,"3.136","P136","Servicios de manufactura"]
[null,"3.137","P137","Servicios públicos del gobierno general"]
[null,"3.138","P138","Servicios públicos administrativos relacionados con la provisión de servicios educativos, de salud, servicios sociales, culturales y otros, sin contar los servicios de seguridad social"]
[null,"3.139","P139","Otros servicios administrativos"]
[null,"3.140","P140","Servicios públicos administrativos prestados a la comunidad en su conjunto"]
[null,"3.141","P141","Servicios administrativos relacionados con los sistemas de seguridad social de afiliación obligatoria"]
[null,"3.142","P142","Servicios de enseñanza"]
[null,"3.143","P143","Servicios de hospitalización"]
[null,"3.144","P144","Servicios médicos y dentales"]
[null,"3.145","P145","Otros servicios de atención de la salud humana"]
[null,"3.146","P146","Servicios audiovisuales, recreativos, culturales y deportivos"]
[null,"3.147","P147","Servicios de asociaciones que sirven a las empresas"]
[null,"3.148","P148","Servicios de asociaciones que sirven a los hogares"]
[null,"3.149","P149","Otros servicios"]
[null,"3.150","P150","Servicios domésticos"]
[null,"3.151","P151","Compras directas en el exterior por residentes"]
[null,"3.152","P152","Compras directas en el territorio nacional por no residentes"]
[null,"1/ Nomenclatura de Productos para Guatemala"]

{"sheet":"Datos","index":3,"n_rows":23409,"n_cols":5,"rows_kept":4500,"cut":true,"hidden":false,"merged":[],"bounds":{"rows_first":2000,"rows_last":500,"rows_between":2000,"halvings":0}}
["Código","Producto","Monto","Concepto","Año"]
["P001","Maíz",4738.5275949999996,"Producción (PB)",2013]
["P002","Frijoles",1539.4167849999999,"Producción (PB)",2013]
["P003","Leguminosas (legumbres secas) y semillas oleaginosas",664.93744100000004,"Producción (PB)",2013]
["P004","Arroz",116.239071,"Producción (PB)",2013]
["P005","Otros cereales",106.479292,"Producción (PB)",2013]
["P006","Hortalizas",5264.6820399999997,"Producción (PB)",2013]
["P007","Sandías y melones",1261.6824779999999,"Producción (PB)",2013]
["P008","Ejotes y arvejas",771.17068200000006,"Producción (PB)",2013]
["P009","Raíces y tubérculos",1747.910875,"Producción (PB)",2013]
["P010","Caña de azúcar y otras plantas azucareras",6154.0217499999999,"Producción (PB)",2013]
["P011","Tabaco y otras plantas no perennes",1283.655291,"Producción (PB)",2013]
["P012","Bananos, plátanos y otros",6040.0700450000004,"Producción (PB)",2013]
["P013","Frutas tropicales y subtropicales",1653.6531259999999,"Producción (PB)",2013]
["P014","Berries, otras frutas y semillas de frutas",1714.381488,"Producción (PB)",2013]
["P015","Palma africana",2414.8983130000001,"Producción (PB)",2013]
["P016","Café en grano",9653.351541,"Producción (PB)",2013]
["P017","Cardamomo",2322.3962069999998,"Producción (PB)",2013]
["P018","Caucho natural",2982.8295819999998,"Producción (PB)",2013]
["P019","Propagación de plantas",566.54510600000003,"Producción (PB)",2013]
["P020","Otros frutos oleaginosos, otras plantas bebestibles y especias aromáticas",232.12553700000001,"Producción (PB)",2013]
["P021","Ganado bovino",4026.8818670000001,"Producción (PB)",2013]
["P022","Ganado porcino y otro tipo de animales vivos n.c.p.",1370.8941910000001,"Producción (PB)",2013]
["P023","Aves de corral",6672.8339569999998,"Producción (PB)",2013]
["P024","Leche cruda",1747.589759,"Producción (PB)",2013]
["P025","Huevos",2841.0390729999999,"Producción (PB)",2013]
["P026","Otros productos de animales vivos",115.807453,"Producción (PB)",2013]
["P027","Troncos de madera y leña",4653.6519070000004,"Producción (PB)",2013]
["P028","Productos forestales no madereros",231.532974,"Producción (PB)",2013]
["P029","Peces vivos, frescos o refrigerados",885.904901,"Producción (PB)",2013]
["P030","Crustáceos sin congelar y otros productos de la pesca",888.22815400000002,"Producción (PB)",2013]
["P031","Petróleo crudo y gas natural",2522.5645690000001,"Producción (PB)",2013]
["P032","Minerales metálicos",4027.6882439999999,"Producción (PB)",2013]
["P033","Minerales no metálicos",1899.9799740000001,"Producción (PB)",2013]
["P034","Carne y despojos comestibles de ganado bovino; cueros y pieles de bovino y de otros animales",6361.3497280000001,"Producción (PB)",2013]
["P035","Carne y despojos comestibles de ganado porcino",1270.3845449999999,"Producción (PB)",2013]
["P036","Carne y despojos comestibles de aves",7706.970671,"Producción (PB)",2013]
["P037","Carne y despojos de otros animales y conservas y preparados de carne",2521.8593900000001,"Producción (PB)",2013]
["P038","Pescado congelado, preparado o en conserva y sus productos",607.66577800000005,"Producción (PB)",2013]
["P039","Crustáceos, moluscos y demás invertebrados acuáticos congelados, preparados o en conserva y sus productos",468.21812899999998,"Producción (PB)",2013]
["P040","Vegetales preparados o en conserva, legumbres y papas",1010.114732,"Producción (PB)",2013]
["P041","Preparaciones y conservas de frutas y nueces",987.50069399999995,"Producción (PB)",2013]
["P042","Jugos de frutas",1135.475539,"Producción (PB)",2013]
["P043","Aceites de origen vegetal",4548.2427049999997,"Producción (PB)",2013]
["P044","Margarina, grasas y otros aceites de origen animal y vegetal",1112.9268340000001,"Producción (PB)",2013]
["P045","Leche líquida y crema procesada",1036.4886570000001,"Producción (PB)",2013]
["P046","Otros productos lácteos n.c.p.",1933.4236619999999,"Producción (PB)",2013]
["P047","Harina de trigo",2168.863742,"Producción (PB)",2013]
["P048","Arroz sin cáscara",543.08131500000002,"Producción (PB)",2013]
["P049","Otros productos de molinería, almidones y productos de almidón",1139.6597420000001,"Producción (PB)",2013]
["P050","Pan y otros productos de panadería y repostería n.c.p.",7600.8120490000001,"Producción (PB)",2013]
["P051","Tortillas de maíz, incluso tostadas, horneadas o fritas",5718.2908930000003,"Producción (PB)",2013]
["P052","Azúcar de caña sin refinar y refinada, melaza y los demás azúcares n.c.p.",13042.761296000001,"Producción (PB)",2013]
["P053","Productos alimenticios n.c.p.",7151.6582179999996,"Producción (PB)",2013]
["P054","Preparados para alimentación animal",6030.8949659999998,"Producción (PB)",2013]
["P055","Aguardientes, licores, vinos, demás bebidas espirituosas y productos del tabaco",1493.5566349999999,"Producción (PB)",2013]
["P056","Malta y cerveza de malta",1419.583367,"Producción (PB)",2013]
["P057","Bebidas no alcohólicas",7152.1578300000001,"Producción (PB)",2013]
["P058","Aguas minerales y otras aguas embotelladas",1151.2906310000001,"Producción (PB)",2013]
["P059","Hilados, tejidos, telas y otros productos textiles excepto prendas de vestir",4618.5948209999997,"Producción (PB)",2013]
["P060","Prendas de vestir, adobo y teñido de pieles",6479.8290070000003,"Producción (PB)",2013]
["P061","Cuero de piel curtida o adobada y cuero artificial o regenerado y artículos de cuero",1141.1186170000001,"Producción (PB)",2013]
["P062","Calzado y sus partes, de cualquier material y de cualquier uso",1371.7039689999999,"Producción (PB)",2013]
["P063","Madera aserrada y acepillada, productos de madera, corcho, paja y materiales trenzables",3232.631261,"Producción (PB)",2013]
["P064","Pasta de papel y papel",1609.0735460000001,"Producción (PB)",2013]
["P065","Envases de papel y cartón",2720.9221280000002,"Producción (PB)",2013]
["P066","Productos de la edición",1307.726848,"Producción (PB)",2013]
["P067","Productos de la impresión",1683.715455,"Producción (PB)",2013]
["P068","Gasolinas, diésel oil y fuel oils",119.18752600000001,"Producción (PB)",2013]
["P069","Aceites, grasas lubricantes y otros aceites preparados",0,"Producción (PB)",2013]
["P070","Gases de petróleo, otros productos de la refinación de petróleo n.c.p.",187.927719,"Producción (PB)",2013]
["P071","Abonos, fertilizantes y pesticidas",4425.0100860000002,"Producción (PB)",2013]
["P072","Pinturas, barnices, tintas y productos relacionados",1030.8568339999999,"Producción (PB)",2013]
["P073","Jabón, preparados de limpieza, perfumes y preparados de toilet",4141.020837,"Producción (PB)",2013]
["P074","Otros productos químicos",3266.282201,"Producción (PB)",2013]
["P075","Productos farmacéuticos",2427.519299,"Producción (PB)",2013]
["P076","Productos de caucho y plástico",7898.7152669999996,"Producción (PB)",2013]
["P077","Vidrio y productos de vidrio",698.56314999999995,"Producción (PB)",2013]
["P078","Productos de cerámica y arcilla",1318.059207,"Producción (PB)",2013]
["P079","Cemento, cal y yeso",4270.9037950000002,"Producción (PB)",2013]
["P080","Artículos de hormigón, cemento y yeso",2121.4280570000001,"Producción (PB)",2013]
["P081","Piedras talladas para construcción y otros productos minerales no metálicos n.c.p.",587.78490299999999,"Producción (PB)",2013]
["P082","Métales básicos de hierro y acero, productos primarios de metales preciosos y otros metales no ferrosos",4879.7175820000002,"Producción (PB)",2013]
["P083","Productos metálicos estructurales y sus partes de hierro o de acero",1571.0939370000001,"Producción (PB)",2013]
["P084","Otros productos elaborados de metal",2538.605364,"Producción (PB)",2013]
["P085","Maquinaria para usos generales y especiales, sus partes y piezas, excepto electrodomésticos",1942.761139,"Producción (PB)",2013]
["P086","Electrodomésticos y sus partes",0,"Producción (PB)",2013]
["P087","Maquinaria de oficina, contabilidad e informática, sus partes y piezas",0,"Producción (PB)",2013]
["P088","Maquinaria y aparatos eléctricos, sus partes y piezas",1258.812713,"Producción (PB)",2013]
["P089","Equipo y aparatos de radio, televisión y comunicaciones",0,"Producción (PB)",2013]
["P090","Aparatos médicos, instrumentos ópticos y de precisión, relojes",48.189135,"Producción (PB)",2013]
["P091","Equipo de transporte",665.76440100000002,"Producción (PB)",2013]
["P092","Muebles",4894.3384390000001,"Producción (PB)",2013]
["P093","Otros artículos n.c.p.",1571.3472260000001,"Producción (PB)",2013]
["P094","Residuos y desechos",1356.7667309999999,"Producción (PB)",2013]
["P095","Generación y distribución de energía eléctrica, gas, vapor y aire acondicionado",14244.333328999999,"Producción (PB)",2013]
["P096","Agua natural y distribución de agua natural",3403.6119669999998,"Producción (PB)",2013]
["P097","Evacuación de aguas residuales, recogida, tratamiento y eliminación de desechos",729.17586700000004,"Producción (PB)",2013]
["P098","Edificaciones residenciales",15309.235231000001,"Producción (PB)",2013]
["P099","Edificaciones no residenciales",6341.6955500000004,"Producción (PB)",2013]
["P100","Obras de ingeniería civil",11112.924306999999,"Producción (PB)",2013]
["P101","Servicios generales y especializados de construcción",9928.6868979999999,"Producción (PB)",2013]
["P102","Servicios de comercio",102043.63823,"Producción (PB)",2013]
["P103","Mantenimiento y reparación de vehículos automotores y motocicletas",8257.9241849999999,"Producción (PB)",2013]
["P104","Servicio de transporte de pasajeros por vía terrestre",5949.8103160000001,"Producción (PB)",2013]
["P105","Servicio de transporte de carga por vía terrestre",11417.858404000001,"Producción (PB)",2013]
["P106","Otros tipos de transporte",484.035527,"Producción (PB)",2013]
["P107","Servicios de almacenamiento y depósito",259.31421699999999,"Producción (PB)",2013]
["P108","Otros servicios de apoyo al transporte",5874.5549209999999,"Producción (PB)",2013]
["P109","Servicios postales y de mensajería",1105.4016140000001,"Producción (PB)",2013]
["P110","Servicio de alojamiento",1875.4451790000001,"Producción (PB)",2013]
["P111","Servicio de suministro de comidas y bebidas",27427.269646000001,"Producción (PB)",2013]
["P112","Servicios de información, telecomunicaciones y radiodifusión",23512.792580000001,"Producción (PB)",2013]
["P113","Servicios de banco central",696.02774699999998,"Producción (PB)",2013]
["P114","Otros servicios financieros y servicios de banca de inversión",2169.2497629999998,"Producción (PB)",2013]
["P115","Servicios de Intermediación Financiera Medidos Indirectamente (SIFMI)",13885.113292,"Producción (PB)",2013]
["P116","Servicios de seguro, reaseguro y fondos de pensiones",3772.9036460000002,"Producción (PB)",2013]
["P117","Servicios auxiliares de la intermediación financiera",4359.1684080000005,"Producción (PB)",2013]
["P118","Servicios de alquiler de vivienda",30462.774868,"Producción (PB)",2013]
["P119","Otros servicios inmobiliarios, excepto alquiler de vivienda",10648.615365,"Producción (PB)",2013]
["P120","Servicios jurídicos, de contabilidad, auditoría, teneduría de libros y consultoría fiscal",3795.3278529999998,"Producción (PB)",2013]
["P121","Servicios de tecnología de la información",2234.7804230000002,"Producción (PB)",2013]
["P122","Servicios de arquitectura e ingeniería, ensayos y análisis técnicos",2625.1571429999999,"Producción (PB)",2013]
["P123","Otros servicios profesionales, científicos y técnicos",6769.1124239999999,"Producción (PB)",2013]
["P124","Servicios de publicidad y estudios de mercado",4401.4705780000004,"Producción (PB)",2013]
["P125","Servicios de arrendamiento o alquiler sin operador",4856.5502859999997,"Producción (PB)",2013]
["P126","Servicios  de agencias de empleo y de dotación de recursos humanos",5859.536838,"Producción (PB)",2013]
["P127","Servicios de agencias de viajes, operadores turísticos y actividades conexas",707.712401,"Producción (PB)",2013]
["P128","Servicios de seguridad, sistemas de seguridad e investigación privada",3393.231597,"Producción (PB)",2013]
["P129","Servicios de limpieza",1014.429111,"Producción (PB)",2013]
["P130","Servicios telefónicos de centros de llamadas",2128.5282550000002,"Producción (PB)",2013]
["P131","Servicios administrativos, de apoyo de oficina y otros servicios de apoyo a las empresas",2293.6383660000001,"Producción (PB)",2013]
["P132","Servicios de mantenimiento, reparación e instalación de productos metálicos elaborados, maquinaria y equipo",3791.2587530000001,"Producción (PB)",2013]
["P133","Servicios de reparación de otros bienes",1250.1931079999999,"Producción (PB)",2013]
["P134","Servicios de apoyo a la agricultura, caza, silvicultura y pesca",3070.5959769999999,"Producción (PB)",2013]
["P135","Servicios de apoyo a la explotación de minas y canteras y los relacionados con la distribución de electricidad, gas y agua",381.873379,"Producción (PB)",2013]
["P136","Servicios de manufactura",6817.2061469999999,"Producción (PB)",2013]
["P137","Servicios públicos del gobierno general",10283.765883,"Producción (PB)",2013]
["P138","Servicios públicos administrativos relacionados con la provisión de servicios educativos, de salud, servicios sociales, culturales y otros, sin contar los servicios de seguridad social",1832.1676010000001,"Producción (PB)",2013]
["P139","Otros servicios administrativos",4099.4894729999996,"Producción (PB)",2013]
["P140","Servicios públicos administrativos prestados a la comunidad en su conjunto",8682.3336519999993,"Producción (PB)",2013]
["P141","Servicios administrativos relacionados con los sistemas de seguridad social de afiliación obligatoria",738.22770300000002,"Producción (PB)",2013]
["P142","Servicios de enseñanza",19863.937951,"Producción (PB)",2013]
["P143","Servicios de hospitalización",6404.9938439999996,"Producción (PB)",2013]
["P144","Servicios médicos y dentales",4544.5508090000003,"Producción (PB)",2013]
["P145","Otros servicios de atención de la salud humana",2663.413607,"Producción (PB)",2013]
["P146","Servicios audiovisuales, recreativos, culturales y deportivos",2198.5149649999998,"Producción (PB)",2013]
["P147","Servicios de asociaciones que sirven a las empresas",265.54951899999998,"Producción (PB)",2013]
["P148","Servicios de asociaciones que sirven a los hogares",1925.973125,"Producción (PB)",2013]
["P149","Otros servicios",7674.6114950000001,"Producción (PB)",2013]
["P150","Servicios domésticos",7294.099819,"Producción (PB)",2013]
["P151","Compras directas en el exterior por residentes",0,"Producción (PB)",2013]
["P152","Compras directas en el territorio nacional por no residentes",0,"Producción (PB)",2013]
["P001","Maíz",0,"Impuestos sobre los productos, excepto IVA e impuestos sobre las importaciones",2013]
["P002","Frijoles",0,"Impuestos sobre los productos, excepto IVA e impuestos sobre las importaciones",2013]
["P003","Leguminosas (legumbres secas) y semillas oleaginosas",0,"Impuestos sobre los productos, excepto IVA e impuestos sobre las importaciones",2013]
["P004","Arroz",0,"Impuestos sobre los productos, excepto IVA e impuestos sobre las importaciones",2013]
["P005","Otros cereales",0,"Impuestos sobre los productos, excepto IVA e impuestos sobre las importaciones",2013]
["P006","Hortalizas",0,"Impuestos sobre los productos, excepto IVA e impuestos sobre las importaciones",2013]
["P007","Sandías y melones",0,"Impuestos sobre los productos, excepto IVA e impuestos sobre las importaciones",2013]
["P008","Ejotes y arvejas",0,"Impuestos sobre los productos, excepto IVA e impuestos sobre las importaciones",2013]
["P009","Raíces y tubérculos",0,"Impuestos sobre los productos, excepto IVA e impuestos sobre las importaciones",2013]
["P010","Caña de azúcar y otras plantas azucareras",0,"Impuestos sobre los productos, excepto IVA e impuestos sobre las importaciones",2013]
["P011","Tabaco y otras plantas no perennes",0,"Impuestos sobre los productos, excepto IVA e impuestos sobre las importaciones",2013]
["P012","Bananos, plátanos y otros",0,"Impuestos sobre los productos, excepto IVA e impuestos sobre las importaciones",2013]
["P013","Frutas tropicales y subtropicales",0,"Impuestos sobre los productos, excepto IVA e impuestos sobre las importaciones",2013]
["P014","Berries, otras frutas y semillas de frutas",0,"Impuestos sobre los productos, excepto IVA e impuestos sobre las importaciones",2013]
["P015","Palma africana",0,"Impuestos sobre los productos, excepto IVA e impuestos sobre las importaciones",2013]
["P016","Café en grano",56.389183000000003,"Impuestos sobre los productos, excepto IVA e impuestos sobre las importaciones",2013]
["P017","Cardamomo",0,"Impuestos sobre los productos, excepto IVA e impuestos sobre las importaciones",2013]
["P018","Caucho natural",0,"Impuestos sobre los productos, excepto IVA e impuestos sobre las importaciones",2013]
["P019","Propagación de plantas",0,"Impuestos sobre los productos, excepto IVA e impuestos sobre las importaciones",2013]
["P020","Otros frutos oleaginosos, otras plantas bebestibles y especias aromáticas",0,"Impuestos sobre los productos, excepto IVA e impuestos sobre las importaciones",2013]
["P021","Ganado bovino",0,"Impuestos sobre los productos, excepto IVA e impuestos sobre las importaciones",2013]
["P022","Ganado porcino y otro tipo de animales vivos n.c.p.",0,"Impuestos sobre los productos, excepto IVA e impuestos sobre las importaciones",2013]
["P023","Aves de corral",0,"Impuestos sobre los productos, excepto IVA e impuestos sobre las importaciones",2013]
["P024","Leche cruda",0,"Impuestos sobre los productos, excepto IVA e impuestos sobre las importaciones",2013]
["P025","Huevos",0,"Impuestos sobre los productos, excepto IVA e impuestos sobre las importaciones",2013]
["P026","Otros productos de animales vivos",0,"Impuestos sobre los productos, excepto IVA e impuestos sobre las importaciones",2013]
["P027","Troncos de madera y leña",0,"Impuestos sobre los productos, excepto IVA e impuestos sobre las importaciones",2013]
["P028","Productos forestales no madereros",0,"Impuestos sobre los productos, excepto IVA e impuestos sobre las importaciones",2013]
["P029","Peces vivos, frescos o refrigerados",0,"Impuestos sobre los productos, excepto IVA e impuestos sobre las importaciones",2013]
["P030","Crustáceos sin congelar y otros productos de la pesca",0,"Impuestos sobre los productos, excepto IVA e impuestos sobre las importaciones",2013]
["P031","Petróleo crudo y gas natural",0,"Impuestos sobre los productos, excepto IVA e impuestos sobre las importaciones",2013]
["P032","Minerales metálicos",0,"Impuestos sobre los productos, excepto IVA e impuestos sobre las importaciones",2013]
["P033","Minerales no metálicos",0,"Impuestos sobre los productos, excepto IVA e impuestos sobre las importaciones",2013]
["P034","Carne y despojos comestibles de ganado bovino; cueros y pieles de bovino y de otros animales",0,"Impuestos sobre los productos, excepto IVA e impuestos sobre las importaciones",2013]
["P035","Carne y despojos comestibles de ganado porcino",0,"Impuestos sobre los productos, excepto IVA e impuestos sobre las importaciones",2013]
["P036","Carne y despojos comestibles de aves",0,"Impuestos sobre los productos, excepto IVA e impuestos sobre las importaciones",2013]
["P037","Carne y despojos de otros animales y conservas y preparados de carne",0,"Impuestos sobre los productos, excepto IVA e impuestos sobre las importaciones",2013]
["P038","Pescado congelado, preparado o en conserva y sus productos",0,"Impuestos sobre los productos, excepto IVA e impuestos sobre las importaciones",2013]
["P039","Crustáceos, moluscos y demás invertebrados acuáticos congelados, preparados o en conserva y sus productos",0,"Impuestos sobre los productos, excepto IVA e impuestos sobre las importaciones",2013]
["P040","Vegetales preparados o en conserva, legumbres y papas",0,"Impuestos sobre los productos, excepto IVA e impuestos sobre las importaciones",2013]
["P041","Preparaciones y conservas de frutas y nueces",0,"Impuestos sobre los productos, excepto IVA e impuestos sobre las importaciones",2013]
["P042","Jugos de frutas",29.591398000000002,"Impuestos sobre los productos, excepto IVA e impuestos sobre las importaciones",2013]
["P043","Aceites de origen vegetal",0,"Impuestos sobre los productos, excepto IVA e impuestos sobre las importaciones",2013]
["P044","Margarina, grasas y otros aceites de origen animal y vegetal",0,"Impuestos sobre los productos, excepto IVA e impuestos sobre las importaciones",2013]
["P045","Leche líquida y crema procesada",0,"Impuestos sobre los productos, excepto IVA e impuestos sobre las importaciones",2013]
["P046","Otros productos lácteos n.c.p.",1.2915080000000001,"Impuestos sobre los productos, excepto IVA e impuestos sobre las importaciones",2013]
["P047","Harina de trigo",0,"Impuestos sobre los productos, excepto IVA e impuestos sobre las importaciones",2013]
["P048","Arroz sin cáscara",0,"Impuestos sobre los productos, excepto IVA e impuestos sobre las importaciones",2013]
["P049","Otros productos de molinería, almidones y productos de almidón",0,"Impuestos sobre los productos, excepto IVA e impuestos sobre las importaciones",2013]
["P050","Pan y otros productos de panadería y repostería n.c.p.",0,"Impuestos sobre los productos, excepto IVA e impuestos sobre las importaciones",2013]
["P051","Tortillas de maíz, incluso tostadas, horneadas o fritas",0,"Impuestos sobre los productos, excepto IVA e impuestos sobre las importaciones",2013]
["P052","Azúcar de caña sin refinar y refinada, melaza y los demás azúcares n.c.p.",0,"Impuestos sobre los productos, excepto IVA e impuestos sobre las importaciones",2013]
["P053","Productos alimenticios n.c.p.",0,"Impuestos sobre los productos, excepto IVA e impuestos sobre las importaciones",2013]
["P054","Preparados para alimentación animal",0,"Impuestos sobre los productos, excepto IVA e impuestos sobre las importaciones",2013]
["P055","Aguardientes, licores, vinos, demás bebidas espirituosas y productos del tabaco",475.01746000000003,"Impuestos sobre los productos, excepto IVA e impuestos sobre las importaciones",2013]
["P056","Malta y cerveza de malta",217.107327,"Impuestos sobre los productos, excepto IVA e impuestos sobre las importaciones",2013]
["P057","Bebidas no alcohólicas",242.29592400000001,"Impuestos sobre los productos, excepto IVA e impuestos sobre las importaciones",2013]
["P058","Aguas minerales y otras aguas embotelladas",8.6743410000000001,"Impuestos sobre los productos, excepto IVA e impuestos sobre las importaciones",2013]
["P059","Hilados, tejidos, telas y otros productos textiles excepto prendas de vestir",0,"Impuestos sobre los productos, excepto IVA e impuestos sobre las importaciones",2013]
["P060","Prendas de vestir, adobo y teñido de pieles",0,"Impuestos sobre los productos, excepto IVA e impuestos sobre las importaciones",2013]
["P061","Cuero de piel curtida o adobada y cuero artificial o regenerado y artículos de cuero",0,"Impuestos sobre los productos, excepto IVA e impuestos sobre las importaciones",2013]
["P062","Calzado y sus partes, de cualquier material y de cualquier uso",0,"Impuestos sobre los productos, excepto IVA e impuestos sobre las importaciones",2013]
["P063","Madera aserrada y acepillada, productos de madera, corcho, paja y materiales trenzables",0,"Impuestos sobre los productos, excepto IVA e impuestos sobre las importaciones",2013]
["P064","Pasta de papel y papel",0,"Impuestos sobre los productos, excepto IVA e impuestos sobre las importaciones",2013]
["P065","Envases de papel y cartón",0,"Impuestos sobre los productos, excepto IVA e impuestos sobre las importaciones",2013]
["P066","Productos de la edición",0,"Impuestos sobre los productos, excepto IVA e impuestos sobre las importaciones",2013]
["P067","Productos de la impresión",0,"Impuestos sobre los productos, excepto IVA e impuestos sobre las importaciones",2013]
["P068","Gasolinas, diésel oil y fuel oils",2281.6210299999998,"Impuestos sobre los productos, excepto IVA e impuestos sobre las importaciones",2013]
["P069","Aceites, grasas lubricantes y otros aceites preparados",0,"Impuestos sobre los productos, excepto IVA e impuestos sobre las importaciones",2013]
["P070","Gases de petróleo, otros productos de la refinación de petróleo n.c.p.",32.65381,"Impuestos sobre los productos, excepto IVA e impuestos sobre las importaciones",2013]
["P071","Abonos, fertilizantes y pesticidas",0,"Impuestos sobre los productos, excepto IVA e impuestos sobre las importaciones",2013]
["P072","Pinturas, barnices, tintas y productos relacionados",0,"Impuestos sobre los productos, excepto IVA e impuestos sobre las importaciones",2013]
["P073","Jabón, preparados de limpieza, perfumes y preparados de toilet",0,"Impuestos sobre los productos, excepto IVA e impuestos sobre las importaciones",2013]
["P074","Otros productos químicos",1.493E-3,"Impuestos sobre los productos, excepto IVA e impuestos sobre las importaciones",2013]
["P075","Productos farmacéuticos",0,"Impuestos sobre los productos, excepto IVA e impuestos sobre las importaciones",2013]
["P076","Productos de caucho y plástico",0,"Impuestos sobre los productos, excepto IVA e impuestos sobre las importaciones",2013]
["P077","Vidrio y productos de vidrio",0,"Impuestos sobre los productos, excepto IVA e impuestos sobre las importaciones",2013]
["P078","Productos de cerámica y arcilla",0,"Impuestos sobre los productos, excepto IVA e impuestos sobre las importaciones",2013]
["P079","Cemento, cal y yeso",99.887760999999998,"Impuestos sobre los productos, excepto IVA e impuestos sobre las importaciones",2013]
["P080","Artículos de hormigón, cemento y yeso",0,"Impuestos sobre los productos, excepto IVA e impuestos sobre las importaciones",2013]
["P081","Piedras talladas para construcción y otros productos minerales no metálicos n.c.p.",0,"Impuestos sobre los productos, excepto IVA e impuestos sobre las importaciones",2013]
["P082","Métales básicos de hierro y acero, productos primarios de metales preciosos y otros metales no ferrosos",0,"Impuestos sobre los productos, excepto IVA e impuestos sobre las importaciones",2013]
["P083","Productos metálicos estructurales y sus partes de hierro o de acero",0,"Impuestos sobre los productos, excepto IVA e impuestos sobre las importaciones",2013]
["P084","Otros productos elaborados de metal",0,"Impuestos sobre los productos, excepto IVA e impuestos sobre las importaciones",2013]
["P085","Maquinaria para usos generales y especiales, sus partes y piezas, excepto electrodomésticos",0,"Impuestos sobre los productos, excepto IVA e impuestos sobre las importaciones",2013]
["P086","Electrodomésticos y sus partes",0,"Impuestos sobre los productos, excepto IVA e impuestos sobre las importaciones",2013]
["P087","Maquinaria de oficina, contabilidad e informática, sus partes y piezas",0,"Impuestos sobre los productos, excepto IVA e impuestos sobre las importaciones",2013]
["P088","Maquinaria y aparatos eléctricos, sus partes y piezas",0,"Impuestos sobre los productos, excepto IVA e impuestos sobre las importaciones",2013]
["P089","Equipo y aparatos de radio, televisión y comunicaciones",0,"Impuestos sobre los productos, excepto IVA e impuestos sobre las importaciones",2013]
["P090","Aparatos médicos, instrumentos ópticos y de precisión, relojes",0,"Impuestos sobre los productos, excepto IVA e impuestos sobre las importaciones",2013]
["P091","Equipo de transporte",0,"Impuestos sobre los productos, excepto IVA e impuestos sobre las importaciones",2013]
["P092","Muebles",0,"Impuestos sobre los productos, excepto IVA e impuestos sobre las importaciones",2013]
["P093","Otros artículos n.c.p.",0,"Impuestos sobre los productos, excepto IVA e impuestos sobre las importaciones",2013]
["P094","Residuos y desechos",0,"Impuestos sobre los productos, excepto IVA e impuestos sobre las importaciones",2013]
["P095","Generación y distribución de energía eléctrica, gas, vapor y aire acondicionado",0,"Impuestos sobre los productos, excepto IVA e impuestos sobre las importaciones",2013]
["P096","Agua natural y distribución de agua natural",0,"Impuestos sobre los productos, excepto IVA e impuestos sobre las importaciones",2013]
["P097","Evacuación de aguas residuales, recogida, tratamiento y eliminación de desechos",0,"Impuestos sobre los productos, excepto IVA e impuestos sobre las importaciones",2013]
["P098","Edificaciones residenciales",0,"Impuestos sobre los productos, excepto IVA e impuestos sobre las importaciones",2013]
["P099","Edificaciones no residenciales",0,"Impuestos sobre los productos, excepto IVA e impuestos sobre las importaciones",2013]
["P100","Obras de ingeniería civil",0,"Impuestos sobre los productos, excepto IVA e impuestos sobre las importaciones",2013]
["P101","Servicios generales y especializados de construcción",0,"Impuestos sobre los productos, excepto IVA e impuestos sobre las importaciones",2013]
["P102","Servicios de comercio",0,"Impuestos sobre los productos, excepto IVA e impuestos sobre las importaciones",2013]
["P103","Mantenimiento y reparación de vehículos automotores y motocicletas",0,"Impuestos sobre los productos, excepto IVA e impuestos sobre las importaciones",2013]
["P104","Servicio de transporte de pasajeros por vía terrestre",0,"Impuestos sobre los productos, excepto IVA e impuestos sobre las importaciones",2013]
["P105","Servicio de transporte de carga por vía terrestre",0,"Impuestos sobre los productos, excepto IVA e impuestos sobre las importaciones",2013]
["P106","Otros tipos de transporte",0,"Impuestos sobre los productos, excepto IVA e impuestos sobre las importaciones",2013]
["P107","Servicios de almacenamiento y depósito",0,"Impuestos sobre los productos, excepto IVA e impuestos sobre las importaciones",2013]
["P108","Otros servicios de apoyo al transporte",0,"Impuestos sobre los productos, excepto IVA e impuestos sobre las importaciones",2013]
["P109","Servicios postales y de mensajería",0,"Impuestos sobre los productos, excepto IVA e impuestos sobre las importaciones",2013]
["P110","Servicio de alojamiento",86.690190000000001,"Impuestos sobre los productos, excepto IVA e impuestos sobre las importaciones",2013]
["P111","Servicio de suministro de comidas y bebidas",0,"Impuestos sobre los productos, excepto IVA e impuestos sobre las importaciones",2013]
["P112","Servicios de información, telecomunicaciones y radiodifusión",0,"Impuestos sobre los productos, excepto IVA e impuestos sobre las importaciones",2013]
["P113","Servicios de banco central",0,"Impuestos sobre los productos, excepto IVA e impuestos sobre las importaciones",2013]
["P114","Otros servicios financieros y servicios de banca de inversión",0,"Impuestos sobre los productos, excepto IVA e impuestos sobre las importaciones",2013]
["P115","Servicios de Intermediación Financiera Medidos Indirectamente (SIFMI)",0,"Impuestos sobre los productos, excepto IVA e impuestos sobre las importaciones",2013]
["P116","Servicios de seguro, reaseguro y fondos de pensiones",14.204537,"Impuestos sobre los productos, excepto IVA e impuestos sobre las importaciones",2013]
["P117","Servicios auxiliares de la intermediación financiera",0,"Impuestos sobre los productos, excepto IVA e impuestos sobre las importaciones",2013]
["P118","Servicios de alquiler de vivienda",0,"Impuestos sobre los productos, excepto IVA e impuestos sobre las importaciones",2013]
["P119","Otros servicios inmobiliarios, excepto alquiler de vivienda",4.006E-3,"Impuestos sobre los productos, excepto IVA e impuestos sobre las importaciones",2013]
["P120","Servicios jurídicos, de contabilidad, auditoría, teneduría de libros y consultoría fiscal",0,"Impuestos sobre los productos, excepto IVA e impuestos sobre las importaciones",2013]
["P121","Servicios de tecnología de la información",0,"Impuestos sobre los productos, excepto IVA e impuestos sobre las importaciones",2013]
["P122","Servicios de arquitectura e ingeniería, ensayos y análisis técnicos",0,"Impuestos sobre los productos, excepto IVA e impuestos sobre las importaciones",2013]
["P123","Otros servicios profesionales, científicos y técnicos",0,"Impuestos sobre los productos, excepto IVA e impuestos sobre las importaciones",2013]
["P124","Servicios de publicidad y estudios de mercado",0,"Impuestos sobre los productos, excepto IVA e impuestos sobre las importaciones",2013]
["P125","Servicios de arrendamiento o alquiler sin operador",0,"Impuestos sobre los productos, excepto IVA e impuestos sobre las importaciones",2013]
["P126","Servicios  de agencias de empleo y de dotación de recursos humanos",0,"Impuestos sobre los productos, excepto IVA e impuestos sobre las importaciones",2013]
["P127","Servicios de agencias de viajes, operadores turísticos y actividades conexas",0,"Impuestos sobre los productos, excepto IVA e impuestos sobre las importaciones",2013]
["P128","Servicios de seguridad, sistemas de seguridad e investigación privada",0,"Impuestos sobre los productos, excepto IVA e impuestos sobre las importaciones",2013]
["P129","Servicios de limpieza",0,"Impuestos sobre los productos, excepto IVA e impuestos sobre las importaciones",2013]
["P130","Servicios telefónicos de centros de llamadas",0,"Impuestos sobre los productos, excepto IVA e impuestos sobre las importaciones",2013]
["P131","Servicios administrativos, de apoyo de oficina y otros servicios de apoyo a las empresas",0,"Impuestos sobre los productos, excepto IVA e impuestos sobre las importaciones",2013]
["P132","Servicios de mantenimiento, reparación e instalación de productos metálicos elaborados, maquinaria y equipo",0,"Impuestos sobre los productos, excepto IVA e impuestos sobre las importaciones",2013]
["P133","Servicios de reparación de otros bienes",0,"Impuestos sobre los productos, excepto IVA e impuestos sobre las importaciones",2013]
["P134","Servicios de apoyo a la agricultura, caza, silvicultura y pesca",0,"Impuestos sobre los productos, excepto IVA e impuestos sobre las importaciones",2013]
["P135","Servicios de apoyo a la explotación de minas y canteras y los relacionados con la distribución de electricidad, gas y agua",0,"Impuestos sobre los productos, excepto IVA e impuestos sobre las importaciones",2013]
["P136","Servicios de manufactura",0,"Impuestos sobre los productos, excepto IVA e impuestos sobre las importaciones",2013]
["P137","Servicios públicos del gobierno general",0,"Impuestos sobre los productos, excepto IVA e impuestos sobre las importaciones",2013]
["P138","Servicios públicos administrativos relacionados con la provisión de servicios educativos, de salud, servicios sociales, culturales y otros, sin contar los servicios de seguridad social",0,"Impuestos sobre los productos, excepto IVA e impuestos sobre las importaciones",2013]
["P139","Otros servicios administrativos",0,"Impuestos sobre los productos, excepto IVA e impuestos sobre las importaciones",2013]
["P140","Servicios públicos administrativos prestados a la comunidad en su conjunto",0,"Impuestos sobre los productos, excepto IVA e impuestos sobre las importaciones",2013]
["P141","Servicios administrativos relacionados con los sistemas de seguridad social de afiliación obligatoria",0,"Impuestos sobre los productos, excepto IVA e impuestos sobre las importaciones",2013]
["P142","Servicios de enseñanza",0,"Impuestos sobre los productos, excepto IVA e impuestos sobre las importaciones",2013]
["P143","Servicios de hospitalización",0,"Impuestos sobre los productos, excepto IVA e impuestos sobre las importaciones",2013]
["P144","Servicios médicos y dentales",0,"Impuestos sobre los productos, excepto IVA e impuestos sobre las importaciones",2013]
["P145","Otros servicios de atención de la salud humana",0,"Impuestos sobre los productos, excepto IVA e impuestos sobre las importaciones",2013]
["P146","Servicios audiovisuales, recreativos, culturales y deportivos",0,"Impuestos sobre los productos, excepto IVA e impuestos sobre las importaciones",2013]
["P147","Servicios de asociaciones que sirven a las empresas",0,"Impuestos sobre los productos, excepto IVA e impuestos sobre las importaciones",2013]
["P148","Servicios de asociaciones que sirven a los hogares",0,"Impuestos sobre los productos, excepto IVA e impuestos sobre las importaciones",2013]
["P149","Otros servicios",0,"Impuestos sobre los productos, excepto IVA e impuestos sobre las importaciones",2013]
["P150","Servicios domésticos",0,"Impuestos sobre los productos, excepto IVA e impuestos sobre las importaciones",2013]
["P151","Compras directas en el exterior por residentes",0,"Impuestos sobre los productos, excepto IVA e impuestos sobre las importaciones",2013]
["P152","Compras directas en el territorio nacional por no residentes",0,"Impuestos sobre los productos, excepto IVA e impuestos sobre las importaciones",2013]
["P001","Maíz",0,"Subvenciones a los productos",2013]
["P002","Frijoles",0,"Subvenciones a los productos",2013]
["P003","Leguminosas (legumbres secas) y semillas oleaginosas",0,"Subvenciones a los productos",2013]
["P004","Arroz",0,"Subvenciones a los productos",2013]
["P005","Otros cereales",0,"Subvenciones a los productos",2013]
["P006","Hortalizas",0,"Subvenciones a los productos",2013]
["P007","Sandías y melones",0,"Subvenciones a los productos",2013]
["P008","Ejotes y arvejas",0,"Subvenciones a los productos",2013]
["P009","Raíces y tubérculos",0,"Subvenciones a los productos",2013]
["P010","Caña de azúcar y otras plantas azucareras",0,"Subvenciones a los productos",2013]
["P011","Tabaco y otras plantas no perennes",0,"Subvenciones a los productos",2013]
["P012","Bananos, plátanos y otros",0,"Subvenciones a los productos",2013]
["P013","Frutas tropicales y subtropicales",0,"Subvenciones a los productos",2013]
["P014","Berries, otras frutas y semillas de frutas",0,"Subvenciones a los productos",2013]
["P015","Palma africana",0,"Subvenciones a los productos",2013]
["P016","Café en grano",0,"Subvenciones a los productos",2013]
["P017","Cardamomo",0,"Subvenciones a los productos",2013]
["P018","Caucho natural",0,"Subvenciones a los productos",2013]
["P019","Propagación de plantas",0,"Subvenciones a los productos",2013]
["P020","Otros frutos oleaginosos, otras plantas bebestibles y especias aromáticas",0,"Subvenciones a los productos",2013]
["P021","Ganado bovino",0,"Subvenciones a los productos",2013]
["P022","Ganado porcino y otro tipo de animales vivos n.c.p.",0,"Subvenciones a los productos",2013]
["P023","Aves de corral",0,"Subvenciones a los productos",2013]
["P024","Leche cruda",0,"Subvenciones a los productos",2013]
["P025","Huevos",0,"Subvenciones a los productos",2013]
["P026","Otros productos de animales vivos",0,"Subvenciones a los productos",2013]
["P027","Troncos de madera y leña",0,"Subvenciones a los productos",2013]
["P028","Productos forestales no madereros",0,"Subvenciones a los productos",2013]
["P029","Peces vivos, frescos o refrigerados",0,"Subvenciones a los productos",2013]
["P030","Crustáceos sin congelar y otros productos de la pesca",0,"Subvenciones a los productos",2013]
["P031","Petróleo crudo y gas natural",0,"Subvenciones a los productos",2013]
["P032","Minerales metálicos",0,"Subvenciones a los productos",2013]
["P033","Minerales no metálicos",0,"Subvenciones a los productos",2013]
["P034","Carne y despojos comestibles de ganado bovino; cueros y pieles de bovino y de otros animales",0,"Subvenciones a los productos",2013]
["P035","Carne y despojos comestibles de ganado porcino",0,"Subvenciones a los productos",2013]
["P036","Carne y despojos comestibles de aves",0,"Subvenciones a los productos",2013]
["P037","Carne y despojos de otros animales y conservas y preparados de carne",0,"Subvenciones a los productos",2013]
["P038","Pescado congelado, preparado o en conserva y sus productos",0,"Subvenciones a los productos",2013]
["P039","Crustáceos, moluscos y demás invertebrados acuáticos congelados, preparados o en conserva y sus productos",0,"Subvenciones a los productos",2013]
["P040","Vegetales preparados o en conserva, legumbres y papas",0,"Subvenciones a los productos",2013]
["P041","Preparaciones y conservas de frutas y nueces",0,"Subvenciones a los productos",2013]
["P042","Jugos de frutas",0,"Subvenciones a los productos",2013]
["P043","Aceites de origen vegetal",0,"Subvenciones a los productos",2013]
["P044","Margarina, grasas y otros aceites de origen animal y vegetal",0,"Subvenciones a los productos",2013]
["P045","Leche líquida y crema procesada",0,"Subvenciones a los productos",2013]
["P046","Otros productos lácteos n.c.p.",0,"Subvenciones a los productos",2013]
["P047","Harina de trigo",0,"Subvenciones a los productos",2013]
["P048","Arroz sin cáscara",0,"Subvenciones a los productos",2013]
["P049","Otros productos de molinería, almidones y productos de almidón",0,"Subvenciones a los productos",2013]
["P050","Pan y otros productos de panadería y repostería n.c.p.",0,"Subvenciones a los productos",2013]
["P051","Tortillas de maíz, incluso tostadas, horneadas o fritas",0,"Subvenciones a los productos",2013]
["P052","Azúcar de caña sin refinar y refinada, melaza y los demás azúcares n.c.p.",0,"Subvenciones a los productos",2013]
["P053","Productos alimenticios n.c.p.",0,"Subvenciones a los productos",2013]
["P054","Preparados para alimentación animal",0,"Subvenciones a los productos",2013]
["P055","Aguardientes, licores, vinos, demás bebidas espirituosas y productos del tabaco",0,"Subvenciones a los productos",2013]
["P056","Malta y cerveza de malta",0,"Subvenciones a los productos",2013]
["P057","Bebidas no alcohólicas",0,"Subvenciones a los productos",2013]
["P058","Aguas minerales y otras aguas embotelladas",0,"Subvenciones a los productos",2013]
["P059","Hilados, tejidos, telas y otros productos textiles excepto prendas de vestir",0,"Subvenciones a los productos",2013]
["P060","Prendas de vestir, adobo y teñido de pieles",0,"Subvenciones a los productos",2013]
["P061","Cuero de piel curtida o adobada y cuero artificial o regenerado y artículos de cuero",0,"Subvenciones a los productos",2013]
["P062","Calzado y sus partes, de cualquier material y de cualquier uso",0,"Subvenciones a los productos",2013]
["P063","Madera aserrada y acepillada, productos de madera, corcho, paja y materiales trenzables",0,"Subvenciones a los productos",2013]
["P064","Pasta de papel y papel",0,"Subvenciones a los productos",2013]
["P065","Envases de papel y cartón",0,"Subvenciones a los productos",2013]
["P066","Productos de la edición",0,"Subvenciones a los productos",2013]
["P067","Productos de la impresión",0,"Subvenciones a los productos",2013]
["P068","Gasolinas, diésel oil y fuel oils",0,"Subvenciones a los productos",2013]
["P069","Aceites, grasas lubricantes y otros aceites preparados",0,"Subvenciones a los productos",2013]
["P070","Gases de petróleo, otros productos de la refinación de petróleo n.c.p.",0,"Subvenciones a los productos",2013]
["P071","Abonos, fertilizantes y pesticidas",-256.17562900000001,"Subvenciones a los productos",2013]
["P072","Pinturas, barnices, tintas y productos relacionados",0,"Subvenciones a los productos",2013]
["P073","Jabón, preparados de limpieza, perfumes y preparados de toilet",0,"Subvenciones a los productos",2013]
["P074","Otros productos químicos",0,"Subvenciones a los productos",2013]
["P075","Productos farmacéuticos",0,"Subvenciones a los productos",2013]
["P076","Productos de caucho y plástico",0,"Subvenciones a los productos",2013]
["P077","Vidrio y productos de vidrio",0,"Subvenciones a los productos",2013]
["P078","Productos de cerámica y arcilla",0,"Subvenciones a los productos",2013]
["P079","Cemento, cal y yeso",0,"Subvenciones a los productos",2013]
["P080","Artículos de hormigón, cemento y yeso",0,"Subvenciones a los productos",2013]
["P081","Piedras talladas para construcción y otros productos minerales no metálicos n.c.p.",0,"Subvenciones a los productos",2013]
["P082","Métales básicos de hierro y acero, productos primarios de metales preciosos y otros metales no ferrosos",0,"Subvenciones a los productos",2013]
["P083","Productos metálicos estructurales y sus partes de hierro o de acero",0,"Subvenciones a los productos",2013]
["P084","Otros productos elaborados de metal",0,"Subvenciones a los productos",2013]
["P085","Maquinaria para usos generales y especiales, sus partes y piezas, excepto electrodomésticos",0,"Subvenciones a los productos",2013]
["P086","Electrodomésticos y sus partes",0,"Subvenciones a los productos",2013]
["P087","Maquinaria de oficina, contabilidad e informática, sus partes y piezas",0,"Subvenciones a los productos",2013]
["P088","Maquinaria y aparatos eléctricos, sus partes y piezas",0,"Subvenciones a los productos",2013]
["P089","Equipo y aparatos de radio, televisión y comunicaciones",0,"Subvenciones a los productos",2013]
["P090","Aparatos médicos, instrumentos ópticos y de precisión, relojes",0,"Subvenciones a los productos",2013]
["P091","Equipo de transporte",0,"Subvenciones a los productos",2013]
["P092","Muebles",0,"Subvenciones a los productos",2013]
["P093","Otros artículos n.c.p.",0,"Subvenciones a los productos",2013]
["P094","Residuos y desechos",0,"Subvenciones a los productos",2013]
["P095","Generación y distribución de energía eléctrica, gas, vapor y aire acondicionado",-1493.554705,"Subvenciones a los productos",2013]
["P096","Agua natural y distribución de agua natural",0,"Subvenciones a los productos",2013]
["P097","Evacuación de aguas residuales, recogida, tratamiento y eliminación de desechos",0,"Subvenciones a los productos",2013]
["P098","Edificaciones residenciales",0,"Subvenciones a los productos",2013]
["P099","Edificaciones no residenciales",0,"Subvenciones a los productos",2013]
["P100","Obras de ingeniería civil",0,"Subvenciones a los productos",2013]
["P101","Servicios generales y especializados de construcción",0,"Subvenciones a los productos",2013]
["P102","Servicios de comercio",0,"Subvenciones a los productos",2013]
["P103","Mantenimiento y reparación de vehículos automotores y motocicletas",0,"Subvenciones a los productos",2013]
["P104","Servicio de transporte de pasajeros por vía terrestre",-476.23512399999998,"Subvenciones a los productos",2013]
["P105","Servicio de transporte de carga por vía terrestre",0,"Subvenciones a los productos",2013]
["P106","Otros tipos de transporte",0,"Subvenciones a los productos",2013]
["P107","Servicios de almacenamiento y depósito",0,"Subvenciones a los productos",2013]
["P108","Otros servicios de apoyo al transporte",0,"Subvenciones a los productos",2013]
["P109","Servicios postales y de mensajería",0,"Subvenciones a los productos",2013]
["P110","Servicio de alojamiento",0,"Subvenciones a los productos",2013]
["P111","Servicio de suministro de comidas y bebidas",0,"Subvenciones a los productos",2013]
["P112","Servicios de información, telecomunicaciones y radiodifusión",0,"Subvenciones a los productos",2013]
["P113","Servicios de banco central",0,"Subvenciones a los productos",2013]
["P114","Otros servicios financieros y servicios de banca de inversión",0,"Subvenciones a los productos",2013]
["P115","Servicios de Intermediación Financiera Medidos Indirectamente (SIFMI)",0,"Subvenciones a los productos",2013]
["P116","Servicios de seguro, reaseguro y fondos de pensiones",0,"Subvenciones a los productos",2013]
["P117","Servicios auxiliares de la intermediación financiera",0,"Subvenciones a los productos",2013]
["P118","Servicios de alquiler de vivienda",0,"Subvenciones a los productos",2013]
["P119","Otros servicios inmobiliarios, excepto alquiler de vivienda",0,"Subvenciones a los productos",2013]
["P120","Servicios jurídicos, de contabilidad, auditoría, teneduría de libros y consultoría fiscal",0,"Subvenciones a los productos",2013]
["P121","Servicios de tecnología de la información",0,"Subvenciones a los productos",2013]
["P122","Servicios de arquitectura e ingeniería, ensayos y análisis técnicos",0,"Subvenciones a los productos",2013]
["P123","Otros servicios profesionales, científicos y técnicos",0,"Subvenciones a los productos",2013]
["P124","Servicios de publicidad y estudios de mercado",0,"Subvenciones a los productos",2013]
["P125","Servicios de arrendamiento o alquiler sin operador",0,"Subvenciones a los productos",2013]
["P126","Servicios  de agencias de empleo y de dotación de recursos humanos",0,"Subvenciones a los productos",2013]
["P127","Servicios de agencias de viajes, operadores turísticos y actividades conexas",0,"Subvenciones a los productos",2013]
["P128","Servicios de seguridad, sistemas de seguridad e investigación privada",0,"Subvenciones a los productos",2013]
["P129","Servicios de limpieza",0,"Subvenciones a los productos",2013]
["P130","Servicios telefónicos de centros de llamadas",0,"Subvenciones a los productos",2013]
["P131","Servicios administrativos, de apoyo de oficina y otros servicios de apoyo a las empresas",0,"Subvenciones a los productos",2013]
["P132","Servicios de mantenimiento, reparación e instalación de productos metálicos elaborados, maquinaria y equipo",0,"Subvenciones a los productos",2013]
["P133","Servicios de reparación de otros bienes",0,"Subvenciones a los productos",2013]
["P134","Servicios de apoyo a la agricultura, caza, silvicultura y pesca",0,"Subvenciones a los productos",2013]
["P135","Servicios de apoyo a la explotación de minas y canteras y los relacionados con la distribución de electricidad, gas y agua",0,"Subvenciones a los productos",2013]
["P136","Servicios de manufactura",0,"Subvenciones a los productos",2013]
["P137","Servicios públicos del gobierno general",0,"Subvenciones a los productos",2013]
["P138","Servicios públicos administrativos relacionados con la provisión de servicios educativos, de salud, servicios sociales, culturales y otros, sin contar los servicios de seguridad social",0,"Subvenciones a los productos",2013]
["P139","Otros servicios administrativos",0,"Subvenciones a los productos",2013]
["P140","Servicios públicos administrativos prestados a la comunidad en su conjunto",0,"Subvenciones a los productos",2013]
["P141","Servicios administrativos relacionados con los sistemas de seguridad social de afiliación obligatoria",0,"Subvenciones a los productos",2013]
["P142","Servicios de enseñanza",0,"Subvenciones a los productos",2013]
["P143","Servicios de hospitalización",0,"Subvenciones a los productos",2013]
["P144","Servicios médicos y dentales",0,"Subvenciones a los productos",2013]
["P145","Otros servicios de atención de la salud humana",0,"Subvenciones a los productos",2013]
["P146","Servicios audiovisuales, recreativos, culturales y deportivos",0,"Subvenciones a los productos",2013]
["P147","Servicios de asociaciones que sirven a las empresas",0,"Subvenciones a los productos",2013]
["P148","Servicios de asociaciones que sirven a los hogares",0,"Subvenciones a los productos",2013]
["P149","Otros servicios",0,"Subvenciones a los productos",2013]
["P150","Servicios domésticos",0,"Subvenciones a los productos",2013]
["P151","Compras directas en el exterior por residentes",0,"Subvenciones a los productos",2013]
["P152","Compras directas en el territorio nacional por no residentes",0,"Subvenciones a los productos",2013]
["P001","Maíz",1926.576568,"Importaciones (CIF)",2013]
["P002","Frijoles",105.259585,"Importaciones (CIF)",2013]
["P003","Leguminosas (legumbres secas) y semillas oleaginosas",144.78020799999999,"Importaciones (CIF)",2013]
["P004","Arroz",273.30903799999999,"Importaciones (CIF)",2013]
["P005","Otros cereales",1285.4458520000001,"Importaciones (CIF)",2013]
["P006","Hortalizas",125.52135199999999,"Importaciones (CIF)",2013]
["P007","Sandías y melones",1.2125090000000001,"Importaciones (CIF)",2013]
["P008","Ejotes y arvejas",2.2336740000000002,"Importaciones (CIF)",2013]
["P009","Raíces y tubérculos",22.767258000000002,"Importaciones (CIF)",2013]
["P010","Caña de azúcar y otras plantas azucareras",0.15756899999999999,"Importaciones (CIF)",2013]
["P011","Tabaco y otras plantas no perennes",517.38221699999997,"Importaciones (CIF)",2013]
["P012","Bananos, plátanos y otros",11.340589,"Importaciones (CIF)",2013]
["P013","Frutas tropicales y subtropicales",14.572469999999999,"Importaciones (CIF)",2013]
["P014","Berries, otras frutas y semillas de frutas",468.98600599999997,"Importaciones (CIF)",2013]
["P015","Palma africana",22.324894,"Importaciones (CIF)",2013]
["P016","Café en grano",8.0754000000000006E-2,"Importaciones (CIF)",2013]
["P017","Cardamomo",0.642984,"Importaciones (CIF)",2013]
["P018","Caucho natural",38.532386000000002,"Importaciones (CIF)",2013]
["P019","Propagación de plantas",35.644416999999997,"Importaciones (CIF)",2013]
["P020","Otros frutos oleaginosos, otras plantas bebestibles y especias aromáticas",74.750713000000005,"Importaciones (CIF)",2013]
["P021","Ganado bovino",13.792669,"Importaciones (CIF)",2013]
["P022","Ganado porcino y otro tipo de animales vivos n.c.p.",8.4092880000000001,"Importaciones (CIF)",2013]
["P023","Aves de corral",112.66151000000001,"Importaciones (CIF)",2013]
["P024","Leche cruda",0,"Importaciones (CIF)",2013]
["P025","Huevos",587.79578100000003,"Importaciones (CIF)",2013]
["P026","Otros productos de animales vivos",1.670536,"Importaciones (CIF)",2013]
["P027","Troncos de madera y leña",0.36051899999999998,"Importaciones (CIF)",2013]
["P028","Productos forestales no madereros",18.524802999999999,"Importaciones (CIF)",2013]
["P029","Peces vivos, frescos o refrigerados",5.4491769999999997,"Importaciones (CIF)",2013]
["P030","Crustáceos sin congelar y otros productos de la pesca",17.35989,"Importaciones (CIF)",2013]
["P031","Petróleo crudo y gas natural",0,"Importaciones (CIF)",2013]
["P032","Minerales metálicos",17.102557999999998,"Importaciones (CIF)",2013]
["P033","Minerales no metálicos",1050.62384,"Importaciones (CIF)",2013]
["P034","Carne y despojos comestibles de ganado bovino; cueros y pieles de bovino y de otros animales",208.480558,"Importaciones (CIF)",2013]
["P035","Carne y despojos comestibles de ganado porcino",167.06711899999999,"Importaciones (CIF)",2013]
["P036","Carne y despojos comestibles de aves",575.03981899999997,"Importaciones (CIF)",2013]
["P037","Carne y despojos de otros animales y conservas y preparados de carne",382.81138299999998,"Importaciones (CIF)",2013]
["P038","Pescado congelado, preparado o en conserva y sus productos",526.88769200000002,"Importaciones (CIF)",2013]
["P039","Crustáceos, moluscos y demás invertebrados acuáticos congelados, preparados o en conserva y sus productos",225.50381999999999,"Importaciones (CIF)",2013]
["P040","Vegetales preparados o en conserva, legumbres y papas",477.81638900000002,"Importaciones (CIF)",2013]
["P041","Preparaciones y conservas de frutas y nueces",436.08295800000002,"Importaciones (CIF)",2013]
["P042","Jugos de frutas",143.183156,"Importaciones (CIF)",2013]
["P043","Aceites de origen vegetal",1029.076818,"Importaciones (CIF)",2013]
["P044","Margarina, grasas y otros aceites de origen animal y vegetal",1728.8952159999999,"Importaciones (CIF)",2013]
["P045","Leche líquida y crema procesada",267.39837,"Importaciones (CIF)",2013]
["P046","Otros productos lácteos n.c.p.",1062.7283870000001,"Importaciones (CIF)",2013]
["P047","Harina de trigo",225.287646,"Importaciones (CIF)",2013]
["P048","Arroz sin cáscara",81.039365000000004,"Importaciones (CIF)",2013]
["P049","Otros productos de molinería, almidones y productos de almidón",1139.5048549999999,"Importaciones (CIF)",2013]
["P050","Pan y otros productos de panadería y repostería n.c.p.",488.56776500000001,"Importaciones (CIF)",2013]
["P051","Tortillas de maíz, incluso tostadas, horneadas o fritas",0,"Importaciones (CIF)",2013]
["P052","Azúcar de caña sin refinar y refinada, melaza y los demás azúcares n.c.p.",7.8579990000000004,"Importaciones (CIF)",2013]
["P053","Productos alimenticios n.c.p.",3924.140155,"Importaciones (CIF)",2013]
["P054","Preparados para alimentación animal",400.95102900000001,"Importaciones (CIF)",2013]
["P055","Aguardientes, licores, vinos, demás bebidas espirituosas y productos del tabaco",386.11155400000001,"Importaciones (CIF)",2013]
["P056","Malta y cerveza de malta",303.14479899999998,"Importaciones (CIF)",2013]
["P057","Bebidas no alcohólicas",551.94500600000003,"Importaciones (CIF)",2013]
["P058","Aguas minerales y otras aguas embotelladas",7.1111089999999999,"Importaciones (CIF)",2013]
["P059","Hilados, tejidos, telas y otros productos textiles excepto prendas de vestir",2290.2708440000001,"Importaciones (CIF)",2013]
["P060","Prendas de vestir, adobo y teñido de pieles",2007.0804450000001,"Importaciones (CIF)",2013]
["P061","Cuero de piel curtida o adobada y cuero artificial o regenerado y artículos de cuero",368.14787799999999,"Importaciones (CIF)",2013]
["P062","Calzado y sus partes, de cualquier material y de cualquier uso",1194.7479390000001,"Importaciones (CIF)",2013]
["P063","Madera aserrada y acepillada, productos de madera, corcho, paja y materiales trenzables",476.86208199999999,"Importaciones (CIF)",2013]
["P064","Pasta de papel y papel",4462.4894260000001,"Importaciones (CIF)",2013]
["P065","Envases de papel y cartón",304.78474299999999,"Importaciones (CIF)",2013]
["P066","Productos de la edición",715.18694400000004,"Importaciones (CIF)",2013]
["P067","Productos de la impresión",120.06995999999999,"Importaciones (CIF)",2013]
["P068","Gasolinas, diésel oil y fuel oils",20442.383409999999,"Importaciones (CIF)",2013]
["P069","Aceites, grasas lubricantes y otros aceites preparados",907.32079399999998,"Importaciones (CIF)",2013]
["P070","Gases de petróleo, otros productos de la refinación de petróleo n.c.p.",3334.2309300000002,"Importaciones (CIF)",2013]
["P071","Abonos, fertilizantes y pesticidas",3610.7623239999998,"Importaciones (CIF)",2013]
["P072","Pinturas, barnices, tintas y productos relacionados",817.39177299999994,"Importaciones (CIF)",2013]
["P073","Jabón, preparados de limpieza, perfumes y preparados de toilet",2428.7098080000001,"Importaciones (CIF)",2013]
["P074","Otros productos químicos",9153.8717749999996,"Importaciones (CIF)",2013]
["P075","Productos farmacéuticos",4481.8031790000005,"Importaciones (CIF)",2013]
["P076","Productos de caucho y plástico",5033.150251,"Importaciones (CIF)",2013]
["P077","Vidrio y productos de vidrio",494.29595499999999,"Importaciones (CIF)",2013]
["P078","Productos de cerámica y arcilla",476.05192699999998,"Importaciones (CIF)",2013]
["P079","Cemento, cal y yeso",153.65882400000001,"Importaciones (CIF)",2013]
["P080","Artículos de hormigón, cemento y yeso",114.2388,"Importaciones (CIF)",2013]
["P081","Piedras talladas para construcción y otros productos minerales no metálicos n.c.p.",176.330839,"Importaciones (CIF)",2013]
["P082","Métales básicos de hierro y acero, productos primarios de metales preciosos y otros metales no ferrosos",5534.465878,"Importaciones (CIF)",2013]
["P083","Productos metálicos estructurales y sus partes de hierro o de acero",427.13250599999998,"Importaciones (CIF)",2013]
["P084","Otros productos elaborados de metal",3245.3681919999999,"Importaciones (CIF)",2013]
["P085","Maquinaria para usos generales y especiales, sus partes y piezas, excepto electrodomésticos",9458.7619240000004,"Importaciones (CIF)",2013]
["P086","Electrodomésticos y sus partes",980.01196300000004,"Importaciones (CIF)",2013]
["P087","Maquinaria de oficina, contabilidad e informática, sus partes y piezas",1900.919238,"Importaciones (CIF)",2013]
["P088","Maquinaria y aparatos eléctricos, sus partes y piezas",4217.9976980000001,"Importaciones (CIF)",2013]
["P089","Equipo y aparatos de radio, televisión y comunicaciones",6489.9872290000003,"Importaciones (CIF)",2013]
["P090","Aparatos médicos, instrumentos ópticos y de precisión, relojes",1677.4874600000001,"Importaciones (CIF)",2013]
["P091","Equipo de transporte",7772.9845599999999,"Importaciones (CIF)",2013]
["P092","Muebles",574.35697900000002,"Importaciones (CIF)",2013]
["P093","Otros artículos n.c.p.",1273.001004,"Importaciones (CIF)",2013]
["P094","Residuos y desechos",514.15271499999994,"Importaciones (CIF)",2013]
["P095","Generación y distribución de energía eléctrica, gas, vapor y aire acondicionado",136.555813,"Importaciones (CIF)",2013]
["P096","Agua natural y distribución de agua natural",0,"Importaciones (CIF)",2013]
["P097","Evacuación de aguas residuales, recogida, tratamiento y eliminación de desechos",0,"Importaciones (CIF)",2013]
["P098","Edificaciones residenciales",0,"Importaciones (CIF)",2013]
["P099","Edificaciones no residenciales",0,"Importaciones (CIF)",2013]
["P100","Obras de ingeniería civil",0,"Importaciones (CIF)",2013]
["P101","Servicios generales y especializados de construcción",88.139913000000007,"Importaciones (CIF)",2013]
["P102","Servicios de comercio",0,"Importaciones (CIF)",2013]
["P103","Mantenimiento y reparación de vehículos automotores y motocicletas",3.769577,"Importaciones (CIF)",2013]
["P104","Servicio de transporte de pasajeros por vía terrestre",43.400914999999998,"Importaciones (CIF)",2013]
["P105","Servicio de transporte de carga por vía terrestre",1508.316779,"Importaciones (CIF)",2013]
["P106","Otros tipos de transporte",7793.7042190000002,"Importaciones (CIF)",2013]
["P107","Servicios de almacenamiento y depósito",6.8560000000000001E-3,"Importaciones (CIF)",2013]
["P108","Otros servicios de apoyo al transporte",188.51360399999999,"Importaciones (CIF)",2013]
["P109","Servicios postales y de mensajería",92.914567000000005,"Importaciones (CIF)",2013]
["P110","Servicio de alojamiento",0,"Importaciones (CIF)",2013]
["P111","Servicio de suministro de comidas y bebidas",14.645206,"Importaciones (CIF)",2013]
["P112","Servicios de información, telecomunicaciones y radiodifusión",1809.286644,"Importaciones (CIF)",2013]
["P113","Servicios de banco central",0,"Importaciones (CIF)",2013]
["P114","Otros servicios financieros y servicios de banca de inversión",451.47432300000003,"Importaciones (CIF)",2013]
["P115","Servicios de Intermediación Financiera Medidos Indirectamente (SIFMI)",844.35284899999999,"Importaciones (CIF)",2013]
["P116","Servicios de seguro, reaseguro y fondos de pensiones",1928.742195,"Importaciones (CIF)",2013]
["P117","Servicios auxiliares de la intermediación financiera",0,"Importaciones (CIF)",2013]
["P118","Servicios de alquiler de vivienda",0,"Importaciones (CIF)",2013]
["P119","Otros servicios inmobiliarios, excepto alquiler de vivienda",0,"Importaciones (CIF)",2013]
["P120","Servicios jurídicos, de contabilidad, auditoría, teneduría de libros y consultoría fiscal",25.252783999999998,"Importaciones (CIF)",2013]
["P121","Servicios de tecnología de la información",259.12080700000001,"Importaciones (CIF)",2013]
["P122","Servicios de arquitectura e ingeniería, ensayos y análisis técnicos",27.156455999999999,"Importaciones (CIF)",2013]
["P123","Otros servicios profesionales, científicos y técnicos",420.00590999999997,"Importaciones (CIF)",2013]
["P124","Servicios de publicidad y estudios de mercado",164.671122,"Importaciones (CIF)",2013]
["P125","Servicios de arrendamiento o alquiler sin operador",820.21403699999996,"Importaciones (CIF)",2013]
["P126","Servicios  de agencias de empleo y de dotación de recursos humanos",0,"Importaciones (CIF)",2013]
["P127","Servicios de agencias de viajes, operadores turísticos y actividades conexas",0,"Importaciones (CIF)",2013]
["P128","Servicios de seguridad, sistemas de seguridad e investigación privada",0,"Importaciones (CIF)",2013]
["P129","Servicios de limpieza",0,"Importaciones (CIF)",2013]
["P130","Servicios telefónicos de centros de llamadas",78.153979000000007,"Importaciones (CIF)",2013]
["P131","Servicios administrativos, de apoyo de oficina y otros servicios de apoyo a las empresas",34.731901000000001,"Importaciones (CIF)",2013]
["P132","Servicios de mantenimiento, reparación e instalación de productos metálicos elaborados, maquinaria y equipo",0.589229,"Importaciones (CIF)",2013]
["P133","Servicios de reparación de otros bienes",0,"Importaciones (CIF)",2013]
["P134","Servicios de apoyo a la agricultura, caza, silvicultura y pesca",0,"Importaciones (CIF)",2013]
["P135","Servicios de apoyo a la explotación de minas y canteras y los relacionados con la distribución de electricidad, gas y agua",0,"Importaciones (CIF)",2013]
["P136","Servicios de manufactura",0,"Importaciones (CIF)",2013]
["P137","Servicios públicos del gobierno general",0,"Importaciones (CIF)",2013]
["P138","Servicios públicos administrativos relacionados con la provisión de servicios educativos, de salud, servicios sociales, culturales y otros, sin contar los servicios de seguridad social",0,"Importaciones (CIF)",2013]
["P139","Otros servicios administrativos",0,"Importaciones (CIF)",2013]
["P140","Servicios públicos administrativos prestados a la comunidad en su conjunto",252.573702,"Importaciones (CIF)",2013]
["P141","Servicios administrativos relacionados con los sistemas de seguridad social de afiliación obligatoria",0,"Importaciones (CIF)",2013]
["P142","Servicios de enseñanza",3.6162179999999999,"Importaciones (CIF)",2013]
["P143","Servicios de hospitalización",0,"Importaciones (CIF)",2013]
["P144","Servicios médicos y dentales",0,"Importaciones (CIF)",2013]
["P145","Otros servicios de atención de la salud humana",0,"Importaciones (CIF)",2013]
["P146","Servicios audiovisuales, recreativos, culturales y deportivos",172.76897,"Importaciones (CIF)",2013]
["P147","Servicios de asociaciones que sirven a las empresas",2.262931,"Importaciones (CIF)",2013]
["P148","Servicios de asociaciones que sirven a los hogares",0,"Importaciones (CIF)",2013]
["P149","Otros servicios",0,"Importaciones (CIF)",2013]
["P150","Servicios domésticos",0,"Importaciones (CIF)",2013]
["P151","Compras directas en el exterior por residentes",6304.4615839999997,"Importaciones (CIF)",2013]
["P152","Compras directas en el territorio nacional por no residentes",0,"Importaciones (CIF)",2013]
["P001","Maíz",1.3095000000000001E-2,"Impuestos y derechos sobre las importaciones excepto IVA",2013]
["P002","Frijoles",6.0101120000000003,"Impuestos y derechos sobre las importaciones excepto IVA",2013]
["P003","Leguminosas (legumbres secas) y semillas oleaginosas",0.21742500000000001,"Impuestos y derechos sobre las importaciones excepto IVA",2013]
["P004","Arroz",5.118303,"Impuestos y derechos sobre las importaciones excepto IVA",2013]
["P005","Otros cereales",0.28831499999999999,"Impuestos y derechos sobre las importaciones excepto IVA",2013]
["P006","Hortalizas",1.376401,"Impuestos y derechos sobre las importaciones excepto IVA",2013]
["P007","Sandías y melones",2.3491999999999999E-2,"Impuestos y derechos sobre las importaciones excepto IVA",2013]
["P008","Ejotes y arvejas",2.1937999999999999E-2,"Impuestos y derechos sobre las importaciones excepto IVA",2013]
["P009","Raíces y tubérculos",1.8364579999999999,"Impuestos y derechos sobre las importaciones excepto IVA",2013]
["P010","Caña de azúcar y otras plantas azucareras",0,"Impuestos y derechos sobre las importaciones excepto IVA",2013]
["P011","Tabaco y otras plantas no perennes",7.9450999999999994E-2,"Impuestos y derechos sobre las importaciones excepto IVA",2013]
["P012","Bananos, plátanos y otros",0.639208,"Impuestos y derechos sobre las importaciones excepto IVA",2013]
["P013","Frutas tropicales y subtropicales",1.706949,"Impuestos y derechos sobre las importaciones excepto IVA",2013]
["P014","Berries, otras frutas y semillas de frutas",2.1732840000000002,"Impuestos y derechos sobre las importaciones excepto IVA",2013]
["P015","Palma africana",0,"Impuestos y derechos sobre las importaciones excepto IVA",2013]
["P016","Café en grano",1.0486000000000001E-2,"Impuestos y derechos sobre las importaciones excepto IVA",2013]
["P017","Cardamomo",0,"Impuestos y derechos sobre las importaciones excepto IVA",2013]
["P018","Caucho natural",7.8100000000000001E-3,"Impuestos y derechos sobre las importaciones excepto IVA",2013]
["P019","Propagación de plantas",0.58506899999999995,"Impuestos y derechos sobre las importaciones excepto IVA",2013]
["P020","Otros frutos oleaginosos, otras plantas bebestibles y especias aromáticas",1.5469200000000001,"Impuestos y derechos sobre las importaciones excepto IVA",2013]
["P021","Ganado bovino",0,"Impuestos y derechos sobre las importaciones excepto IVA",2013]
["P022","Ganado porcino y otro tipo de animales vivos n.c.p.",7.2090000000000001E-2,"Impuestos y derechos sobre las importaciones excepto IVA",2013]
["P023","Aves de corral",1.9840000000000001E-3,"Impuestos y derechos sobre las importaciones excepto IVA",2013]
["P024","Leche cruda",0,"Impuestos y derechos sobre las importaciones excepto IVA",2013]
["P025","Huevos",4.339E-3,"Impuestos y derechos sobre las importaciones excepto IVA",2013]
["P026","Otros productos de animales vivos",2.5099999999999998E-4,"Impuestos y derechos sobre las importaciones excepto IVA",2013]
["P027","Troncos de madera y leña",0,"Impuestos y derechos sobre las importaciones excepto IVA",2013]
["P028","Productos forestales no madereros",1.0966E-2,"Impuestos y derechos sobre las importaciones excepto IVA",2013]
["P029","Peces vivos, frescos o refrigerados",7.8199000000000005E-2,"Impuestos y derechos sobre las importaciones excepto IVA",2013]
["P030","Crustáceos sin congelar y otros productos de la pesca",0.20960400000000001,"Impuestos y derechos sobre las importaciones excepto IVA",2013]
["P031","Petróleo crudo y gas natural",0,"Impuestos y derechos sobre las importaciones excepto IVA",2013]
["P032","Minerales metálicos",3.6120000000000002E-3,"Impuestos y derechos sobre las importaciones excepto IVA",2013]
["P033","Minerales no metálicos",28.324197999999999,"Impuestos y derechos sobre las importaciones excepto IVA",2013]
["P034","Carne y despojos comestibles de ganado bovino; cueros y pieles de bovino y de otros animales",0.11142000000000001,"Impuestos y derechos sobre las importaciones excepto IVA",2013]
["P035","Carne y despojos comestibles de ganado porcino",2.8252290000000002,"Impuestos y derechos sobre las importaciones excepto IVA",2013]
["P036","Carne y despojos comestibles de aves",5.4383160000000004,"Impuestos y derechos sobre las importaciones excepto IVA",2013]
["P037","Carne y despojos de otros animales y conservas y preparados de carne",6.2930000000000001,"Impuestos y derechos sobre las importaciones excepto IVA",2013]
["P038","Pescado congelado, preparado o en conserva y sus productos",9.0251110000000008,"Impuestos y derechos sobre las importaciones excepto IVA",2013]
["P039","Crustáceos, moluscos y demás invertebrados acuáticos congelados, preparados o en conserva y sus productos",0.71170999999999995,"Impuestos y derechos sobre las importaciones excepto IVA",2013]
["P040","Vegetales preparados o en conserva, legumbres y papas",7.9039219999999997,"Impuestos y derechos sobre las importaciones excepto IVA",2013]
["P041","Preparaciones y conservas de frutas y nueces",5.6945230000000002,"Impuestos y derechos sobre las importaciones excepto IVA",2013]
["P042","Jugos de frutas",0.70909999999999995,"Impuestos y derechos sobre las importaciones excepto IVA",2013]
["P043","Aceites de origen vegetal",6.3574650000000004,"Impuestos y derechos sobre las importaciones excepto IVA",2013]
["P044","Margarina, grasas y otros aceites de origen animal y vegetal",2.3273510000000002,"Impuestos y derechos sobre las importaciones excepto IVA",2013]
["P045","Leche líquida y crema procesada",4.9486090000000003,"Impuestos y derechos sobre las importaciones excepto IVA",2013]
["P046","Otros productos lácteos n.c.p.",69.035622000000004,"Impuestos y derechos sobre las importaciones excepto IVA",2013]
["P047","Harina de trigo",0,"Impuestos y derechos sobre las importaciones excepto IVA",2013]
["P048","Arroz sin cáscara",4.2802740000000004,"Impuestos y derechos sobre las importaciones excepto IVA",2013]
["P049","Otros productos de molinería, almidones y productos de almidón",9.5215969999999999,"Impuestos y derechos sobre las importaciones excepto IVA",2013]
["P050","Pan y otros productos de panadería y repostería n.c.p.",4.9894360000000004,"Impuestos y derechos sobre las importaciones excepto IVA",2013]
["P051","Tortillas de maíz, incluso tostadas, horneadas o fritas",0,"Impuestos y derechos sobre las importaciones excepto IVA",2013]
["P052","Azúcar de caña sin refinar y refinada, melaza y los demás azúcares n.c.p.",0.21085100000000001,"Impuestos y derechos sobre las importaciones excepto IVA",2013]
["P053","Productos alimenticios n.c.p.",62.758946000000002,"Impuestos y derechos sobre las importaciones excepto IVA",2013]
["P054","Preparados para alimentación animal",3.6737690000000001,"Impuestos y derechos sobre las importaciones excepto IVA",2013]
["P055","Aguardientes, licores, vinos, demás bebidas espirituosas y productos del tabaco",44.549036000000001,"Impuestos y derechos sobre las importaciones excepto IVA",2013]
["P056","Malta y cerveza de malta",10.362541999999999,"Impuestos y derechos sobre las importaciones excepto IVA",2013]
["P057","Bebidas no alcohólicas",5.5522559999999999,"Impuestos y derechos sobre las importaciones excepto IVA",2013]
["P058","Aguas minerales y otras aguas embotelladas",0.28362999999999999,"Impuestos y derechos sobre las importaciones excepto IVA",2013]
["P059","Hilados, tejidos, telas y otros productos textiles excepto prendas de vestir",48.191851999999997,"Impuestos y derechos sobre las importaciones excepto IVA",2013]
["P060","Prendas de vestir, adobo y teñido de pieles",143.549387,"Impuestos y derechos sobre las importaciones excepto IVA",2013]
["P061","Cuero de piel curtida o adobada y cuero artificial o regenerado y artículos de cuero",28.548895999999999,"Impuestos y derechos sobre las importaciones excepto IVA",2013]
["P062","Calzado y sus partes, de cualquier material y de cualquier uso",104.65356300000001,"Impuestos y derechos sobre las importaciones excepto IVA",2013]
["P063","Madera aserrada y acepillada, productos de madera, corcho, paja y materiales trenzables",16.454395000000002,"Impuestos y derechos sobre las importaciones excepto IVA",2013]
["P064","Pasta de papel y papel",27.288879000000001,"Impuestos y derechos sobre las importaciones excepto IVA",2013]
["P065","Envases de papel y cartón",2.380112,"Impuestos y derechos sobre las importaciones excepto IVA",2013]
["P066","Productos de la edición",24.246775,"Impuestos y derechos sobre las importaciones excepto IVA",2013]
["P067","Productos de la impresión",1.301472,"Impuestos y derechos sobre las importaciones excepto IVA",2013]
["P068","Gasolinas, diésel oil y fuel oils",4.4837000000000002E-2,"Impuestos y derechos sobre las importaciones excepto IVA",2013]
["P069","Aceites, grasas lubricantes y otros aceites preparados",10.983378,"Impuestos y derechos sobre las importaciones excepto IVA",2013]
["P070","Gases de petróleo, otros productos de la refinación de petróleo n.c.p.",8.6398000000000003E-2,"Impuestos y derechos sobre las importaciones excepto IVA",2013]
["P071","Abonos, fertilizantes y pesticidas",49.696069999999999,"Impuestos y derechos sobre las importaciones excepto IVA",2013]
["P072","Pinturas, barnices, tintas y productos relacionados",10.029738,"Impuestos y derechos sobre las importaciones excepto IVA",2013]
["P073","Jabón, preparados de limpieza, perfumes y preparados de toilet",163.30729600000001,"Impuestos y derechos sobre las importaciones excepto IVA",2013]
["P074","Otros productos químicos",34.166791000000003,"Impuestos y derechos sobre las importaciones excepto IVA",2013]
["P075","Productos farmacéuticos",88.799699000000004,"Impuestos y derechos sobre las importaciones excepto IVA",2013]
["P076","Productos de caucho y plástico",152.66666799999999,"Impuestos y derechos sobre las importaciones excepto IVA",2013]
["P077","Vidrio y productos de vidrio",14.346356999999999,"Impuestos y derechos sobre las importaciones excepto IVA",2013]
["P078","Productos de cerámica y arcilla",29.125387,"Impuestos y derechos sobre las importaciones excepto IVA",2013]
["P079","Cemento, cal y yeso",9.1461710000000007,"Impuestos y derechos sobre las importaciones excepto IVA",2013]
["P080","Artículos de hormigón, cemento y yeso",0.89545799999999998,"Impuestos y derechos sobre las importaciones excepto IVA",2013]
["P081","Piedras talladas para construcción y otros productos minerales no metálicos n.c.p.",4.0666079999999996,"Impuestos y derechos sobre las importaciones excepto IVA",2013]
["P082","Métales básicos de hierro y acero, productos primarios de metales preciosos y otros metales no ferrosos",33.974898000000003,"Impuestos y derechos sobre las importaciones excepto IVA",2013]
["P083","Productos metálicos estructurales y sus partes de hierro o de acero",14.141559000000001,"Impuestos y derechos sobre las importaciones excepto IVA",2013]
["P084","Otros productos elaborados de metal",63.647938000000003,"Impuestos y derechos sobre las importaciones excepto IVA",2013]
["P085","Maquinaria para usos generales y especiales, sus partes y piezas, excepto electrodomésticos",54.655141999999998,"Impuestos y derechos sobre las importaciones excepto IVA",2013]
["P086","Electrodomésticos y sus partes",63.480289999999997,"Impuestos y derechos sobre las importaciones excepto IVA",2013]
["P087","Maquinaria de oficina, contabilidad e informática, sus partes y piezas",0,"Impuestos y derechos sobre las importaciones excepto IVA",2013]
["P088","Maquinaria y aparatos eléctricos, sus partes y piezas",74.055276000000006,"Impuestos y derechos sobre las importaciones excepto IVA",2013]
["P089","Equipo y aparatos de radio, televisión y comunicaciones",75.941328999999996,"Impuestos y derechos sobre las importaciones excepto IVA",2013]
["P090","Aparatos médicos, instrumentos ópticos y de precisión, relojes",16.732696000000001,"Impuestos y derechos sobre las importaciones excepto IVA",2013]
["P091","Equipo de transporte",87.651760999999993,"Impuestos y derechos sobre las importaciones excepto IVA",2013]
["P092","Muebles",50.644219,"Impuestos y derechos sobre las importaciones excepto IVA",2013]
["P093","Otros artículos n.c.p.",120.814988,"Impuestos y derechos sobre las importaciones excepto IVA",2013]
["P094","Residuos y desechos",14.772373999999999,"Impuestos y derechos sobre las importaciones excepto IVA",2013]
["P095","Generación y distribución de energía eléctrica, gas, vapor y aire acondicionado",0,"Impuestos y derechos sobre las importaciones excepto IVA",2013]
["P096","Agua natural y distribución de agua natural",0,"Impuestos y derechos sobre las importaciones excepto IVA",2013]
["P097","Evacuación de aguas residuales, recogida, tratamiento y eliminación de desechos",0,"Impuestos y derechos sobre las importaciones excepto IVA",2013]
["P098","Edificaciones residenciales",0,"Impuestos y derechos sobre las importaciones excepto IVA",2013]
["P099","Edificaciones no residenciales",0,"Impuestos y derechos sobre las importaciones excepto IVA",2013]
["P100","Obras de ingeniería civil",0,"Impuestos y derechos sobre las importaciones excepto IVA",2013]
["P101","Servicios generales y especializados de construcción",0,"Impuestos y derechos sobre las importaciones excepto IVA",2013]
["P102","Servicios de comercio",0,"Impuestos y derechos sobre las importaciones excepto IVA",2013]
["P103","Mantenimiento y reparación de vehículos automotores y motocicletas",0,"Impuestos y derechos sobre las importaciones excepto IVA",2013]
["P104","Servicio de transporte de pasajeros por vía terrestre",0,"Impuestos y derechos sobre las importaciones excepto IVA",2013]
["P105","Servicio de transporte de carga por vía terrestre",0,"Impuestos y derechos sobre las importaciones excepto IVA",2013]
["P106","Otros tipos de transporte",0,"Impuestos y derechos sobre las importaciones excepto IVA",2013]
["P107","Servicios de almacenamiento y depósito",0,"Impuestos y derechos sobre las importaciones excepto IVA",2013]
["P108","Otros servicios de apoyo al transporte",0,"Impuestos y derechos sobre las importaciones excepto IVA",2013]
["P109","Servicios postales y de mensajería",0,"Impuestos y derechos sobre las importaciones excepto IVA",2013]
["P110","Servicio de alojamiento",0,"Impuestos y derechos sobre las importaciones excepto IVA",2013]
["P111","Servicio de suministro de comidas y bebidas",0,"Impuestos y derechos sobre las importaciones excepto IVA",2013]
["P112","Servicios de información, telecomunicaciones y radiodifusión",0,"Impuestos y derechos sobre las importaciones excepto IVA",2013]
["P113","Servicios de banco central",0,"Impuestos y derechos sobre las importaciones excepto IVA",2013]
["P114","Otros servicios financieros y servicios de banca de inversión",0,"Impuestos y derechos sobre las importaciones excepto IVA",2013]
["P115","Servicios de Intermediación Financiera Medidos Indirectamente (SIFMI)",0,"Impuestos y derechos sobre las importaciones excepto IVA",2013]
["P116","Servicios de seguro, reaseguro y fondos de pensiones",0,"Impuestos y derechos sobre las importaciones excepto IVA",2013]
["P117","Servicios auxiliares de la intermediación financiera",0,"Impuestos y derechos sobre las importaciones excepto IVA",2013]
["P118","Servicios de alquiler de vivienda",0,"Impuestos y derechos sobre las importaciones excepto IVA",2013]
["P119","Otros servicios inmobiliarios, excepto alquiler de vivienda",0,"Impuestos y derechos sobre las importaciones excepto IVA",2013]
["P120","Servicios jurídicos, de contabilidad, auditoría, teneduría de libros y consultoría fiscal",0,"Impuestos y derechos sobre las importaciones excepto IVA",2013]
["P121","Servicios de tecnología de la información",0,"Impuestos y derechos sobre las importaciones excepto IVA",2013]
["P122","Servicios de arquitectura e ingeniería, ensayos y análisis técnicos",0,"Impuestos y derechos sobre las importaciones excepto IVA",2013]
["P123","Otros servicios profesionales, científicos y técnicos",0,"Impuestos y derechos sobre las importaciones excepto IVA",2013]
["P124","Servicios de publicidad y estudios de mercado",0,"Impuestos y derechos sobre las importaciones excepto IVA",2013]
["P125","Servicios de arrendamiento o alquiler sin operador",0,"Impuestos y derechos sobre las importaciones excepto IVA",2013]
["P126","Servicios  de agencias de empleo y de dotación de recursos humanos",0,"Impuestos y derechos sobre las importaciones excepto IVA",2013]
["P127","Servicios de agencias de viajes, operadores turísticos y actividades conexas",0,"Impuestos y derechos sobre las importaciones excepto IVA",2013]
["P128","Servicios de seguridad, sistemas de seguridad e investigación privada",0,"Impuestos y derechos sobre las importaciones excepto IVA",2013]
["P129","Servicios de limpieza",0,"Impuestos y derechos sobre las importaciones excepto IVA",2013]
["P130","Servicios telefónicos de centros de llamadas",0,"Impuestos y derechos sobre las importaciones excepto IVA",2013]
["P131","Servicios administrativos, de apoyo de oficina y otros servicios de apoyo a las empresas",0,"Impuestos y derechos sobre las importaciones excepto IVA",2013]
["P132","Servicios de mantenimiento, reparación e instalación de productos metálicos elaborados, maquinaria y equipo",0,"Impuestos y derechos sobre las importaciones excepto IVA",2013]
["P133","Servicios de reparación de otros bienes",0,"Impuestos y derechos sobre las importaciones excepto IVA",2013]
["P134","Servicios de apoyo a la agricultura, caza, silvicultura y pesca",0,"Impuestos y derechos sobre las importaciones excepto IVA",2013]
["P135","Servicios de apoyo a la explotación de minas y canteras y los relacionados con la distribución de electricidad, gas y agua",0,"Impuestos y derechos sobre las importaciones excepto IVA",2013]
["P136","Servicios de manufactura",0,"Impuestos y derechos sobre las importaciones excepto IVA",2013]
["P137","Servicios públicos del gobierno general",0,"Impuestos y derechos sobre las importaciones excepto IVA",2013]
["P138","Servicios públicos administrativos relacionados con la provisión de servicios educativos, de salud, servicios sociales, culturales y otros, sin contar los servicios de seguridad social",0,"Impuestos y derechos sobre las importaciones excepto IVA",2013]
["P139","Otros servicios administrativos",0,"Impuestos y derechos sobre las importaciones excepto IVA",2013]
["P140","Servicios públicos administrativos prestados a la comunidad en su conjunto",0,"Impuestos y derechos sobre las importaciones excepto IVA",2013]
["P141","Servicios administrativos relacionados con los sistemas de seguridad social de afiliación obligatoria",0,"Impuestos y derechos sobre las importaciones excepto IVA",2013]
["P142","Servicios de enseñanza",0,"Impuestos y derechos sobre las importaciones excepto IVA",2013]
["P143","Servicios de hospitalización",0,"Impuestos y derechos sobre las importaciones excepto IVA",2013]
["P144","Servicios médicos y dentales",0,"Impuestos y derechos sobre las importaciones excepto IVA",2013]
["P145","Otros servicios de atención de la salud humana",0,"Impuestos y derechos sobre las importaciones excepto IVA",2013]
["P146","Servicios audiovisuales, recreativos, culturales y deportivos",0,"Impuestos y derechos sobre las importaciones excepto IVA",2013]
["P147","Servicios de asociaciones que sirven a las empresas",0,"Impuestos y derechos sobre las importaciones excepto IVA",2013]
["P148","Servicios de asociaciones que sirven a los hogares",0,"Impuestos y derechos sobre las importaciones excepto IVA",2013]
["P149","Otros servicios",0,"Impuestos y derechos sobre las importaciones excepto IVA",2013]
["P150","Servicios domésticos",0,"Impuestos y derechos sobre las importaciones excepto IVA",2013]
["P151","Compras directas en el exterior por residentes",0,"Impuestos y derechos sobre las importaciones excepto IVA",2013]
["P152","Compras directas en el territorio nacional por no residentes",0,"Impuestos y derechos sobre las importaciones excepto IVA",2013]
["P001","Maíz",56.302073999999998,"Impuesto tipo valor agregado (IVA)",2013]
["P002","Frijoles",81.876501000000005,"Impuesto tipo valor agregado (IVA)",2013]
["P003","Leguminosas (legumbres secas) y semillas oleaginosas",2.6714690000000001,"Impuesto tipo valor agregado (IVA)",2013]
["P004","Arroz",0.32741900000000002,"Impuesto tipo valor agregado (IVA)",2013]
["P005","Otros cereales",4.3267740000000003,"Impuesto tipo valor agregado (IVA)",2013]
["P006","Hortalizas",170.741668,"Impuesto tipo valor agregado (IVA)",2013]
["P007","Sandías y melones",7.8625220000000002,"Impuesto tipo valor agregado (IVA)",2013]
["P008","Ejotes y arvejas",3.4850500000000002,"Impuesto tipo valor agregado (IVA)",2013]
["P009","Raíces y tubérculos",54.887884,"Impuesto tipo valor agregado (IVA)",2013]
["P010","Caña de azúcar y otras plantas azucareras",0,"Impuesto tipo valor agregado (IVA)",2013]
["P011","Tabaco y otras plantas no perennes",10.712678,"Impuesto tipo valor agregado (IVA)",2013]
["P012","Bananos, plátanos y otros",29.668102999999999,"Impuesto tipo valor agregado (IVA)",2013]
["P013","Frutas tropicales y subtropicales",52.966315000000002,"Impuesto tipo valor agregado (IVA)",2013]
["P014","Berries, otras frutas y semillas de frutas",55.654024999999997,"Impuesto tipo valor agregado (IVA)",2013]
["P015","Palma africana",0,"Impuesto tipo valor agregado (IVA)",2013]
["P016","Café en grano",6.3759999999999997E-3,"Impuesto tipo valor agregado (IVA)",2013]
["P017","Cardamomo",0,"Impuesto tipo valor agregado (IVA)",2013]
["P018","Caucho natural",0,"Impuesto tipo valor agregado (IVA)",2013]
["P019","Propagación de plantas",0.92154000000000003,"Impuesto tipo valor agregado (IVA)",2013]
["P020","Otros frutos oleaginosos, otras plantas bebestibles y especias aromáticas",4.641686,"Impuesto tipo valor agregado (IVA)",2013]
["P021","Ganado bovino",2.032591,"Impuesto tipo valor agregado (IVA)",2013]
["P022","Ganado porcino y otro tipo de animales vivos n.c.p.",1.761617,"Impuesto tipo valor agregado (IVA)",2013]
["P023","Aves de corral",1.6081890000000001,"Impuesto tipo valor agregado (IVA)",2013]
["P024","Leche cruda",0.75222999999999995,"Impuesto tipo valor agregado (IVA)",2013]
["P025","Huevos",191.99264400000001,"Impuesto tipo valor agregado (IVA)",2013]
["P026","Otros productos de animales vivos",1.723149,"Impuesto tipo valor agregado (IVA)",2013]
["P027","Troncos de madera y leña",2.2492359999999998,"Impuesto tipo valor agregado (IVA)",2013]
["P028","Productos forestales no madereros",1.284073,"Impuesto tipo valor agregado (IVA)",2013]
["P029","Peces vivos, frescos o refrigerados",15.592727,"Impuesto tipo valor agregado (IVA)",2013]
["P030","Crustáceos sin congelar y otros productos de la pesca",6.4233479999999998,"Impuesto tipo valor agregado (IVA)",2013]
["P031","Petróleo crudo y gas natural",0,"Impuesto tipo valor agregado (IVA)",2013]
["P032","Minerales metálicos",5.6455999999999999E-2,"Impuesto tipo valor agregado (IVA)",2013]
["P033","Minerales no metálicos",21.742066000000001,"Impuesto tipo valor agregado (IVA)",2013]
["P034","Carne y despojos comestibles de ganado bovino; cueros y pieles de bovino y de otros animales",161.80892399999999,"Impuesto tipo valor agregado (IVA)",2013]
["P035","Carne y despojos comestibles de ganado porcino",9.2883460000000007,"Impuesto tipo valor agregado (IVA)",2013]
["P036","Carne y despojos comestibles de aves",428.36083200000002,"Impuesto tipo valor agregado (IVA)",2013]
["P037","Carne y despojos de otros animales y conservas y preparados de carne",153.88554300000001,"Impuesto tipo valor agregado (IVA)",2013]
["P038","Pescado congelado, preparado o en conserva y sus productos",8.4126829999999995,"Impuesto tipo valor agregado (IVA)",2013]
["P039","Crustáceos, moluscos y demás invertebrados acuáticos congelados, preparados o en conserva y sus productos",4.9980450000000003,"Impuesto tipo valor agregado (IVA)",2013]
["P040","Vegetales preparados o en conserva, legumbres y papas",60.096558999999999,"Impuesto tipo valor agregado (IVA)",2013]
["P041","Preparaciones y conservas de frutas y nueces",38.048825999999998,"Impuesto tipo valor agregado (IVA)",2013]
["P042","Jugos de frutas",96.891683999999998,"Impuesto tipo valor agregado (IVA)",2013]
["P043","Aceites de origen vegetal",197.61382800000001,"Impuesto tipo valor agregado (IVA)",2013]
["P044","Margarina, grasas y otros aceites de origen animal y vegetal",46.266848000000003,"Impuesto tipo valor agregado (IVA)",2013]
["P045","Leche líquida y crema procesada",38.723286999999999,"Impuesto tipo valor agregado (IVA)",2013]
["P046","Otros productos lácteos n.c.p.",228.02466799999999,"Impuesto tipo valor agregado (IVA)",2013]
["P047","Harina de trigo",16.260650999999999,"Impuesto tipo valor agregado (IVA)",2013]
["P048","Arroz sin cáscara",59.583160999999997,"Impuesto tipo valor agregado (IVA)",2013]
["P049","Otros productos de molinería, almidones y productos de almidón",148.771027,"Impuesto tipo valor agregado (IVA)",2013]
["P050","Pan y otros productos de panadería y repostería n.c.p.",184.73915,"Impuesto tipo valor agregado (IVA)",2013]
["P051","Tortillas de maíz, incluso tostadas, horneadas o fritas",10.915025,"Impuesto tipo valor agregado (IVA)",2013]
["P052","Azúcar de caña sin refinar y refinada, melaza y los demás azúcares n.c.p.",423.451751,"Impuesto tipo valor agregado (IVA)",2013]
["P053","Productos alimenticios n.c.p.",670.57607399999995,"Impuesto tipo valor agregado (IVA)",2013]
["P054","Preparados para alimentación animal",50.248894999999997,"Impuesto tipo valor agregado (IVA)",2013]
["P055","Aguardientes, licores, vinos, demás bebidas espirituosas y productos del tabaco",92.198632000000003,"Impuesto tipo valor agregado (IVA)",2013]
["P056","Malta y cerveza de malta",216.31446299999999,"Impuesto tipo valor agregado (IVA)",2013]
["P057","Bebidas no alcohólicas",810.00760000000002,"Impuesto tipo valor agregado (IVA)",2013]
["P058","Aguas minerales y otras aguas embotelladas",101.93432199999999,"Impuesto tipo valor agregado (IVA)",2013]
["P059","Hilados, tejidos, telas y otros productos textiles excepto prendas de vestir",154.940854,"Impuesto tipo valor agregado (IVA)",2013]
["P060","Prendas de vestir, adobo y teñido de pieles",460.01257199999998,"Impuesto tipo valor agregado (IVA)",2013]
["P061","Cuero de piel curtida o adobada y cuero artificial o regenerado y artículos de cuero",62.437404999999998,"Impuesto tipo valor agregado (IVA)",2013]
["P062","Calzado y sus partes, de cualquier material y de cualquier uso",246.90091000000001,"Impuesto tipo valor agregado (IVA)",2013]
["P063","Madera aserrada y acepillada, productos de madera, corcho, paja y materiales trenzables",21.112179000000001,"Impuesto tipo valor agregado (IVA)",2013]
["P064","Pasta de papel y papel",271.25948599999998,"Impuesto tipo valor agregado (IVA)",2013]
["P065","Envases de papel y cartón",4.2942260000000001,"Impuesto tipo valor agregado (IVA)",2013]
["P066","Productos de la edición",170.750552,"Impuesto tipo valor agregado (IVA)",2013]
["P067","Productos de la impresión",56.714376999999999,"Impuesto tipo valor agregado (IVA)",2013]
["P068","Gasolinas, diésel oil y fuel oils",1378.5921969999999,"Impuesto tipo valor agregado (IVA)",2013]
["P069","Aceites, grasas lubricantes y otros aceites preparados",15.554821,"Impuesto tipo valor agregado (IVA)",2013]
["P070","Gases de petróleo, otros productos de la refinación de petróleo n.c.p.",262.47031199999998,"Impuesto tipo valor agregado (IVA)",2013]
["P071","Abonos, fertilizantes y pesticidas",8.8702880000000004,"Impuesto tipo valor agregado (IVA)",2013]
["P072","Pinturas, barnices, tintas y productos relacionados",41.093138000000003,"Impuesto tipo valor agregado (IVA)",2013]
["P073","Jabón, preparados de limpieza, perfumes y preparados de toilet",620.85667699999999,"Impuesto tipo valor agregado (IVA)",2013]
["P074","Otros productos químicos",103.302735,"Impuesto tipo valor agregado (IVA)",2013]
["P075","Productos farmacéuticos",762.00070400000004,"Impuesto tipo valor agregado (IVA)",2013]
["P076","Productos de caucho y plástico",393.593478,"Impuesto tipo valor agregado (IVA)",2013]
["P077","Vidrio y productos de vidrio",13.753641999999999,"Impuesto tipo valor agregado (IVA)",2013]
["P078","Productos de cerámica y arcilla",22.643568999999999,"Impuesto tipo valor agregado (IVA)",2013]
["P079","Cemento, cal y yeso",84.179191000000003,"Impuesto tipo valor agregado (IVA)",2013]
["P080","Artículos de hormigón, cemento y yeso",69.722711000000004,"Impuesto tipo valor agregado (IVA)",2013]
["P081","Piedras talladas para construcción y otros productos minerales no metálicos n.c.p.",6.2135199999999999,"Impuesto tipo valor agregado (IVA)",2013]
["P082","Métales básicos de hierro y acero, productos primarios de metales preciosos y otros metales no ferrosos",55.142128,"Impuesto tipo valor agregado (IVA)",2013]
["P083","Productos metálicos estructurales y sus partes de hierro o de acero",25.63016,"Impuesto tipo valor agregado (IVA)",2013]
["P084","Otros productos elaborados de metal",72.723546999999996,"Impuesto tipo valor agregado (IVA)",2013]
["P085","Maquinaria para usos generales y especiales, sus partes y piezas, excepto electrodomésticos",76.919296000000003,"Impuesto tipo valor agregado (IVA)",2013]
["P086","Electrodomésticos y sus partes",127.26478,"Impuesto tipo valor agregado (IVA)",2013]
["P087","Maquinaria de oficina, contabilidad e informática, sus partes y piezas",110.098794,"Impuesto tipo valor agregado (IVA)",2013]
["P088","Maquinaria y aparatos eléctricos, sus partes y piezas",57.551357000000003,"Impuesto tipo valor agregado (IVA)",2013]
["P089","Equipo y aparatos de radio, televisión y comunicaciones",834.30934600000001,"Impuesto tipo valor agregado (IVA)",2013]
["P090","Aparatos médicos, instrumentos ópticos y de precisión, relojes",56.307293999999999,"Impuesto tipo valor agregado (IVA)",2013]
["P091","Equipo de transporte",511.54883599999999,"Impuesto tipo valor agregado (IVA)",2013]
["P092","Muebles",115.37363499999999,"Impuesto tipo valor agregado (IVA)",2013]
["P093","Otros artículos n.c.p.",177.60736,"Impuesto tipo valor agregado (IVA)",2013]
["P094","Residuos y desechos",2.1073819999999999,"Impuesto tipo valor agregado (IVA)",2013]
["P095","Generación y distribución de energía eléctrica, gas, vapor y aire acondicionado",776.61359300000004,"Impuesto tipo valor agregado (IVA)",2013]
["P096","Agua natural y distribución de agua natural",82.816869999999994,"Impuesto tipo valor agregado (IVA)",2013]
["P097","Evacuación de aguas residuales, recogida, tratamiento y eliminación de desechos",13.890352999999999,"Impuesto tipo valor agregado (IVA)",2013]
["P098","Edificaciones residenciales",342.56662,"Impuesto tipo valor agregado (IVA)",2013]
["P099","Edificaciones no residenciales",170.653852,"Impuesto tipo valor agregado (IVA)",2013]
["P100","Obras de ingeniería civil",505.19962800000002,"Impuesto tipo valor agregado (IVA)",2013]
["P101","Servicios generales y especializados de construcción",256.11245000000002,"Impuesto tipo valor agregado (IVA)",2013]
["P102","Servicios de comercio",0,"Impuesto tipo valor agregado (IVA)",2013]
["P103","Mantenimiento y reparación de vehículos automotores y motocicletas",289.02838800000001,"Impuesto tipo valor agregado (IVA)",2013]
["P104","Servicio de transporte de pasajeros por vía terrestre",263.15351199999998,"Impuesto tipo valor agregado (IVA)",2013]
["P105","Servicio de transporte de carga por vía terrestre",37.813462000000001,"Impuesto tipo valor agregado (IVA)",2013]
["P106","Otros tipos de transporte",176.81652099999999,"Impuesto tipo valor agregado (IVA)",2013]
["P107","Servicios de almacenamiento y depósito",0.37169099999999999,"Impuesto tipo valor agregado (IVA)",2013]
["P108","Otros servicios de apoyo al transporte",81.382930999999999,"Impuesto tipo valor agregado (IVA)",2013]
["P109","Servicios postales y de mensajería",43.419322000000001,"Impuesto tipo valor agregado (IVA)",2013]
["P110","Servicio de alojamiento",84.547814000000002,"Impuesto tipo valor agregado (IVA)",2013]
["P111","Servicio de suministro de comidas y bebidas",1379.064871,"Impuesto tipo valor agregado (IVA)",2013]
["P112","Servicios de información, telecomunicaciones y radiodifusión",1703.5261519999999,"Impuesto tipo valor agregado (IVA)",2013]
["P113","Servicios de banco central",0,"Impuesto tipo valor agregado (IVA)",2013]
["P114","Otros servicios financieros y servicios de banca de inversión",0,"Impuesto tipo valor agregado (IVA)",2013]
["P115","Servicios de Intermediación Financiera Medidos Indirectamente (SIFMI)",0,"Impuesto tipo valor agregado (IVA)",2013]
["P116","Servicios de seguro, reaseguro y fondos de pensiones",410.10033800000002,"Impuesto tipo valor agregado (IVA)",2013]
["P117","Servicios auxiliares de la intermediación financiera",3.5766439999999999,"Impuesto tipo valor agregado (IVA)",2013]
["P118","Servicios de alquiler de vivienda",12.400988999999999,"Impuesto tipo valor agregado (IVA)",2013]
["P119","Otros servicios inmobiliarios, excepto alquiler de vivienda",293.08284099999997,"Impuesto tipo valor agregado (IVA)",2013]
["P120","Servicios jurídicos, de contabilidad, auditoría, teneduría de libros y consultoría fiscal",72.042869999999994,"Impuesto tipo valor agregado (IVA)",2013]
["P121","Servicios de tecnología de la información",35.924619,"Impuesto tipo valor agregado (IVA)",2013]
["P122","Servicios de arquitectura e ingeniería, ensayos y análisis técnicos",45.987243999999997,"Impuesto tipo valor agregado (IVA)",2013]
["P123","Otros servicios profesionales, científicos y técnicos",173.19415900000001,"Impuesto tipo valor agregado (IVA)",2013]
["P124","Servicios de publicidad y estudios de mercado",88.861215999999999,"Impuesto tipo valor agregado (IVA)",2013]
["P125","Servicios de arrendamiento o alquiler sin operador",110.99659,"Impuesto tipo valor agregado (IVA)",2013]
["P126","Servicios  de agencias de empleo y de dotación de recursos humanos",126.476528,"Impuesto tipo valor agregado (IVA)",2013]
["P127","Servicios de agencias de viajes, operadores turísticos y actividades conexas",15.886803,"Impuesto tipo valor agregado (IVA)",2013]
["P128","Servicios de seguridad, sistemas de seguridad e investigación privada",91.405533000000005,"Impuesto tipo valor agregado (IVA)",2013]
["P129","Servicios de limpieza",23.782620000000001,"Impuesto tipo valor agregado (IVA)",2013]
["P130","Servicios telefónicos de centros de llamadas",4.8682280000000002,"Impuesto tipo valor agregado (IVA)",2013]
["P131","Servicios administrativos, de apoyo de oficina y otros servicios de apoyo a las empresas",35.007880999999998,"Impuesto tipo valor agregado (IVA)",2013]
["P132","Servicios de mantenimiento, reparación e instalación de productos metálicos elaborados, maquinaria y equipo",55.186776000000002,"Impuesto tipo valor agregado (IVA)",2013]
["P133","Servicios de reparación de otros bienes",22.694454,"Impuesto tipo valor agregado (IVA)",2013]
["P134","Servicios de apoyo a la agricultura, caza, silvicultura y pesca",6.5528969999999997,"Impuesto tipo valor agregado (IVA)",2013]
["P135","Servicios de apoyo a la explotación de minas y canteras y los relacionados con la distribución de electricidad, gas y agua",0,"Impuesto tipo valor agregado (IVA)",2013]
["P136","Servicios de manufactura",0,"Impuesto tipo valor agregado (IVA)",2013]
["P137","Servicios públicos del gobierno general",0,"Impuesto tipo valor agregado (IVA)",2013]
["P138","Servicios públicos administrativos relacionados con la provisión de servicios educativos, de salud, servicios sociales, culturales y otros, sin contar los servicios de seguridad social",0,"Impuesto tipo valor agregado (IVA)",2013]
["P139","Otros servicios administrativos",0,"Impuesto tipo valor agregado (IVA)",2013]
["P140","Servicios públicos administrativos prestados a la comunidad en su conjunto",0,"Impuesto tipo valor agregado (IVA)",2013]
["P141","Servicios administrativos relacionados con los sistemas de seguridad social de afiliación obligatoria",0,"Impuesto tipo valor agregado (IVA)",2013]
["P142","Servicios de enseñanza",33.009343999999999,"Impuesto tipo valor agregado (IVA)",2013]
["P143","Servicios de hospitalización",152.55686800000001,"Impuesto tipo valor agregado (IVA)",2013]
["P144","Servicios médicos y dentales",250.84777199999999,"Impuesto tipo valor agregado (IVA)",2013]
["P145","Otros servicios de atención de la salud humana",123.38853899999999,"Impuesto tipo valor agregado (IVA)",2013]
["P146","Servicios audiovisuales, recreativos, culturales y deportivos",119.250806,"Impuesto tipo valor agregado (IVA)",2013]
["P147","Servicios de asociaciones que sirven a las empresas",0.14918100000000001,"Impuesto tipo valor agregado (IVA)",2013]
["P148","Servicios de asociaciones que sirven a los hogares",0,"Impuesto tipo valor agregado (IVA)",2013]
["P149","Otros servicios",83.420794999999998,"Impuesto tipo valor agregado (IVA)",2013]
["P150","Servicios domésticos",0,"Impuesto tipo valor agregado (IVA)",2013]
["P151","Compras directas en el exterior por residentes",0,"Impuesto tipo valor agregado (IVA)",2013]
["P152","Compras directas en el territorio nacional por no residentes",0,"Impuesto tipo valor agregado (IVA)",2013]
["P001","Maíz",1236.1941449999999,"Márgenes de comercio, transporte y distribución de energía",2013]
["P002","Frijoles",778.09383400000002,"Márgenes de comercio, transporte y distribución de energía",2013]
["P003","Leguminosas (legumbres secas) y semillas oleaginosas",154.83643699999999,"Márgenes de comercio, transporte y distribución de energía",2013]
["P004","Arroz",37.629528000000001,"Márgenes de comercio, transporte y distribución de energía",2013]
["P005","Otros cereales",73.261381999999998,"Márgenes de comercio, transporte y distribución de energía",2013]
["P006","Hortalizas",11632.339635,"Márgenes de comercio, transporte y distribución de energía",2013]
["P007","Sandías y melones",249.34479400000001,"Márgenes de comercio, transporte y distribución de energía",2013]
["P008","Ejotes y arvejas",178.107674,"Márgenes de comercio, transporte y distribución de energía",2013]
["P009","Raíces y tubérculos",3798.389866,"Márgenes de comercio, transporte y distribución de energía",2013]
["P010","Caña de azúcar y otras plantas azucareras",492.385312,"Márgenes de comercio, transporte y distribución de energía",2013]
["P011","Tabaco y otras plantas no perennes",218.12059300000001,"Márgenes de comercio, transporte y distribución de energía",2013]
["P012","Bananos, plátanos y otros",2610.3296310000001,"Márgenes de comercio, transporte y distribución de energía",2013]
["P013","Frutas tropicales y subtropicales",2619.4768549999999,"Márgenes de comercio, transporte y distribución de energía",2013]
["P014","Berries, otras frutas y semillas de frutas",2646.2468130000002,"Márgenes de comercio, transporte y distribución de energía",2013]
["P015","Palma africana",12.957027999999999,"Márgenes de comercio, transporte y distribución de energía",2013]
["P016","Café en grano",140.63015300000001,"Márgenes de comercio, transporte y distribución de energía",2013]
["P017","Cardamomo",48.337380000000003,"Márgenes de comercio, transporte y distribución de energía",2013]
["P018","Caucho natural",44.384281000000001,"Márgenes de comercio, transporte y distribución de energía",2013]
["P019","Propagación de plantas",59.374257999999998,"Márgenes de comercio, transporte y distribución de energía",2013]
["P020","Otros frutos oleaginosos, otras plantas bebestibles y especias aromáticas",109.826992,"Márgenes de comercio, transporte y distribución de energía",2013]
["P021","Ganado bovino",300.21339899999998,"Márgenes de comercio, transporte y distribución de energía",2013]
["P022","Ganado porcino y otro tipo de animales vivos n.c.p.",79.841468000000006,"Márgenes de comercio, transporte y distribución de energía",2013]
["P023","Aves de corral",548.21959800000002,"Márgenes de comercio, transporte y distribución de energía",2013]
["P024","Leche cruda",184.806051,"Márgenes de comercio, transporte y distribución de energía",2013]
["P025","Huevos",598.34198300000003,"Márgenes de comercio, transporte y distribución de energía",2013]
["P026","Otros productos de animales vivos",29.703747,"Márgenes de comercio, transporte y distribución de energía",2013]
["P027","Troncos de madera y leña",304.036541,"Márgenes de comercio, transporte y distribución de energía",2013]
["P028","Productos forestales no madereros",26.895458999999999,"Márgenes de comercio, transporte y distribución de energía",2013]
["P029","Peces vivos, frescos o refrigerados",542.70942700000001,"Márgenes de comercio, transporte y distribución de energía",2013]
["P030","Crustáceos sin congelar y otros productos de la pesca",205.454194,"Márgenes de comercio, transporte y distribución de energía",2013]
["P031","Petróleo crudo y gas natural",112.623829,"Márgenes de comercio, transporte y distribución de energía",2013]
["P032","Minerales metálicos",2.2672999999999999E-2,"Márgenes de comercio, transporte y distribución de energía",2013]
["P033","Minerales no metálicos",341.13923,"Márgenes de comercio, transporte y distribución de energía",2013]
["P034","Carne y despojos comestibles de ganado bovino; cueros y pieles de bovino y de otros animales",3993.1143280000001,"Márgenes de comercio, transporte y distribución de energía",2013]
["P035","Carne y despojos comestibles de ganado porcino",342.58297700000003,"Márgenes de comercio, transporte y distribución de energía",2013]
["P036","Carne y despojos comestibles de aves",1972.2743740000001,"Márgenes de comercio, transporte y distribución de energía",2013]
["P037","Carne y despojos de otros animales y conservas y preparados de carne",1030.086789,"Márgenes de comercio, transporte y distribución de energía",2013]
["P038","Pescado congelado, preparado o en conserva y sus productos",133.25717700000001,"Márgenes de comercio, transporte y distribución de energía",2013]
["P039","Crustáceos, moluscos y demás invertebrados acuáticos congelados, preparados o en conserva y sus productos",73.660988000000003,"Márgenes de comercio, transporte y distribución de energía",2013]
["P040","Vegetales preparados o en conserva, legumbres y papas",314.27399500000001,"Márgenes de comercio, transporte y distribución de energía",2013]
["P041","Preparaciones y conservas de frutas y nueces",278.20810499999999,"Márgenes de comercio, transporte y distribución de energía",2013]
["P042","Jugos de frutas",475.85661499999998,"Márgenes de comercio, transporte y distribución de energía",2013]
["P043","Aceites de origen vegetal",970.56126400000005,"Márgenes de comercio, transporte y distribución de energía",2013]
["P044","Margarina, grasas y otros aceites de origen animal y vegetal",388.05423999999999,"Márgenes de comercio, transporte y distribución de energía",2013]
["P045","Leche líquida y crema procesada",561.90745000000004,"Márgenes de comercio, transporte y distribución de energía",2013]
["P046","Otros productos lácteos n.c.p.",1066.7999380000001,"Márgenes de comercio, transporte y distribución de energía",2013]
["P047","Harina de trigo",313.80803600000002,"Márgenes de comercio, transporte y distribución de energía",2013]
["P048","Arroz sin cáscara",273.19027499999999,"Márgenes de comercio, transporte y distribución de energía",2013]
["P049","Otros productos de molinería, almidones y productos de almidón",751.59063600000002,"Márgenes de comercio, transporte y distribución de energía",2013]
["P050","Pan y otros productos de panadería y repostería n.c.p.",860.68419500000005,"Márgenes de comercio, transporte y distribución de energía",2013]
["P051","Tortillas de maíz, incluso tostadas, horneadas o fritas",9.2916170000000005,"Márgenes de comercio, transporte y distribución de energía",2013]
["P052","Azúcar de caña sin refinar y refinada, melaza y los demás azúcares n.c.p.",1993.1486030000001,"Márgenes de comercio, transporte y distribución de energía",2013]
["P053","Productos alimenticios n.c.p.",3821.7395069999998,"Márgenes de comercio, transporte y distribución de energía",2013]
["P054","Preparados para alimentación animal",394.46243299999998,"Márgenes de comercio, transporte y distribución de energía",2013]
["P055","Aguardientes, licores, vinos, demás bebidas espirituosas y productos del tabaco",996.86877500000003,"Márgenes de comercio, transporte y distribución de energía",2013]
["P056","Malta y cerveza de malta",1007.003954,"Márgenes de comercio, transporte y distribución de energía",2013]
["P057","Bebidas no alcohólicas",3284.471207,"Márgenes de comercio, transporte y distribución de energía",2013]
["P058","Aguas minerales y otras aguas embotelladas",324.45280100000002,"Márgenes de comercio, transporte y distribución de energía",2013]
["P059","Hilados, tejidos, telas y otros productos textiles excepto prendas de vestir",1299.844666,"Márgenes de comercio, transporte y distribución de energía",2013]
["P060","Prendas de vestir, adobo y teñido de pieles",4593.1003719999999,"Márgenes de comercio, transporte y distribución de energía",2013]
["P061","Cuero de piel curtida o adobada y cuero artificial o regenerado y artículos de cuero",374.749661,"Márgenes de comercio, transporte y distribución de energía",2013]
["P062","Calzado y sus partes, de cualquier material y de cualquier uso",2071.154978,"Márgenes de comercio, transporte y distribución de energía",2013]
["P063","Madera aserrada y acepillada, productos de madera, corcho, paja y materiales trenzables",400.37884500000001,"Márgenes de comercio, transporte y distribución de energía",2013]
["P064","Pasta de papel y papel",1869.3426770000001,"Márgenes de comercio, transporte y distribución de energía",2013]
["P065","Envases de papel y cartón",115.555791,"Márgenes de comercio, transporte y distribución de energía",2013]
["P066","Productos de la edición",587.56168600000001,"Márgenes de comercio, transporte y distribución de energía",2013]
["P067","Productos de la impresión",401.80654700000002,"Márgenes de comercio, transporte y distribución de energía",2013]
["P068","Gasolinas, diésel oil y fuel oils",5257.7848249999997,"Márgenes de comercio, transporte y distribución de energía",2013]
["P069","Aceites, grasas lubricantes y otros aceites preparados",262.040234,"Márgenes de comercio, transporte y distribución de energía",2013]
["P070","Gases de petróleo, otros productos de la refinación de petróleo n.c.p.",2102.4743429999999,"Márgenes de comercio, transporte y distribución de energía",2013]
["P071","Abonos, fertilizantes y pesticidas",1240.6027899999999,"Márgenes de comercio, transporte y distribución de energía",2013]
["P072","Pinturas, barnices, tintas y productos relacionados",407.265376,"Márgenes de comercio, transporte y distribución de energía",2013]
["P073","Jabón, preparados de limpieza, perfumes y preparados de toilet",2735.1954089999999,"Márgenes de comercio, transporte y distribución de energía",2013]
["P074","Otros productos químicos",951.712671,"Márgenes de comercio, transporte y distribución de energía",2013]
["P075","Productos farmacéuticos",2692.2307040000001,"Márgenes de comercio, transporte y distribución de energía",2013]
["P076","Productos de caucho y plástico",2953.5752109999999,"Márgenes de comercio, transporte y distribución de energía",2013]
["P077","Vidrio y productos de vidrio",165.78006300000001,"Márgenes de comercio, transporte y distribución de energía",2013]
["P078","Productos de cerámica y arcilla",363.94996700000002,"Márgenes de comercio, transporte y distribución de energía",2013]
["P079","Cemento, cal y yeso",376.57861500000001,"Márgenes de comercio, transporte y distribución de energía",2013]
["P080","Artículos de hormigón, cemento y yeso",436.56843700000002,"Márgenes de comercio, transporte y distribución de energía",2013]
["P081","Piedras talladas para construcción y otros productos minerales no metálicos n.c.p.",97.683227000000002,"Márgenes de comercio, transporte y distribución de energía",2013]
["P082","Métales básicos de hierro y acero, productos primarios de metales preciosos y otros metales no ferrosos",981.851809,"Márgenes de comercio, transporte y distribución de energía",2013]
["P083","Productos metálicos estructurales y sus partes de hierro o de acero",294.97655099999997,"Márgenes de comercio, transporte y distribución de energía",2013]
["P084","Otros productos elaborados de metal",673.05805399999997,"Márgenes de comercio, transporte y distribución de energía",2013]
["P085","Maquinaria para usos generales y especiales, sus partes y piezas, excepto electrodomésticos",2439.9740459999998,"Márgenes de comercio, transporte y distribución de energía",2013]
["P086","Electrodomésticos y sus partes",544.013598,"Márgenes de comercio, transporte y distribución de energía",2013]
["P087","Maquinaria de oficina, contabilidad e informática, sus partes y piezas",799.39279299999998,"Márgenes de comercio, transporte y distribución de energía",2013]
["P088","Maquinaria y aparatos eléctricos, sus partes y piezas",697.98335999999995,"Márgenes de comercio, transporte y distribución de energía",2013]
["P089","Equipo y aparatos de radio, televisión y comunicaciones",3162.7613259999998,"Márgenes de comercio, transporte y distribución de energía",2013]
["P090","Aparatos médicos, instrumentos ópticos y de precisión, relojes",731.08896700000003,"Márgenes de comercio, transporte y distribución de energía",2013]
["P091","Equipo de transporte",4329.3780210000004,"Márgenes de comercio, transporte y distribución de energía",2013]
["P092","Muebles",1270.6243939999999,"Márgenes de comercio, transporte y distribución de energía",2013]
["P093","Otros artículos n.c.p.",2190.014036,"Márgenes de comercio, transporte y distribución de energía",2013]
["P094","Residuos y desechos",443.76589999999999,"Márgenes de comercio, transporte y distribución de energía",2013]
["P095","Generación y distribución de energía eléctrica, gas, vapor y aire acondicionado",1270.989538,"Márgenes de comercio, transporte y distribución de energía",2013]
["P096","Agua natural y distribución de agua natural",0,"Márgenes de comercio, transporte y distribución de energía",2013]
["P097","Evacuación de aguas residuales, recogida, tratamiento y eliminación de desechos",0,"Márgenes de comercio, transporte y distribución de energía",2013]
["P098","Edificaciones residenciales",0,"Márgenes de comercio, transporte y distribución de energía",2013]
["P099","Edificaciones no residenciales",0,"Márgenes de comercio, transporte y distribución de energía",2013]
["P100","Obras de ingeniería civil",0,"Márgenes de comercio, transporte y distribución de energía",2013]
["P101","Servicios generales y especializados de construcción",0,"Márgenes de comercio, transporte y distribución de energía",2013]
["P102","Servicios de comercio",-102043.63823,"Márgenes de comercio, transporte y distribución de energía",2013]
["P103","Mantenimiento y reparación de vehículos automotores y motocicletas",0,"Márgenes de comercio, transporte y distribución de energía",2013]
["P104","Servicio de transporte de pasajeros por vía terrestre",0,"Márgenes de comercio, transporte y distribución de energía",2013]
["P105","Servicio de transporte de carga por vía terrestre",-5476.1719009999997,"Márgenes de comercio, transporte y distribución de energía",2013]
["P106","Otros tipos de transporte",-112.623829,"Márgenes de comercio, transporte y distribución de energía",2013]
["P107","Servicios de almacenamiento y depósito",0,"Márgenes de comercio, transporte y distribución de energía",2013]
["P108","Otros servicios de apoyo al transporte",0,"Márgenes de comercio, transporte y distribución de energía",2013]
["P109","Servicios postales y de mensajería",0,"Márgenes de comercio, transporte y distribución de energía",2013]
["P110","Servicio de alojamiento",0,"Márgenes de comercio, transporte y distribución de energía",2013]
["P111","Servicio de suministro de comidas y bebidas",0,"Márgenes de comercio, transporte y distribución de energía",2013]
["P112","Servicios de información, telecomunicaciones y radiodifusión",0,"Márgenes de comercio, transporte y distribución de energía",2013]
["P113","Servicios de banco central",0,"Márgenes de comercio, transporte y distribución de energía",2013]
["P114","Otros servicios financieros y servicios de banca de inversión",0,"Márgenes de comercio, transporte y distribución de energía",2013]
["P115","Servicios de Intermediación Financiera Medidos Indirectamente (SIFMI)",0,"Márgenes de comercio, transporte y distribución de energía",2013]
["P116","Servicios de seguro, reaseguro y fondos de pensiones",0,"Márgenes de comercio, transporte y distribución de energía",2013]
["P117","Servicios auxiliares de la intermediación financiera",0,"Márgenes de comercio, transporte y distribución de energía",2013]
["P118","Servicios de alquiler de vivienda",0,"Márgenes de comercio, transporte y distribución de energía",2013]
["P119","Otros servicios inmobiliarios, excepto alquiler de vivienda",0,"Márgenes de comercio, transporte y distribución de energía",2013]
["P120","Servicios jurídicos, de contabilidad, auditoría, teneduría de libros y consultoría fiscal",0,"Márgenes de comercio, transporte y distribución de energía",2013]
["P121","Servicios de tecnología de la información",0,"Márgenes de comercio, transporte y distribución de energía",2013]
["P122","Servicios de arquitectura e ingeniería, ensayos y análisis técnicos",0,"Márgenes de comercio, transporte y distribución de energía",2013]
["P123","Otros servicios profesionales, científicos y técnicos",0,"Márgenes de comercio, transporte y distribución de energía",2013]
["P124","Servicios de publicidad y estudios de mercado",0,"Márgenes de comercio, transporte y distribución de energía",2013]
["P125","Servicios de arrendamiento o alquiler sin operador",0,"Márgenes de comercio, transporte y distribución de energía",2013]
["P126","Servicios  de agencias de empleo y de dotación de recursos humanos",0,"Márgenes de comercio, transporte y distribución de energía",2013]
["P127","Servicios de agencias de viajes, operadores turísticos y actividades conexas",0,"Márgenes de comercio, transporte y distribución de energía",2013]
["P128","Servicios de seguridad, sistemas de seguridad e investigación privada",0,"Márgenes de comercio, transporte y distribución de energía",2013]
["P129","Servicios de limpieza",0,"Márgenes de comercio, transporte y distribución de energía",2013]
["P130","Servicios telefónicos de centros de llamadas",0,"Márgenes de comercio, transporte y distribución de energía",2013]
["P131","Servicios administrativos, de apoyo de oficina y otros servicios de apoyo a las empresas",0,"Márgenes de comercio, transporte y distribución de energía",2013]
["P132","Servicios de mantenimiento, reparación e instalación de productos metálicos elaborados, maquinaria y equipo",0,"Márgenes de comercio, transporte y distribución de energía",2013]
["P133","Servicios de reparación de otros bienes",0,"Márgenes de comercio, transporte y distribución de energía",2013]
["P134","Servicios de apoyo a la agricultura, caza, silvicultura y pesca",0,"Márgenes de comercio, transporte y distribución de energía",2013]
["P135","Servicios de apoyo a la explotación de minas y canteras y los relacionados con la distribución de electricidad, gas y agua",0,"Márgenes de comercio, transporte y distribución de energía",2013]
["P136","Servicios de manufactura",0,"Márgenes de comercio, transporte y distribución de energía",2013]
["P137","Servicios públicos del gobierno general",0,"Márgenes de comercio, transporte y distribución de energía",2013]
["P138","Servicios públicos administrativos relacionados con la provisión de servicios educativos, de salud, servicios sociales, culturales y otros, sin contar los servicios de seguridad social",0,"Márgenes de comercio, transporte y distribución de energía",2013]
["P139","Otros servicios administrativos",0,"Márgenes de comercio, transporte y distribución de energía",2013]
["P140","Servicios públicos administrativos prestados a la comunidad en su conjunto",0,"Márgenes de comercio, transporte y distribución de energía",2013]
["P141","Servicios administrativos relacionados con los sistemas de seguridad social de afiliación obligatoria",0,"Márgenes de comercio, transporte y distribución de energía",2013]
["P142","Servicios de enseñanza",0,"Márgenes de comercio, transporte y distribución de energía",2013]
["P143","Servicios de hospitalización",0,"Márgenes de comercio, transporte y distribución de energía",2013]
["P144","Servicios médicos y dentales",0,"Márgenes de comercio, transporte y distribución de energía",2013]
["P145","Otros servicios de atención de la salud humana",0,"Márgenes de comercio, transporte y distribución de energía",2013]
["P146","Servicios audiovisuales, recreativos, culturales y deportivos",0,"Márgenes de comercio, transporte y distribución de energía",2013]
["P147","Servicios de asociaciones que sirven a las empresas",0,"Márgenes de comercio, transporte y distribución de energía",2013]
["P148","Servicios de asociaciones que sirven a los hogares",0,"Márgenes de comercio, transporte y distribución de energía",2013]
["P149","Otros servicios",0,"Márgenes de comercio, transporte y distribución de energía",2013]
["P150","Servicios domésticos",0,"Márgenes de comercio, transporte y distribución de energía",2013]
["P151","Compras directas en el exterior por residentes",0,"Márgenes de comercio, transporte y distribución de energía",2013]
["P152","Compras directas en el territorio nacional por no residentes",0,"Márgenes de comercio, transporte y distribución de energía",2013]
["P001","Maíz",3302.630165,"Consumo Intermedio (PC)",2013]
["P002","Frijoles",305.28478999999999,"Consumo Intermedio (PC)",2013]
["P003","Leguminosas (legumbres secas) y semillas oleaginosas",426.52202899999997,"Consumo Intermedio (PC)",2013]
["P004","Arroz",427.979332,"Consumo Intermedio (PC)",2013]
["P005","Otros cereales",1385.401973,"Consumo Intermedio (PC)",2013]
["P006","Hortalizas",1207.865438,"Consumo Intermedio (PC)",2013]
["P007","Sandías y melones",17.448602000000001,"Consumo Intermedio (PC)",2013]
["P008","Ejotes y arvejas",53.838920000000002,"Consumo Intermedio (PC)",2013]
["P009","Raíces y tubérculos",555.70433200000002,"Consumo Intermedio (PC)",2013]
["P010","Caña de azúcar y otras plantas azucareras",6593.2944040000002,"Consumo Intermedio (PC)",2013]
["P011","Tabaco y otras plantas no perennes",1384.1577749999999,"Consumo Intermedio (PC)",2013]
["P012","Bananos, plátanos y otros",131.43719999999999,"Consumo Intermedio (PC)",2013]
["P013","Frutas tropicales y subtropicales",222.11612099999999,"Consumo Intermedio (PC)",2013]
["P014","Berries, otras frutas y semillas de frutas",426.55709000000002,"Consumo Intermedio (PC)",2013]
["P015","Palma africana",1841.1248189999999,"Consumo Intermedio (PC)",2013]
["P016","Café en grano",4292.2164830000002,"Consumo Intermedio (PC)",2013]
["P017","Cardamomo",769.66113700000005,"Consumo Intermedio (PC)",2013]
["P018","Caucho natural",1171.970982,"Consumo Intermedio (PC)",2013]
["P019","Propagación de plantas",357.93937,"Consumo Intermedio (PC)",2013]
["P020","Otros frutos oleaginosos, otras plantas bebestibles y especias aromáticas",124.390854,"Consumo Intermedio (PC)",2013]
["P021","Ganado bovino",4220.8995020000002,"Consumo Intermedio (PC)",2013]
["P022","Ganado porcino y otro tipo de animales vivos n.c.p.",1267.1358540000001,"Consumo Intermedio (PC)",2013]
["P023","Aves de corral",6295.0044239999997,"Consumo Intermedio (PC)",2013]
["P024","Leche cruda",1239.485308,"Consumo Intermedio (PC)",2013]
["P025","Huevos",430.14805999999999,"Consumo Intermedio (PC)",2013]
["P026","Otros productos de animales vivos",48.696300999999998,"Consumo Intermedio (PC)",2013]
["P027","Troncos de madera y leña",1718.5348100000001,"Consumo Intermedio (PC)",2013]
["P028","Productos forestales no madereros",10.280756999999999,"Consumo Intermedio (PC)",2013]
["P029","Peces vivos, frescos o refrigerados",39.777082999999998,"Consumo Intermedio (PC)",2013]
["P030","Crustáceos sin congelar y otros productos de la pesca",371.80134399999997,"Consumo Intermedio (PC)",2013]
["P031","Petróleo crudo y gas natural",284.77505200000002,"Consumo Intermedio (PC)",2013]
["P032","Minerales metálicos",17.414044000000001,"Consumo Intermedio (PC)",2013]
["P033","Minerales no metálicos",2991.85617,"Consumo Intermedio (PC)",2013]
["P034","Carne y despojos comestibles de ganado bovino; cueros y pieles de bovino y de otros animales",1763.3252709999999,"Consumo Intermedio (PC)",2013]
["P035","Carne y despojos comestibles de ganado porcino",857.221183,"Consumo Intermedio (PC)",2013]
["P036","Carne y despojos comestibles de aves",1879.0866659999999,"Consumo Intermedio (PC)",2013]
["P037","Carne y despojos de otros animales y conservas y preparados de carne",1103.633977,"Consumo Intermedio (PC)",2013]
["P038","Pescado congelado, preparado o en conserva y sus productos",503.91142600000001,"Consumo Intermedio (PC)",2013]
["P039","Crustáceos, moluscos y demás invertebrados acuáticos congelados, preparados o en conserva y sus productos",364.75945300000001,"Consumo Intermedio (PC)",2013]
["P040","Vegetales preparados o en conserva, legumbres y papas",484.15537599999999,"Consumo Intermedio (PC)",2013]
["P041","Preparaciones y conservas de frutas y nueces",325.14256899999998,"Consumo Intermedio (PC)",2013]
["P042","Jugos de frutas",183.41471799999999,"Consumo Intermedio (PC)",2013]
["P043","Aceites de origen vegetal",1736.379492,"Consumo Intermedio (PC)",2013]
["P044","Margarina, grasas y otros aceites de origen animal y vegetal",2132.2624980000001,"Consumo Intermedio (PC)",2013]
["P045","Leche líquida y crema procesada",240.35553400000001,"Consumo Intermedio (PC)",2013]
["P046","Otros productos lácteos n.c.p.",629.99971900000003,"Consumo Intermedio (PC)",2013]
["P047","Harina de trigo",2610.2461170000001,"Consumo Intermedio (PC)",2013]
["P048","Arroz sin cáscara",163.10193100000001,"Consumo Intermedio (PC)",2013]
["P049","Otros productos de molinería, almidones y productos de almidón",881.96022500000004,"Consumo Intermedio (PC)",2013]
["P050","Pan y otros productos de panadería y repostería n.c.p.",804.38485500000002,"Consumo Intermedio (PC)",2013]
["P051","Tortillas de maíz, incluso tostadas, horneadas o fritas",319.34743400000002,"Consumo Intermedio (PC)",2013]
["P052","Azúcar de caña sin refinar y refinada, melaza y los demás azúcares n.c.p.",2870.3793679999999,"Consumo Intermedio (PC)",2013]
["P053","Productos alimenticios n.c.p.",3277.3014330000001,"Consumo Intermedio (PC)",2013]
["P054","Preparados para alimentación animal",5970.9760509999996,"Consumo Intermedio (PC)",2013]
["P055","Aguardientes, licores, vinos, demás bebidas espirituosas y productos del tabaco",504.562926,"Consumo Intermedio (PC)",2013]
["P056","Malta y cerveza de malta",354.127657,"Consumo Intermedio (PC)",2013]
["P057","Bebidas no alcohólicas",554.61243400000001,"Consumo Intermedio (PC)",2013]
["P058","Aguas minerales y otras aguas embotelladas",290.31964699999997,"Consumo Intermedio (PC)",2013]
["P059","Hilados, tejidos, telas y otros productos textiles excepto prendas de vestir",4141.3687520000003,"Consumo Intermedio (PC)",2013]
["P060","Prendas de vestir, adobo y teñido de pieles",853.73295800000005,"Consumo Intermedio (PC)",2013]
["P061","Cuero de piel curtida o adobada y cuero artificial o regenerado y artículos de cuero",793.69217600000002,"Consumo Intermedio (PC)",2013]
["P062","Calzado y sus partes, de cualquier material y de cualquier uso",147.291087,"Consumo Intermedio (PC)",2013]
["P063","Madera aserrada y acepillada, productos de madera, corcho, paja y materiales trenzables",3494.6243850000001,"Consumo Intermedio (PC)",2013]
["P064","Pasta de papel y papel",4433.8557689999998,"Consumo Intermedio (PC)",2013]
["P065","Envases de papel y cartón",2186.9897030000002,"Consumo Intermedio (PC)",2013]
["P066","Productos de la edición",686.26559899999995,"Consumo Intermedio (PC)",2013]
["P067","Productos de la impresión",1796.912288,"Consumo Intermedio (PC)",2013]
["P068","Gasolinas, diésel oil y fuel oils",17099.603511000001,"Consumo Intermedio (PC)",2013]
["P069","Aceites, grasas lubricantes y otros aceites preparados",1091.3462039999999,"Consumo Intermedio (PC)",2013]
["P070","Gases de petróleo, otros productos de la refinación de petróleo n.c.p.",1674.090185,"Consumo Intermedio (PC)",2013]
["P071","Abonos, fertilizantes y pesticidas",7996.8773069999997,"Consumo Intermedio (PC)",2013]
["P072","Pinturas, barnices, tintas y productos relacionados",1792.135745,"Consumo Intermedio (PC)",2013]
["P073","Jabón, preparados de limpieza, perfumes y preparados de toilet",1005.996788,"Consumo Intermedio (PC)",2013]
["P074","Otros productos químicos",9996.4394769999999,"Consumo Intermedio (PC)",2013]
["P075","Productos farmacéuticos",1365.632899,"Consumo Intermedio (PC)",2013]
["P076","Productos de caucho y plástico",9484.0102599999991,"Consumo Intermedio (PC)",2013]
["P077","Vidrio y productos de vidrio",857.51723500000003,"Consumo Intermedio (PC)",2013]
["P078","Productos de cerámica y arcilla",1477.9366829999999,"Consumo Intermedio (PC)",2013]
["P079","Cemento, cal y yeso",4781.1484979999996,"Consumo Intermedio (PC)",2013]
["P080","Artículos de hormigón, cemento y yeso",2698.8422150000001,"Consumo Intermedio (PC)",2013]
["P081","Piedras talladas para construcción y otros productos minerales no metálicos n.c.p.",781.99409100000003,"Consumo Intermedio (PC)",2013]
["P082","Métales básicos de hierro y acero, productos primarios de metales preciosos y otros metales no ferrosos",9680.7801569999992,"Consumo Intermedio (PC)",2013]
["P083","Productos metálicos estructurales y sus partes de hierro o de acero",1333.600457,"Consumo Intermedio (PC)",2013]
["P084","Otros productos elaborados de metal",3895.7063720000001,"Consumo Intermedio (PC)",2013]
["P085","Maquinaria para usos generales y especiales, sus partes y piezas, excepto electrodomésticos",4488.9165389999998,"Consumo Intermedio (PC)",2013]
["P086","Electrodomésticos y sus partes",61.542332999999999,"Consumo Intermedio (PC)",2013]
["P087","Maquinaria de oficina, contabilidad e informática, sus partes y piezas",377.85200300000002,"Consumo Intermedio (PC)",2013]
["P088","Maquinaria y aparatos eléctricos, sus partes y piezas",2809.599514,"Consumo Intermedio (PC)",2013]
["P089","Equipo y aparatos de radio, televisión y comunicaciones",807.81365000000005,"Consumo Intermedio (PC)",2013]
["P090","Aparatos médicos, instrumentos ópticos y de precisión, relojes",543.93845499999998,"Consumo Intermedio (PC)",2013]
["P091","Equipo de transporte",1472.6116050000001,"Consumo Intermedio (PC)",2013]
["P092","Muebles",136.410965,"Consumo Intermedio (PC)",2013]
["P093","Otros artículos n.c.p.",1304.6857869999999,"Consumo Intermedio (PC)",2013]
["P094","Residuos y desechos",1698.8376370000001,"Consumo Intermedio (PC)",2013]
["P095","Generación y distribución de energía eléctrica, gas, vapor y aire acondicionado",9873.1169890000001,"Consumo Intermedio (PC)",2013]
["P096","Agua natural y distribución de agua natural",2271.5849950000002,"Consumo Intermedio (PC)",2013]
["P097","Evacuación de aguas residuales, recogida, tratamiento y eliminación de desechos",284.26827400000002,"Consumo Intermedio (PC)",2013]
["P098","Edificaciones residenciales",0,"Consumo Intermedio (PC)",2013]
["P099","Edificaciones no residenciales",0,"Consumo Intermedio (PC)",2013]
["P100","Obras de ingeniería civil",0,"Consumo Intermedio (PC)",2013]
["P101","Servicios generales y especializados de construcción",9946.4334980000003,"Consumo Intermedio (PC)",2013]
["P102","Servicios de comercio",0,"Consumo Intermedio (PC)",2013]
["P103","Mantenimiento y reparación de vehículos automotores y motocicletas",2572.1435070000002,"Consumo Intermedio (PC)",2013]
["P104","Servicio de transporte de pasajeros por vía terrestre",279.12965100000002,"Consumo Intermedio (PC)",2013]
["P105","Servicio de transporte de carga por vía terrestre",5215.2420169999996,"Consumo Intermedio (PC)",2013]
["P106","Otros tipos de transporte",679.37323000000004,"Consumo Intermedio (PC)",2013]
["P107","Servicios de almacenamiento y depósito",258.06286999999998,"Consumo Intermedio (PC)",2013]
["P108","Otros servicios de apoyo al transporte",2578.3930129999999,"Consumo Intermedio (PC)",2013]
["P109","Servicios postales y de mensajería",841.84525900000006,"Consumo Intermedio (PC)",2013]
["P110","Servicio de alojamiento",1069.9541610000001,"Consumo Intermedio (PC)",2013]
["P111","Servicio de suministro de comidas y bebidas",1836.8247899999999,"Consumo Intermedio (PC)",2013]
["P112","Servicios de información, telecomunicaciones y radiodifusión",8417.3958340000008,"Consumo Intermedio (PC)",2013]
["P113","Servicios de banco central",0,"Consumo Intermedio (PC)",2013]
["P114","Otros servicios financieros y servicios de banca de inversión",2033.619336,"Consumo Intermedio (PC)",2013]
["P115","Servicios de Intermediación Financiera Medidos Indirectamente (SIFMI)",5495.1824550000001,"Consumo Intermedio (PC)",2013]
["P116","Servicios de seguro, reaseguro y fondos de pensiones",3204.227136,"Consumo Intermedio (PC)",2013]
["P117","Servicios auxiliares de la intermediación financiera",2402.2160669999998,"Consumo Intermedio (PC)",2013]
["P118","Servicios de alquiler de vivienda",0,"Consumo Intermedio (PC)",2013]
["P119","Otros servicios inmobiliarios, excepto alquiler de vivienda",10910.989388,"Consumo Intermedio (PC)",2013]
["P120","Servicios jurídicos, de contabilidad, auditoría, teneduría de libros y consultoría fiscal",3722.7721139999999,"Consumo Intermedio (PC)",2013]
["P121","Servicios de tecnología de la información",1720.3694170000001,"Consumo Intermedio (PC)",2013]
["P122","Servicios de arquitectura e ingeniería, ensayos y análisis técnicos",2243.4676589999999,"Consumo Intermedio (PC)",2013]
["P123","Otros servicios profesionales, científicos y técnicos",6757.2265639999996,"Consumo Intermedio (PC)",2013]
["P124","Servicios de publicidad y estudios de mercado",4614.3178870000002,"Consumo Intermedio (PC)",2013]
["P125","Servicios de arrendamiento o alquiler sin operador",5310.0679520000003,"Consumo Intermedio (PC)",2013]
["P126","Servicios  de agencias de empleo y de dotación de recursos humanos",5986.0133660000001,"Consumo Intermedio (PC)",2013]
["P127","Servicios de agencias de viajes, operadores turísticos y actividades conexas",45.653095,"Consumo Intermedio (PC)",2013]
["P128","Servicios de seguridad, sistemas de seguridad e investigación privada",3200.0519479999998,"Consumo Intermedio (PC)",2013]
["P129","Servicios de limpieza",1009.028633,"Consumo Intermedio (PC)",2013]
["P130","Servicios telefónicos de centros de llamadas",363.59601700000002,"Consumo Intermedio (PC)",2013]
["P131","Servicios administrativos, de apoyo de oficina y otros servicios de apoyo a las empresas",1965.0660290000001,"Consumo Intermedio (PC)",2013]
["P132","Servicios de mantenimiento, reparación e instalación de productos metálicos elaborados, maquinaria y equipo",3740.4544860000001,"Consumo Intermedio (PC)",2013]
["P133","Servicios de reparación de otros bienes",566.61452299999996,"Consumo Intermedio (PC)",2013]
["P134","Servicios de apoyo a la agricultura, caza, silvicultura y pesca",3077.1488749999999,"Consumo Intermedio (PC)",2013]
["P135","Servicios de apoyo a la explotación de minas y canteras y los relacionados con la distribución de electricidad, gas y agua",381.873379,"Consumo Intermedio (PC)",2013]
["P136","Servicios de manufactura",2178.594529,"Consumo Intermedio (PC)",2013]
["P137","Servicios públicos del gobierno general",0,"Consumo Intermedio (PC)",2013]
["P138","Servicios públicos administrativos relacionados con la provisión de servicios educativos, de salud, servicios sociales, culturales y otros, sin contar los servicios de seguridad social",0,"Consumo Intermedio (PC)",2013]
["P139","Otros servicios administrativos",0,"Consumo Intermedio (PC)",2013]
["P140","Servicios públicos administrativos prestados a la comunidad en su conjunto",0,"Consumo Intermedio (PC)",2013]
["P141","Servicios administrativos relacionados con los sistemas de seguridad social de afiliación obligatoria",0,"Consumo Intermedio (PC)",2013]
["P142","Servicios de enseñanza",280.94424500000002,"Consumo Intermedio (PC)",2013]
["P143","Servicios de hospitalización",0,"Consumo Intermedio (PC)",2013]
["P144","Servicios médicos y dentales",311.56440900000001,"Consumo Intermedio (PC)",2013]
["P145","Otros servicios de atención de la salud humana",444.89751799999999,"Consumo Intermedio (PC)",2013]
["P146","Servicios audiovisuales, recreativos, culturales y deportivos",374.347936,"Consumo Intermedio (PC)",2013]
["P147","Servicios de asociaciones que sirven a las empresas",267.96163100000001,"Consumo Intermedio (PC)",2013]
["P148","Servicios de asociaciones que sirven a los hogares",0,"Consumo Intermedio (PC)",2013]
["P149","Otros servicios",43.340018000000001,"Consumo Intermedio (PC)",2013]
["P150","Servicios domésticos",0,"Consumo Intermedio (PC)",2013]
["P151","Compras directas en el exterior por residentes",164.10663299999999,"Consumo Intermedio (PC)",2013]
["P152","Compras directas en el territorio nacional por no residentes",0,"Consumo Intermedio (PC)",2013]
["P001","Maíz",4580.0363850000003,"Consumo Final privado (PC)",2013]
["P002","Frijoles",2117.6374190000001,"Consumo Final privado (PC)",2013]
["P003","Leguminosas (legumbres secas) y semillas oleaginosas",164.29319899999999,"Consumo Final privado (PC)",2013]
["P004","Arroz",0,"Consumo Final privado (PC)",2013]
["P005","Otros cereales",127.436216,"Consumo Final privado (PC)",2013]
["P006","Hortalizas",14860.204252,"Consumo Final privado (PC)",2013]
["P007","Sandías y melones",374.38212099999998,"Consumo Final privado (PC)",2013]
["P008","Ejotes y arvejas",228.80353099999999,"Consumo Final privado (PC)",2013]
["P009","Raíces y tubérculos",4986.0816569999997,"Consumo Final privado (PC)",2013]
["P010","Caña de azúcar y otras plantas azucareras",3.292611,"Consumo Final privado (PC)",2013]
["P011","Tabaco y otras plantas no perennes",306.25078999999999,"Consumo Final privado (PC)",2013]
["P012","Bananos, plátanos y otros",3328.6775560000001,"Consumo Final privado (PC)",2013]
["P013","Frutas tropicales y subtropicales",3735.6494109999999,"Consumo Final privado (PC)",2013]
["P014","Berries, otras frutas y semillas de frutas",4076.613934,"Consumo Final privado (PC)",2013]
["P015","Palma africana",0,"Consumo Final privado (PC)",2013]
["P016","Café en grano",0,"Consumo Final privado (PC)",2013]
["P017","Cardamomo",0,"Consumo Final privado (PC)",2013]
["P018","Caucho natural",0,"Consumo Final privado (PC)",2013]
["P019","Propagación de plantas",51.298934000000003,"Consumo Final privado (PC)",2013]
["P020","Otros frutos oleaginosos, otras plantas bebestibles y especias aromáticas",267.95844199999999,"Consumo Final privado (PC)",2013]
["P021","Ganado bovino",0,"Consumo Final privado (PC)",2013]
["P022","Ganado porcino y otro tipo de animales vivos n.c.p.",162.81188599999999,"Consumo Final privado (PC)",2013]
["P023","Aves de corral",516.718211,"Consumo Final privado (PC)",2013]
["P024","Leche cruda",693.662733,"Consumo Final privado (PC)",2013]
["P025","Huevos",3789.02576,"Consumo Final privado (PC)",2013]
["P026","Otros productos de animales vivos",36.380946999999999,"Consumo Final privado (PC)",2013]
["P027","Troncos de madera y leña",3230.239771,"Consumo Final privado (PC)",2013]
["P028","Productos forestales no madereros",112.413083,"Consumo Final privado (PC)",2013]
["P029","Peces vivos, frescos o refrigerados",1369.089381,"Consumo Final privado (PC)",2013]
["P030","Crustáceos sin congelar y otros productos de la pesca",445.152286,"Consumo Final privado (PC)",2013]
["P031","Petróleo crudo y gas natural",0,"Consumo Final privado (PC)",2013]
["P032","Minerales metálicos",0,"Consumo Final privado (PC)",2013]
["P033","Minerales no metálicos",244.02203399999999,"Consumo Final privado (PC)",2013]
["P034","Carne y despojos comestibles de ganado bovino; cueros y pieles de bovino y de otros animales",8906.6680359999991,"Consumo Final privado (PC)",2013]
["P035","Carne y despojos comestibles de ganado porcino",939.48082599999998,"Consumo Final privado (PC)",2013]
["P036","Carne y despojos comestibles de aves",8789.8556069999995,"Consumo Final privado (PC)",2013]
["P037","Carne y despojos de otros animales y conservas y preparados de carne",2712.5791279999999,"Consumo Final privado (PC)",2013]
["P038","Pescado congelado, preparado o en conserva y sus productos",195.53596999999999,"Consumo Final privado (PC)",2013]
["P039","Crustáceos, moluscos y demás invertebrados acuáticos congelados, preparados o en conserva y sus productos",55.868673999999999,"Consumo Final privado (PC)",2013]
["P040","Vegetales preparados o en conserva, legumbres y papas",856.89015199999994,"Consumo Final privado (PC)",2013]
["P041","Preparaciones y conservas de frutas y nueces",799.299667,"Consumo Final privado (PC)",2013]
["P042","Jugos de frutas",1429.4034320000001,"Consumo Final privado (PC)",2013]
["P043","Aceites de origen vegetal",2435.21164,"Consumo Final privado (PC)",2013]
["P044","Margarina, grasas y otros aceites de origen animal y vegetal",794.01454699999999,"Consumo Final privado (PC)",2013]
["P045","Leche líquida y crema procesada",1662.472552,"Consumo Final privado (PC)",2013]
["P046","Otros productos lácteos n.c.p.",3587.6339379999999,"Consumo Final privado (PC)",2013]
["P047","Harina de trigo",77.487502000000006,"Consumo Final privado (PC)",2013]
["P048","Arroz sin cáscara",746.14014399999996,"Consumo Final privado (PC)",2013]
["P049","Otros productos de molinería, almidones y productos de almidón",1889.897937,"Consumo Final privado (PC)",2013]
["P050","Pan y otros productos de panadería y repostería n.c.p.",7766.1175620000004,"Consumo Final privado (PC)",2013]
["P051","Tortillas de maíz, incluso tostadas, horneadas o fritas",5418.7530710000001,"Consumo Final privado (PC)",2013]
["P052","Azúcar de caña sin refinar y refinada, melaza y los demás azúcares n.c.p.",4726.3915559999996,"Consumo Final privado (PC)",2013]
["P053","Productos alimenticios n.c.p.",10125.812862000001,"Consumo Final privado (PC)",2013]
["P054","Preparados para alimentación animal",477.96691700000002,"Consumo Final privado (PC)",2013]
["P055","Aguardientes, licores, vinos, demás bebidas espirituosas y productos del tabaco",1997.0936380000001,"Consumo Final privado (PC)",2013]
["P056","Malta y cerveza de malta",2706.552072,"Consumo Final privado (PC)",2013]
["P057","Bebidas no alcohólicas",10563.569437,"Consumo Final privado (PC)",2013]
["P058","Aguas minerales y otras aguas embotelladas",1278.0932,"Consumo Final privado (PC)",2013]
["P059","Hilados, tejidos, telas y otros productos textiles excepto prendas de vestir",2748.8714249999998,"Consumo Final privado (PC)",2013]
["P060","Prendas de vestir, adobo y teñido de pieles",10672.764348000001,"Consumo Final privado (PC)",2013]
["P061","Cuero de piel curtida o adobada y cuero artificial o regenerado y artículos de cuero",1048.6364470000001,"Consumo Final privado (PC)",2013]
["P062","Calzado y sus partes, de cualquier material y de cualquier uso",4549.2620239999997,"Consumo Final privado (PC)",2013]
["P063","Madera aserrada y acepillada, productos de madera, corcho, paja y materiales trenzables",52.229622999999997,"Consumo Final privado (PC)",2013]
["P064","Pasta de papel y papel",3221.1308399999998,"Consumo Final privado (PC)",2013]
["P065","Envases de papel y cartón",7.8735759999999999,"Consumo Final privado (PC)",2013]
["P066","Productos de la edición",1991.1922549999999,"Consumo Final privado (PC)",2013]
["P067","Productos de la impresión",344.17902400000003,"Consumo Final privado (PC)",2013]
["P068","Gasolinas, diésel oil y fuel oils",11094.888241000001,"Consumo Final privado (PC)",2013]
["P069","Aceites, grasas lubricantes y otros aceites preparados",69.019508000000002,"Consumo Final privado (PC)",2013]
["P070","Gases de petróleo, otros productos de la refinación de petróleo n.c.p.",2754.4595079999999,"Consumo Final privado (PC)",2013]
["P071","Abonos, fertilizantes y pesticidas",15.046182,"Consumo Final privado (PC)",2013]
["P072","Pinturas, barnices, tintas y productos relacionados",149.07975200000001,"Consumo Final privado (PC)",2013]
["P073","Jabón, preparados de limpieza, perfumes y preparados de toilet",7177.7238539999998,"Consumo Final privado (PC)",2013]
["P074","Otros productos químicos",981.92425000000003,"Consumo Final privado (PC)",2013]
["P075","Productos farmacéuticos",5616.2588589999996,"Consumo Final privado (PC)",2013]
["P076","Productos de caucho y plástico",4847.9629340000001,"Consumo Final privado (PC)",2013]
["P077","Vidrio y productos de vidrio",148.97877299999999,"Consumo Final privado (PC)",2013]
["P078","Productos de cerámica y arcilla",331.93237699999997,"Consumo Final privado (PC)",2013]
["P079","Cemento, cal y yeso",68.436572999999996,"Consumo Final privado (PC)",2013]
["P080","Artículos de hormigón, cemento y yeso",5.0855999999999998E-2,"Consumo Final privado (PC)",2013]
["P081","Piedras talladas para construcción y otros productos minerales no metálicos n.c.p.",46.829255000000003,"Consumo Final privado (PC)",2013]
["P082","Métales básicos de hierro y acero, productos primarios de metales preciosos y otros metales no ferrosos",2.5669420000000001,"Consumo Final privado (PC)",2013]
["P083","Productos metálicos estructurales y sus partes de hierro o de acero",845.55085799999995,"Consumo Final privado (PC)",2013]
["P084","Otros productos elaborados de metal",952.081231,"Consumo Final privado (PC)",2013]
["P085","Maquinaria para usos generales y especiales, sus partes y piezas, excepto electrodomésticos",113.100556,"Consumo Final privado (PC)",2013]
["P086","Electrodomésticos y sus partes",1403.7453390000001,"Consumo Final privado (PC)",2013]
["P087","Maquinaria de oficina, contabilidad e informática, sus partes y piezas",688.19171700000004,"Consumo Final privado (PC)",2013]
["P088","Maquinaria y aparatos eléctricos, sus partes y piezas",329.69521900000001,"Consumo Final privado (PC)",2013]
["P089","Equipo y aparatos de radio, televisión y comunicaciones",7444.0726510000004,"Consumo Final privado (PC)",2013]
["P090","Aparatos médicos, instrumentos ópticos y de precisión, relojes",341.72719699999999,"Consumo Final privado (PC)",2013]
["P091","Equipo de transporte",5464.0983390000001,"Consumo Final privado (PC)",2013]
["P092","Muebles",3661.8433599999998,"Consumo Final privado (PC)",2013]
["P093","Otros artículos n.c.p.",3445.576943,"Consumo Final privado (PC)",2013]
["P094","Residuos y desechos",0,"Consumo Final privado (PC)",2013]
["P095","Generación y distribución de energía eléctrica, gas, vapor y aire acondicionado",4821.5521840000001,"Consumo Final privado (PC)",2013]
["P096","Agua natural y distribución de agua natural",1214.8438430000001,"Consumo Final privado (PC)",2013]
["P097","Evacuación de aguas residuales, recogida, tratamiento y eliminación de desechos",458.79794600000002,"Consumo Final privado (PC)",2013]
["P098","Edificaciones residenciales",0,"Consumo Final privado (PC)",2013]
["P099","Edificaciones no residenciales",0,"Consumo Final privado (PC)",2013]
["P100","Obras de ingeniería civil",0,"Consumo Final privado (PC)",2013]
["P101","Servicios generales y especializados de construcción",111.938647,"Consumo Final privado (PC)",2013]
["P102","Servicios de comercio",0,"Consumo Final privado (PC)",2013]
["P103","Mantenimiento y reparación de vehículos automotores y motocicletas",5973.3520079999998,"Consumo Final privado (PC)",2013]
["P104","Servicio de transporte de pasajeros por vía terrestre",5495.7605450000001,"Consumo Final privado (PC)",2013]
["P105","Servicio de transporte de carga por vía terrestre",20.472123,"Consumo Final privado (PC)",2013]
["P106","Otros tipos de transporte",1602.6643750000001,"Consumo Final privado (PC)",2013]
["P107","Servicios de almacenamiento y depósito",0,"Consumo Final privado (PC)",2013]
["P108","Otros servicios de apoyo al transporte",1837.8987529999999,"Consumo Final privado (PC)",2013]
["P109","Servicios postales y de mensajería",356.78755999999998,"Consumo Final privado (PC)",2013]
["P110","Servicio de alojamiento",976.72902299999998,"Consumo Final privado (PC)",2013]
["P111","Servicio de suministro de comidas y bebidas",25812.828266,"Consumo Final privado (PC)",2013]
["P112","Servicios de información, telecomunicaciones y radiodifusión",15072.731206,"Consumo Final privado (PC)",2013]
["P113","Servicios de banco central",0,"Consumo Final privado (PC)",2013]
["P114","Otros servicios financieros y servicios de banca de inversión",523.32619899999997,"Consumo Final privado (PC)",2013]
["P115","Servicios de Intermediación Financiera Medidos Indirectamente (SIFMI)",9102.6120169999995,"Consumo Final privado (PC)",2013]
["P116","Servicios de seguro, reaseguro y fondos de pensiones",1944.7727990000001,"Consumo Final privado (PC)",2013]
["P117","Servicios auxiliares de la intermediación financiera",1958.408463,"Consumo Final privado (PC)",2013]
["P118","Servicios de alquiler de vivienda",30475.175856999998,"Consumo Final privado (PC)",2013]
["P119","Otros servicios inmobiliarios, excepto alquiler de vivienda",30.712824000000001,"Consumo Final privado (PC)",2013]
["P120","Servicios jurídicos, de contabilidad, auditoría, teneduría de libros y consultoría fiscal",160.98744199999999,"Consumo Final privado (PC)",2013]
["P121","Servicios de tecnología de la información",0,"Consumo Final privado (PC)",2013]
["P122","Servicios de arquitectura e ingeniería, ensayos y análisis técnicos",91.264487000000003,"Consumo Final privado (PC)",2013]
["P123","Otros servicios profesionales, científicos y técnicos",137.26128199999999,"Consumo Final privado (PC)",2013]
["P124","Servicios de publicidad y estudios de mercado",2.848859,"Consumo Final privado (PC)",2013]
["P125","Servicios de arrendamiento o alquiler sin operador",356.66453799999999,"Consumo Final privado (PC)",2013]
["P126","Servicios  de agencias de empleo y de dotación de recursos humanos",0,"Consumo Final privado (PC)",2013]
["P127","Servicios de agencias de viajes, operadores turísticos y actividades conexas",234.14757599999999,"Consumo Final privado (PC)",2013]
["P128","Servicios de seguridad, sistemas de seguridad e investigación privada",276.53748400000001,"Consumo Final privado (PC)",2013]
["P129","Servicios de limpieza",29.183098000000001,"Consumo Final privado (PC)",2013]
["P130","Servicios telefónicos de centros de llamadas",0,"Consumo Final privado (PC)",2013]
["P131","Servicios administrativos, de apoyo de oficina y otros servicios de apoyo a las empresas",280.55201899999997,"Consumo Final privado (PC)",2013]
["P132","Servicios de mantenimiento, reparación e instalación de productos metálicos elaborados, maquinaria y equipo",1.113294,"Consumo Final privado (PC)",2013]
["P133","Servicios de reparación de otros bienes",706.27303900000004,"Consumo Final privado (PC)",2013]
["P134","Servicios de apoyo a la agricultura, caza, silvicultura y pesca",0,"Consumo Final privado (PC)",2013]
["P135","Servicios de apoyo a la explotación de minas y canteras y los relacionados con la distribución de electricidad, gas y agua",0,"Consumo Final privado (PC)",2013]
["P136","Servicios de manufactura",1029.0241820000001,"Consumo Final privado (PC)",2013]
["P137","Servicios públicos del gobierno general",506.43812000000003,"Consumo Final privado (PC)",2013]
["P138","Servicios públicos administrativos relacionados con la provisión de servicios educativos, de salud, servicios sociales, culturales y otros, sin contar los servicios de seguridad social",0.435778,"Consumo Final privado (PC)",2013]
["P139","Otros servicios administrativos",22.571999000000002,"Consumo Final privado (PC)",2013]
["P140","Servicios públicos administrativos prestados a la comunidad en su conjunto",494.05180100000001,"Consumo Final privado (PC)",2013]
["P141","Servicios administrativos relacionados con los sistemas de seguridad social de afiliación obligatoria",0.214003,"Consumo Final privado (PC)",2013]
["P142","Servicios de enseñanza",7968.1107819999997,"Consumo Final privado (PC)",2013]
["P143","Servicios de hospitalización",1710.9323999999999,"Consumo Final privado (PC)",2013]
["P144","Servicios médicos y dentales",3574.000196,"Consumo Final privado (PC)",2013]
["P145","Otros servicios de atención de la salud humana",2102.7410839999998,"Consumo Final privado (PC)",2013]
["P146","Servicios audiovisuales, recreativos, culturales y deportivos",1925.955999,"Consumo Final privado (PC)",2013]
["P147","Servicios de asociaciones que sirven a las empresas",0,"Consumo Final privado (PC)",2013]
["P148","Servicios de asociaciones que sirven a los hogares",1925.973125,"Consumo Final privado (PC)",2013]
["P149","Otros servicios",7714.6922720000002,"Consumo Final privado (PC)",2013]
["P150","Servicios domésticos",7294.099819,"Consumo Final privado (PC)",2013]
["P151","Compras directas en el exterior por residentes",6121.9131239999997,"Consumo Final privado (PC)",2013]
["P152","Compras directas en el territorio nacional por no residentes",-9586.7075839999998,"Consumo Final privado (PC)",2013]
["P001","Maíz",0,"Consumo Final del Gobierno (PC)",2013]
["P002","Frijoles",49.528613999999997,"Consumo Final del Gobierno (PC)",2013]
["P003","Leguminosas (legumbres secas) y semillas oleaginosas",0,"Consumo Final del Gobierno (PC)",2013]
["P004","Arroz",0,"Consumo Final del Gobierno (PC)",2013]
["P005","Otros cereales",0,"Consumo Final del Gobierno (PC)",2013]
["P006","Hortalizas",0.103604,"Consumo Final del Gobierno (PC)",2013]
["P007","Sandías y melones",0,"Consumo Final del Gobierno (PC)",2013]
["P008","Ejotes y arvejas",0,"Consumo Final del Gobierno (PC)",2013]
["P009","Raíces y tubérculos",0,"Consumo Final del Gobierno (PC)",2013]
["P010","Caña de azúcar y otras plantas azucareras",0,"Consumo Final del Gobierno (PC)",2013]
["P011","Tabaco y otras plantas no perennes",4.6038870000000003,"Consumo Final del Gobierno (PC)",2013]
["P012","Bananos, plátanos y otros",0,"Consumo Final del Gobierno (PC)",2013]
["P013","Frutas tropicales y subtropicales",0,"Consumo Final del Gobierno (PC)",2013]
["P014","Berries, otras frutas y semillas de frutas",2.7455E-2,"Consumo Final del Gobierno (PC)",2013]
["P015","Palma africana",0,"Consumo Final del Gobierno (PC)",2013]
["P016","Café en grano",0,"Consumo Final del Gobierno (PC)",2013]
["P017","Cardamomo",0,"Consumo Final del Gobierno (PC)",2013]
["P018","Caucho natural",0,"Consumo Final del Gobierno (PC)",2013]
["P019","Propagación de plantas",0,"Consumo Final del Gobierno (PC)",2013]
["P020","Otros frutos oleaginosos, otras plantas bebestibles y especias aromáticas",0,"Consumo Final del Gobierno (PC)",2013]
["P021","Ganado bovino",0,"Consumo Final del Gobierno (PC)",2013]
["P022","Ganado porcino y otro tipo de animales vivos n.c.p.",2.7346979999999999,"Consumo Final del Gobierno (PC)",2013]
["P023","Aves de corral",0.79858399999999996,"Consumo Final del Gobierno (PC)",2013]
["P024","Leche cruda",0,"Consumo Final del Gobierno (PC)",2013]
["P025","Huevos",0,"Consumo Final del Gobierno (PC)",2013]
["P026","Otros productos de animales vivos",0,"Consumo Final del Gobierno (PC)",2013]
["P027","Troncos de madera y leña",0,"Consumo Final del Gobierno (PC)",2013]
["P028","Productos forestales no madereros",0,"Consumo Final del Gobierno (PC)",2013]
["P029","Peces vivos, frescos o refrigerados",0,"Consumo Final del Gobierno (PC)",2013]
["P030","Crustáceos sin congelar y otros productos de la pesca",0,"Consumo Final del Gobierno (PC)",2013]
["P031","Petróleo crudo y gas natural",0,"Consumo Final del Gobierno (PC)",2013]
["P032","Minerales metálicos",0,"Consumo Final del Gobierno (PC)",2013]
["P033","Minerales no metálicos",1.367486,"Consumo Final del Gobierno (PC)",2013]
["P034","Carne y despojos comestibles de ganado bovino; cueros y pieles de bovino y de otros animales",0.30066599999999999,"Consumo Final del Gobierno (PC)",2013]
["P035","Carne y despojos comestibles de ganado porcino",0,"Consumo Final del Gobierno (PC)",2013]
["P036","Carne y despojos comestibles de aves",4.8188000000000002E-2,"Consumo Final del Gobierno (PC)",2013]
["P037","Carne y despojos de otros animales y conservas y preparados de carne",0,"Consumo Final del Gobierno (PC)",2013]
["P038","Pescado congelado, preparado o en conserva y sus productos",0,"Consumo Final del Gobierno (PC)",2013]
["P039","Crustáceos, moluscos y demás invertebrados acuáticos congelados, preparados o en conserva y sus productos",0,"Consumo Final del Gobierno (PC)",2013]
["P040","Vegetales preparados o en conserva, legumbres y papas",0,"Consumo Final del Gobierno (PC)",2013]
["P041","Preparaciones y conservas de frutas y nueces",0,"Consumo Final del Gobierno (PC)",2013]
["P042","Jugos de frutas",0,"Consumo Final del Gobierno (PC)",2013]
["P043","Aceites de origen vegetal",26.284181,"Consumo Final del Gobierno (PC)",2013]
["P044","Margarina, grasas y otros aceites de origen animal y vegetal",0,"Consumo Final del Gobierno (PC)",2013]
["P045","Leche líquida y crema procesada",0,"Consumo Final del Gobierno (PC)",2013]
["P046","Otros productos lácteos n.c.p.",19.200724000000001,"Consumo Final del Gobierno (PC)",2013]
["P047","Harina de trigo",0,"Consumo Final del Gobierno (PC)",2013]
["P048","Arroz sin cáscara",40.387552999999997,"Consumo Final del Gobierno (PC)",2013]
["P049","Otros productos de molinería, almidones y productos de almidón",109.789839,"Consumo Final del Gobierno (PC)",2013]
["P050","Pan y otros productos de panadería y repostería n.c.p.",3.95086,"Consumo Final del Gobierno (PC)",2013]
["P051","Tortillas de maíz, incluso tostadas, horneadas o fritas",0.174648,"Consumo Final del Gobierno (PC)",2013]
["P052","Azúcar de caña sin refinar y refinada, melaza y los demás azúcares n.c.p.",6.8835119999999996,"Consumo Final del Gobierno (PC)",2013]
["P053","Productos alimenticios n.c.p.",111.467935,"Consumo Final del Gobierno (PC)",2013]
["P054","Preparados para alimentación animal",0,"Consumo Final del Gobierno (PC)",2013]
["P055","Aguardientes, licores, vinos, demás bebidas espirituosas y productos del tabaco",0,"Consumo Final del Gobierno (PC)",2013]
["P056","Malta y cerveza de malta",0,"Consumo Final del Gobierno (PC)",2013]
["P057","Bebidas no alcohólicas",2.717892,"Consumo Final del Gobierno (PC)",2013]
["P058","Aguas minerales y otras aguas embotelladas",1.0133080000000001,"Consumo Final del Gobierno (PC)",2013]
["P059","Hilados, tejidos, telas y otros productos textiles excepto prendas de vestir",0,"Consumo Final del Gobierno (PC)",2013]
["P060","Prendas de vestir, adobo y teñido de pieles",0,"Consumo Final del Gobierno (PC)",2013]
["P061","Cuero de piel curtida o adobada y cuero artificial o regenerado y artículos de cuero",7.2232000000000005E-2,"Consumo Final del Gobierno (PC)",2013]
["P062","Calzado y sus partes, de cualquier material y de cualquier uso",0,"Consumo Final del Gobierno (PC)",2013]
["P063","Madera aserrada y acepillada, productos de madera, corcho, paja y materiales trenzables",0,"Consumo Final del Gobierno (PC)",2013]
["P064","Pasta de papel y papel",13.447870999999999,"Consumo Final del Gobierno (PC)",2013]
["P065","Envases de papel y cartón",0,"Consumo Final del Gobierno (PC)",2013]
["P066","Productos de la edición",0,"Consumo Final del Gobierno (PC)",2013]
["P067","Productos de la impresión",0,"Consumo Final del Gobierno (PC)",2013]
["P068","Gasolinas, diésel oil y fuel oils",0,"Consumo Final del Gobierno (PC)",2013]
["P069","Aceites, grasas lubricantes y otros aceites preparados",0,"Consumo Final del Gobierno (PC)",2013]
["P070","Gases de petróleo, otros productos de la refinación de petróleo n.c.p.",0,"Consumo Final del Gobierno (PC)",2013]
["P071","Abonos, fertilizantes y pesticidas",0,"Consumo Final del Gobierno (PC)",2013]
["P072","Pinturas, barnices, tintas y productos relacionados",0,"Consumo Final del Gobierno (PC)",2013]
["P073","Jabón, preparados de limpieza, perfumes y preparados de toilet",0,"Consumo Final del Gobierno (PC)",2013]
["P074","Otros productos químicos",0,"Consumo Final del Gobierno (PC)",2013]
["P075","Productos farmacéuticos",2427.3771740000002,"Consumo Final del Gobierno (PC)",2013]
["P076","Productos de caucho y plástico",0,"Consumo Final del Gobierno (PC)",2013]
["P077","Vidrio y productos de vidrio",0,"Consumo Final del Gobierno (PC)",2013]
["P078","Productos de cerámica y arcilla",0,"Consumo Final del Gobierno (PC)",2013]
["P079","Cemento, cal y yeso",0,"Consumo Final del Gobierno (PC)",2013]
["P080","Artículos de hormigón, cemento y yeso",0,"Consumo Final del Gobierno (PC)",2013]
["P081","Piedras talladas para construcción y otros productos minerales no metálicos n.c.p.",0,"Consumo Final del Gobierno (PC)",2013]
["P082","Métales básicos de hierro y acero, productos primarios de metales preciosos y otros metales no ferrosos",0,"Consumo Final del Gobierno (PC)",2013]
["P083","Productos metálicos estructurales y sus partes de hierro o de acero",0,"Consumo Final del Gobierno (PC)",2013]
["P084","Otros productos elaborados de metal",1.8710999999999998E-2,"Consumo Final del Gobierno (PC)",2013]
["P085","Maquinaria para usos generales y especiales, sus partes y piezas, excepto electrodomésticos",0,"Consumo Final del Gobierno (PC)",2013]
["P086","Electrodomésticos y sus partes",2.6870000000000002E-3,"Consumo Final del Gobierno (PC)",2013]
["P087","Maquinaria de oficina, contabilidad e informática, sus partes y piezas",0,"Consumo Final del Gobierno (PC)",2013]
["P088","Maquinaria y aparatos eléctricos, sus partes y piezas",0,"Consumo Final del Gobierno (PC)",2013]
["P089","Equipo y aparatos de radio, televisión y comunicaciones",0,"Consumo Final del Gobierno (PC)",2013]
["P090","Aparatos médicos, instrumentos ópticos y de precisión, relojes",7.9156110000000002,"Consumo Final del Gobierno (PC)",2013]
["P091","Equipo de transporte",0,"Consumo Final del Gobierno (PC)",2013]
["P092","Muebles",0,"Consumo Final del Gobierno (PC)",2013]
["P093","Otros artículos n.c.p.",10.250828,"Consumo Final del Gobierno (PC)",2013]
["P094","Residuos y desechos",0,"Consumo Final del Gobierno (PC)",2013]
["P095","Generación y distribución de energía eléctrica, gas, vapor y aire acondicionado",0,"Consumo Final del Gobierno (PC)",2013]
["P096","Agua natural y distribución de agua natural",0,"Consumo Final del Gobierno (PC)",2013]
["P097","Evacuación de aguas residuales, recogida, tratamiento y eliminación de desechos",0,"Consumo Final del Gobierno (PC)",2013]
["P098","Edificaciones residenciales",0,"Consumo Final del Gobierno (PC)",2013]
["P099","Edificaciones no residenciales",0,"Consumo Final del Gobierno (PC)",2013]
["P100","Obras de ingeniería civil",0,"Consumo Final del Gobierno (PC)",2013]
["P101","Servicios generales y especializados de construcción",0,"Consumo Final del Gobierno (PC)",2013]
["P102","Servicios de comercio",0,"Consumo Final del Gobierno (PC)",2013]
["P103","Mantenimiento y reparación de vehículos automotores y motocicletas",0,"Consumo Final del Gobierno (PC)",2013]
["P104","Servicio de transporte de pasajeros por vía terrestre",0,"Consumo Final del Gobierno (PC)",2013]
["P105","Servicio de transporte de carga por vía terrestre",0,"Consumo Final del Gobierno (PC)",2013]
["P106","Otros tipos de transporte",0,"Consumo Final del Gobierno (PC)",2013]
["P107","Servicios de almacenamiento y depósito",0,"Consumo Final del Gobierno (PC)",2013]
["P108","Otros servicios de apoyo al transporte",0,"Consumo Final del Gobierno (PC)",2013]
["P109","Servicios postales y de mensajería",0,"Consumo Final del Gobierno (PC)",2013]
["P110","Servicio de alojamiento",0,"Consumo Final del Gobierno (PC)",2013]
["P111","Servicio de suministro de comidas y bebidas",1138.001845,"Consumo Final del Gobierno (PC)",2013]
["P112","Servicios de información, telecomunicaciones y radiodifusión",0,"Consumo Final del Gobierno (PC)",2013]
["P113","Servicios de banco central",696.02774699999998,"Consumo Final del Gobierno (PC)",2013]
["P114","Otros servicios financieros y servicios de banca de inversión",0,"Consumo Final del Gobierno (PC)",2013]
["P115","Servicios de Intermediación Financiera Medidos Indirectamente (SIFMI)",0,"Consumo Final del Gobierno (PC)",2013]
["P116","Servicios de seguro, reaseguro y fondos de pensiones",0,"Consumo Final del Gobierno (PC)",2013]
["P117","Servicios auxiliares de la intermediación financiera",0,"Consumo Final del Gobierno (PC)",2013]
["P118","Servicios de alquiler de vivienda",0,"Consumo Final del Gobierno (PC)",2013]
["P119","Otros servicios inmobiliarios, excepto alquiler de vivienda",0,"Consumo Final del Gobierno (PC)",2013]
["P120","Servicios jurídicos, de contabilidad, auditoría, teneduría de libros y consultoría fiscal",0,"Consumo Final del Gobierno (PC)",2013]
["P121","Servicios de tecnología de la información",0,"Consumo Final del Gobierno (PC)",2013]
["P122","Servicios de arquitectura e ingeniería, ensayos y análisis técnicos",0,"Consumo Final del Gobierno (PC)",2013]
["P123","Otros servicios profesionales, científicos y técnicos",0,"Consumo Final del Gobierno (PC)",2013]
["P124","Servicios de publicidad y estudios de mercado",0,"Consumo Final del Gobierno (PC)",2013]
["P125","Servicios de arrendamiento o alquiler sin operador",0,"Consumo Final del Gobierno (PC)",2013]
["P126","Servicios  de agencias de empleo y de dotación de recursos humanos",0,"Consumo Final del Gobierno (PC)",2013]
["P127","Servicios de agencias de viajes, operadores turísticos y actividades conexas",0,"Consumo Final del Gobierno (PC)",2013]
["P128","Servicios de seguridad, sistemas de seguridad e investigación privada",0,"Consumo Final del Gobierno (PC)",2013]
["P129","Servicios de limpieza",0,"Consumo Final del Gobierno (PC)",2013]
["P130","Servicios telefónicos de centros de llamadas",0,"Consumo Final del Gobierno (PC)",2013]
["P131","Servicios administrativos, de apoyo de oficina y otros servicios de apoyo a las empresas",0,"Consumo Final del Gobierno (PC)",2013]
["P132","Servicios de mantenimiento, reparación e instalación de productos metálicos elaborados, maquinaria y equipo",0,"Consumo Final del Gobierno (PC)",2013]
["P133","Servicios de reparación de otros bienes",0,"Consumo Final del Gobierno (PC)",2013]
["P134","Servicios de apoyo a la agricultura, caza, silvicultura y pesca",0,"Consumo Final del Gobierno (PC)",2013]
["P135","Servicios de apoyo a la explotación de minas y canteras y los relacionados con la distribución de electricidad, gas y agua",0,"Consumo Final del Gobierno (PC)",2013]
["P136","Servicios de manufactura",0,"Consumo Final del Gobierno (PC)",2013]
["P137","Servicios públicos del gobierno general",9777.3277629999993,"Consumo Final del Gobierno (PC)",2013]
["P138","Servicios públicos administrativos relacionados con la provisión de servicios educativos, de salud, servicios sociales, culturales y otros, sin contar los servicios de seguridad social",1831.7318230000001,"Consumo Final del Gobierno (PC)",2013]
["P139","Otros servicios administrativos",4076.9174739999999,"Consumo Final del Gobierno (PC)",2013]
["P140","Servicios públicos administrativos prestados a la comunidad en su conjunto",8415.5062859999998,"Consumo Final del Gobierno (PC)",2013]
["P141","Servicios administrativos relacionados con los sistemas de seguridad social de afiliación obligatoria",738.01370099999997,"Consumo Final del Gobierno (PC)",2013]
["P142","Servicios de enseñanza",11648.613746000001,"Consumo Final del Gobierno (PC)",2013]
["P143","Servicios de hospitalización",4727.9121109999996,"Consumo Final del Gobierno (PC)",2013]
["P144","Servicios médicos y dentales",734.77828199999999,"Consumo Final del Gobierno (PC)",2013]
["P145","Otros servicios de atención de la salud humana",185.59393499999999,"Consumo Final del Gobierno (PC)",2013]
["P146","Servicios audiovisuales, recreativos, culturales y deportivos",190.230807,"Consumo Final del Gobierno (PC)",2013]
["P147","Servicios de asociaciones que sirven a las empresas",0,"Consumo Final del Gobierno (PC)",2013]
["P148","Servicios de asociaciones que sirven a los hogares",0,"Consumo Final del Gobierno (PC)",2013]
["P149","Otros servicios",0,"Consumo Final del Gobierno (PC)",2013]
["P150","Servicios domésticos",0,"Consumo Final del Gobierno (PC)",2013]
["P151","Compras directas en el exterior por residentes",0,"Consumo Final del Gobierno (PC)",2013]
["P152","Compras directas en el territorio nacional por no residentes",0,"Consumo Final del Gobierno (PC)",2013]
["P001","Maíz",0,"Formación Bruta de Capital Fijo (PC)",2013]
["P002","Frijoles",0,"Formación Bruta de Capital Fijo (PC)",2013]
["P003","Leguminosas (legumbres secas) y semillas oleaginosas",0,"Formación Bruta de Capital Fijo (PC)",2013]
["P004","Arroz",0,"Formación Bruta de Capital Fijo (PC)",2013]
["P005","Otros cereales",0,"Formación Bruta de Capital Fijo (PC)",2013]
["P006","Hortalizas",0,"Formación Bruta de Capital Fijo (PC)",2013]
["P007","Sandías y melones",0,"Formación Bruta de Capital Fijo (PC)",2013]
["P008","Ejotes y arvejas",0,"Formación Bruta de Capital Fijo (PC)",2013]
["P009","Raíces y tubérculos",0,"Formación Bruta de Capital Fijo (PC)",2013]
["P010","Caña de azúcar y otras plantas azucareras",0,"Formación Bruta de Capital Fijo (PC)",2013]
["P011","Tabaco y otras plantas no perennes",0,"Formación Bruta de Capital Fijo (PC)",2013]
["P012","Bananos, plátanos y otros",243.87355400000001,"Formación Bruta de Capital Fijo (PC)",2013]
["P013","Frutas tropicales y subtropicales",124.566649,"Formación Bruta de Capital Fijo (PC)",2013]
["P014","Berries, otras frutas y semillas de frutas",148.44569200000001,"Formación Bruta de Capital Fijo (PC)",2013]
["P015","Palma africana",609.05541500000004,"Formación Bruta de Capital Fijo (PC)",2013]
["P016","Café en grano",51.956268000000001,"Formación Bruta de Capital Fijo (PC)",2013]
["P017","Cardamomo",19.710516999999999,"Formación Bruta de Capital Fijo (PC)",2013]
["P018","Caucho natural",17.185780000000001,"Formación Bruta de Capital Fijo (PC)",2013]
["P019","Propagación de plantas",0,"Formación Bruta de Capital Fijo (PC)",2013]
["P020","Otros frutos oleaginosos, otras plantas bebestibles y especias aromáticas",6.5270520000000003,"Formación Bruta de Capital Fijo (PC)",2013]
["P021","Ganado bovino",54.824677999999999,"Formación Bruta de Capital Fijo (PC)",2013]
["P022","Ganado porcino y otro tipo de animales vivos n.c.p.",26.596931999999999,"Formación Bruta de Capital Fijo (PC)",2013]
["P023","Aves de corral",485.931895,"Formación Bruta de Capital Fijo (PC)",2013]
["P024","Leche cruda",0,"Formación Bruta de Capital Fijo (PC)",2013]
["P025","Huevos",0,"Formación Bruta de Capital Fijo (PC)",2013]
["P026","Otros productos de animales vivos",0,"Formación Bruta de Capital Fijo (PC)",2013]
["P027","Troncos de madera y leña",0,"Formación Bruta de Capital Fijo (PC)",2013]
["P028","Productos forestales no madereros",0,"Formación Bruta de Capital Fijo (PC)",2013]
["P029","Peces vivos, frescos o refrigerados",0,"Formación Bruta de Capital Fijo (PC)",2013]
["P030","Crustáceos sin congelar y otros productos de la pesca",0,"Formación Bruta de Capital Fijo (PC)",2013]
["P031","Petróleo crudo y gas natural",0,"Formación Bruta de Capital Fijo (PC)",2013]
["P032","Minerales metálicos",0,"Formación Bruta de Capital Fijo (PC)",2013]
["P033","Minerales no metálicos",0,"Formación Bruta de Capital Fijo (PC)",2013]
["P034","Carne y despojos comestibles de ganado bovino; cueros y pieles de bovino y de otros animales",0,"Formación Bruta de Capital Fijo (PC)",2013]
["P035","Carne y despojos comestibles de ganado porcino",0,"Formación Bruta de Capital Fijo (PC)",2013]
["P036","Carne y despojos comestibles de aves",0,"Formación Bruta de Capital Fijo (PC)",2013]
["P037","Carne y despojos de otros animales y conservas y preparados de carne",0,"Formación Bruta de Capital Fijo (PC)",2013]
["P038","Pescado congelado, preparado o en conserva y sus productos",0,"Formación Bruta de Capital Fijo (PC)",2013]
["P039","Crustáceos, moluscos y demás invertebrados acuáticos congelados, preparados o en conserva y sus productos",0,"Formación Bruta de Capital Fijo (PC)",2013]
["P040","Vegetales preparados o en conserva, legumbres y papas",0,"Formación Bruta de Capital Fijo (PC)",2013]
["P041","Preparaciones y conservas de frutas y nueces",0,"Formación Bruta de Capital Fijo (PC)",2013]
["P042","Jugos de frutas",0,"Formación Bruta de Capital Fijo (PC)",2013]
["P043","Aceites de origen vegetal",0,"Formación Bruta de Capital Fijo (PC)",2013]
["P044","Margarina, grasas y otros aceites de origen animal y vegetal",0,"Formación Bruta de Capital Fijo (PC)",2013]
["P045","Leche líquida y crema procesada",0,"Formación Bruta de Capital Fijo (PC)",2013]
["P046","Otros productos lácteos n.c.p.",0,"Formación Bruta de Capital Fijo (PC)",2013]
["P047","Harina de trigo",0,"Formación Bruta de Capital Fijo (PC)",2013]
["P048","Arroz sin cáscara",0,"Formación Bruta de Capital Fijo (PC)",2013]
["P049","Otros productos de molinería, almidones y productos de almidón",0,"Formación Bruta de Capital Fijo (PC)",2013]
["P050","Pan y otros productos de panadería y repostería n.c.p.",0,"Formación Bruta de Capital Fijo (PC)",2013]
["P051","Tortillas de maíz, incluso tostadas, horneadas o fritas",0,"Formación Bruta de Capital Fijo (PC)",2013]
["P052","Azúcar de caña sin refinar y refinada, melaza y los demás azúcares n.c.p.",0,"Formación Bruta de Capital Fijo (PC)",2013]
["P053","Productos alimenticios n.c.p.",0,"Formación Bruta de Capital Fijo (PC)",2013]
["P054","Preparados para alimentación animal",0,"Formación Bruta de Capital Fijo (PC)",2013]
["P055","Aguardientes, licores, vinos, demás bebidas espirituosas y productos del tabaco",0,"Formación Bruta de Capital Fijo (PC)",2013]
["P056","Malta y cerveza de malta",0,"Formación Bruta de Capital Fijo (PC)",2013]
["P057","Bebidas no alcohólicas",0,"Formación Bruta de Capital Fijo (PC)",2013]
["P058","Aguas minerales y otras aguas embotelladas",0,"Formación Bruta de Capital Fijo (PC)",2013]
["P059","Hilados, tejidos, telas y otros productos textiles excepto prendas de vestir",0,"Formación Bruta de Capital Fijo (PC)",2013]
["P060","Prendas de vestir, adobo y teñido de pieles",0,"Formación Bruta de Capital Fijo (PC)",2013]
["P061","Cuero de piel curtida o adobada y cuero artificial o regenerado y artículos de cuero",0,"Formación Bruta de Capital Fijo (PC)",2013]
["P062","Calzado y sus partes, de cualquier material y de cualquier uso",0,"Formación Bruta de Capital Fijo (PC)",2013]
["P063","Madera aserrada y acepillada, productos de madera, corcho, paja y materiales trenzables",49.119191000000001,"Formación Bruta de Capital Fijo (PC)",2013]
["P064","Pasta de papel y papel",0,"Formación Bruta de Capital Fijo (PC)",2013]
["P065","Envases de papel y cartón",0,"Formación Bruta de Capital Fijo (PC)",2013]
["P066","Productos de la edición",0,"Formación Bruta de Capital Fijo (PC)",2013]
["P067","Productos de la impresión",0,"Formación Bruta de Capital Fijo (PC)",2013]
["P068","Gasolinas, diésel oil y fuel oils",0,"Formación Bruta de Capital Fijo (PC)",2013]
["P069","Aceites, grasas lubricantes y otros aceites preparados",0,"Formación Bruta de Capital Fijo (PC)",2013]
["P070","Gases de petróleo, otros productos de la refinación de petróleo n.c.p.",0,"Formación Bruta de Capital Fijo (PC)",2013]
["P071","Abonos, fertilizantes y pesticidas",0,"Formación Bruta de Capital Fijo (PC)",2013]
["P072","Pinturas, barnices, tintas y productos relacionados",0,"Formación Bruta de Capital Fijo (PC)",2013]
["P073","Jabón, preparados de limpieza, perfumes y preparados de toilet",0,"Formación Bruta de Capital Fijo (PC)",2013]
["P074","Otros productos químicos",0,"Formación Bruta de Capital Fijo (PC)",2013]
["P075","Productos farmacéuticos",0,"Formación Bruta de Capital Fijo (PC)",2013]
["P076","Productos de caucho y plástico",0,"Formación Bruta de Capital Fijo (PC)",2013]
["P077","Vidrio y productos de vidrio",0,"Formación Bruta de Capital Fijo (PC)",2013]
["P078","Productos de cerámica y arcilla",0,"Formación Bruta de Capital Fijo (PC)",2013]
["P079","Cemento, cal y yeso",0,"Formación Bruta de Capital Fijo (PC)",2013]
["P080","Artículos de hormigón, cemento y yeso",0,"Formación Bruta de Capital Fijo (PC)",2013]
["P081","Piedras talladas para construcción y otros productos minerales no metálicos n.c.p.",0,"Formación Bruta de Capital Fijo (PC)",2013]
["P082","Métales básicos de hierro y acero, productos primarios de metales preciosos y otros metales no ferrosos",0,"Formación Bruta de Capital Fijo (PC)",2013]
["P083","Productos metálicos estructurales y sus partes de hierro o de acero",0,"Formación Bruta de Capital Fijo (PC)",2013]
["P084","Otros productos elaborados de metal",728.87902699999995,"Formación Bruta de Capital Fijo (PC)",2013]
["P085","Maquinaria para usos generales y especiales, sus partes y piezas, excepto electrodomésticos",8436.1898469999996,"Formación Bruta de Capital Fijo (PC)",2013]
["P086","Electrodomésticos y sus partes",207.59217100000001,"Formación Bruta de Capital Fijo (PC)",2013]
["P087","Maquinaria de oficina, contabilidad e informática, sus partes y piezas",1707.142053,"Formación Bruta de Capital Fijo (PC)",2013]
["P088","Maquinaria y aparatos eléctricos, sus partes y piezas",2773.2824909999999,"Formación Bruta de Capital Fijo (PC)",2013]
["P089","Equipo y aparatos de radio, televisión y comunicaciones",2001.348375,"Formación Bruta de Capital Fijo (PC)",2013]
["P090","Aparatos médicos, instrumentos ópticos y de precisión, relojes",1498.389097,"Formación Bruta de Capital Fijo (PC)",2013]
["P091","Equipo de transporte",6245.2886490000001,"Formación Bruta de Capital Fijo (PC)",2013]
["P092","Muebles",2725.2724910000002,"Formación Bruta de Capital Fijo (PC)",2013]
["P093","Otros artículos n.c.p.",238.05480499999999,"Formación Bruta de Capital Fijo (PC)",2013]
["P094","Residuos y desechos",0,"Formación Bruta de Capital Fijo (PC)",2013]
["P095","Generación y distribución de energía eléctrica, gas, vapor y aire acondicionado",0,"Formación Bruta de Capital Fijo (PC)",2013]
["P096","Agua natural y distribución de agua natural",0,"Formación Bruta de Capital Fijo (PC)",2013]
["P097","Evacuación de aguas residuales, recogida, tratamiento y eliminación de desechos",0,"Formación Bruta de Capital Fijo (PC)",2013]
["P098","Edificaciones residenciales",15215.939378999999,"Formación Bruta de Capital Fijo (PC)",2013]
["P099","Edificaciones no residenciales",6495.7327830000004,"Formación Bruta de Capital Fijo (PC)",2013]
["P100","Obras de ingeniería civil",11618.123935,"Formación Bruta de Capital Fijo (PC)",2013]
["P101","Servicios generales y especializados de construcción",0,"Formación Bruta de Capital Fijo (PC)",2013]
["P102","Servicios de comercio",0,"Formación Bruta de Capital Fijo (PC)",2013]
["P103","Mantenimiento y reparación de vehículos automotores y motocicletas",0,"Formación Bruta de Capital Fijo (PC)",2013]
["P104","Servicio de transporte de pasajeros por vía terrestre",0,"Formación Bruta de Capital Fijo (PC)",2013]
["P105","Servicio de transporte de carga por vía terrestre",0,"Formación Bruta de Capital Fijo (PC)",2013]
["P106","Otros tipos de transporte",0,"Formación Bruta de Capital Fijo (PC)",2013]
["P107","Servicios de almacenamiento y depósito",0,"Formación Bruta de Capital Fijo (PC)",2013]
["P108","Otros servicios de apoyo al transporte",0,"Formación Bruta de Capital Fijo (PC)",2013]
["P109","Servicios postales y de mensajería",0,"Formación Bruta de Capital Fijo (PC)",2013]
["P110","Servicio de alojamiento",0,"Formación Bruta de Capital Fijo (PC)",2013]
["P111","Servicio de suministro de comidas y bebidas",0,"Formación Bruta de Capital Fijo (PC)",2013]
["P112","Servicios de información, telecomunicaciones y radiodifusión",0,"Formación Bruta de Capital Fijo (PC)",2013]
["P113","Servicios de banco central",0,"Formación Bruta de Capital Fijo (PC)",2013]
["P114","Otros servicios financieros y servicios de banca de inversión",0,"Formación Bruta de Capital Fijo (PC)",2013]
["P115","Servicios de Intermediación Financiera Medidos Indirectamente (SIFMI)",0,"Formación Bruta de Capital Fijo (PC)",2013]
["P116","Servicios de seguro, reaseguro y fondos de pensiones",0,"Formación Bruta de Capital Fijo (PC)",2013]
["P117","Servicios auxiliares de la intermediación financiera",0,"Formación Bruta de Capital Fijo (PC)",2013]
["P118","Servicios de alquiler de vivienda",0,"Formación Bruta de Capital Fijo (PC)",2013]
["P119","Otros servicios inmobiliarios, excepto alquiler de vivienda",0,"Formación Bruta de Capital Fijo (PC)",2013]
["P120","Servicios jurídicos, de contabilidad, auditoría, teneduría de libros y consultoría fiscal",0,"Formación Bruta de Capital Fijo (PC)",2013]
["P121","Servicios de tecnología de la información",492.14238399999999,"Formación Bruta de Capital Fijo (PC)",2013]
["P122","Servicios de arquitectura e ingeniería, ensayos y análisis técnicos",354.25343400000003,"Formación Bruta de Capital Fijo (PC)",2013]
["P123","Otros servicios profesionales, científicos y técnicos",240.72553099999999,"Formación Bruta de Capital Fijo (PC)",2013]
["P124","Servicios de publicidad y estudios de mercado",0,"Formación Bruta de Capital Fijo (PC)",2013]
["P125","Servicios de arrendamiento o alquiler sin operador",0,"Formación Bruta de Capital Fijo (PC)",2013]
["P126","Servicios  de agencias de empleo y de dotación de recursos humanos",0,"Formación Bruta de Capital Fijo (PC)",2013]
["P127","Servicios de agencias de viajes, operadores turísticos y actividades conexas",0,"Formación Bruta de Capital Fijo (PC)",2013]
["P128","Servicios de seguridad, sistemas de seguridad e investigación privada",0,"Formación Bruta de Capital Fijo (PC)",2013]
["P129","Servicios de limpieza",0,"Formación Bruta de Capital Fijo (PC)",2013]
["P130","Servicios telefónicos de centros de llamadas",0,"Formación Bruta de Capital Fijo (PC)",2013]
["P131","Servicios administrativos, de apoyo de oficina y otros servicios de apoyo a las empresas",0,"Formación Bruta de Capital Fijo (PC)",2013]
["P132","Servicios de mantenimiento, reparación e instalación de productos metálicos elaborados, maquinaria y equipo",0,"Formación Bruta de Capital Fijo (PC)",2013]
["P133","Servicios de reparación de otros bienes",0,"Formación Bruta de Capital Fijo (PC)",2013]
["P134","Servicios de apoyo a la agricultura, caza, silvicultura y pesca",0,"Formación Bruta de Capital Fijo (PC)",2013]
["P135","Servicios de apoyo a la explotación de minas y canteras y los relacionados con la distribución de electricidad, gas y agua",0,"Formación Bruta de Capital Fijo (PC)",2013]
["P136","Servicios de manufactura",0,"Formación Bruta de Capital Fijo (PC)",2013]
["P137","Servicios públicos del gobierno general",0,"Formación Bruta de Capital Fijo (PC)",2013]
["P138","Servicios públicos administrativos relacionados con la provisión de servicios educativos, de salud, servicios sociales, culturales y otros, sin contar los servicios de seguridad social",0,"Formación Bruta de Capital Fijo (PC)",2013]
["P139","Otros servicios administrativos",0,"Formación Bruta de Capital Fijo (PC)",2013]
["P140","Servicios públicos administrativos prestados a la comunidad en su conjunto",0,"Formación Bruta de Capital Fijo (PC)",2013]
["P141","Servicios administrativos relacionados con los sistemas de seguridad social de afiliación obligatoria",0,"Formación Bruta de Capital Fijo (PC)",2013]
["P142","Servicios de enseñanza",0,"Formación Bruta de Capital Fijo (PC)",2013]
["P143","Servicios de hospitalización",0,"Formación Bruta de Capital Fijo (PC)",2013]
["P144","Servicios médicos y dentales",0,"Formación Bruta de Capital Fijo (PC)",2013]
["P145","Otros servicios de atención de la salud humana",0,"Formación Bruta de Capital Fijo (PC)",2013]
["P146","Servicios audiovisuales, recreativos, culturales y deportivos",0,"Formación Bruta de Capital Fijo (PC)",2013]
["P147","Servicios de asociaciones que sirven a las empresas",0,"Formación Bruta de Capital Fijo (PC)",2013]
["P148","Servicios de asociaciones que sirven a los hogares",0,"Formación Bruta de Capital Fijo (PC)",2013]
["P149","Otros servicios",0,"Formación Bruta de Capital Fijo (PC)",2013]
["P150","Servicios domésticos",0,"Formación Bruta de Capital Fijo (PC)",2013]
["P151","Compras directas en el exterior por residentes",18.441827,"Formación Bruta de Capital Fijo (PC)",2013]
["P152","Compras directas en el territorio nacional por no residentes",0,"Formación Bruta de Capital Fijo (PC)",2013]
["P001","Maíz",36.424615000000003,"Exportaciones (fob)",2013]
["P002","Frijoles",35.896611,"Exportaciones (fob)",2013]
["P003","Leguminosas (legumbres secas) y semillas oleaginosas",396.74388399999998,"Exportaciones (fob)",2013]
["P004","Arroz",3.7010000000000001E-2,"Exportaciones (fob)",2013]
["P005","Otros cereales",4.7776199999999998,"Exportaciones (fob)",2013]
["P006","Hortalizas",1126.487803,"Exportaciones (fob)",2013]
["P007","Sandías y melones",1110.558133,"Exportaciones (fob)",2013]
["P008","Ejotes y arvejas",672.37656700000002,"Exportaciones (fob)",2013]
["P009","Raíces y tubérculos",84.006352000000007,"Exportaciones (fob)",2013]
["P010","Caña de azúcar y otras plantas azucareras",2.3166660000000001,"Exportaciones (fob)",2013]
["P011","Tabaco y otras plantas no perennes",285.94704100000001,"Exportaciones (fob)",2013]
["P012","Bananos, plátanos y otros",4988.0592660000002,"Exportaciones (fob)",2013]
["P013","Frutas tropicales y subtropicales",260.04353300000002,"Exportaciones (fob)",2013]
["P014","Berries, otras frutas y semillas de frutas",235.79744400000001,"Exportaciones (fob)",2013]
["P015","Palma africana",0,"Exportaciones (fob)",2013]
["P016","Café en grano",5600.0248860000002,"Exportaciones (fob)",2013]
["P017","Cardamomo",1690.1990189999999,"Exportaciones (fob)",2013]
["P018","Caucho natural",1876.5972959999999,"Exportaciones (fob)",2013]
["P019","Propagación de plantas",253.83208500000001,"Exportaciones (fob)",2013]
["P020","Otros frutos oleaginosos, otras plantas bebestibles y especias aromáticas",24.015501,"Exportaciones (fob)",2013]
["P021","Ganado bovino",23.964399,"Exportaciones (fob)",2013]
["P022","Ganado porcino y otro tipo de animales vivos n.c.p.",1.1347799999999999,"Exportaciones (fob)",2013]
["P023","Aves de corral",12.504845,"Exportaciones (fob)",2013]
["P024","Leche cruda",0,"Exportaciones (fob)",2013]
["P025","Huevos",0,"Exportaciones (fob)",2013]
["P026","Otros productos de animales vivos",63.827888999999999,"Exportaciones (fob)",2013]
["P027","Troncos de madera y leña",11.523621,"Exportaciones (fob)",2013]
["P028","Productos forestales no madereros",155.55443700000001,"Exportaciones (fob)",2013]
["P029","Peces vivos, frescos o refrigerados",40.867966000000003,"Exportaciones (fob)",2013]
["P030","Crustáceos sin congelar y otros productos de la pesca",208.59537800000001,"Exportaciones (fob)",2013]
["P031","Petróleo crudo y gas natural",2327.3415180000002,"Exportaciones (fob)",2013]
["P032","Minerales metálicos",4016.789804,"Exportaciones (fob)",2013]
["P033","Minerales no metálicos",88.643835999999993,"Exportaciones (fob)",2013]
["P034","Carne y despojos comestibles de ganado bovino; cueros y pieles de bovino y de otros animales",59.336522000000002,"Exportaciones (fob)",2013]
["P035","Carne y despojos comestibles de ganado porcino",0.95746900000000001,"Exportaciones (fob)",2013]
["P036","Carne y despojos comestibles de aves",48.479380999999997,"Exportaciones (fob)",2013]
["P037","Carne y despojos de otros animales y conservas y preparados de carne",293.11837100000002,"Exportaciones (fob)",2013]
["P038","Pescado congelado, preparado o en conserva y sus productos",581.34234700000002,"Exportaciones (fob)",2013]
["P039","Crustáceos, moluscos y demás invertebrados acuáticos congelados, preparados o en conserva y sus productos",360.10227300000003,"Exportaciones (fob)",2013]
["P040","Vegetales preparados o en conserva, legumbres y papas",518.52026599999999,"Exportaciones (fob)",2013]
["P041","Preparaciones y conservas de frutas y nueces",613.96479799999997,"Exportaciones (fob)",2013]
["P042","Jugos de frutas",262.77235400000001,"Exportaciones (fob)",2013]
["P043","Aceites de origen vegetal",2509.2955069999998,"Exportaciones (fob)",2013]
["P044","Margarina, grasas y otros aceites de origen animal y vegetal",353.249863,"Exportaciones (fob)",2013]
["P045","Leche líquida y crema procesada",1.722218,"Exportaciones (fob)",2013]
["P046","Otros productos lácteos n.c.p.",118.80412800000001,"Exportaciones (fob)",2013]
["P047","Harina de trigo",26.779588,"Exportaciones (fob)",2013]
["P048","Arroz sin cáscara",3.4466380000000001,"Exportaciones (fob)",2013]
["P049","Otros productos de molinería, almidones y productos de almidón",282.88482800000003,"Exportaciones (fob)",2013]
["P050","Pan y otros productos de panadería y repostería n.c.p.",564.74982599999998,"Exportaciones (fob)",2013]
["P051","Tortillas de maíz, incluso tostadas, horneadas o fritas",0,"Exportaciones (fob)",2013]
["P052","Azúcar de caña sin refinar y refinada, melaza y los demás azúcares n.c.p.",7669.3661069999998,"Exportaciones (fob)",2013]
["P053","Productos alimenticios n.c.p.",2109.8661860000002,"Exportaciones (fob)",2013]
["P054","Preparados para alimentación animal",486.05105300000002,"Exportaciones (fob)",2013]
["P055","Aguardientes, licores, vinos, demás bebidas espirituosas y productos del tabaco",932.84012399999995,"Exportaciones (fob)",2013]
["P056","Malta y cerveza de malta",67.227592000000001,"Exportaciones (fob)",2013]
["P057","Bebidas no alcohólicas",805.80016000000001,"Exportaciones (fob)",2013]
["P058","Aguas minerales y otras aguas embotelladas",25.854832999999999,"Exportaciones (fob)",2013]
["P059","Hilados, tejidos, telas y otros productos textiles excepto prendas de vestir",1335.8201180000001,"Exportaciones (fob)",2013]
["P060","Prendas de vestir, adobo y teñido de pieles",2073.881085,"Exportaciones (fob)",2013]
["P061","Cuero de piel curtida o adobada y cuero artificial o regenerado y artículos de cuero",113.88449900000001,"Exportaciones (fob)",2013]
["P062","Calzado y sus partes, de cualquier material y de cualquier uso",284.04869600000001,"Exportaciones (fob)",2013]
["P063","Madera aserrada y acepillada, productos de madera, corcho, paja y materiales trenzables",500.09455800000001,"Exportaciones (fob)",2013]
["P064","Pasta de papel y papel",526.03469500000006,"Exportaciones (fob)",2013]
["P065","Envases de papel y cartón",922.03085299999998,"Exportaciones (fob)",2013]
["P066","Productos de la edición",76.934164999999993,"Exportaciones (fob)",2013]
["P067","Productos de la impresión",105.90377700000001,"Exportaciones (fob)",2013]
["P068","Gasolinas, diésel oil y fuel oils",997.97738500000003,"Exportaciones (fob)",2013]
["P069","Aceites, grasas lubricantes y otros aceites preparados",5.9842639999999996,"Exportaciones (fob)",2013]
["P070","Gases de petróleo, otros productos de la refinación de petróleo n.c.p.",1374.511616,"Exportaciones (fob)",2013]
["P071","Abonos, fertilizantes y pesticidas",1014.116533,"Exportaciones (fob)",2013]
["P072","Pinturas, barnices, tintas y productos relacionados",359.23313000000002,"Exportaciones (fob)",2013]
["P073","Jabón, preparados de limpieza, perfumes y preparados de toilet",1916.24686,"Exportaciones (fob)",2013]
["P074","Otros productos químicos",2328.073065,"Exportaciones (fob)",2013]
["P075","Productos farmacéuticos",999.62274200000002,"Exportaciones (fob)",2013]
["P076","Productos de caucho y plástico",2134.662448,"Exportaciones (fob)",2013]
["P077","Vidrio y productos de vidrio",374.12319500000001,"Exportaciones (fob)",2013]
["P078","Productos de cerámica y arcilla",373.82268299999998,"Exportaciones (fob)",2013]
["P079","Cemento, cal y yeso",87.707750000000004,"Exportaciones (fob)",2013]
["P080","Artículos de hormigón, cemento y yeso",18.384105999999999,"Exportaciones (fob)",2013]
["P081","Piedras talladas para construcción y otros productos minerales no metálicos n.c.p.",24.971747000000001,"Exportaciones (fob)",2013]
["P082","Métales básicos de hierro y acero, productos primarios de metales preciosos y otros metales no ferrosos",1546.010354,"Exportaciones (fob)",2013]
["P083","Productos metálicos estructurales y sus partes de hierro o de acero",133.16372699999999,"Exportaciones (fob)",2013]
["P084","Otros productos elaborados de metal",902.33774500000004,"Exportaciones (fob)",2013]
["P085","Maquinaria para usos generales y especiales, sus partes y piezas, excepto electrodomésticos",869.68060300000002,"Exportaciones (fob)",2013]
["P086","Electrodomésticos y sus partes",35.148442000000003,"Exportaciones (fob)",2013]
["P087","Maquinaria de oficina, contabilidad e informática, sus partes y piezas",34.289982000000002,"Exportaciones (fob)",2013]
["P088","Maquinaria y aparatos eléctricos, sus partes y piezas",265.69970599999999,"Exportaciones (fob)",2013]
["P089","Equipo y aparatos de radio, televisión y comunicaciones",167.41989699999999,"Exportaciones (fob)",2013]
["P090","Aparatos médicos, instrumentos ópticos y de precisión, relojes",91.584370000000007,"Exportaciones (fob)",2013]
["P091","Equipo de transporte",170.20729600000001,"Exportaciones (fob)",2013]
["P092","Muebles",362.18890199999998,"Exportaciones (fob)",2013]
["P093","Otros artículos n.c.p.",324.53353800000002,"Exportaciones (fob)",2013]
["P094","Residuos y desechos",625.65657999999996,"Exportaciones (fob)",2013]
["P095","Generación y distribución de energía eléctrica, gas, vapor y aire acondicionado",240.268396,"Exportaciones (fob)",2013]
["P096","Agua natural y distribución de agua natural",0,"Exportaciones (fob)",2013]
["P097","Evacuación de aguas residuales, recogida, tratamiento y eliminación de desechos",0,"Exportaciones (fob)",2013]
["P098","Edificaciones residenciales",0,"Exportaciones (fob)",2013]
["P099","Edificaciones no residenciales",0,"Exportaciones (fob)",2013]
["P100","Obras de ingeniería civil",0,"Exportaciones (fob)",2013]
["P101","Servicios generales y especializados de construcción",214.567116,"Exportaciones (fob)",2013]
["P102","Servicios de comercio",0,"Exportaciones (fob)",2013]
["P103","Mantenimiento y reparación de vehículos automotores y motocicletas",5.2266360000000001,"Exportaciones (fob)",2013]
["P104","Servicio de transporte de pasajeros por vía terrestre",5.2394230000000004,"Exportaciones (fob)",2013]
["P105","Servicio de transporte de carga por vía terrestre",719.79782899999998,"Exportaciones (fob)",2013]
["P106","Otros tipos de transporte",11.715173999999999,"Exportaciones (fob)",2013]
["P107","Servicios de almacenamiento y depósito",1.629894,"Exportaciones (fob)",2013]
["P108","Otros servicios de apoyo al transporte",1728.15969,"Exportaciones (fob)",2013]
["P109","Servicios postales y de mensajería",43.102684000000004,"Exportaciones (fob)",2013]
["P110","Servicio de alojamiento",0,"Exportaciones (fob)",2013]
["P111","Servicio de suministro de comidas y bebidas",33.324823000000002,"Exportaciones (fob)",2013]
["P112","Servicios de información, telecomunicaciones y radiodifusión",3535.478337,"Exportaciones (fob)",2013]
["P113","Servicios de banco central",0,"Exportaciones (fob)",2013]
["P114","Otros servicios financieros y servicios de banca de inversión",63.778551,"Exportaciones (fob)",2013]
["P115","Servicios de Intermediación Financiera Medidos Indirectamente (SIFMI)",131.67166800000001,"Exportaciones (fob)",2013]
["P116","Servicios de seguro, reaseguro y fondos de pensiones",236.77983800000001,"Exportaciones (fob)",2013]
["P117","Servicios auxiliares de la intermediación financiera",2.1205219999999998,"Exportaciones (fob)",2013]
["P118","Servicios de alquiler de vivienda",0,"Exportaciones (fob)",2013]
["P119","Otros servicios inmobiliarios, excepto alquiler de vivienda",0,"Exportaciones (fob)",2013]
["P120","Servicios jurídicos, de contabilidad, auditoría, teneduría de libros y consultoría fiscal",8.8639489999999999,"Exportaciones (fob)",2013]
["P121","Servicios de tecnología de la información",317.31404700000002,"Exportaciones (fob)",2013]
["P122","Servicios de arquitectura e ingeniería, ensayos y análisis técnicos",9.3152640000000009,"Exportaciones (fob)",2013]
["P123","Otros servicios profesionales, científicos y técnicos",227.09911600000001,"Exportaciones (fob)",2013]
["P124","Servicios de publicidad y estudios de mercado",37.836170000000003,"Exportaciones (fob)",2013]
["P125","Servicios de arrendamiento o alquiler sin operador",121.028423,"Exportaciones (fob)",2013]
["P126","Servicios  de agencias de empleo y de dotación de recursos humanos",0,"Exportaciones (fob)",2013]
["P127","Servicios de agencias de viajes, operadores turísticos y actividades conexas",443.79853300000002,"Exportaciones (fob)",2013]
["P128","Servicios de seguridad, sistemas de seguridad e investigación privada",8.0476980000000005,"Exportaciones (fob)",2013]
["P129","Servicios de limpieza",0,"Exportaciones (fob)",2013]
["P130","Servicios telefónicos de centros de llamadas",1847.9544450000001,"Exportaciones (fob)",2013]
["P131","Servicios administrativos, de apoyo de oficina y otros servicios de apoyo a las empresas",117.760099,"Exportaciones (fob)",2013]
["P132","Servicios de mantenimiento, reparación e instalación de productos metálicos elaborados, maquinaria y equipo",105.466978,"Exportaciones (fob)",2013]
["P133","Servicios de reparación de otros bienes",0,"Exportaciones (fob)",2013]
["P134","Servicios de apoyo a la agricultura, caza, silvicultura y pesca",0,"Exportaciones (fob)",2013]
["P135","Servicios de apoyo a la explotación de minas y canteras y los relacionados con la distribución de electricidad, gas y agua",0,"Exportaciones (fob)",2013]
["P136","Servicios de manufactura",3609.5874349999999,"Exportaciones (fob)",2013]
["P137","Servicios públicos del gobierno general",0,"Exportaciones (fob)",2013]
["P138","Servicios públicos administrativos relacionados con la provisión de servicios educativos, de salud, servicios sociales, culturales y otros, sin contar los servicios de seguridad social",0,"Exportaciones (fob)",2013]
["P139","Otros servicios administrativos",0,"Exportaciones (fob)",2013]
["P140","Servicios públicos administrativos prestados a la comunidad en su conjunto",25.349269,"Exportaciones (fob)",2013]
["P141","Servicios administrativos relacionados con los sistemas de seguridad social de afiliación obligatoria",0,"Exportaciones (fob)",2013]
["P142","Servicios de enseñanza",2.8947409999999998,"Exportaciones (fob)",2013]
["P143","Servicios de hospitalización",118.7062,"Exportaciones (fob)",2013]
["P144","Servicios médicos y dentales",175.05569399999999,"Exportaciones (fob)",2013]
["P145","Otros servicios de atención de la salud humana",53.569609,"Exportaciones (fob)",2013]
["P146","Servicios audiovisuales, recreativos, culturales y deportivos",0,"Exportaciones (fob)",2013]
["P147","Servicios de asociaciones que sirven a las empresas",0,"Exportaciones (fob)",2013]
["P148","Servicios de asociaciones que sirven a los hogares",0,"Exportaciones (fob)",2013]
["P149","Otros servicios",0,"Exportaciones (fob)",2013]
["P150","Servicios domésticos",0,"Exportaciones (fob)",2013]
["P151","Compras directas en el exterior por residentes",0,"Exportaciones (fob)",2013]
["P152","Compras directas en el territorio nacional por no residentes",9586.7075839999998,"Exportaciones (fob)",2013]
["P001","Maíz",38.522311999999999,"Variación de existencias (PC)",2013]
["P002","Frijoles",2.3093819999999998,"Variación de existencias (PC)",2013]
["P003","Leguminosas (legumbres secas) y semillas oleaginosas",-20.116133000000001,"Variación de existencias (PC)",2013]
["P004","Arroz",4.6070169999999999,"Variación de existencias (PC)",2013]
["P005","Otros cereales",-47.814194000000001,"Variación de existencias (PC)",2013]
["P006","Hortalizas",0,"Variación de existencias (PC)",2013]
["P007","Sandías y melones",17.736939,"Variación de existencias (PC)",2013]
["P008","Ejotes y arvejas",0,"Variación de existencias (PC)",2013]
["P009","Raíces y tubérculos",0,"Variación de existencias (PC)",2013]
["P010","Caña de azúcar y otras plantas azucareras",47.66095,"Variación de existencias (PC)",2013]
["P011","Tabaco y otras plantas no perennes",48.990738999999998,"Variación de existencias (PC)",2013]
["P012","Bananos, plátanos y otros",0,"Variación de existencias (PC)",2013]
["P013","Frutas tropicales y subtropicales",0,"Variación de existencias (PC)",2013]
["P014","Berries, otras frutas y semillas de frutas",0,"Variación de existencias (PC)",2013]
["P015","Palma africana",0,"Variación de existencias (PC)",2013]
["P016","Café en grano",-93.729144000000005,"Variación de existencias (PC)",2013]
["P017","Cardamomo",-108.194102,"Variación de existencias (PC)",2013]
["P018","Caucho natural",0,"Variación de existencias (PC)",2013]
["P019","Propagación de plantas",0,"Variación de existencias (PC)",2013]
["P020","Otros frutos oleaginosos, otras plantas bebestibles y especias aromáticas",0,"Variación de existencias (PC)",2013]
["P021","Ganado bovino",43.231946999999998,"Variación de existencias (PC)",2013]
["P022","Ganado porcino y otro tipo de animales vivos n.c.p.",0.56450299999999998,"Variación de existencias (PC)",2013]
["P023","Aves de corral",24.367279,"Variación de existencias (PC)",2013]
["P024","Leche cruda",0,"Variación de existencias (PC)",2013]
["P025","Huevos",0,"Variación de existencias (PC)",2013]
["P026","Otros productos de animales vivos",0,"Variación de existencias (PC)",2013]
["P027","Troncos de madera y leña",0,"Variación de existencias (PC)",2013]
["P028","Productos forestales no madereros",0,"Variación de existencias (PC)",2013]
["P029","Peces vivos, frescos o refrigerados",0,"Variación de existencias (PC)",2013]
["P030","Crustáceos sin congelar y otros productos de la pesca",92.126182,"Variación de existencias (PC)",2013]
["P031","Petróleo crudo y gas natural",23.071829000000001,"Variación de existencias (PC)",2013]
["P032","Minerales metálicos",10.669696999999999,"Variación de existencias (PC)",2013]
["P033","Minerales no metálicos",15.919783000000001,"Variación de existencias (PC)",2013]
["P034","Carne y despojos comestibles de ganado bovino; cueros y pieles de bovino y de otros animales",-4.7655380000000003,"Variación de existencias (PC)",2013]
["P035","Carne y despojos comestibles de ganado porcino",-5.5112639999999997,"Variación de existencias (PC)",2013]
["P036","Carne y despojos comestibles de aves",-29.385829999999999,"Variación de existencias (PC)",2013]
["P037","Carne y despojos de otros animales y conservas y preparados de carne",-14.39537,"Variación de existencias (PC)",2013]
["P038","Pescado congelado, preparado o en conserva y sus productos",4.4586990000000002,"Variación de existencias (PC)",2013]
["P039","Crustáceos, moluscos y demás invertebrados acuáticos congelados, preparados o en conserva y sus productos",-7.6377059999999997,"Variación de existencias (PC)",2013]
["P040","Vegetales preparados o en conserva, legumbres y papas",10.639802,"Variación de existencias (PC)",2013]
["P041","Preparaciones y conservas de frutas y nueces",7.1280700000000001,"Variación de existencias (PC)",2013]
["P042","Jugos de frutas",6.116987,"Variación de existencias (PC)",2013]
["P043","Aceites de origen vegetal",44.681260000000002,"Variación de existencias (PC)",2013]
["P044","Margarina, grasas y otros aceites de origen animal y vegetal",-1.056419,"Variación de existencias (PC)",2013]
["P045","Leche líquida y crema procesada",4.9160700000000004,"Variación de existencias (PC)",2013]
["P046","Otros productos lácteos n.c.p.",5.6652760000000004,"Variación de existencias (PC)",2013]
["P047","Harina de trigo",9.7068670000000008,"Variación de existencias (PC)",2013]
["P048","Arroz sin cáscara",8.0981229999999993,"Variación de existencias (PC)",2013]
["P049","Otros productos de molinería, almidones y productos de almidón",24.515027,"Variación de existencias (PC)",2013]
["P050","Pan y otros productos de panadería y repostería n.c.p.",0.58949099999999999,"Variación de existencias (PC)",2013]
["P051","Tortillas de maíz, incluso tostadas, horneadas o fritas",0.222383,"Variación de existencias (PC)",2013]
["P052","Azúcar de caña sin refinar y refinada, melaza y los demás azúcares n.c.p.",194.40995699999999,"Variación de existencias (PC)",2013]
["P053","Productos alimenticios n.c.p.",6.4244830000000004,"Variación de existencias (PC)",2013]
["P054","Preparados para alimentación animal",-54.762928000000002,"Variación de existencias (PC)",2013]
["P055","Aguardientes, licores, vinos, demás bebidas espirituosas y productos del tabaco",53.805402000000001,"Variación de existencias (PC)",2013]
["P056","Malta y cerveza de malta",45.609130999999998,"Variación de existencias (PC)",2013]
["P057","Bebidas no alcohólicas",119.7299,"Variación de existencias (PC)",2013]
["P058","Aguas minerales y otras aguas embotelladas",-1.5341549999999999,"Variación de existencias (PC)",2013]
["P059","Hilados, tejidos, telas y otros productos textiles excepto prendas de vestir",185.78274099999999,"Variación de existencias (PC)",2013]
["P060","Prendas de vestir, adobo y teñido de pieles",83.193389999999994,"Variación de existencias (PC)",2013]
["P061","Cuero de piel curtida o adobada y cuero artificial o regenerado y artículos de cuero",18.717103000000002,"Variación de existencias (PC)",2013]
["P062","Calzado y sus partes, de cualquier material y de cualquier uso",8.5595529999999993,"Variación de existencias (PC)",2013]
["P063","Madera aserrada y acepillada, productos de madera, corcho, paja y materiales trenzables",51.371003999999999,"Variación de existencias (PC)",2013]
["P064","Pasta de papel y papel",44.984838000000003,"Variación de existencias (PC)",2013]
["P065","Envases de papel y cartón",31.042867999999999,"Variación de existencias (PC)",2013]
["P066","Productos de la edición",51.080786000000003,"Variación de existencias (PC)",2013]
["P067","Productos de la impresión",16.612721000000001,"Variación de existencias (PC)",2013]
["P068","Gasolinas, diésel oil y fuel oils",287.14468900000003,"Variación de existencias (PC)",2013]
["P069","Aceites, grasas lubricantes y otros aceites preparados",29.549250000000001,"Variación de existencias (PC)",2013]
["P070","Gases de petróleo, otros productos de la refinación de petróleo n.c.p.",116.78220399999999,"Variación de existencias (PC)",2013]
["P071","Abonos, fertilizantes y pesticidas",52.725906000000002,"Variación de existencias (PC)",2013]
["P072","Pinturas, barnices, tintas y productos relacionados",6.1882320000000002,"Variación de existencias (PC)",2013]
["P073","Jabón, preparados de limpieza, perfumes y preparados de toilet",-10.877476,"Variación de existencias (PC)",2013]
["P074","Otros productos químicos",202.90087500000001,"Variación de existencias (PC)",2013]
["P075","Productos farmacéuticos",43.461911000000001,"Variación de existencias (PC)",2013]
["P076","Productos de caucho y plástico",-34.934767999999998,"Variación de existencias (PC)",2013]
["P077","Vidrio y productos de vidrio",6.1199640000000004,"Variación de existencias (PC)",2013]
["P078","Productos de cerámica y arcilla",26.138314000000001,"Variación de existencias (PC)",2013]
["P079","Cemento, cal y yeso",57.061534999999999,"Variación de existencias (PC)",2013]
["P080","Artículos de hormigón, cemento y yeso",25.576287000000001,"Variación de existencias (PC)",2013]
["P081","Piedras talladas para construcción y otros productos minerales no metálicos n.c.p.",18.284002999999998,"Variación de existencias (PC)",2013]
["P082","Métales básicos de hierro y acero, productos primarios de metales preciosos y otros metales no ferrosos",255.79484199999999,"Variación de existencias (PC)",2013]
["P083","Productos metálicos estructurales y sus partes de hierro o de acero",20.659673000000002,"Variación de existencias (PC)",2013]
["P084","Otros productos elaborados de metal",114.380008,"Variación de existencias (PC)",2013]
["P085","Maquinaria para usos generales y especiales, sus partes y piezas, excepto electrodomésticos",65.184003000000004,"Variación de existencias (PC)",2013]
["P086","Electrodomésticos y sus partes",6.7396609999999999,"Variación de existencias (PC)",2013]
["P087","Maquinaria de oficina, contabilidad e informática, sus partes y piezas",2.9350689999999999,"Variación de existencias (PC)",2013]
["P088","Maquinaria y aparatos eléctricos, sus partes y piezas",128.12347399999999,"Variación de existencias (PC)",2013]
["P089","Equipo y aparatos de radio, televisión y comunicaciones",142.34465700000001,"Variación de existencias (PC)",2013]
["P090","Aparatos médicos, instrumentos ópticos y de precisión, relojes",46.250824000000001,"Variación de existencias (PC)",2013]
["P091","Equipo de transporte",15.121689,"Variación de existencias (PC)",2013]
["P092","Muebles",19.621948,"Variación de existencias (PC)",2013]
["P093","Otros artículos n.c.p.",9.6827140000000007,"Variación de existencias (PC)",2013]
["P094","Residuos y desechos",7.0708849999999996,"Variación de existencias (PC)",2013]
["P095","Generación y distribución de energía eléctrica, gas, vapor y aire acondicionado",0,"Variación de existencias (PC)",2013]
["P096","Agua natural y distribución de agua natural",0,"Variación de existencias (PC)",2013]
["P097","Evacuación de aguas residuales, recogida, tratamiento y eliminación de desechos",0,"Variación de existencias (PC)",2013]
["P098","Edificaciones residenciales",435.86247200000003,"Variación de existencias (PC)",2013]
["P099","Edificaciones no residenciales",16.616617999999999,"Variación de existencias (PC)",2013]
["P100","Obras de ingeniería civil",0,"Variación de existencias (PC)",2013]
["P101","Servicios generales y especializados de construcción",0,"Variación de existencias (PC)",2013]
["P102","Servicios de comercio",0,"Variación de existencias (PC)",2013]
["P103","Mantenimiento y reparación de vehículos automotores y motocicletas",0,"Variación de existencias (PC)",2013]
["P104","Servicio de transporte de pasajeros por vía terrestre",0,"Variación de existencias (PC)",2013]
["P105","Servicio de transporte de carga por vía terrestre",0,"Variación de existencias (PC)",2013]
["P106","Otros tipos de transporte",0,"Variación de existencias (PC)",2013]
["P107","Servicios de almacenamiento y depósito",0,"Variación de existencias (PC)",2013]
["P108","Otros servicios de apoyo al transporte",0,"Variación de existencias (PC)",2013]
["P109","Servicios postales y de mensajería",0,"Variación de existencias (PC)",2013]
["P110","Servicio de alojamiento",0,"Variación de existencias (PC)",2013]
["P111","Servicio de suministro de comidas y bebidas",0,"Variación de existencias (PC)",2013]
["P112","Servicios de información, telecomunicaciones y radiodifusión",0,"Variación de existencias (PC)",2013]
["P113","Servicios de banco central",0,"Variación de existencias (PC)",2013]
["P114","Otros servicios financieros y servicios de banca de inversión",0,"Variación de existencias (PC)",2013]
["P115","Servicios de Intermediación Financiera Medidos Indirectamente (SIFMI)",0,"Variación de existencias (PC)",2013]
["P116","Servicios de seguro, reaseguro y fondos de pensiones",0,"Variación de existencias (PC)",2013]
["P117","Servicios auxiliares de la intermediación financiera",0,"Variación de existencias (PC)",2013]
["P118","Servicios de alquiler de vivienda",0,"Variación de existencias (PC)",2013]
["P119","Otros servicios inmobiliarios, excepto alquiler de vivienda",0,"Variación de existencias (PC)",2013]
["P120","Servicios jurídicos, de contabilidad, auditoría, teneduría de libros y consultoría fiscal",0,"Variación de existencias (PC)",2013]
["P121","Servicios de tecnología de la información",0,"Variación de existencias (PC)",2013]
["P122","Servicios de arquitectura e ingeniería, ensayos y análisis técnicos",0,"Variación de existencias (PC)",2013]
["P123","Otros servicios profesionales, científicos y técnicos",0,"Variación de existencias (PC)",2013]
["P124","Servicios de publicidad y estudios de mercado",0,"Variación de existencias (PC)",2013]
["P125","Servicios de arrendamiento o alquiler sin operador",0,"Variación de existencias (PC)",2013]
["P126","Servicios  de agencias de empleo y de dotación de recursos humanos",0,"Variación de existencias (PC)",2013]
["P127","Servicios de agencias de viajes, operadores turísticos y actividades conexas",0,"Variación de existencias (PC)",2013]
["P128","Servicios de seguridad, sistemas de seguridad e investigación privada",0,"Variación de existencias (PC)",2013]
["P129","Servicios de limpieza",0,"Variación de existencias (PC)",2013]
["P130","Servicios telefónicos de centros de llamadas",0,"Variación de existencias (PC)",2013]
["P131","Servicios administrativos, de apoyo de oficina y otros servicios de apoyo a las empresas",0,"Variación de existencias (PC)",2013]
["P132","Servicios de mantenimiento, reparación e instalación de productos metálicos elaborados, maquinaria y equipo",0,"Variación de existencias (PC)",2013]
["P133","Servicios de reparación de otros bienes",0,"Variación de existencias (PC)",2013]
["P134","Servicios de apoyo a la agricultura, caza, silvicultura y pesca",0,"Variación de existencias (PC)",2013]
["P135","Servicios de apoyo a la explotación de minas y canteras y los relacionados con la distribución de electricidad, gas y agua",0,"Variación de existencias (PC)",2013]
["P136","Servicios de manufactura",0,"Variación de existencias (PC)",2013]
["P137","Servicios públicos del gobierno general",0,"Variación de existencias (PC)",2013]
["P138","Servicios públicos administrativos relacionados con la provisión de servicios educativos, de salud, servicios sociales, culturales y otros, sin contar los servicios de seguridad social",0,"Variación de existencias (PC)",2013]
["P139","Otros servicios administrativos",0,"Variación de existencias (PC)",2013]
["P140","Servicios públicos administrativos prestados a la comunidad en su conjunto",0,"Variación de existencias (PC)",2013]
["P141","Servicios administrativos relacionados con los sistemas de seguridad social de afiliación obligatoria",0,"Variación de existencias (PC)",2013]
["P142","Servicios de enseñanza",0,"Variación de existencias (PC)",2013]
["P143","Servicios de hospitalización",0,"Variación de existencias (PC)",2013]
["P144","Servicios médicos y dentales",0,"Variación de existencias (PC)",2013]
["P145","Otros servicios de atención de la salud humana",0,"Variación de existencias (PC)",2013]
["P146","Servicios audiovisuales, recreativos, culturales y deportivos",0,"Variación de existencias (PC)",2013]
["P147","Servicios de asociaciones que sirven a las empresas",0,"Variación de existencias (PC)",2013]
["P148","Servicios de asociaciones que sirven a los hogares",0,"Variación de existencias (PC)",2013]
["P149","Otros servicios",0,"Variación de existencias (PC)",2013]
["P150","Servicios domésticos",0,"Variación de existencias (PC)",2013]
["P151","Compras directas en el exterior por residentes",0,"Variación de existencias (PC)",2013]
["P152","Compras directas en el territorio nacional por no residentes",0,"Variación de existencias (PC)",2013]
["P001","Maíz",0,"Ajuste CIF/FOB",2013]
["P002","Frijoles",0,"Ajuste CIF/FOB",2013]
["P003","Leguminosas (legumbres secas) y semillas oleaginosas",0,"Ajuste CIF/FOB",2013]
["P004","Arroz",0,"Ajuste CIF/FOB",2013]
["P005","Otros cereales",0,"Ajuste CIF/FOB",2013]
["P006","Hortalizas",0,"Ajuste CIF/FOB",2013]
["P007","Sandías y melones",0,"Ajuste CIF/FOB",2013]
["P008","Ejotes y arvejas",0,"Ajuste CIF/FOB",2013]
["P009","Raíces y tubérculos",0,"Ajuste CIF/FOB",2013]
["P010","Caña de azúcar y otras plantas azucareras",0,"Ajuste CIF/FOB",2013]
["P011","Tabaco y otras plantas no perennes",0,"Ajuste CIF/FOB",2013]
["P012","Bananos, plátanos y otros",0,"Ajuste CIF/FOB",2013]
["P013","Frutas tropicales y subtropicales",0,"Ajuste CIF/FOB",2013]
["P014","Berries, otras frutas y semillas de frutas",0,"Ajuste CIF/FOB",2013]
["P015","Palma africana",0,"Ajuste CIF/FOB",2013]
["P016","Café en grano",0,"Ajuste CIF/FOB",2013]
["P017","Cardamomo",0,"Ajuste CIF/FOB",2013]
["P018","Caucho natural",0,"Ajuste CIF/FOB",2013]
["P019","Propagación de plantas",0,"Ajuste CIF/FOB",2013]
["P020","Otros frutos oleaginosos, otras plantas bebestibles y especias aromáticas",0,"Ajuste CIF/FOB",2013]
["P021","Ganado bovino",0,"Ajuste CIF/FOB",2013]
["P022","Ganado porcino y otro tipo de animales vivos n.c.p.",0,"Ajuste CIF/FOB",2013]
["P023","Aves de corral",0,"Ajuste CIF/FOB",2013]
["P029","Peces vivos, frescos o refrigerados",0,"Ajuste CIF/FOB",2013]
["P040","Vegetales preparados o en conserva, legumbres y papas",0,"Ajuste CIF/FOB",2013]
["P052","Azúcar de caña sin refinar y refinada, melaza y los demás azúcares n.c.p.",0,"Ajuste CIF/FOB",2013]
["P057","Bebidas no alcohólicas",0,"Ajuste CIF/FOB",2013]
["P067","Productos de la impresión",0,"Ajuste CIF/FOB",2013]
["P078","Productos de cerámica y arcilla",0,"Ajuste CIF/FOB",2013]
["P093","Otros artículos n.c.p.",0,"Ajuste CIF/FOB",2013]
["P105","Servicio de transporte de carga por vía terrestre",-1532.304774,"Ajuste CIF/FOB",2013]
["P108","Otros servicios de apoyo al transporte",0,"Ajuste CIF/FOB",2013]
["P122","Servicios de arquitectura e ingeniería, ensayos y análisis técnicos",0,"Ajuste CIF/FOB",2013]
["P137","Servicios públicos del gobierno general",0,"Ajuste CIF/FOB",2013]
["P139","Otros servicios administrativos",0,"Ajuste CIF/FOB",2013]
["P002","Frijoles",1612.822377,"Producción (PB)",2014]
["P009","Raíces y tubérculos",1928.215543,"Producción (PB)",2014]
["P019","Propagación de plantas",536.41789600000004,"Producción (PB)",2014]
["P035","Carne y despojos comestibles de ganado porcino",1422.1869630000001,"Producción (PB)",2014]
["P046","Otros productos lácteos n.c.p.",2031.5739189999999,"Producción (PB)",2014]
["P050","Pan y otros productos de panadería y repostería n.c.p.",7894.9729260000004,"Producción (PB)",2014]
["P067","Productos de la impresión",1694.942716,"Producción (PB)",2014]
["P076","Productos de caucho y plástico",8819.679639,"Producción (PB)",2014]
["P084","Otros productos elaborados de metal",2481.5046560000001,"Producción (PB)",2014]
["P095","Generación y distribución de energía eléctrica, gas, vapor y aire acondicionado",14656.478435000001,"Producción (PB)",2014]
["P107","Servicios de almacenamiento y depósito",287.24301600000001,"Producción (PB)",2014]
["P116","Servicios de seguro, reaseguro y fondos de pensiones",4090.8369320000002,"Producción (PB)",2014]
["P122","Servicios de arquitectura e ingeniería, ensayos y análisis técnicos",2573.545513,"Producción (PB)",2014]
["P133","Servicios de reparación de otros bienes",1310.4733120000001,"Producción (PB)",2014]
["P144","Servicios médicos y dentales",5259.3340079999998,"Producción (PB)",2014]
["P008","Ejotes y arvejas",0,"Impuestos sobre los productos, excepto IVA e impuestos sobre las importaciones",2014]
["P018","Caucho natural",0,"Impuestos sobre los productos, excepto IVA e impuestos sobre las importaciones",2014]
["P025","Huevos",0,"Impuestos sobre los productos, excepto IVA e impuestos sobre las importaciones",2014]
["P033","Minerales no metálicos",0,"Impuestos sobre los productos, excepto IVA e impuestos sobre las importaciones",2014]
["P046","Otros productos lácteos n.c.p.",1.3740129999999999,"Impuestos sobre los productos, excepto IVA e impuestos sobre las importaciones",2014]
["P057","Bebidas no alcohólicas",257.77449899999999,"Impuestos sobre los productos, excepto IVA e impuestos sobre las importaciones",2014]
["P064","Pasta de papel y papel",0,"Impuestos sobre los productos, excepto IVA e impuestos sobre las importaciones",2014]
["P078","Productos de cerámica y arcilla",0,"Impuestos sobre los productos, excepto IVA e impuestos sobre las importaciones",2014]
["P090","Aparatos médicos, instrumentos ópticos y de precisión, relojes",0,"Impuestos sobre los productos, excepto IVA e impuestos sobre las importaciones",2014]
["P105","Servicio de transporte de carga por vía terrestre",0,"Impuestos sobre los productos, excepto IVA e impuestos sobre las importaciones",2014]
["P116","Servicios de seguro, reaseguro y fondos de pensiones",14.966597999999999,"Impuestos sobre los productos, excepto IVA e impuestos sobre las importaciones",2014]
["P122","Servicios de arquitectura e ingeniería, ensayos y análisis técnicos",0,"Impuestos sobre los productos, excepto IVA e impuestos sobre las importaciones",2014]
["P127","Servicios de agencias de viajes, operadores turísticos y actividades conexas",0,"Impuestos sobre los productos, excepto IVA e impuestos sobre las importaciones",2014]
["P139","Otros servicios administrativos",0,"Impuestos sobre los productos, excepto IVA e impuestos sobre las importaciones",2014]
["P001","Maíz",0,"Subvenciones a los productos",2014]
["P014","Berries, otras frutas y semillas de frutas",0,"Subvenciones a los productos",2014]
["P019","Propagación de plantas",0,"Subvenciones a los productos",2014]
["P032","Minerales metálicos",0,"Subvenciones a los productos",2014]
["P046","Otros productos lácteos n.c.p.",0,"Subvenciones a los productos",2014]
["P058","Aguas minerales y otras aguas embotelladas",0,"Subvenciones a los productos",2014]
["P067","Productos de la impresión",0,"Subvenciones a los productos",2014]
["P073","Jabón, preparados de limpieza, perfumes y preparados de toilet",0,"Subvenciones a los productos",2014]
["P084","Otros productos elaborados de metal",0,"Subvenciones a los productos",2014]
["P099","Edificaciones no residenciales",0,"Subvenciones a los productos",2014]
["P101","Servicios generales y especializados de construcción",0,"Subvenciones a los productos",2014]
["P121","Servicios de tecnología de la información",0,"Subvenciones a los productos",2014]
["P128","Servicios de seguridad, sistemas de seguridad e investigación privada",0,"Subvenciones a los productos",2014]
["P133","Servicios de reparación de otros bienes",0,"Subvenciones a los productos",2014]
["P145","Otros servicios de atención de la salud humana",0,"Subvenciones a los productos",2014]
["P008","Ejotes y arvejas",4.6894130000000001,"Importaciones (CIF)",2014]
["P015","Palma africana",26.97448,"Importaciones (CIF)",2014]
["P025","Huevos",551.40237500000001,"Importaciones (CIF)",2014]
["P041","Preparaciones y conservas de frutas y nueces",496.76477599999998,"Importaciones (CIF)",2014]
["P046","Otros productos lácteos n.c.p.",1137.0673220000001,"Importaciones (CIF)",2014]
["P056","Malta y cerveza de malta",338.49989199999999,"Importaciones (CIF)",2014]
["P073","Jabón, preparados de limpieza, perfumes y preparados de toilet",2392.0502069999998,"Importaciones (CIF)",2014]
["P082","Métales básicos de hierro y acero, productos primarios de metales preciosos y otros metales no ferrosos",5789.0079379999997,"Importaciones (CIF)",2014]
["P090","Aparatos médicos, instrumentos ópticos y de precisión, relojes",1807.377988,"Importaciones (CIF)",2014]
["P095","Generación y distribución de energía eléctrica, gas, vapor y aire acondicionado",356.79157800000002,"Importaciones (CIF)",2014]
["P113","Servicios de banco central",0,"Importaciones (CIF)",2014]
["P122","Servicios de arquitectura e ingeniería, ensayos y análisis técnicos",28.308205999999998,"Importaciones (CIF)",2014]
["P135","Servicios de apoyo a la explotación de minas y canteras y los relacionados con la distribución de electricidad, gas y agua",0,"Importaciones (CIF)",2014]
["P139","Otros servicios administrativos",0,"Importaciones (CIF)",2014]
["P150","Servicios domésticos",0,"Importaciones (CIF)",2014]
["P014","Berries, otras frutas y semillas de frutas",2.763865,"Impuestos y derechos sobre las importaciones excepto IVA",2014]
["P024","Leche cruda",0,"Impuestos y derechos sobre las importaciones excepto IVA",2014]
["P035","Carne y despojos comestibles de ganado porcino",3.9901930000000001,"Impuestos y derechos sobre las importaciones excepto IVA",2014]
["P039","Crustáceos, moluscos y demás invertebrados acuáticos congelados, preparados o en conserva y sus productos",1.598984,"Impuestos y derechos sobre las importaciones excepto IVA",2014]
["P052","Azúcar de caña sin refinar y refinada, melaza y los demás azúcares n.c.p.",0.35434399999999999,"Impuestos y derechos sobre las importaciones excepto IVA",2014]
["P063","Madera aserrada y acepillada, productos de madera, corcho, paja y materiales trenzables",16.742180999999999,"Impuestos y derechos sobre las importaciones excepto IVA",2014]
["P070","Gases de petróleo, otros productos de la refinación de petróleo n.c.p.",8.7363999999999997E-2,"Impuestos y derechos sobre las importaciones excepto IVA",2014]
["P084","Otros productos elaborados de metal",60.496510999999998,"Impuestos y derechos sobre las importaciones excepto IVA",2014]
["P096","Agua natural y distribución de agua natural",0,"Impuestos y derechos sobre las importaciones excepto IVA",2014]
["P101","Servicios generales y especializados de construcción",0,"Impuestos y derechos sobre las importaciones excepto IVA",2014]
["P118","Servicios de alquiler de vivienda",0,"Impuestos y derechos sobre las importaciones excepto IVA",2014]
["P128","Servicios de seguridad, sistemas de seguridad e investigación privada",0,"Impuestos y derechos sobre las importaciones excepto IVA",2014]
["P133","Servicios de reparación de otros bienes",0,"Impuestos y derechos sobre las importaciones excepto IVA",2014]
["P145","Otros servicios de atención de la salud humana",0,"Impuestos y derechos sobre las importaciones excepto IVA",2014]
["P007","Sandías y melones",8.4435129999999994,"Impuesto tipo valor agregado (IVA)",2014]
["P014","Berries, otras frutas y semillas de frutas",63.227978,"Impuesto tipo valor agregado (IVA)",2014]
["P025","Huevos",200.9391,"Impuesto tipo valor agregado (IVA)",2014]
["P038","Pescado congelado, preparado o en conserva y sus productos",8.6806249999999991,"Impuesto tipo valor agregado (IVA)",2014]
["P046","Otros productos lácteos n.c.p.",250.09529900000001,"Impuesto tipo valor agregado (IVA)",2014]
["P053","Productos alimenticios n.c.p.",711.14687700000002,"Impuesto tipo valor agregado (IVA)",2014]
["P063","Madera aserrada y acepillada, productos de madera, corcho, paja y materiales trenzables",22.117715,"Impuesto tipo valor agregado (IVA)",2014]
["P079","Cemento, cal y yeso",80.16901,"Impuesto tipo valor agregado (IVA)",2014]
["P090","Aparatos médicos, instrumentos ópticos y de precisión, relojes",52.850695999999999,"Impuesto tipo valor agregado (IVA)",2014]
["P101","Servicios generales y especializados de construcción",223.69913299999999,"Impuesto tipo valor agregado (IVA)",2014]
["P107","Servicios de almacenamiento y depósito",0.80583199999999999,"Impuesto tipo valor agregado (IVA)",2014]
["P116","Servicios de seguro, reaseguro y fondos de pensiones",441.83111600000001,"Impuesto tipo valor agregado (IVA)",2014]
["P134","Servicios de apoyo a la agricultura, caza, silvicultura y pesca",6.354006,"Impuesto tipo valor agregado (IVA)",2014]
["P139","Otros servicios administrativos",0,"Impuesto tipo valor agregado (IVA)",2014]
["P147","Servicios de asociaciones que sirven a las empresas",0.160106,"Impuesto tipo valor agregado (IVA)",2014]
["P014","Berries, otras frutas y semillas de frutas",3022.7459239999998,"Márgenes de comercio, transporte y distribución de energía",2014]
["P021","Ganado bovino",325.13489700000002,"Márgenes de comercio, transporte y distribución de energía",2014]
["P035","Carne y despojos comestibles de ganado porcino",331.75761499999999,"Márgenes de comercio, transporte y distribución de energía",2014]
["P036","Carne y despojos comestibles de aves",2426.8033340000002,"Márgenes de comercio, transporte y distribución de energía",2014]
["P052","Azúcar de caña sin refinar y refinada, melaza y los demás azúcares n.c.p.",2224.761579,"Márgenes de comercio, transporte y distribución de energía",2014]
["P062","Calzado y sus partes, de cualquier material y de cualquier uso",2256.0075489999999,"Márgenes de comercio, transporte y distribución de energía",2014]
["P069","Aceites, grasas lubricantes y otros aceites preparados",270.68410699999998,"Márgenes de comercio, transporte y distribución de energía",2014]
["P084","Otros productos elaborados de metal",698.56937600000003,"Márgenes de comercio, transporte y distribución de energía",2014]
["P096","Agua natural y distribución de agua natural",0,"Márgenes de comercio, transporte y distribución de energía",2014]
["P101","Servicios generales y especializados de construcción",0,"Márgenes de comercio, transporte y distribución de energía",2014]
["P119","Otros servicios inmobiliarios, excepto alquiler de vivienda",0,"Márgenes de comercio, transporte y distribución de energía",2014]
["P128","Servicios de seguridad, sistemas de seguridad e investigación privada",0,"Márgenes de comercio, transporte y distribución de energía",2014]
["P130","Servicios telefónicos de centros de llamadas",0,"Márgenes de comercio, transporte y distribución de energía",2014]
["P145","Otros servicios de atención de la salud humana",0,"Márgenes de comercio, transporte y distribución de energía",2014]
["P004","Arroz",436.52175,"Consumo Intermedio (PC)",2014]
["P014","Berries, otras frutas y semillas de frutas",484.09284200000002,"Consumo Intermedio (PC)",2014]
["P030","Crustáceos sin congelar y otros productos de la pesca",446.71878600000002,"Consumo Intermedio (PC)",2014]
["P031","Petróleo crudo y gas natural",308.56360699999999,"Consumo Intermedio (PC)",2014]
["P045","Leche líquida y crema procesada",255.523425,"Consumo Intermedio (PC)",2014]
["P058","Aguas minerales y otras aguas embotelladas",307.08155499999998,"Consumo Intermedio (PC)",2014]
["P063","Madera aserrada y acepillada, productos de madera, corcho, paja y materiales trenzables",3756.877027,"Consumo Intermedio (PC)",2014]
["P076","Productos de caucho y plástico",10328.265083,"Consumo Intermedio (PC)",2014]
["P090","Aparatos médicos, instrumentos ópticos y de precisión, relojes",615.61312299999997,"Consumo Intermedio (PC)",2014]
["P098","Edificaciones residenciales",0,"Consumo Intermedio (PC)",2014]
["P107","Servicios de almacenamiento y depósito",286.02220599999998,"Consumo Intermedio (PC)",2014]
["P124","Servicios de publicidad y estudios de mercado",4921.2014499999996,"Consumo Intermedio (PC)",2014]
["P134","Servicios de apoyo a la agricultura, caza, silvicultura y pesca",2983.7523679999999,"Consumo Intermedio (PC)",2014]
["P139","Otros servicios administrativos",0,"Consumo Intermedio (PC)",2014]
["P003","Leguminosas (legumbres secas) y semillas oleaginosas",172.20721,"Consumo Final privado (PC)",2014]
["P013","Frutas tropicales y subtropicales",3985.6252829999999,"Consumo Final privado (PC)",2014]
["P020","Otros frutos oleaginosos, otras plantas bebestibles y especias aromáticas",295.92445300000003,"Consumo Final privado (PC)",2014]
["P031","Petróleo crudo y gas natural",0,"Consumo Final privado (PC)",2014]
["P044","Margarina, grasas y otros aceites de origen animal y vegetal",834.40381200000002,"Consumo Final privado (PC)",2014]
["P052","Azúcar de caña sin refinar y refinada, melaza y los demás azúcares n.c.p.",5030.0892979999999,"Consumo Final privado (PC)",2014]
["P059","Hilados, tejidos, telas y otros productos textiles excepto prendas de vestir",2834.019718,"Consumo Final privado (PC)",2014]
["P069","Aceites, grasas lubricantes y otros aceites preparados",70.801085,"Consumo Final privado (PC)",2014]
["P081","Piedras talladas para construcción y otros productos minerales no metálicos n.c.p.",50.593978999999997,"Consumo Final privado (PC)",2014]
["P096","Agua natural y distribución de agua natural",1302.2188410000001,"Consumo Final privado (PC)",2014]
["P107","Servicios de almacenamiento y depósito",0,"Consumo Final privado (PC)",2014]
["P113","Servicios de banco central",0,"Consumo Final privado (PC)",2014]
["P122","Servicios de arquitectura e ingeniería, ensayos y análisis técnicos",96.351512999999997,"Consumo Final privado (PC)",2014]
["P134","Servicios de apoyo a la agricultura, caza, silvicultura y pesca",0,"Consumo Final privado (PC)",2014]
["P145","Otros servicios de atención de la salud humana",2525.522927,"Consumo Final privado (PC)",2014]
["P001","Maíz",121.93507,"Consumo Final del Gobierno (PC)",2014]
["P010","Caña de azúcar y otras plantas azucareras",0,"Consumo Final del Gobierno (PC)",2014]
["P027","Troncos de madera y leña",0,"Consumo Final del Gobierno (PC)",2014]
["P031","Petróleo crudo y gas natural",0,"Consumo Final del Gobierno (PC)",2014]
["P042","Jugos de frutas",0,"Consumo Final del Gobierno (PC)",2014]
["P058","Aguas minerales y otras aguas embotelladas",1.187438,"Consumo Final del Gobierno (PC)",2014]
["P064","Pasta de papel y papel",13.967839,"Consumo Final del Gobierno (PC)",2014]
["P075","Productos farmacéuticos",2811.2176290000002,"Consumo Final del Gobierno (PC)",2014]
["P090","Aparatos médicos, instrumentos ópticos y de precisión, relojes",8.1330620000000007,"Consumo Final del Gobierno (PC)",2014]
["P102","Servicios de comercio",0,"Consumo Final del Gobierno (PC)",2014]
["P107","Servicios de almacenamiento y depósito",0,"Consumo Final del Gobierno (PC)",2014]
["P121","Servicios de tecnología de la información",0,"Consumo Final del Gobierno (PC)",2014]
["P124","Servicios de publicidad y estudios de mercado",0,"Consumo Final del Gobierno (PC)",2014]
["P136","Servicios de manufactura",0,"Consumo Final del Gobierno (PC)",2014]
["P145","Otros servicios de atención de la salud humana",247.55115699999999,"Consumo Final del Gobierno (PC)",2014]
["P010","Caña de azúcar y otras plantas azucareras",0,"Formación Bruta de Capital Fijo (PC)",2014]
["P020","Otros frutos oleaginosos, otras plantas bebestibles y especias aromáticas",7.1496810000000002,"Formación Bruta de Capital Fijo (PC)",2014]
["P025","Huevos",0,"Formación Bruta de Capital Fijo (PC)",2014]
["P037","Carne y despojos de otros animales y conservas y preparados de carne",0,"Formación Bruta de Capital Fijo (PC)",2014]
["P047","Harina de trigo",0,"Formación Bruta de Capital Fijo (PC)",2014]
["P064","Pasta de papel y papel",0,"Formación Bruta de Capital Fijo (PC)",2014]
["P069","Aceites, grasas lubricantes y otros aceites preparados",0,"Formación Bruta de Capital Fijo (PC)",2014]
["P082","Métales básicos de hierro y acero, productos primarios de metales preciosos y otros metales no ferrosos",0,"Formación Bruta de Capital Fijo (PC)",2014]
["P096","Agua natural y distribución de agua natural",0,"Formación Bruta de Capital Fijo (PC)",2014]
["P104","Servicio de transporte de pasajeros por vía terrestre",0,"Formación Bruta de Capital Fijo (PC)",2014]
["P113","Servicios de banco central",0,"Formación Bruta de Capital Fijo (PC)",2014]
["P119","Otros servicios inmobiliarios, excepto alquiler de vivienda",0,"Formación Bruta de Capital Fijo (PC)",2014]
["P134","Servicios de apoyo a la agricultura, caza, silvicultura y pesca",0,"Formación Bruta de Capital Fijo (PC)",2014]
["P145","Otros servicios de atención de la salud humana",0,"Formación Bruta de Capital Fijo (PC)",2014]
["P151","Compras directas en el exterior por residentes",5.5135959999999997,"Formación Bruta de Capital Fijo (PC)",2014]
["P008","Ejotes y arvejas",700.26299600000004,"Exportaciones (fob)",2014]
["P026","Otros productos de animales vivos",50.620609000000002,"Exportaciones (fob)",2014]
["P031","Petróleo crudo y gas natural",1922.77134,"Exportaciones (fob)",2014]
["P039","Crustáceos, moluscos y demás invertebrados acuáticos congelados, preparados o en conserva y sus productos",820.79245200000003,"Exportaciones (fob)",2014]
["P058","Aguas minerales y otras aguas embotelladas",24.974178999999999,"Exportaciones (fob)",2014]
["P061","Cuero de piel curtida o adobada y cuero artificial o regenerado y artículos de cuero",103.859267,"Exportaciones (fob)",2014]
["P075","Productos farmacéuticos",1094.3457699999999,"Exportaciones (fob)",2014]
["P087","Maquinaria de oficina, contabilidad e informática, sus partes y piezas",27.059588000000002,"Exportaciones (fob)",2014]
["P092","Muebles",366.48760600000003,"Exportaciones (fob)",2014]
["P102","Servicios de comercio",0,"Exportaciones (fob)",2014]
["P113","Servicios de banco central",0,"Exportaciones (fob)",2014]
["P128","Servicios de seguridad, sistemas de seguridad e investigación privada",8.3780380000000001,"Exportaciones (fob)",2014]
["P140","Servicios públicos administrativos prestados a la comunidad en su conjunto",26.950944,"Exportaciones (fob)",2014]
["P151","Compras directas en el exterior por residentes",0,"Exportaciones (fob)",2014]
["P007","Sandías y melones",-19.133278000000001,"Variación de existencias (PC)",2014]
["P020","Otros frutos oleaginosos, otras plantas bebestibles y especias aromáticas",0,"Variación de existencias (PC)",2014]
["P033","Minerales no metálicos",133.27202299999999,"Variación de existencias (PC)",2014]
["P037","Carne y despojos de otros animales y conservas y preparados de carne",15.617502,"Variación de existencias (PC)",2014]
["P044","Margarina, grasas y otros aceites de origen animal y vegetal",22.907838000000002,"Variación de existencias (PC)",2014]
["P064","Pasta de papel y papel",17.821829999999999,"Variación de existencias (PC)",2014]
["P070","Gases de petróleo, otros productos de la refinación de petróleo n.c.p.",-12.841536,"Variación de existencias (PC)",2014]
["P081","Piedras talladas para construcción y otros productos minerales no metálicos n.c.p.",-1.20977,"Variación de existencias (PC)",2014]
["P096","Agua natural y distribución de agua natural",0,"Variación de existencias (PC)",2014]
["P102","Servicios de comercio",0,"Variación de existencias (PC)",2014]
["P113","Servicios de banco central",0,"Variación de existencias (PC)",2014]
["P127","Servicios de agencias de viajes, operadores turísticos y actividades conexas",0,"Variación de existencias (PC)",2014]
["P130","Servicios telefónicos de centros de llamadas",0,"Variación de existencias (PC)",2014]
["P142","Servicios de enseñanza",0,"Variación de existencias (PC)",2014]
["P151","Compras directas en el exterior por residentes",0,"Variación de existencias (PC)",2014]
["P016","Café en grano",0,"Ajuste CIF/FOB",2014]
["P026","Otros productos de animales vivos",0,"Ajuste CIF/FOB",2014]
["P038","Pescado congelado, preparado o en conserva y sus productos",0,"Ajuste CIF/FOB",2014]
["P043","Aceites de origen vegetal",0,"Ajuste CIF/FOB",2014]
["P053","Productos alimenticios n.c.p.",0,"Ajuste CIF/FOB",2014]
["P060","Prendas de vestir, adobo y teñido de pieles",0,"Ajuste CIF/FOB",2014]
["P075","Productos farmacéuticos",0,"Ajuste CIF/FOB",2014]
["P084","Otros productos elaborados de metal",0,"Ajuste CIF/FOB",2014]
["P092","Muebles",0,"Ajuste CIF/FOB",2014]
["P110","Servicio de alojamiento",0,"Ajuste CIF/FOB",2014]
["P113","Servicios de banco central",0,"Ajuste CIF/FOB",2014]
["P125","Servicios de arrendamiento o alquiler sin operador",0,"Ajuste CIF/FOB",2014]
["P140","Servicios públicos administrativos prestados a la comunidad en su conjunto",0,"Ajuste CIF/FOB",2014]
["P151","Compras directas en el exterior por residentes",0,"Ajuste CIF/FOB",2014]
["P005","Otros cereales",114.39124099999999,"Producción (PB)",2015]
["P021","Ganado bovino",4984.4814690000003,"Producción (PB)",2015]
["P032","Minerales metálicos",5729.6967139999997,"Producción (PB)",2015]
["P037","Carne y despojos de otros animales y conservas y preparados de carne",2976.1720009999999,"Producción (PB)",2015]
["P045","Leche líquida y crema procesada",1118.7707210000001,"Producción (PB)",2015]
["P054","Preparados para alimentación animal",6033.9863539999997,"Producción (PB)",2015]
["P067","Productos de la impresión",1748.334474,"Producción (PB)",2015]
["P081","Piedras talladas para construcción y otros productos minerales no metálicos n.c.p.",451.72042699999997,"Producción (PB)",2015]
["P093","Otros artículos n.c.p.",1669.8270010000001,"Producción (PB)",2015]
["P102","Servicios de comercio",114465.39195799999,"Producción (PB)",2015]
["P108","Otros servicios de apoyo al transporte",6775.6037779999997,"Producción (PB)",2015]
["P119","Otros servicios inmobiliarios, excepto alquiler de vivienda",12273.041088,"Producción (PB)",2015]
["P134","Servicios de apoyo a la agricultura, caza, silvicultura y pesca",2937.58862,"Producción (PB)",2015]
["P146","Servicios audiovisuales, recreativos, culturales y deportivos",2454.6592890000002,"Producción (PB)",2015]
["P151","Compras directas en el exterior por residentes",0,"Producción (PB)",2015]
["P013","Frutas tropicales y subtropicales",0,"Impuestos sobre los productos, excepto IVA e impuestos sobre las importaciones",2015]
["P026","Otros productos de animales vivos",0,"Impuestos sobre los productos, excepto IVA e impuestos sobre las importaciones",2015]
["P035","Carne y despojos comestibles de ganado porcino",0,"Impuestos sobre los productos, excepto IVA e impuestos sobre las importaciones",2015]
["P043","Aceites de origen vegetal",0,"Impuestos sobre los productos, excepto IVA e impuestos sobre las importaciones",2015]
["P050","Pan y otros productos de panadería y repostería n.c.p.",0,"Impuestos sobre los productos, excepto IVA e impuestos sobre las importaciones",2015]
["P060","Prendas de vestir, adobo y teñido de pieles",0,"Impuestos sobre los productos, excepto IVA e impuestos sobre las importaciones",2015]
["P076","Productos de caucho y plástico",0,"Impuestos sobre los productos, excepto IVA e impuestos sobre las importaciones",2015]
["P081","Piedras talladas para construcción y otros productos minerales no metálicos n.c.p.",0,"Impuestos sobre los productos, excepto IVA e impuestos sobre las importaciones",2015]
["P091","Equipo de transporte",0,"Impuestos sobre los productos, excepto IVA e impuestos sobre las importaciones",2015]
["P108","Otros servicios de apoyo al transporte",0,"Impuestos sobre los productos, excepto IVA e impuestos sobre las importaciones",2015]
["P119","Otros servicios inmobiliarios, excepto alquiler de vivienda",8.1700000000000002E-3,"Impuestos sobre los productos, excepto IVA e impuestos sobre las importaciones",2015]
["P122","Servicios de arquitectura e ingeniería, ensayos y análisis técnicos",0,"Impuestos sobre los productos, excepto IVA e impuestos sobre las importaciones",2015]
["P140","Servicios públicos administrativos prestados a la comunidad en su conjunto",0,"Impuestos sobre los productos, excepto IVA e impuestos sobre las importaciones",2015]
["P148","Servicios de asociaciones que sirven a los hogares",0,"Impuestos sobre los productos, excepto IVA e impuestos sobre las importaciones",2015]
["P005","Otros cereales",0,"Subvenciones a los productos",2015]
["P018","Caucho natural",0,"Subvenciones a los productos",2015]
["P022","Ganado porcino y otro tipo de animales vivos n.c.p.",0,"Subvenciones a los productos",2015]
["P033","Minerales no metálicos",0,"Subvenciones a los productos",2015]
["P049","Otros productos de molinería, almidones y productos de almidón",0,"Subvenciones a los productos",2015]
["P059","Hilados, tejidos, telas y otros productos textiles excepto prendas de vestir",0,"Subvenciones a los productos",2015]
["P070","Gases de petróleo, otros productos de la refinación de petróleo n.c.p.",0,"Subvenciones a los productos",2015]
["P081","Piedras talladas para construcción y otros productos minerales no metálicos n.c.p.",0,"Subvenciones a los productos",2015]
["P090","Aparatos médicos, instrumentos ópticos y de precisión, relojes",0,"Subvenciones a los productos",2015]
["P098","Edificaciones residenciales",0,"Subvenciones a los productos",2015]
["P105","Servicio de transporte de carga por vía terrestre",0,"Subvenciones a los productos",2015]
["P119","Otros servicios inmobiliarios, excepto alquiler de vivienda",0,"Subvenciones a los productos",2015]
["P131","Servicios administrativos, de apoyo de oficina y otros servicios de apoyo a las empresas",0,"Subvenciones a los productos",2015]
["P146","Servicios audiovisuales, recreativos, culturales y deportivos",0,"Subvenciones a los productos",2015]
["P001","Maíz",1937.5284630000001,"Importaciones (CIF)",2015]
["P011","Tabaco y otras plantas no perennes",406.32472100000001,"Importaciones (CIF)",2015]
["P016","Café en grano",0.29690699999999998,"Importaciones (CIF)",2015]
["P028","Productos forestales no madereros",11.154355000000001,"Importaciones (CIF)",2015]
["P043","Aceites de origen vegetal",652.18899299999998,"Importaciones (CIF)",2015]
["P047","Harina de trigo",245.415166,"Importaciones (CIF)",2015]
["P060","Prendas de vestir, adobo y teñido de pieles",2476.1333479999998,"Importaciones (CIF)",2015]
["P073","Jabón, preparados de limpieza, perfumes y preparados de toilet",2455.0150570000001,"Importaciones (CIF)",2015]
["P081","Piedras talladas para construcción y otros productos minerales no metálicos n.c.p.",188.218198,"Importaciones (CIF)",2015]
["P099","Edificaciones no residenciales",0,"Importaciones (CIF)",2015]
["P108","Otros servicios de apoyo al transporte",216.727135,"Importaciones (CIF)",2015]
["P114","Otros servicios financieros y servicios de banca de inversión",367.49656099999999,"Importaciones (CIF)",2015]
["P125","Servicios de arrendamiento o alquiler sin operador",1175.645264,"Importaciones (CIF)",2015]
["P136","Servicios de manufactura",0,"Importaciones (CIF)",2015]
["P142","Servicios de enseñanza",6.1630940000000001,"Importaciones (CIF)",2015]
["P005","Otros cereales",0.20588899999999999,"Impuestos y derechos sobre las importaciones excepto IVA",2015]
["P019","Propagación de plantas",0.41580499999999998,"Impuestos y derechos sobre las importaciones excepto IVA",2015]
["P022","Ganado porcino y otro tipo de animales vivos n.c.p.",0.16625999999999999,"Impuestos y derechos sobre las importaciones excepto IVA",2015]
["P041","Preparaciones y conservas de frutas y nueces",7.0642630000000004,"Impuestos y derechos sobre las importaciones excepto IVA",2015]
["P049","Otros productos de molinería, almidones y productos de almidón",8.19754,"Impuestos y derechos sobre las importaciones excepto IVA",2015]
["P056","Malta y cerveza de malta",28.880182999999999,"Impuestos y derechos sobre las importaciones excepto IVA",2015]
["P070","Gases de petróleo, otros productos de la refinación de petróleo n.c.p.",6.6267000000000006E-2,"Impuestos y derechos sobre las importaciones excepto IVA",2015]
["P082","Métales básicos de hierro y acero, productos primarios de metales preciosos y otros metales no ferrosos",34.422047999999997,"Impuestos y derechos sobre las importaciones excepto IVA",2015]
["P087","Maquinaria de oficina, contabilidad e informática, sus partes y piezas",0,"Impuestos y derechos sobre las importaciones excepto IVA",2015]
["P097","Evacuación de aguas residuales, recogida, tratamiento y eliminación de desechos",0,"Impuestos y derechos sobre las importaciones excepto IVA",2015]
["P114","Otros servicios financieros y servicios de banca de inversión",0,"Impuestos y derechos sobre las importaciones excepto IVA",2015]
["P119","Otros servicios inmobiliarios, excepto alquiler de vivienda",0,"Impuestos y derechos sobre las importaciones excepto IVA",2015]
["P128","Servicios de seguridad, sistemas de seguridad e investigación privada",0,"Impuestos y derechos sobre las importaciones excepto IVA",2015]
["P136","Servicios de manufactura",0,"Impuestos y derechos sobre las importaciones excepto IVA",2015]
["P002","Frijoles",85.440051999999994,"Impuesto tipo valor agregado (IVA)",2015]
["P011","Tabaco y otras plantas no perennes",11.391551,"Impuesto tipo valor agregado (IVA)",2015]
["P024","Leche cruda",0.82562000000000002,"Impuesto tipo valor agregado (IVA)",2015]
["P028","Productos forestales no madereros",1.0525850000000001,"Impuesto tipo valor agregado (IVA)",2015]
["P039","Crustáceos, moluscos y demás invertebrados acuáticos congelados, preparados o en conserva y sus productos",6.5022159999999998,"Impuesto tipo valor agregado (IVA)",2015]
["P049","Otros productos de molinería, almidones y productos de almidón",155.46698799999999,"Impuesto tipo valor agregado (IVA)",2015]
["P065","Envases de papel y cartón",4.7129180000000002,"Impuesto tipo valor agregado (IVA)",2015]
["P076","Productos de caucho y plástico",440.27921500000002,"Impuesto tipo valor agregado (IVA)",2015]
["P087","Maquinaria de oficina, contabilidad e informática, sus partes y piezas",96.320173999999994,"Impuesto tipo valor agregado (IVA)",2015]
["P096","Agua natural y distribución de agua natural",92.978689000000003,"Impuesto tipo valor agregado (IVA)",2015]
["P108","Otros servicios de apoyo al transporte",91.623902999999999,"Impuesto tipo valor agregado (IVA)",2015]
["P111","Servicio de suministro de comidas y bebidas",1549.55888,"Impuesto tipo valor agregado (IVA)",2015]
["P125","Servicios de arrendamiento o alquiler sin operador",129.20746500000001,"Impuesto tipo valor agregado (IVA)",2015]
["P133","Servicios de reparación de otros bienes",27.498260999999999,"Impuesto tipo valor agregado (IVA)",2015]
["P142","Servicios de enseñanza",34.382719000000002,"Impuesto tipo valor agregado (IVA)",2015]
["P007","Sandías y melones",296.780755,"Márgenes de comercio, transporte y distribución de energía",2015]
["P017","Cardamomo",60.493692000000003,"Márgenes de comercio, transporte y distribución de energía",2015]
["P022","Ganado porcino y otro tipo de animales vivos n.c.p.",87.139264999999995,"Márgenes de comercio, transporte y distribución de energía",2015]
["P038","Pescado congelado, preparado o en conserva y sus productos",133.961602,"Márgenes de comercio, transporte y distribución de energía",2015]
["P049","Otros productos de molinería, almidones y productos de almidón",884.09213999999997,"Márgenes de comercio, transporte y distribución de energía",2015]
["P053","Productos alimenticios n.c.p.",4368.6549260000002,"Márgenes de comercio, transporte y distribución de energía",2015]
["P066","Productos de la edición",645.29715899999997,"Márgenes de comercio, transporte y distribución de energía",2015]
["P079","Cemento, cal y yeso",407.58098699999999,"Márgenes de comercio, transporte y distribución de energía",2015]
["P087","Maquinaria de oficina, contabilidad e informática, sus partes y piezas",728.79397200000005,"Márgenes de comercio, transporte y distribución de energía",2015]
["P094","Residuos y desechos",438.67562099999998,"Márgenes de comercio, transporte y distribución de energía",2015]
["P104","Servicio de transporte de pasajeros por vía terrestre",0,"Márgenes de comercio, transporte y distribución de energía",2015]
["P116","Servicios de seguro, reaseguro y fondos de pensiones",0,"Márgenes de comercio, transporte y distribución de energía",2015]
["P131","Servicios administrativos, de apoyo de oficina y otros servicios de apoyo a las empresas",0,"Márgenes de comercio, transporte y distribución de energía",2015]
["P142","Servicios de enseñanza",0,"Márgenes de comercio, transporte y distribución de energía",2015]
["P148","Servicios de asociaciones que sirven a los hogares",0,"Márgenes de comercio, transporte y distribución de energía",2015]
["P011","Tabaco y otras plantas no perennes",1201.205968,"Consumo Intermedio (PC)",2015]
["P021","Ganado bovino",5127.9665050000003,"Consumo Intermedio (PC)",2015]
["P028","Productos forestales no madereros",8.7437240000000003,"Consumo Intermedio (PC)",2015]
["P036","Carne y despojos comestibles de aves",2051.98801,"Consumo Intermedio (PC)",2015]
["P049","Otros productos de molinería, almidones y productos de almidón",942.40365199999997,"Consumo Intermedio (PC)",2015]
["P062","Calzado y sus partes, de cualquier material y de cualquier uso",146.39994999999999,"Consumo Intermedio (PC)",2015]
["P076","Productos de caucho y plástico",10647.001532,"Consumo Intermedio (PC)",2015]
["P077","Vidrio y productos de vidrio",922.34461599999997,"Consumo Intermedio (PC)",2015]
["P093","Otros artículos n.c.p.",1493.889492,"Consumo Intermedio (PC)",2015]
["P099","Edificaciones no residenciales",0,"Consumo Intermedio (PC)",2015]
["P110","Servicio de alojamiento",1188.462542,"Consumo Intermedio (PC)",2015]
["P125","Servicios de arrendamiento o alquiler sin operador",6198.6619209999999,"Consumo Intermedio (PC)",2015]
["P134","Servicios de apoyo a la agricultura, caza, silvicultura y pesca",2943.857669,"Consumo Intermedio (PC)",2015]
["P142","Servicios de enseñanza",275.07855799999999,"Consumo Intermedio (PC)",2015]
["P004","Arroz",0,"Consumo Final privado (PC)",2015]
["P017","Cardamomo",0,"Consumo Final privado (PC)",2015]
["P019","Propagación de plantas",54.040483999999999,"Consumo Final privado (PC)",2015]
["P038","Pescado congelado, preparado o en conserva y sus productos",220.875912,"Consumo Final privado (PC)",2015]
["P045","Leche líquida y crema procesada",1812.197494,"Consumo Final privado (PC)",2015]
["P055","Aguardientes, licores, vinos, demás bebidas espirituosas y productos del tabaco",2136.9130610000002,"Consumo Final privado (PC)",2015]
["P071","Abonos, fertilizantes y pesticidas",15.589726000000001,"Consumo Final privado (PC)",2015]
["P072","Pinturas, barnices, tintas y productos relacionados",165.049725,"Consumo Final privado (PC)",2015]
["P087","Maquinaria de oficina, contabilidad e informática, sus partes y piezas",615.02976699999999,"Consumo Final privado (PC)",2015]
["P102","Servicios de comercio",0,"Consumo Final privado (PC)",2015]
["P104","Servicio de transporte de pasajeros por vía terrestre",6490.6102190000001,"Consumo Final privado (PC)",2015]
["P117","Servicios auxiliares de la intermediación financiera",2145.220577,"Consumo Final privado (PC)",2015]
["P131","Servicios administrativos, de apoyo de oficina y otros servicios de apoyo a las empresas",298.75154700000002,"Consumo Final privado (PC)",2015]
["P139","Otros servicios administrativos",39.008955999999998,"Consumo Final privado (PC)",2015]
["P148","Servicios de asociaciones que sirven a los hogares",2647.5750320000002,"Consumo Final privado (PC)",2015]
["P013","Frutas tropicales y subtropicales",0,"Consumo Final del Gobierno (PC)",2015]
["P017","Cardamomo",0,"Consumo Final del Gobierno (PC)",2015]
["P028","Productos forestales no madereros",0,"Consumo Final del Gobierno (PC)",2015]
["P044","Margarina, grasas y otros aceites de origen animal y vegetal",0,"Consumo Final del Gobierno (PC)",2015]
["P045","Leche líquida y crema procesada",0,"Consumo Final del Gobierno (PC)",2015]
["P059","Hilados, tejidos, telas y otros productos textiles excepto prendas de vestir",0,"Consumo Final del Gobierno (PC)",2015]
["P066","Productos de la edición",0,"Consumo Final del Gobierno (PC)",2015]
["P085","Maquinaria para usos generales y especiales, sus partes y piezas, excepto electrodomésticos",0,"Consumo Final del Gobierno (PC)",2015]
["P093","Otros artículos n.c.p.",12.169497,"Consumo Final del Gobierno (PC)",2015]
["P107","Servicios de almacenamiento y depósito",0,"Consumo Final del Gobierno (PC)",2015]
["P110","Servicio de alojamiento",0,"Consumo Final del Gobierno (PC)",2015]
["P122","Servicios de arquitectura e ingeniería, ensayos y análisis técnicos",0,"Consumo Final del Gobierno (PC)",2015]
["P137","Servicios públicos del gobierno general",10788.604541999999,"Consumo Final del Gobierno (PC)",2015]
["P148","Servicios de asociaciones que sirven a los hogares",0,"Consumo Final del Gobierno (PC)",2015]
["P006","Hortalizas",0,"Formación Bruta de Capital Fijo (PC)",2015]
["P017","Cardamomo",23.223891999999999,"Formación Bruta de Capital Fijo (PC)",2015]
["P027","Troncos de madera y leña",0,"Formación Bruta de Capital Fijo (PC)",2015]
["P034","Carne y despojos comestibles de ganado bovino; cueros y pieles de bovino y de otros animales",0,"Formación Bruta de Capital Fijo (PC)",2015]
["P042","Jugos de frutas",0,"Formación Bruta de Capital Fijo (PC)",2015]
["P055","Aguardientes, licores, vinos, demás bebidas espirituosas y productos del tabaco",0,"Formación Bruta de Capital Fijo (PC)",2015]
["P068","Gasolinas, diésel oil y fuel oils",0,"Formación Bruta de Capital Fijo (PC)",2015]
["P072","Pinturas, barnices, tintas y productos relacionados",0,"Formación Bruta de Capital Fijo (PC)",2015]
["P090","Aparatos médicos, instrumentos ópticos y de precisión, relojes",1459.6764250000001,"Formación Bruta de Capital Fijo (PC)",2015]
["P099","Edificaciones no residenciales",9430.4209940000001,"Formación Bruta de Capital Fijo (PC)",2015]
["P105","Servicio de transporte de carga por vía terrestre",0,"Formación Bruta de Capital Fijo (PC)",2015]
["P116","Servicios de seguro, reaseguro y fondos de pensiones",0,"Formación Bruta de Capital Fijo (PC)",2015]
["P131","Servicios administrativos, de apoyo de oficina y otros servicios de apoyo a las empresas",0,"Formación Bruta de Capital Fijo (PC)",2015]
["P136","Servicios de manufactura",0,"Formación Bruta de Capital Fijo (PC)",2015]
["P148","Servicios de asociaciones que sirven a los hogares",0,"Formación Bruta de Capital Fijo (PC)",2015]
["P010","Caña de azúcar y otras plantas azucareras",5.2227999999999997E-2,"Exportaciones (fob)",2015]
["P013","Frutas tropicales y subtropicales",323.96061700000001,"Exportaciones (fob)",2015]
["P025","Huevos",0,"Exportaciones (fob)",2015]
["P034","Carne y despojos comestibles de ganado bovino; cueros y pieles de bovino y de otros animales",47.542957999999999,"Exportaciones (fob)",2015]
["P051","Tortillas de maíz, incluso tostadas, horneadas o fritas",0,"Exportaciones (fob)",2015]
["P061","Cuero de piel curtida o adobada y cuero artificial o regenerado y artículos de cuero",90.493300000000005,"Exportaciones (fob)",2015]
["P073","Jabón, preparados de limpieza, perfumes y preparados de toilet",1843.597121,"Exportaciones (fob)",2015]
["P078","Productos de cerámica y arcilla",392.549466,"Exportaciones (fob)",2015]
["P093","Otros artículos n.c.p.",354.144634,"Exportaciones (fob)",2015]
["P097","Evacuación de aguas residuales, recogida, tratamiento y eliminación de desechos",0,"Exportaciones (fob)",2015]
["P110","Servicio de alojamiento",0,"Exportaciones (fob)",2015]
["P119","Otros servicios inmobiliarios, excepto alquiler de vivienda",0,"Exportaciones (fob)",2015]
["P137","Servicios públicos del gobierno general",0,"Exportaciones (fob)",2015]
["P145","Otros servicios de atención de la salud humana",67.701402999999999,"Exportaciones (fob)",2015]
["P006","Hortalizas",0,"Variación de existencias (PC)",2015]
["P008","Ejotes y arvejas",0,"Variación de existencias (PC)",2015]
["P023","Aves de corral",72.314524000000006,"Variación de existencias (PC)",2015]
["P034","Carne y despojos comestibles de ganado bovino; cueros y pieles de bovino y de otros animales",-12.532591,"Variación de existencias (PC)",2015]
["P040","Vegetales preparados o en conserva, legumbres y papas",6.5955389999999996,"Variación de existencias (PC)",2015]
["P055","Aguardientes, licores, vinos, demás bebidas espirituosas y productos del tabaco",14.049816,"Variación de existencias (PC)",2015]
["P065","Envases de papel y cartón",9.6563440000000007,"Variación de existencias (PC)",2015]
["P072","Pinturas, barnices, tintas y productos relacionados",-19.16844,"Variación de existencias (PC)",2015]
["P080","Artículos de hormigón, cemento y yeso",12.695826,"Variación de existencias (PC)",2015]
["P099","Edificaciones no residenciales",-17.118058999999999,"Variación de existencias (PC)",2015]
["P102","Servicios de comercio",0,"Variación de existencias (PC)",2015]
["P116","Servicios de seguro, reaseguro y fondos de pensiones",0,"Variación de existencias (PC)",2015]
["P128","Servicios de seguridad, sistemas de seguridad e investigación privada",0,"Variación de existencias (PC)",2015]
["P137","Servicios públicos del gobierno general",0,"Variación de existencias (PC)",2015]
["P143","Servicios de hospitalización",0,"Variación de existencias (PC)",2015]
["P002","Frijoles",0,"Ajuste CIF/FOB",2015]
["P013","Frutas tropicales y subtropicales",0,"Ajuste CIF/FOB",2015]
["P022","Ganado porcino y otro tipo de animales vivos n.c.p.",0,"Ajuste CIF/FOB",2015]
["P034","Carne y despojos comestibles de ganado bovino; cueros y pieles de bovino y de otros animales",0,"Ajuste CIF/FOB",2015]
["P048","Arroz sin cáscara",0,"Ajuste CIF/FOB",2015]
["P061","Cuero de piel curtida o adobada y cuero artificial o regenerado y artículos de cuero",0,"Ajuste CIF/FOB",2015]
["P070","Gases de petróleo, otros productos de la refinación de petróleo n.c.p.",0,"Ajuste CIF/FOB",2015]
["P078","Productos de cerámica y arcilla",0,"Ajuste CIF/FOB",2015]
["P085","Maquinaria para usos generales y especiales, sus partes y piezas, excepto electrodomésticos",0,"Ajuste CIF/FOB",2015]
["P105","Servicio de transporte de carga por vía terrestre",-1668.603822,"Ajuste CIF/FOB",2015]
["P111","Servicio de suministro de comidas y bebidas",0,"Ajuste CIF/FOB",2015]
["P126","Servicios  de agencias de empleo y de dotación de recursos humanos",0,"Ajuste CIF/FOB",2015]
["P127","Servicios de agencias de viajes, operadores turísticos y actividades conexas",0,"Ajuste CIF/FOB",2015]
["P142","Servicios de enseñanza",0,"Ajuste CIF/FOB",2015]
["P002","Frijoles",1873.8610839999999,"Producción (PB)",2016]
["P016","Café en grano",9307.9580170000008,"Producción (PB)",2016]
["P023","Aves de corral",7462.2508959999996,"Producción (PB)",2016]
["P031","Petróleo crudo y gas natural",642.86450400000001,"Producción (PB)",2016]
["P040","Vegetales preparados o en conserva, legumbres y papas",1168.4581470000001,"Producción (PB)",2016]
["P053","Productos alimenticios n.c.p.",8248.5604299999995,"Producción (PB)",2016]
["P067","Productos de la impresión",1723.386381,"Producción (PB)",2016]
["P079","Cemento, cal y yeso",4711.0915649999997,"Producción (PB)",2016]
["P084","Otros productos elaborados de metal",2469.5630529999999,"Producción (PB)",2016]
["P099","Edificaciones no residenciales",8298.9074349999992,"Producción (PB)",2016]
["P110","Servicio de alojamiento",2447.9933500000002,"Producción (PB)",2016]
["P116","Servicios de seguro, reaseguro y fondos de pensiones",4346.2970619999996,"Producción (PB)",2016]
["P125","Servicios de arrendamiento o alquiler sin operador",5030.4816490000003,"Producción (PB)",2016]
["P133","Servicios de reparación de otros bienes",1446.1880550000001,"Producción (PB)",2016]
["P151","Compras directas en el exterior por residentes",0,"Producción (PB)",2016]
["P002","Frijoles",0,"Impuestos sobre los productos, excepto IVA e impuestos sobre las importaciones",2016]
["P014","Berries, otras frutas y semillas de frutas",0,"Impuestos sobre los productos, excepto IVA e impuestos sobre las importaciones",2016]
["P029","Peces vivos, frescos o refrigerados",0,"Impuestos sobre los productos, excepto IVA e impuestos sobre las importaciones",2016]
["P036","Carne y despojos comestibles de aves",0,"Impuestos sobre los productos, excepto IVA e impuestos sobre las importaciones",2016]
["P046","Otros productos lácteos n.c.p.",1.5942609999999999,"Impuestos sobre los productos, excepto IVA e impuestos sobre las importaciones",2016]
["P061","Cuero de piel curtida o adobada y cuero artificial o regenerado y artículos de cuero",0,"Impuestos sobre los productos, excepto IVA e impuestos sobre las importaciones",2016]
["P071","Abonos, fertilizantes y pesticidas",0,"Impuestos sobre los productos, excepto IVA e impuestos sobre las importaciones",2016]
["P078","Productos de cerámica y arcilla",0,"Impuestos sobre los productos, excepto IVA e impuestos sobre las importaciones",2016]
["P093","Otros artículos n.c.p.",0,"Impuestos sobre los productos, excepto IVA e impuestos sobre las importaciones",2016]
["P095","Generación y distribución de energía eléctrica, gas, vapor y aire acondicionado",0,"Impuestos sobre los productos, excepto IVA e impuestos sobre las importaciones",2016]
["P108","Otros servicios de apoyo al transporte",0,"Impuestos sobre los productos, excepto IVA e impuestos sobre las importaciones",2016]
["P116","Servicios de seguro, reaseguro y fondos de pensiones",13.860503,"Impuestos sobre los productos, excepto IVA e impuestos sobre las importaciones",2016]
["P134","Servicios de apoyo a la agricultura, caza, silvicultura y pesca",0,"Impuestos sobre los productos, excepto IVA e impuestos sobre las importaciones",2016]
["P143","Servicios de hospitalización",0,"Impuestos sobre los productos, excepto IVA e impuestos sobre las importaciones",2016]
["P149","Otros servicios",0,"Impuestos sobre los productos, excepto IVA e impuestos sobre las importaciones",2016]
["P008","Ejotes y arvejas",0,"Subvenciones a los productos",2016]
["P023","Aves de corral",0,"Subvenciones a los productos",2016]
["P028","Productos forestales no madereros",0,"Subvenciones a los productos",2016]
["P040","Vegetales preparados o en conserva, legumbres y papas",0,"Subvenciones a los productos",2016]
["P054","Preparados para alimentación animal",0,"Subvenciones a los productos",2016]
["P067","Productos de la impresión",0,"Subvenciones a los productos",2016]
["P076","Productos de caucho y plástico",0,"Subvenciones a los productos",2016]
["P084","Otros productos elaborados de metal",0,"Subvenciones a los productos",2016]
["P091","Equipo de transporte",0,"Subvenciones a los productos",2016]
["P105","Servicio de transporte de carga por vía terrestre",0,"Subvenciones a los productos",2016]
["P117","Servicios auxiliares de la intermediación financiera",0,"Subvenciones a los productos",2016]
["P122","Servicios de arquitectura e ingeniería, ensayos y análisis técnicos",0,"Subvenciones a los productos",2016]
["P133","Servicios de reparación de otros bienes",0,"Subvenciones a los productos",2016]
["P148","Servicios de asociaciones que sirven a los hogares",0,"Subvenciones a los productos",2016]
["P002","Frijoles",119.055618,"Importaciones (CIF)",2016]
["P011","Tabaco y otras plantas no perennes",371.740951,"Importaciones (CIF)",2016]
["P029","Peces vivos, frescos o refrigerados",2.763541,"Importaciones (CIF)",2016]
["P033","Minerales no metálicos",1413.6386259999999,"Importaciones (CIF)",2016]
["P046","Otros productos lácteos n.c.p.",1055.596272,"Importaciones (CIF)",2016]
["P059","Hilados, tejidos, telas y otros productos textiles excepto prendas de vestir",1997.3841649999999,"Importaciones (CIF)",2016]
["P063","Madera aserrada y acepillada, productos de madera, corcho, paja y materiales trenzables",581.576954,"Importaciones (CIF)",2016]
["P074","Otros productos químicos",8967.8290570000008,"Importaciones (CIF)",2016]
["P084","Otros productos elaborados de metal",2917.6868880000002,"Importaciones (CIF)",2016]
["P095","Generación y distribución de energía eléctrica, gas, vapor y aire acondicionado",232.285955,"Importaciones (CIF)",2016]
["P105","Servicio de transporte de carga por vía terrestre",1800.702227,"Importaciones (CIF)",2016]
["P122","Servicios de arquitectura e ingeniería, ensayos y análisis técnicos",27.877822999999999,"Importaciones (CIF)",2016]
["P131","Servicios administrativos, de apoyo de oficina y otros servicios de apoyo a las empresas",35.542214999999999,"Importaciones (CIF)",2016]
["P143","Servicios de hospitalización",0,"Importaciones (CIF)",2016]
["P146","Servicios audiovisuales, recreativos, culturales y deportivos",123.109364,"Importaciones (CIF)",2016]
["P008","Ejotes y arvejas",8.1498000000000001E-2,"Impuestos y derechos sobre las importaciones excepto IVA",2016]
["P016","Café en grano",1.3910000000000001E-3,"Impuestos y derechos sobre las importaciones excepto IVA",2016]
["P035","Carne y despojos comestibles de ganado porcino",4.2459990000000003,"Impuestos y derechos sobre las importaciones excepto IVA",2016]
["P042","Jugos de frutas",0.50619499999999995,"Impuestos y derechos sobre las importaciones excepto IVA",2016]
["P052","Azúcar de caña sin refinar y refinada, melaza y los demás azúcares n.c.p.",0.23137099999999999,"Impuestos y derechos sobre las importaciones excepto IVA",2016]
["P057","Bebidas no alcohólicas",7.3281859999999996,"Impuestos y derechos sobre las importaciones excepto IVA",2016]
["P073","Jabón, preparados de limpieza, perfumes y preparados de toilet",179.25616500000001,"Impuestos y derechos sobre las importaciones excepto IVA",2016]
["P084","Otros productos elaborados de metal",62.367817000000002,"Impuestos y derechos sobre las importaciones excepto IVA",2016]
["P088","Maquinaria y aparatos eléctricos, sus partes y piezas",76.231329000000002,"Impuestos y derechos sobre las importaciones excepto IVA",2016]
["P101","Servicios generales y especializados de construcción",0,"Impuestos y derechos sobre las importaciones excepto IVA",2016]
["P114","Otros servicios financieros y servicios de banca de inversión",0,"Impuestos y derechos sobre las importaciones excepto IVA",2016]
["P122","Servicios de arquitectura e ingeniería, ensayos y análisis técnicos",0,"Impuestos y derechos sobre las importaciones excepto IVA",2016]
["P140","Servicios públicos administrativos prestados a la comunidad en su conjunto",0,"Impuestos y derechos sobre las importaciones excepto IVA",2016]
["P149","Otros servicios",0,"Impuestos y derechos sobre las importaciones excepto IVA",2016]
["P151","Compras directas en el exterior por residentes",0,"Impuestos y derechos sobre las importaciones excepto IVA",2016]
["P014","Berries, otras frutas y semillas de frutas",69.609309999999994,"Impuesto tipo valor agregado (IVA)",2016]
["P029","Peces vivos, frescos o refrigerados",18.179359000000002,"Impuesto tipo valor agregado (IVA)",2016]
["P034","Carne y despojos comestibles de ganado bovino; cueros y pieles de bovino y de otros animales",199.255044,"Impuesto tipo valor agregado (IVA)",2016]
["P046","Otros productos lácteos n.c.p.",273.50748499999997,"Impuesto tipo valor agregado (IVA)",2016]
["P056","Malta y cerveza de malta",294.479826,"Impuesto tipo valor agregado (IVA)",2016]
["P063","Madera aserrada y acepillada, productos de madera, corcho, paja y materiales trenzables",22.061125000000001,"Impuesto tipo valor agregado (IVA)",2016]
["P082","Métales básicos de hierro y acero, productos primarios de metales preciosos y otros metales no ferrosos",49.599423999999999,"Impuesto tipo valor agregado (IVA)",2016]
["P084","Otros productos elaborados de metal",75.745200999999994,"Impuesto tipo valor agregado (IVA)",2016]
["P097","Evacuación de aguas residuales, recogida, tratamiento y eliminación de desechos",18.615839000000001,"Impuesto tipo valor agregado (IVA)",2016]
["P111","Servicio de suministro de comidas y bebidas",1646.6781860000001,"Impuesto tipo valor agregado (IVA)",2016]
["P123","Otros servicios profesionales, científicos y técnicos",110.51128300000001,"Impuesto tipo valor agregado (IVA)",2016]
["P128","Servicios de seguridad, sistemas de seguridad e investigación privada",93.848288999999994,"Impuesto tipo valor agregado (IVA)",2016]
["P143","Servicios de hospitalización",222.19720100000001,"Impuesto tipo valor agregado (IVA)",2016]
["P002","Frijoles",815.32470000000001,"Márgenes de comercio, transporte y distribución de energía",2016]
["P008","Ejotes y arvejas",241.833349,"Márgenes de comercio, transporte y distribución de energía",2016]
["P017","Cardamomo",50.846933,"Márgenes de comercio, transporte y distribución de energía",2016]
["P025","Huevos",1187.291618,"Márgenes de comercio, transporte y distribución de energía",2016]
["P039","Crustáceos, moluscos y demás invertebrados acuáticos congelados, preparados o en conserva y sus productos",97.818618999999998,"Márgenes de comercio, transporte y distribución de energía",2016]
["P052","Azúcar de caña sin refinar y refinada, melaza y los demás azúcares n.c.p.",2408.4717690000002,"Márgenes de comercio, transporte y distribución de energía",2016]
["P065","Envases de papel y cartón",128.07095200000001,"Márgenes de comercio, transporte y distribución de energía",2016]
["P073","Jabón, preparados de limpieza, perfumes y preparados de toilet",3646.5914720000001,"Márgenes de comercio, transporte y distribución de energía",2016]
["P080","Artículos de hormigón, cemento y yeso",495.84056199999998,"Márgenes de comercio, transporte y distribución de energía",2016]
["P090","Aparatos médicos, instrumentos ópticos y de precisión, relojes",727.19290999999998,"Márgenes de comercio, transporte y distribución de energía",2016]
["P101","Servicios generales y especializados de construcción",0,"Márgenes de comercio, transporte y distribución de energía",2016]
["P111","Servicio de suministro de comidas y bebidas",0,"Márgenes de comercio, transporte y distribución de energía",2016]
["P122","Servicios de arquitectura e ingeniería, ensayos y análisis técnicos",0,"Márgenes de comercio, transporte y distribución de energía",2016]
["P137","Servicios públicos del gobierno general",0,"Márgenes de comercio, transporte y distribución de energía",2016]
["P149","Otros servicios",0,"Márgenes de comercio, transporte y distribución de energía",2016]
["P152","Compras directas en el territorio nacional por no residentes",0,"Márgenes de comercio, transporte y distribución de energía",2016]
["P014","Berries, otras frutas y semillas de frutas",513.78258300000005,"Consumo Intermedio (PC)",2016]
["P022","Ganado porcino y otro tipo de animales vivos n.c.p.",1487.8502739999999,"Consumo Intermedio (PC)",2016]
["P031","Petróleo crudo y gas natural",74.367279999999994,"Consumo Intermedio (PC)",2016]
["P048","Arroz sin cáscara",199.88732200000001,"Consumo Intermedio (PC)",2016]
["P052","Azúcar de caña sin refinar y refinada, melaza y los demás azúcares n.c.p.",2916.3729020000001,"Consumo Intermedio (PC)",2016]
["P063","Madera aserrada y acepillada, productos de madera, corcho, paja y materiales trenzables",4099.1430140000002,"Consumo Intermedio (PC)",2016]
["P079","Cemento, cal y yeso",5368.9593770000001,"Consumo Intermedio (PC)",2016]
["P090","Aparatos médicos, instrumentos ópticos y de precisión, relojes",631.09728500000006,"Consumo Intermedio (PC)",2016]
["P094","Residuos y desechos",1721.4146989999999,"Consumo Intermedio (PC)",2016]
["P111","Servicio de suministro de comidas y bebidas",1998.369549,"Consumo Intermedio (PC)",2016]
["P120","Servicios jurídicos, de contabilidad, auditoría, teneduría de libros y consultoría fiscal",4420.0302160000001,"Consumo Intermedio (PC)",2016]
["P128","Servicios de seguridad, sistemas de seguridad e investigación privada",3597.794668,"Consumo Intermedio (PC)",2016]
["P142","Servicios de enseñanza",356.41099500000001,"Consumo Intermedio (PC)",2016]
["P145","Otros servicios de atención de la salud humana",497.57664399999999,"Consumo Intermedio (PC)",2016]
["P005","Otros cereales",142.14024499999999,"Consumo Final privado (PC)",2016]
["P020","Otros frutos oleaginosos, otras plantas bebestibles y especias aromáticas",361.99725100000001,"Consumo Final privado (PC)",2016]
["P025","Huevos",3901.2432130000002,"Consumo Final privado (PC)",2016]
["P036","Carne y despojos comestibles de aves",11045.073455,"Consumo Final privado (PC)",2016]
["P052","Azúcar de caña sin refinar y refinada, melaza y los demás azúcares n.c.p.",5372.4145740000004,"Consumo Final privado (PC)",2016]
["P062","Calzado y sus partes, de cualquier material y de cualquier uso",5247.8107449999998,"Consumo Final privado (PC)",2016]
["P069","Aceites, grasas lubricantes y otros aceites preparados",76.602536000000001,"Consumo Final privado (PC)",2016]
["P077","Vidrio y productos de vidrio",163.94639799999999,"Consumo Final privado (PC)",2016]
["P090","Aparatos médicos, instrumentos ópticos y de precisión, relojes",325.96762899999999,"Consumo Final privado (PC)",2016]
["P103","Mantenimiento y reparación de vehículos automotores y motocicletas",8133.3852779999997,"Consumo Final privado (PC)",2016]
["P117","Servicios auxiliares de la intermediación financiera",2235.8996980000002,"Consumo Final privado (PC)",2016]
["P125","Servicios de arrendamiento o alquiler sin operador",365.89123799999999,"Consumo Final privado (PC)",2016]
["P134","Servicios de apoyo a la agricultura, caza, silvicultura y pesca",0,"Consumo Final privado (PC)",2016]
["P139","Otros servicios administrativos",54.496816000000003,"Consumo Final privado (PC)",2016]
["P149","Otros servicios",9277.1021039999996,"Consumo Final privado (PC)",2016]
["P014","Berries, otras frutas y semillas de frutas",2.9662999999999998E-2,"Consumo Final del Gobierno (PC)",2016]
["P019","Propagación de plantas",0,"Consumo Final del Gobierno (PC)",2016]
["P031","Petróleo crudo y gas natural",0,"Consumo Final del Gobierno (PC)",2016]
["P045","Leche líquida y crema procesada",0,"Consumo Final del Gobierno (PC)",2016]
["P052","Azúcar de caña sin refinar y refinada, melaza y los demás azúcares n.c.p.",1.7794129999999999,"Consumo Final del Gobierno (PC)",2016]
["P060","Prendas de vestir, adobo y teñido de pieles",0,"Consumo Final del Gobierno (PC)",2016]
["P079","Cemento, cal y yeso",0,"Consumo Final del Gobierno (PC)",2016]
["P086","Electrodomésticos y sus partes",5.0000000000000004E-6,"Consumo Final del Gobierno (PC)",2016]
["P096","Agua natural y distribución de agua natural",0,"Consumo Final del Gobierno (PC)",2016]
["P111","Servicio de suministro de comidas y bebidas",1142.6087319999999,"Consumo Final del Gobierno (PC)",2016]
["P117","Servicios auxiliares de la intermediación financiera",0,"Consumo Final del Gobierno (PC)",2016]
["P128","Servicios de seguridad, sistemas de seguridad e investigación privada",0,"Consumo Final del Gobierno (PC)",2016]
["P143","Servicios de hospitalización",5399.4132200000004,"Consumo Final del Gobierno (PC)",2016]
["P145","Otros servicios de atención de la salud humana",191.846406,"Consumo Final del Gobierno (PC)",2016]
["P002","Frijoles",0,"Formación Bruta de Capital Fijo (PC)",2016]
["P020","Otros frutos oleaginosos, otras plantas bebestibles y especias aromáticas",8.2452729999999992,"Formación Bruta de Capital Fijo (PC)",2016]
["P028","Productos forestales no madereros",0,"Formación Bruta de Capital Fijo (PC)",2016]
["P041","Preparaciones y conservas de frutas y nueces",0,"Formación Bruta de Capital Fijo (PC)",2016]
["P054","Preparados para alimentación animal",0,"Formación Bruta de Capital Fijo (PC)",2016]
["P058","Aguas minerales y otras aguas embotelladas",0,"Formación Bruta de Capital Fijo (PC)",2016]
["P069","Aceites, grasas lubricantes y otros aceites preparados",0,"Formación Bruta de Capital Fijo (PC)",2016]
["P085","Maquinaria para usos generales y especiales, sus partes y piezas, excepto electrodomésticos",7375.8074409999999,"Formación Bruta de Capital Fijo (PC)",2016]
["P090","Aparatos médicos, instrumentos ópticos y de precisión, relojes",1438.7358730000001,"Formación Bruta de Capital Fijo (PC)",2016]
["P100","Obras de ingeniería civil",11627.199807000001,"Formación Bruta de Capital Fijo (PC)",2016]
["P107","Servicios de almacenamiento y depósito",0,"Formación Bruta de Capital Fijo (PC)",2016]
["P126","Servicios  de agencias de empleo y de dotación de recursos humanos",0,"Formación Bruta de Capital Fijo (PC)",2016]
["P134","Servicios de apoyo a la agricultura, caza, silvicultura y pesca",0,"Formación Bruta de Capital Fijo (PC)",2016]
["P148","Servicios de asociaciones que sirven a los hogares",0,"Formación Bruta de Capital Fijo (PC)",2016]
["P151","Compras directas en el exterior por residentes",39.587062000000003,"Formación Bruta de Capital Fijo (PC)",2016]
["P011","Tabaco y otras plantas no perennes",248.65521200000001,"Exportaciones (fob)",2016]
["P020","Otros frutos oleaginosos, otras plantas bebestibles y especias aromáticas",26.899125000000002,"Exportaciones (fob)",2016]
["P031","Petróleo crudo y gas natural",596.591769,"Exportaciones (fob)",2016]
["P042","Jugos de frutas",233.209283,"Exportaciones (fob)",2016]
["P058","Aguas minerales y otras aguas embotelladas",28.480473,"Exportaciones (fob)",2016]
["P068","Gasolinas, diésel oil y fuel oils",760.69744300000002,"Exportaciones (fob)",2016]
["P079","Cemento, cal y yeso",81.376322000000002,"Exportaciones (fob)",2016]
["P083","Productos metálicos estructurales y sus partes de hierro o de acero",201.33954499999999,"Exportaciones (fob)",2016]
["P096","Agua natural y distribución de agua natural",0,"Exportaciones (fob)",2016]
["P105","Servicio de transporte de carga por vía terrestre",834.53321200000005,"Exportaciones (fob)",2016]
["P113","Servicios de banco central",0,"Exportaciones (fob)",2016]
["P131","Servicios administrativos, de apoyo de oficina y otros servicios de apoyo a las empresas",114.820798,"Exportaciones (fob)",2016]
["P140","Servicios públicos administrativos prestados a la comunidad en su conjunto",28.203348999999999,"Exportaciones (fob)",2016]
["P145","Otros servicios de atención de la salud humana",75.260401999999999,"Exportaciones (fob)",2016]
["P010","Caña de azúcar y otras plantas azucareras",-256.221653,"Variación de existencias (PC)",2016]
["P020","Otros frutos oleaginosos, otras plantas bebestibles y especias aromáticas",0,"Variación de existencias (PC)",2016]
["P025","Huevos",0,"Variación de existencias (PC)",2016]
["P037","Carne y despojos de otros animales y conservas y preparados de carne",8.1967250000000007,"Variación de existencias (PC)",2016]
["P051","Tortillas de maíz, incluso tostadas, horneadas o fritas",0.186108,"Variación de existencias (PC)",2016]
["P058","Aguas minerales y otras aguas embotelladas",2.0348619999999999,"Variación de existencias (PC)",2016]
["P066","Productos de la edición",-43.214633999999997,"Variación de existencias (PC)",2016]
["P075","Productos farmacéuticos",-31.697785,"Variación de existencias (PC)",2016]
["P088","Maquinaria y aparatos eléctricos, sus partes y piezas",-78.090455000000006,"Variación de existencias (PC)",2016]
["P102","Servicios de comercio",0,"Variación de existencias (PC)",2016]
["P107","Servicios de almacenamiento y depósito",0,"Variación de existencias (PC)",2016]
["P123","Otros servicios profesionales, científicos y técnicos",0,"Variación de existencias (PC)",2016]
["P134","Servicios de apoyo a la agricultura, caza, silvicultura y pesca",0,"Variación de existencias (PC)",2016]
["P145","Otros servicios de atención de la salud humana",0,"Variación de existencias (PC)",2016]
["P151","Compras directas en el exterior por residentes",0,"Variación de existencias (PC)",2016]
["P008","Ejotes y arvejas",0,"Ajuste CIF/FOB",2016]
["P020","Otros frutos oleaginosos, otras plantas bebestibles y especias aromáticas",0,"Ajuste CIF/FOB",2016]
["P034","Carne y despojos comestibles de ganado bovino; cueros y pieles de bovino y de otros animales",0,"Ajuste CIF/FOB",2016]
["P047","Harina de trigo",0,"Ajuste CIF/FOB",2016]
["P049","Otros productos de molinería, almidones y productos de almidón",0,"Ajuste CIF/FOB",2016]
["P064","Pasta de papel y papel",0,"Ajuste CIF/FOB",2016]
["P069","Aceites, grasas lubricantes y otros aceites preparados",0,"Ajuste CIF/FOB",2016]
["P080","Artículos de hormigón, cemento y yeso",0,"Ajuste CIF/FOB",2016]
["P096","Agua natural y distribución de agua natural",0,"Ajuste CIF/FOB",2016]
["P106","Otros tipos de transporte",-6140.6864210000003,"Ajuste CIF/FOB",2016]
["P113","Servicios de banco central",0,"Ajuste CIF/FOB",2016]
["P128","Servicios de seguridad, sistemas de seguridad e investigación privada",0,"Ajuste CIF/FOB",2016]
["P140","Servicios públicos administrativos prestados a la comunidad en su conjunto",0,"Ajuste CIF/FOB",2016]
["P143","Servicios de hospitalización",0,"Ajuste CIF/FOB",2016]
["P009","Raíces y tubérculos",2373.6510939999998,"Producción (PB)",2017]
["P017","Cardamomo",3712.903084,"Producción (PB)",2017]
["P026","Otros productos de animales vivos",101.05700400000001,"Producción (PB)",2017]
["P037","Carne y despojos de otros animales y conservas y preparados de carne",3270.6062379999998,"Producción (PB)",2017]
["P048","Arroz sin cáscara",616.54630599999996,"Producción (PB)",2017]
["P058","Aguas minerales y otras aguas embotelladas",1406.058307,"Producción (PB)",2017]
["P063","Madera aserrada y acepillada, productos de madera, corcho, paja y materiales trenzables",3961.8772170000002,"Producción (PB)",2017]
["P075","Productos farmacéuticos",3267.070694,"Producción (PB)",2017]
["P089","Equipo y aparatos de radio, televisión y comunicaciones",0,"Producción (PB)",2017]
["P102","Servicios de comercio",129305.206894,"Producción (PB)",2017]
["P111","Servicio de suministro de comidas y bebidas",35828.564968999999,"Producción (PB)",2017]
["P119","Otros servicios inmobiliarios, excepto alquiler de vivienda",13755.108651,"Producción (PB)",2017]
["P126","Servicios  de agencias de empleo y de dotación de recursos humanos",6559.1473189999997,"Producción (PB)",2017]
["P140","Servicios públicos administrativos prestados a la comunidad en su conjunto",10793.935841,"Producción (PB)",2017]
["P151","Compras directas en el exterior por residentes",0,"Producción (PB)",2017]
["P005","Otros cereales",0,"Impuestos sobre los productos, excepto IVA e impuestos sobre las importaciones",2017]
["P016","Café en grano",55.492227999999997,"Impuestos sobre los productos, excepto IVA e impuestos sobre las importaciones",2017]
["P031","Petróleo crudo y gas natural",0,"Impuestos sobre los productos, excepto IVA e impuestos sobre las importaciones",2017]
["P037","Carne y despojos de otros animales y conservas y preparados de carne",0,"Impuestos sobre los productos, excepto IVA e impuestos sobre las importaciones",2017]
["P057","Bebidas no alcohólicas",299.41593399999999,"Impuestos sobre los productos, excepto IVA e impuestos sobre las importaciones",2017]
["P064","Pasta de papel y papel",0,"Impuestos sobre los productos, excepto IVA e impuestos sobre las importaciones",2017]
["P068","Gasolinas, diésel oil y fuel oils",3312.7262839999999,"Impuestos sobre los productos, excepto IVA e impuestos sobre las importaciones",2017]
["P081","Piedras talladas para construcción y otros productos minerales no metálicos n.c.p.",0,"Impuestos sobre los productos, excepto IVA e impuestos sobre las importaciones",2017]
["P094","Residuos y desechos",0,"Impuestos sobre los productos, excepto IVA e impuestos sobre las importaciones",2017]
["P108","Otros servicios de apoyo al transporte",0,"Impuestos sobre los productos, excepto IVA e impuestos sobre las importaciones",2017]
["P113","Servicios de banco central",0,"Impuestos sobre los productos, excepto IVA e impuestos sobre las importaciones",2017]
["P125","Servicios de arrendamiento o alquiler sin operador",0,"Impuestos sobre los productos, excepto IVA e impuestos sobre las importaciones",2017]
["P140","Servicios públicos administrativos prestados a la comunidad en su conjunto",0,"Impuestos sobre los productos, excepto IVA e impuestos sobre las importaciones",2017]
["P151","Compras directas en el exterior por residentes",0,"Impuestos sobre los productos, excepto IVA e impuestos sobre las importaciones",2017]
["P005","Otros cereales",0,"Subvenciones a los productos",2017]
["P014","Berries, otras frutas y semillas de frutas",0,"Subvenciones a los productos",2017]
["P026","Otros productos de animales vivos",0,"Subvenciones a los productos",2017]
["P040","Vegetales preparados o en conserva, legumbres y papas",0,"Subvenciones a los productos",2017]
["P043","Aceites de origen vegetal",0,"Subvenciones a los productos",2017]
["P062","Calzado y sus partes, de cualquier material y de cualquier uso",0,"Subvenciones a los productos",2017]
["P070","Gases de petróleo, otros productos de la refinación de petróleo n.c.p.",0,"Subvenciones a los productos",2017]
["P075","Productos farmacéuticos",0,"Subvenciones a los productos",2017]
["P086","Electrodomésticos y sus partes",0,"Subvenciones a los productos",2017]
["P102","Servicios de comercio",0,"Subvenciones a los productos",2017]
["P108","Otros servicios de apoyo al transporte",0,"Subvenciones a los productos",2017]
["P119","Otros servicios inmobiliarios, excepto alquiler de vivienda",0,"Subvenciones a los productos",2017]
["P134","Servicios de apoyo a la agricultura, caza, silvicultura y pesca",0,"Subvenciones a los productos",2017]
["P136","Servicios de manufactura",0,"Subvenciones a los productos",2017]
["P149","Otros servicios",0,"Subvenciones a los productos",2017]
["P005","Otros cereales",1109.8053359999999,"Importaciones (CIF)",2017]
["P023","Aves de corral",104.122388,"Importaciones (CIF)",2017]
["P032","Minerales metálicos",14.413786999999999,"Importaciones (CIF)",2017]
["P037","Carne y despojos de otros animales y conservas y preparados de carne",408.42945200000003,"Importaciones (CIF)",2017]
["P054","Preparados para alimentación animal",527.42497400000002,"Importaciones (CIF)",2017]
["P064","Pasta de papel y papel",5189.0839379999998,"Importaciones (CIF)",2017]
["P069","Aceites, grasas lubricantes y otros aceites preparados",876.29260299999999,"Importaciones (CIF)",2017]
["P081","Piedras talladas para construcción y otros productos minerales no metálicos n.c.p.",185.65395000000001,"Importaciones (CIF)",2017]
["P091","Equipo de transporte",11405.414210000001,"Importaciones (CIF)",2017]
["P108","Otros servicios de apoyo al transporte",126.415823,"Importaciones (CIF)",2017]
["P117","Servicios auxiliares de la intermediación financiera",0,"Importaciones (CIF)",2017]
["P129","Servicios de limpieza",0,"Importaciones (CIF)",2017]
["P132","Servicios de mantenimiento, reparación e instalación de productos metálicos elaborados, maquinaria y equipo",42.686042999999998,"Importaciones (CIF)",2017]
["P146","Servicios audiovisuales, recreativos, culturales y deportivos",79.866968999999997,"Importaciones (CIF)",2017]
["P005","Otros cereales",2.5333999999999999E-2,"Impuestos y derechos sobre las importaciones excepto IVA",2017]
["P011","Tabaco y otras plantas no perennes",0.105209,"Impuestos y derechos sobre las importaciones excepto IVA",2017]
["P026","Otros productos de animales vivos",1.5678999999999998E-2,"Impuestos y derechos sobre las importaciones excepto IVA",2017]
["P037","Carne y despojos de otros animales y conservas y preparados de carne",7.5576840000000001,"Impuestos y derechos sobre las importaciones excepto IVA",2017]
["P043","Aceites de origen vegetal",4.9532290000000003,"Impuestos y derechos sobre las importaciones excepto IVA",2017]
["P052","Azúcar de caña sin refinar y refinada, melaza y los demás azúcares n.c.p.",0.229265,"Impuestos y derechos sobre las importaciones excepto IVA",2017]
["P070","Gases de petróleo, otros productos de la refinación de petróleo n.c.p.",7.7396999999999994E-2,"Impuestos y derechos sobre las importaciones excepto IVA",2017]
["P074","Otros productos químicos",41.268400999999997,"Impuestos y derechos sobre las importaciones excepto IVA",2017]
["P087","Maquinaria de oficina, contabilidad e informática, sus partes y piezas",0,"Impuestos y derechos sobre las importaciones excepto IVA",2017]
["P100","Obras de ingeniería civil",0,"Impuestos y derechos sobre las importaciones excepto IVA",2017]
["P108","Otros servicios de apoyo al transporte",0,"Impuestos y derechos sobre las importaciones excepto IVA",2017]
["P119","Otros servicios inmobiliarios, excepto alquiler de vivienda",0,"Impuestos y derechos sobre las importaciones excepto IVA",2017]
["P131","Servicios administrativos, de apoyo de oficina y otros servicios de apoyo a las empresas",0,"Impuestos y derechos sobre las importaciones excepto IVA",2017]
["P136","Servicios de manufactura",0,"Impuestos y derechos sobre las importaciones excepto IVA",2017]
["P146","Servicios audiovisuales, recreativos, culturales y deportivos",0,"Impuestos y derechos sobre las importaciones excepto IVA",2017]
["P005","Otros cereales",4.8905180000000001,"Impuesto tipo valor agregado (IVA)",2017]
["P020","Otros frutos oleaginosos, otras plantas bebestibles y especias aromáticas",7.0572780000000002,"Impuesto tipo valor agregado (IVA)",2017]
["P032","Minerales metálicos",4.9348999999999997E-2,"Impuesto tipo valor agregado (IVA)",2017]
["P042","Jugos de frutas",122.209701,"Impuesto tipo valor agregado (IVA)",2017]
["P049","Otros productos de molinería, almidones y productos de almidón",174.699253,"Impuesto tipo valor agregado (IVA)",2017]
["P057","Bebidas no alcohólicas",1005.643834,"Impuesto tipo valor agregado (IVA)",2017]
["P076","Productos de caucho y plástico",483.61713400000002,"Impuesto tipo valor agregado (IVA)",2017]
["P081","Piedras talladas para construcción y otros productos minerales no metálicos n.c.p.",4.3556239999999997,"Impuesto tipo valor agregado (IVA)",2017]
["P088","Maquinaria y aparatos eléctricos, sus partes y piezas",69.792726999999999,"Impuesto tipo valor agregado (IVA)",2017]
["P098","Edificaciones residenciales",534.24540000000002,"Impuesto tipo valor agregado (IVA)",2017]
["P114","Otros servicios financieros y servicios de banca de inversión",0,"Impuesto tipo valor agregado (IVA)",2017]
["P125","Servicios de arrendamiento o alquiler sin operador",111.781828,"Impuesto tipo valor agregado (IVA)",2017]
["P129","Servicios de limpieza",26.393791,"Impuesto tipo valor agregado (IVA)",2017]
["P146","Servicios audiovisuales, recreativos, culturales y deportivos",143.000012,"Impuesto tipo valor agregado (IVA)",2017]
["P003","Leguminosas (legumbres secas) y semillas oleaginosas",130.39029400000001,"Márgenes de comercio, transporte y distribución de energía",2017]
["P011","Tabaco y otras plantas no perennes",271.379413,"Márgenes de comercio, transporte y distribución de energía",2017]
["P025","Huevos",1221.8273369999999,"Márgenes de comercio, transporte y distribución de energía",2017]
["P038","Pescado congelado, preparado o en conserva y sus productos",182.15559999999999,"Márgenes de comercio, transporte y distribución de energía",2017]
["P043","Aceites de origen vegetal",1186.3294760000001,"Márgenes de comercio, transporte y distribución de energía",2017]
["P060","Prendas de vestir, adobo y teñido de pieles",5520.4584590000004,"Márgenes de comercio, transporte y distribución de energía",2017]
["P070","Gases de petróleo, otros productos de la refinación de petróleo n.c.p.",2745.8487,"Márgenes de comercio, transporte y distribución de energía",2017]
["P071","Abonos, fertilizantes y pesticidas",1100.028149,"Márgenes de comercio, transporte y distribución de energía",2017]
["P087","Maquinaria de oficina, contabilidad e informática, sus partes y piezas",687.32441200000005,"Márgenes de comercio, transporte y distribución de energía",2017]
["P097","Evacuación de aguas residuales, recogida, tratamiento y eliminación de desechos",0,"Márgenes de comercio, transporte y distribución de energía",2017]
["P104","Servicio de transporte de pasajeros por vía terrestre",0,"Márgenes de comercio, transporte y distribución de energía",2017]
["P123","Otros servicios profesionales, científicos y técnicos",0,"Márgenes de comercio, transporte y distribución de energía",2017]
["P125","Servicios de arrendamiento o alquiler sin operador",0,"Márgenes de comercio, transporte y distribución de energía",2017]
["P138","Servicios públicos administrativos relacionados con la provisión de servicios educativos, de salud, servicios sociales, culturales y otros, sin contar los servicios de seguridad social",0,"Márgenes de comercio, transporte y distribución de energía",2017]
["P152","Compras directas en el territorio nacional por no residentes",0,"Márgenes de comercio, transporte y distribución de energía",2017]
["P005","Otros cereales",1148.6885520000001,"Consumo Intermedio (PC)",2017]
["P017","Cardamomo",1338.1612110000001,"Consumo Intermedio (PC)",2017]
["P032","Minerales metálicos",80.103172999999998,"Consumo Intermedio (PC)",2017]
["P043","Aceites de origen vegetal",2250.853055,"Consumo Intermedio (PC)",2017]
["P049","Otros productos de molinería, almidones y productos de almidón",959.30784700000004,"Consumo Intermedio (PC)",2017]
["P065","Envases de papel y cartón",2490.111637,"Consumo Intermedio (PC)",2017]
["P066","Productos de la edición",634.28008799999998,"Consumo Intermedio (PC)",2017]
["P080","Artículos de hormigón, cemento y yeso",3063.8086870000002,"Consumo Intermedio (PC)",2017]
["P087","Maquinaria de oficina, contabilidad e informática, sus partes y piezas",358.14157,"Consumo Intermedio (PC)",2017]
["P106","Otros tipos de transporte",754.97037699999998,"Consumo Intermedio (PC)",2017]
["P114","Otros servicios financieros y servicios de banca de inversión",2508.3367170000001,"Consumo Intermedio (PC)",2017]
["P125","Servicios de arrendamiento o alquiler sin operador",6149.1445309999999,"Consumo Intermedio (PC)",2017]
["P137","Servicios públicos del gobierno general",0,"Consumo Intermedio (PC)",2017]
["P146","Servicios audiovisuales, recreativos, culturales y deportivos",384.534828,"Consumo Intermedio (PC)",2017]
["P152","Compras directas en el territorio nacional por no residentes",0,"Consumo Intermedio (PC)",2017]
["P011","Tabaco y otras plantas no perennes",343.52340400000003,"Consumo Final privado (PC)",2017]
["P026","Otros productos de animales vivos",40.876713000000002,"Consumo Final privado (PC)",2017]
["P038","Pescado congelado, preparado o en conserva y sus productos",273.36437999999998,"Consumo Final privado (PC)",2017]
["P048","Arroz sin cáscara",903.33308099999999,"Consumo Final privado (PC)",2017]
["P055","Aguardientes, licores, vinos, demás bebidas espirituosas y productos del tabaco",2203.3036219999999,"Consumo Final privado (PC)",2017]
["P063","Madera aserrada y acepillada, productos de madera, corcho, paja y materiales trenzables",62.367004999999999,"Consumo Final privado (PC)",2017]
["P076","Productos de caucho y plástico",5891.7626259999997,"Consumo Final privado (PC)",2017]
["P087","Maquinaria de oficina, contabilidad e informática, sus partes y piezas",531.74217299999998,"Consumo Final privado (PC)",2017]
["P094","Residuos y desechos",0,"Consumo Final privado (PC)",2017]
["P104","Servicio de transporte de pasajeros por vía terrestre",7405.0462930000003,"Consumo Final privado (PC)",2017]
["P120","Servicios jurídicos, de contabilidad, auditoría, teneduría de libros y consultoría fiscal",190.73426499999999,"Consumo Final privado (PC)",2017]
["P125","Servicios de arrendamiento o alquiler sin operador",373.33056699999997,"Consumo Final privado (PC)",2017]
["P135","Servicios de apoyo a la explotación de minas y canteras y los relacionados con la distribución de electricidad, gas y agua",0,"Consumo Final privado (PC)",2017]
["P152","Compras directas en el territorio nacional por no residentes",-9099.1079320000008,"Consumo Final privado (PC)",2017]
["P009","Raíces y tubérculos",0,"Consumo Final del Gobierno (PC)",2017]
["P017","Cardamomo",0,"Consumo Final del Gobierno (PC)",2017]
["P031","Petróleo crudo y gas natural",0,"Consumo Final del Gobierno (PC)",2017]
["P034","Carne y despojos comestibles de ganado bovino; cueros y pieles de bovino y de otros animales",0.38985900000000001,"Consumo Final del Gobierno (PC)",2017]
["P049","Otros productos de molinería, almidones y productos de almidón",50.57311,"Consumo Final del Gobierno (PC)",2017]
["P062","Calzado y sus partes, de cualquier material y de cualquier uso",0,"Consumo Final del Gobierno (PC)",2017]
["P066","Productos de la edición",0,"Consumo Final del Gobierno (PC)",2017]
["P077","Vidrio y productos de vidrio",0,"Consumo Final del Gobierno (PC)",2017]
["P093","Otros artículos n.c.p.",15.875017,"Consumo Final del Gobierno (PC)",2017]
["P103","Mantenimiento y reparación de vehículos automotores y motocicletas",0,"Consumo Final del Gobierno (PC)",2017]
["P114","Otros servicios financieros y servicios de banca de inversión",0,"Consumo Final del Gobierno (PC)",2017]
["P118","Servicios de alquiler de vivienda",0,"Consumo Final del Gobierno (PC)",2017]
["P131","Servicios administrativos, de apoyo de oficina y otros servicios de apoyo a las empresas",0,"Consumo Final del Gobierno (PC)",2017]
["P140","Servicios públicos administrativos prestados a la comunidad en su conjunto",10449.201462000001,"Consumo Final del Gobierno (PC)",2017]
["P006","Hortalizas",0,"Formación Bruta de Capital Fijo (PC)",2017]
["P011","Tabaco y otras plantas no perennes",0,"Formación Bruta de Capital Fijo (PC)",2017]
["P023","Aves de corral",563.30496000000005,"Formación Bruta de Capital Fijo (PC)",2017]
["P028","Productos forestales no madereros",0,"Formación Bruta de Capital Fijo (PC)",2017]
["P045","Leche líquida y crema procesada",0,"Formación Bruta de Capital Fijo (PC)",2017]
["P055","Aguardientes, licores, vinos, demás bebidas espirituosas y productos del tabaco",0,"Formación Bruta de Capital Fijo (PC)",2017]
["P060","Prendas de vestir, adobo y teñido de pieles",0,"Formación Bruta de Capital Fijo (PC)",2017]
["P072","Pinturas, barnices, tintas y productos relacionados",0,"Formación Bruta de Capital Fijo (PC)",2017]
["P086","Electrodomésticos y sus partes",230.16749100000001,"Formación Bruta de Capital Fijo (PC)",2017]
["P093","Otros artículos n.c.p.",319.16285399999998,"Formación Bruta de Capital Fijo (PC)",2017]
["P101","Servicios generales y especializados de construcción",0,"Formación Bruta de Capital Fijo (PC)",2017]
["P120","Servicios jurídicos, de contabilidad, auditoría, teneduría de libros y consultoría fiscal",0,"Formación Bruta de Capital Fijo (PC)",2017]
["P125","Servicios de arrendamiento o alquiler sin operador",0,"Formación Bruta de Capital Fijo (PC)",2017]
["P132","Servicios de mantenimiento, reparación e instalación de productos metálicos elaborados, maquinaria y equipo",0,"Formación Bruta de Capital Fijo (PC)",2017]
["P152","Compras directas en el territorio nacional por no residentes",0,"Formación Bruta de Capital Fijo (PC)",2017]
["P006","Hortalizas",1021.037591,"Exportaciones (fob)",2017]
["P017","Cardamomo",2691.8568759999998,"Exportaciones (fob)",2017]
["P028","Productos forestales no madereros",250.272515,"Exportaciones (fob)",2017]
["P034","Carne y despojos comestibles de ganado bovino; cueros y pieles de bovino y de otros animales",58.723562000000001,"Exportaciones (fob)",2017]
["P043","Aceites de origen vegetal",3870.0218060000002,"Exportaciones (fob)",2017]
["P055","Aguardientes, licores, vinos, demás bebidas espirituosas y productos del tabaco",762.522561,"Exportaciones (fob)",2017]
["P069","Aceites, grasas lubricantes y otros aceites preparados",9.3577340000000007,"Exportaciones (fob)",2017]
["P082","Métales básicos de hierro y acero, productos primarios de metales preciosos y otros metales no ferrosos",2894.3425120000002,"Exportaciones (fob)",2017]
["P093","Otros artículos n.c.p.",327.33916900000003,"Exportaciones (fob)",2017]
["P100","Obras de ingeniería civil",0,"Exportaciones (fob)",2017]
["P114","Otros servicios financieros y servicios de banca de inversión",16.616491,"Exportaciones (fob)",2017]
["P126","Servicios  de agencias de empleo y de dotación de recursos humanos",0,"Exportaciones (fob)",2017]
["P131","Servicios administrativos, de apoyo de oficina y otros servicios de apoyo a las empresas",105.31789499999999,"Exportaciones (fob)",2017]
["P141","Servicios administrativos relacionados con los sistemas de seguridad social de afiliación obligatoria",0,"Exportaciones (fob)",2017]
["P148","Servicios de asociaciones que sirven a los hogares",0,"Exportaciones (fob)",2017]
["P011","Tabaco y otras plantas no perennes",-17.166091999999999,"Variación de existencias (PC)",2017]
["P023","Aves de corral",16.457692000000002,"Variación de existencias (PC)",2017]
["P037","Carne y despojos de otros animales y conservas y preparados de carne",-21.093748000000001,"Variación de existencias (PC)",2017]
["P044","Margarina, grasas y otros aceites de origen animal y vegetal",-31.271436999999999,"Variación de existencias (PC)",2017]
["P055","Aguardientes, licores, vinos, demás bebidas espirituosas y productos del tabaco",-41.694518000000002,"Variación de existencias (PC)",2017]
["P068","Gasolinas, diésel oil y fuel oils",-44.475172000000001,"Variación de existencias (PC)",2017]
["P072","Pinturas, barnices, tintas y productos relacionados",-21.581198000000001,"Variación de existencias (PC)",2017]
["P083","Productos metálicos estructurales y sus partes de hierro o de acero",27.323557999999998,"Variación de existencias (PC)",2017]
["P093","Otros artículos n.c.p.",63.880718999999999,"Variación de existencias (PC)",2017]
["P109","Servicios postales y de mensajería",0,"Variación de existencias (PC)",2017]
["P120","Servicios jurídicos, de contabilidad, auditoría, teneduría de libros y consultoría fiscal",0,"Variación de existencias (PC)",2017]
["P124","Servicios de publicidad y estudios de mercado",0,"Variación de existencias (PC)",2017]
["P137","Servicios públicos del gobierno general",0,"Variación de existencias (PC)",2017]
["P146","Servicios audiovisuales, recreativos, culturales y deportivos",0,"Variación de existencias (PC)",2017]
["P002","Frijoles",0,"Ajuste CIF/FOB",2017]
["P017","Cardamomo",0,"Ajuste CIF/FOB",2017]
["P025","Huevos",0,"Ajuste CIF/FOB",2017]
["P034","Carne y despojos comestibles de ganado bovino; cueros y pieles de bovino y de otros animales",0,"Ajuste CIF/FOB",2017]
["P051","Tortillas de maíz, incluso tostadas, horneadas o fritas",0,"Ajuste CIF/FOB",2017]
["P061","Cuero de piel curtida o adobada y cuero artificial o regenerado y artículos de cuero",0,"Ajuste CIF/FOB",2017]
["P066","Productos de la edición",0,"Ajuste CIF/FOB",2017]
["P082","Métales básicos de hierro y acero, productos primarios de metales preciosos y otros metales no ferrosos",0,"Ajuste CIF/FOB",2017]
["P092","Muebles",0,"Ajuste CIF/FOB",2017]
["P099","Edificaciones no residenciales",0,"Ajuste CIF/FOB",2017]
["P114","Otros servicios financieros y servicios de banca de inversión",0,"Ajuste CIF/FOB",2017]
["P116","Servicios de seguro, reaseguro y fondos de pensiones",-700.75568599999997,"Ajuste CIF/FOB",2017]
["P131","Servicios administrativos, de apoyo de oficina y otros servicios de apoyo a las empresas",0,"Ajuste CIF/FOB",2017]
["P138","Servicios públicos administrativos relacionados con la provisión de servicios educativos, de salud, servicios sociales, culturales y otros, sin contar los servicios de seguridad social",0,"Ajuste CIF/FOB",2017]
["P148","Servicios de asociaciones que sirven a los hogares",0,"Ajuste CIF/FOB",2017]
["P008","Ejotes y arvejas",1145.3108520000001,"Producción (PB)",2018]
["P023","Aves de corral",8011.7771570000004,"Producción (PB)",2018]
["P034","Carne y despojos comestibles de ganado bovino; cueros y pieles de bovino y de otros animales",7215.1115229999996,"Producción (PB)",2018]
["P040","Vegetales preparados o en conserva, legumbres y papas",1391.8279749999999,"Producción (PB)",2018]
["P049","Otros productos de molinería, almidones y productos de almidón",1612.738685,"Producción (PB)",2018]
["P061","Cuero de piel curtida o adobada y cuero artificial o regenerado y artículos de cuero",1117.727061,"Producción (PB)",2018]
["P075","Productos farmacéuticos",3209.1128520000002,"Producción (PB)",2018]
["P088","Maquinaria y aparatos eléctricos, sus partes y piezas",309.43999300000002,"Producción (PB)",2018]
["P093","Otros artículos n.c.p.",1852.2986840000001,"Producción (PB)",2018]
["P106","Otros tipos de transporte",691.96804699999996,"Producción (PB)",2018]
["P110","Servicio de alojamiento",2913.9680910000002,"Producción (PB)",2018]
["P121","Servicios de tecnología de la información",2707.1791029999999,"Producción (PB)",2018]
["P137","Servicios públicos del gobierno general",13634.939031,"Producción (PB)",2018]
["P143","Servicios de hospitalización",9106.3497970000008,"Producción (PB)",2018]
["P002","Frijoles",0,"Impuestos sobre los productos, excepto IVA e impuestos sobre las importaciones",2018]
["P017","Cardamomo",0,"Impuestos sobre los productos, excepto IVA e impuestos sobre las importaciones",2018]
["P023","Aves de corral",0,"Impuestos sobre los productos, excepto IVA e impuestos sobre las importaciones",2018]
["P032","Minerales metálicos",0,"Impuestos sobre los productos, excepto IVA e impuestos sobre las importaciones",2018]
["P050","Pan y otros productos de panadería y repostería n.c.p.",0,"Impuestos sobre los productos, excepto IVA e impuestos sobre las importaciones",2018]
["P061","Cuero de piel curtida o adobada y cuero artificial o regenerado y artículos de cuero",0,"Impuestos sobre los productos, excepto IVA e impuestos sobre las importaciones",2018]
["P063","Madera aserrada y acepillada, productos de madera, corcho, paja y materiales trenzables",0,"Impuestos sobre los productos, excepto IVA e impuestos sobre las importaciones",2018]
["P082","Métales básicos de hierro y acero, productos primarios de metales preciosos y otros metales no ferrosos",0,"Impuestos sobre los productos, excepto IVA e impuestos sobre las importaciones",2018]
["P089","Equipo y aparatos de radio, televisión y comunicaciones",0,"Impuestos sobre los productos, excepto IVA e impuestos sobre las importaciones",2018]
["P099","Edificaciones no residenciales",0,"Impuestos sobre los productos, excepto IVA e impuestos sobre las importaciones",2018]
["P104","Servicio de transporte de pasajeros por vía terrestre",0,"Impuestos sobre los productos, excepto IVA e impuestos sobre las importaciones",2018]
["P116","Servicios de seguro, reaseguro y fondos de pensiones",16.036128000000001,"Impuestos sobre los productos, excepto IVA e impuestos sobre las importaciones",2018]
["P126","Servicios  de agencias de empleo y de dotación de recursos humanos",0,"Impuestos sobre los productos, excepto IVA e impuestos sobre las importaciones",2018]
["P143","Servicios de hospitalización",0,"Impuestos sobre los productos, excepto IVA e impuestos sobre las importaciones",2018]
["P152","Compras directas en el territorio nacional por no residentes",0,"Impuestos sobre los productos, excepto IVA e impuestos sobre las importaciones",2018]
["P012","Bananos, plátanos y otros",0,"Subvenciones a los productos",2018]
["P023","Aves de corral",0,"Subvenciones a los productos",2018]
["P031","Petróleo crudo y gas natural",0,"Subvenciones a los productos",2018]
["P040","Vegetales preparados o en conserva, legumbres y papas",0,"Subvenciones a los productos",2018]
["P046","Otros productos lácteos n.c.p.",0,"Subvenciones a los productos",2018]
["P061","Cuero de piel curtida o adobada y cuero artificial o regenerado y artículos de cuero",0,"Subvenciones a los productos",2018]
["P072","Pinturas, barnices, tintas y productos relacionados",0,"Subvenciones a los productos",2018]
["P078","Productos de cerámica y arcilla",0,"Subvenciones a los productos",2018]
["P098","Edificaciones residenciales",0,"Subvenciones a los productos",2018]
["P105","Servicio de transporte de carga por vía terrestre",0,"Subvenciones a los productos",2018]
["P109","Servicios postales y de mensajería",0,"Subvenciones a los productos",2018]
["P122","Servicios de arquitectura e ingeniería, ensayos y análisis técnicos",0,"Subvenciones a los productos",2018]
["P137","Servicios públicos del gobierno general",0,"Subvenciones a los productos",2018]
["P140","Servicios públicos administrativos prestados a la comunidad en su conjunto",0,"Subvenciones a los productos",2018]
["P002","Frijoles",136.865725,"Importaciones (CIF)",2018]
["P014","Berries, otras frutas y semillas de frutas",467.22139099999998,"Importaciones (CIF)",2018]
["P029","Peces vivos, frescos o refrigerados",4.4236899999999997,"Importaciones (CIF)",2018]
["P040","Vegetales preparados o en conserva, legumbres y papas",614.342851,"Importaciones (CIF)",2018]
["P050","Pan y otros productos de panadería y repostería n.c.p.",591.77016100000003,"Importaciones (CIF)",2018]
["P055","Aguardientes, licores, vinos, demás bebidas espirituosas y productos del tabaco",392.92262099999999,"Importaciones (CIF)",2018]
["P067","Productos de la impresión",147.79487499999999,"Importaciones (CIF)",2018]
["P077","Vidrio y productos de vidrio",551.74098500000002,"Importaciones (CIF)",2018]
["P084","Otros productos elaborados de metal",2737.8347760000001,"Importaciones (CIF)",2018]
["P099","Edificaciones no residenciales",0,"Importaciones (CIF)",2018]
["P112","Servicios de información, telecomunicaciones y radiodifusión",1895.6454960000001,"Importaciones (CIF)",2018]
["P116","Servicios de seguro, reaseguro y fondos de pensiones",2122.026953,"Importaciones (CIF)",2018]
["P134","Servicios de apoyo a la agricultura, caza, silvicultura y pesca",0,"Importaciones (CIF)",2018]
["P143","Servicios de hospitalización",0,"Importaciones (CIF)",2018]
["P149","Otros servicios",0,"Importaciones (CIF)",2018]
["P008","Ejotes y arvejas",2.0698999999999999E-2,"Impuestos y derechos sobre las importaciones excepto IVA",2018]
["P023","Aves de corral",0,"Impuestos y derechos sobre las importaciones excepto IVA",2018]
["P029","Peces vivos, frescos o refrigerados",0.16111600000000001,"Impuestos y derechos sobre las importaciones excepto IVA",2018]
["P038","Pescado congelado, preparado o en conserva y sus productos",8.9540290000000002,"Impuestos y derechos sobre las importaciones excepto IVA",2018]
["P046","Otros productos lácteos n.c.p.",90.246756000000005,"Impuestos y derechos sobre las importaciones excepto IVA",2018]
["P061","Cuero de piel curtida o adobada y cuero artificial o regenerado y artículos de cuero",47.632458999999997,"Impuestos y derechos sobre las importaciones excepto IVA",2018]
["P069","Aceites, grasas lubricantes y otros aceites preparados",11.998314000000001,"Impuestos y derechos sobre las importaciones excepto IVA",2018]
["P078","Productos de cerámica y arcilla",41.452061,"Impuestos y derechos sobre las importaciones excepto IVA",2018]
["P095","Generación y distribución de energía eléctrica, gas, vapor y aire acondicionado",0,"Impuestos y derechos sobre las importaciones excepto IVA",2018]
["P105","Servicio de transporte de carga por vía terrestre",0,"Impuestos y derechos sobre las importaciones excepto IVA",2018]
["P117","Servicios auxiliares de la intermediación financiera",0,"Impuestos y derechos sobre las importaciones excepto IVA",2018]
["P122","Servicios de arquitectura e ingeniería, ensayos y análisis técnicos",0,"Impuestos y derechos sobre las importaciones excepto IVA",2018]
["P132","Servicios de mantenimiento, reparación e instalación de productos metálicos elaborados, maquinaria y equipo",0,"Impuestos y derechos sobre las importaciones excepto IVA",2018]
["P149","Otros servicios",0,"Impuestos y derechos sobre las importaciones excepto IVA",2018]
["P006","Hortalizas",220.27410800000001,"Impuesto tipo valor agregado (IVA)",2018]
["P018","Caucho natural",0,"Impuesto tipo valor agregado (IVA)",2018]
["P019","Propagación de plantas",1.1337440000000001,"Impuesto tipo valor agregado (IVA)",2018]
["P037","Carne y despojos de otros animales y conservas y preparados de carne",210.32997800000001,"Impuesto tipo valor agregado (IVA)",2018]
["P040","Vegetales preparados o en conserva, legumbres y papas",80.812340000000006,"Impuesto tipo valor agregado (IVA)",2018]
["P052","Azúcar de caña sin refinar y refinada, melaza y los demás azúcares n.c.p.",526.18859999999995,"Impuesto tipo valor agregado (IVA)",2018]
["P067","Productos de la impresión",57.731132000000002,"Impuesto tipo valor agregado (IVA)",2018]
["P078","Productos de cerámica y arcilla",29.206855000000001,"Impuesto tipo valor agregado (IVA)",2018]
["P084","Otros productos elaborados de metal",82.901088000000001,"Impuesto tipo valor agregado (IVA)",2018]
["P100","Obras de ingeniería civil",541.53410599999995,"Impuesto tipo valor agregado (IVA)",2018]
["P111","Servicio de suministro de comidas y bebidas",1830.162008,"Impuesto tipo valor agregado (IVA)",2018]
["P115","Servicios de Intermediación Financiera Medidos Indirectamente (SIFMI)",0,"Impuesto tipo valor agregado (IVA)",2018]
["P132","Servicios de mantenimiento, reparación e instalación de productos metálicos elaborados, maquinaria y equipo",61.273043999999999,"Impuesto tipo valor agregado (IVA)",2018]
["P143","Servicios de hospitalización",271.036835,"Impuesto tipo valor agregado (IVA)",2018]
["P146","Servicios audiovisuales, recreativos, culturales y deportivos",120.17068500000001,"Impuesto tipo valor agregado (IVA)",2018]
["P008","Ejotes y arvejas",271.72346399999998,"Márgenes de comercio, transporte y distribución de energía",2018]
["P020","Otros frutos oleaginosos, otras plantas bebestibles y especias aromáticas",184.651646,"Márgenes de comercio, transporte y distribución de energía",2018]
["P029","Peces vivos, frescos o refrigerados",713.72072300000002,"Márgenes de comercio, transporte y distribución de energía",2018]
["P035","Carne y despojos comestibles de ganado porcino",454.486265,"Márgenes de comercio, transporte y distribución de energía",2018]
["P046","Otros productos lácteos n.c.p.",2012.076149,"Márgenes de comercio, transporte y distribución de energía",2018]
["P061","Cuero de piel curtida o adobada y cuero artificial o regenerado y artículos de cuero",486.28023000000002,"Márgenes de comercio, transporte y distribución de energía",2018]
["P073","Jabón, preparados de limpieza, perfumes y preparados de toilet",4206.3646010000002,"Márgenes de comercio, transporte y distribución de energía",2018]
["P083","Productos metálicos estructurales y sus partes de hierro o de acero",343.87301200000002,"Márgenes de comercio, transporte y distribución de energía",2018]
["P090","Aparatos médicos, instrumentos ópticos y de precisión, relojes",782.16053999999997,"Márgenes de comercio, transporte y distribución de energía",2018]
["P105","Servicio de transporte de carga por vía terrestre",-6655.9494940000004,"Márgenes de comercio, transporte y distribución de energía",2018]
["P114","Otros servicios financieros y servicios de banca de inversión",0,"Márgenes de comercio, transporte y distribución de energía",2018]
["P122","Servicios de arquitectura e ingeniería, ensayos y análisis técnicos",0,"Márgenes de comercio, transporte y distribución de energía",2018]
["P129","Servicios de limpieza",0,"Márgenes de comercio, transporte y distribución de energía",2018]
["P139","Otros servicios administrativos",0,"Márgenes de comercio, transporte y distribución de energía",2018]
["P003","Leguminosas (legumbres secas) y semillas oleaginosas",334.38593800000001,"Consumo Intermedio (PC)",2018]
["P008","Ejotes y arvejas",48.003512000000001,"Consumo Intermedio (PC)",2018]
["P018","Caucho natural",742.97589900000003,"Consumo Intermedio (PC)",2018]
["P035","Carne y despojos comestibles de ganado porcino",1073.418823,"Consumo Intermedio (PC)",2018]
["P040","Vegetales preparados o en conserva, legumbres y papas",621.52351699999997,"Consumo Intermedio (PC)",2018]
["P052","Azúcar de caña sin refinar y refinada, melaza y los demás azúcares n.c.p.",3013.8363119999999,"Consumo Intermedio (PC)",2018]
["P067","Productos de la impresión",2136.9950389999999,"Consumo Intermedio (PC)",2018]
["P075","Productos farmacéuticos",1823.751786,"Consumo Intermedio (PC)",2018]
["P084","Otros productos elaborados de metal",4152.4819010000001,"Consumo Intermedio (PC)",2018]
["P097","Evacuación de aguas residuales, recogida, tratamiento y eliminación de desechos",400.255562,"Consumo Intermedio (PC)",2018]
["P111","Servicio de suministro de comidas y bebidas",2184.3987739999998,"Consumo Intermedio (PC)",2018]
["P112","Servicios de información, telecomunicaciones y radiodifusión",9123.5425730000006,"Consumo Intermedio (PC)",2018]
["P128","Servicios de seguridad, sistemas de seguridad e investigación privada",3929.938369,"Consumo Intermedio (PC)",2018]
["P138","Servicios públicos administrativos relacionados con la provisión de servicios educativos, de salud, servicios sociales, culturales y otros, sin contar los servicios de seguridad social",0,"Consumo Intermedio (PC)",2018]
["P149","Otros servicios",58.816786999999998,"Consumo Intermedio (PC)",2018]
["P012","Bananos, plátanos y otros",4298.3005069999999,"Consumo Final privado (PC)",2018]
["P014","Berries, otras frutas y semillas de frutas",6348.8205539999999,"Consumo Final privado (PC)",2018]
["P029","Peces vivos, frescos o refrigerados",1805.7525780000001,"Consumo Final privado (PC)",2018]
["P043","Aceites de origen vegetal",2883.3320720000002,"Consumo Final privado (PC)",2018]
["P046","Otros productos lácteos n.c.p.",5205.4026210000002,"Consumo Final privado (PC)",2018]
["P058","Aguas minerales y otras aguas embotelladas",1721.653558,"Consumo Final privado (PC)",2018]
["P073","Jabón, preparados de limpieza, perfumes y preparados de toilet",9096.8457820000003,"Consumo Final privado (PC)",2018]
["P080","Artículos de hormigón, cemento y yeso",6.0041999999999998E-2,"Consumo Final privado (PC)",2018]
["P090","Aparatos médicos, instrumentos ópticos y de precisión, relojes",318.37708900000001,"Consumo Final privado (PC)",2018]
["P106","Otros tipos de transporte",2236.6014839999998,"Consumo Final privado (PC)",2018]
["P107","Servicios de almacenamiento y depósito",0,"Consumo Final privado (PC)",2018]
["P121","Servicios de tecnología de la información",0,"Consumo Final privado (PC)",2018]
["P128","Servicios de seguridad, sistemas de seguridad e investigación privada",321.10621700000002,"Consumo Final privado (PC)",2018]
["P139","Otros servicios administrativos",62.718383000000003,"Consumo Final privado (PC)",2018]
["P152","Compras directas en el territorio nacional por no residentes",-9357.041706,"Consumo Final privado (PC)",2018]
["P008","Ejotes y arvejas",0,"Consumo Final del Gobierno (PC)",2018]
["P026","Otros productos de animales vivos",0,"Consumo Final del Gobierno (PC)",2018]
["P035","Carne y despojos comestibles de ganado porcino",0,"Consumo Final del Gobierno (PC)",2018]
["P041","Preparaciones y conservas de frutas y nueces",0,"Consumo Final del Gobierno (PC)",2018]
["P052","Azúcar de caña sin refinar y refinada, melaza y los demás azúcares n.c.p.",2.7964009999999999,"Consumo Final del Gobierno (PC)",2018]
["P063","Madera aserrada y acepillada, productos de madera, corcho, paja y materiales trenzables",0,"Consumo Final del Gobierno (PC)",2018]
["P079","Cemento, cal y yeso",0,"Consumo Final del Gobierno (PC)",2018]
["P089","Equipo y aparatos de radio, televisión y comunicaciones",0,"Consumo Final del Gobierno (PC)",2018]
["P100","Obras de ingeniería civil",0,"Consumo Final del Gobierno (PC)",2018]
["P101","Servicios generales y especializados de construcción",0,"Consumo Final del Gobierno (PC)",2018]
["P120","Servicios jurídicos, de contabilidad, auditoría, teneduría de libros y consultoría fiscal",0,"Consumo Final del Gobierno (PC)",2018]
["P128","Servicios de seguridad, sistemas de seguridad e investigación privada",0,"Consumo Final del Gobierno (PC)",2018]
["P135","Servicios de apoyo a la explotación de minas y canteras y los relacionados con la distribución de electricidad, gas y agua",0,"Consumo Final del Gobierno (PC)",2018]
["P149","Otros servicios",0,"Consumo Final del Gobierno (PC)",2018]
["P009","Raíces y tubérculos",0,"Formación Bruta de Capital Fijo (PC)",2018]
["P014","Berries, otras frutas y semillas de frutas",171.399641,"Formación Bruta de Capital Fijo (PC)",2018]
["P024","Leche cruda",0,"Formación Bruta de Capital Fijo (PC)",2018]
["P041","Preparaciones y conservas de frutas y nueces",0,"Formación Bruta de Capital Fijo (PC)",2018]
["P046","Otros productos lácteos n.c.p.",0,"Formación Bruta de Capital Fijo (PC)",2018]
["P058","Aguas minerales y otras aguas embotelladas",0,"Formación Bruta de Capital Fijo (PC)",2018]
["P073","Jabón, preparados de limpieza, perfumes y preparados de toilet",0,"Formación Bruta de Capital Fijo (PC)",2018]
["P077","Vidrio y productos de vidrio",0,"Formación Bruta de Capital Fijo (PC)",2018]
["P090","Aparatos médicos, instrumentos ópticos y de precisión, relojes",1638.697034,"Formación Bruta de Capital Fijo (PC)",2018]
["P103","Mantenimiento y reparación de vehículos automotores y motocicletas",0,"Formación Bruta de Capital Fijo (PC)",2018]
["P107","Servicios de almacenamiento y depósito",0,"Formación Bruta de Capital Fijo (PC)",2018]
["P118","Servicios de alquiler de vivienda",0,"Formación Bruta de Capital Fijo (PC)",2018]
["P128","Servicios de seguridad, sistemas de seguridad e investigación privada",0,"Formación Bruta de Capital Fijo (PC)",2018]
["P144","Servicios médicos y dentales",0,"Formación Bruta de Capital Fijo (PC)",2018]
["P003","Leguminosas (legumbres secas) y semillas oleaginosas",256.73056800000001,"Exportaciones (fob)",2018]
["P007","Sandías y melones",1266.403082,"Exportaciones (fob)",2018]
["P020","Otros frutos oleaginosos, otras plantas bebestibles y especias aromáticas",39.758029000000001,"Exportaciones (fob)",2018]
["P035","Carne y despojos comestibles de ganado porcino",1.4451609999999999,"Exportaciones (fob)",2018]
["P038","Pescado congelado, preparado o en conserva y sus productos",507.23899699999998,"Exportaciones (fob)",2018]
["P052","Azúcar de caña sin refinar y refinada, melaza y los demás azúcares n.c.p.",4999.9920819999998,"Exportaciones (fob)",2018]
["P060","Prendas de vestir, adobo y teñido de pieles",3455.702914,"Exportaciones (fob)",2018]
["P069","Aceites, grasas lubricantes y otros aceites preparados",7.1939840000000004,"Exportaciones (fob)",2018]
["P086","Electrodomésticos y sus partes",33.151164999999999,"Exportaciones (fob)",2018]
["P096","Agua natural y distribución de agua natural",0,"Exportaciones (fob)",2018]
["P101","Servicios generales y especializados de construcción",142.609275,"Exportaciones (fob)",2018]
["P117","Servicios auxiliares de la intermediación financiera",12.541306000000001,"Exportaciones (fob)",2018]
["P127","Servicios de agencias de viajes, operadores turísticos y actividades conexas",562.59117500000002,"Exportaciones (fob)",2018]
["P134","Servicios de apoyo a la agricultura, caza, silvicultura y pesca",0,"Exportaciones (fob)",2018]
["P149","Otros servicios",0,"Exportaciones (fob)",2018]
["P006","Hortalizas",0,"Variación de existencias (PC)",2018]
["P014","Berries, otras frutas y semillas de frutas",0,"Variación de existencias (PC)",2018]
["P021","Ganado bovino",-9.9221409999999999,"Variación de existencias (PC)",2018]
["P041","Preparaciones y conservas de frutas y nueces",1.614107,"Variación de existencias (PC)",2018]
["P043","Aceites de origen vegetal",16.610040999999999,"Variación de existencias (PC)",2018]
["P058","Aguas minerales y otras aguas embotelladas",11.035705999999999,"Variación de existencias (PC)",2018]
["P069","Aceites, grasas lubricantes y otros aceites preparados",-24.461876,"Variación de existencias (PC)",2018]
["P075","Productos farmacéuticos",55.057110999999999,"Variación de existencias (PC)",2018]
["P084","Otros productos elaborados de metal",15.818650999999999,"Variación de existencias (PC)",2018]
["P096","Agua natural y distribución de agua natural",0,"Variación de existencias (PC)",2018]
["P107","Servicios de almacenamiento y depósito",0,"Variación de existencias (PC)",2018]
["P115","Servicios de Intermediación Financiera Medidos Indirectamente (SIFMI)",0,"Variación de existencias (PC)",2018]
["P128","Servicios de seguridad, sistemas de seguridad e investigación privada",0,"Variación de existencias (PC)",2018]
["P141","Servicios administrativos relacionados con los sistemas de seguridad social de afiliación obligatoria",0,"Variación de existencias (PC)",2018]
["P003","Leguminosas (legumbres secas) y semillas oleaginosas",0,"Ajuste CIF/FOB",2018]
["P015","Palma africana",0,"Ajuste CIF/FOB",2018]
["P020","Otros frutos oleaginosos, otras plantas bebestibles y especias aromáticas",0,"Ajuste CIF/FOB",2018]
["P026","Otros productos de animales vivos",0,"Ajuste CIF/FOB",2018]
["P037","Carne y despojos de otros animales y conservas y preparados de carne",0,"Ajuste CIF/FOB",2018]
["P052","Azúcar de caña sin refinar y refinada, melaza y los demás azúcares n.c.p.",0,"Ajuste CIF/FOB",2018]
["P058","Aguas minerales y otras aguas embotelladas",0,"Ajuste CIF/FOB",2018]
["P069","Aceites, grasas lubricantes y otros aceites preparados",0,"Ajuste CIF/FOB",2018]
["P083","Productos metálicos estructurales y sus partes de hierro o de acero",0,"Ajuste CIF/FOB",2018]
["P096","Agua natural y distribución de agua natural",0,"Ajuste CIF/FOB",2018]
["P109","Servicios postales y de mensajería",0,"Ajuste CIF/FOB",2018]
["P117","Servicios auxiliares de la intermediación financiera",0,"Ajuste CIF/FOB",2018]
["P124","Servicios de publicidad y estudios de mercado",0,"Ajuste CIF/FOB",2018]
["P134","Servicios de apoyo a la agricultura, caza, silvicultura y pesca",0,"Ajuste CIF/FOB",2018]
["P150","Servicios domésticos",0,"Ajuste CIF/FOB",2018]
["P009","Raíces y tubérculos",2828.3808570000001,"Producción (PB)",2019]
["P020","Otros frutos oleaginosos, otras plantas bebestibles y especias aromáticas",398.91623800000002,"Producción (PB)",2019]
["P026","Otros productos de animales vivos",103.952151,"Producción (PB)",2019]
["P031","Petróleo crudo y gas natural",1168.4090189999999,"Producción (PB)",2019]
["P051","Tortillas de maíz, incluso tostadas, horneadas o fritas",7701.9390659999999,"Producción (PB)",2019]
["P058","Aguas minerales y otras aguas embotelladas",1693.8250370000001,"Producción (PB)",2019]
["P066","Productos de la edición",1478.39177,"Producción (PB)",2019]
["P075","Productos farmacéuticos",3444.4242589999999,"Producción (PB)",2019]
["P092","Muebles",6358.0508909999999,"Producción (PB)",2019]
["P096","Agua natural y distribución de agua natural",5121.037343,"Producción (PB)",2019]
["P107","Servicios de almacenamiento y depósito",353.88727999999998,"Producción (PB)",2019]
["P123","Otros servicios profesionales, científicos y técnicos",8858.4505250000002,"Producción (PB)",2019]
["P133","Servicios de reparación de otros bienes",1615.380122,"Producción (PB)",2019]
["P140","Servicios públicos administrativos prestados a la comunidad en su conjunto",12107.92751,"Producción (PB)",2019]
["P003","Leguminosas (legumbres secas) y semillas oleaginosas",0,"Impuestos sobre los productos, excepto IVA e impuestos sobre las importaciones",2019]
["P012","Bananos, plátanos y otros",0,"Impuestos sobre los productos, excepto IVA e impuestos sobre las importaciones",2019]
["P020","Otros frutos oleaginosos, otras plantas bebestibles y especias aromáticas",0,"Impuestos sobre los productos, excepto IVA e impuestos sobre las importaciones",2019]
["P034","Carne y despojos comestibles de ganado bovino; cueros y pieles de bovino y de otros animales",0,"Impuestos sobre los productos, excepto IVA e impuestos sobre las importaciones",2019]
["P037","Carne y despojos de otros animales y conservas y preparados de carne",0,"Impuestos sobre los productos, excepto IVA e impuestos sobre las importaciones",2019]
["P049","Otros productos de molinería, almidones y productos de almidón",0,"Impuestos sobre los productos, excepto IVA e impuestos sobre las importaciones",2019]
["P064","Pasta de papel y papel",0,"Impuestos sobre los productos, excepto IVA e impuestos sobre las importaciones",2019]
["P075","Productos farmacéuticos",0,"Impuestos sobre los productos, excepto IVA e impuestos sobre las importaciones",2019]
["P085","Maquinaria para usos generales y especiales, sus partes y piezas, excepto electrodomésticos",0,"Impuestos sobre los productos, excepto IVA e impuestos sobre las importaciones",2019]
["P090","Aparatos médicos, instrumentos ópticos y de precisión, relojes",0,"Impuestos sobre los productos, excepto IVA e impuestos sobre las importaciones",2019]
["P102","Servicios de comercio",0,"Impuestos sobre los productos, excepto IVA e impuestos sobre las importaciones",2019]
["P117","Servicios auxiliares de la intermediación financiera",0,"Impuestos sobre los productos, excepto IVA e impuestos sobre las importaciones",2019]
["P121","Servicios de tecnología de la información",0,"Impuestos sobre los productos, excepto IVA e impuestos sobre las importaciones",2019]
["P134","Servicios de apoyo a la agricultura, caza, silvicultura y pesca",0,"Impuestos sobre los productos, excepto IVA e impuestos sobre las importaciones",2019]
["P147","Servicios de asociaciones que sirven a las empresas",0,"Impuestos sobre los productos, excepto IVA e impuestos sobre las importaciones",2019]
["P151","Compras directas en el exterior por residentes",0,"Impuestos sobre los productos, excepto IVA e impuestos sobre las importaciones",2019]
["P017","Cardamomo",0,"Subvenciones a los productos",2019]
["P026","Otros productos de animales vivos",0,"Subvenciones a los productos",2019]
["P032","Minerales metálicos",0,"Subvenciones a los productos",2019]
["P043","Aceites de origen vegetal",0,"Subvenciones a los productos",2019]
["P058","Aguas minerales y otras aguas embotelladas",0,"Subvenciones a los productos",2019]
["P064","Pasta de papel y papel",0,"Subvenciones a los productos",2019]
["P075","Productos farmacéuticos",0,"Subvenciones a los productos",2019]
["P089","Equipo y aparatos de radio, televisión y comunicaciones",0,"Subvenciones a los productos",2019]
["P096","Agua natural y distribución de agua natural",0,"Subvenciones a los productos",2019]
["P104","Servicio de transporte de pasajeros por vía terrestre",-224,"Subvenciones a los productos",2019]
["P123","Otros servicios profesionales, científicos y técnicos",0,"Subvenciones a los productos",2019]
["P130","Servicios telefónicos de centros de llamadas",0,"Subvenciones a los productos",2019]
["P140","Servicios públicos administrativos prestados a la comunidad en su conjunto",0,"Subvenciones a los productos",2019]
["P152","Compras directas en el territorio nacional por no residentes",0,"Subvenciones a los productos",2019]
["P005","Otros cereales",1284.988423,"Importaciones (CIF)",2019]
["P015","Palma africana",1.908585,"Importaciones (CIF)",2019]
["P026","Otros productos de animales vivos",3.6071080000000002,"Importaciones (CIF)",2019]
["P037","Carne y despojos de otros animales y conservas y preparados de carne",459.19868300000002,"Importaciones (CIF)",2019]
["P046","Otros productos lácteos n.c.p.",1430.989092,"Importaciones (CIF)",2019]
["P064","Pasta de papel y papel",5470.5383320000001,"Importaciones (CIF)",2019]
["P072","Pinturas, barnices, tintas y productos relacionados",960.23988899999995,"Importaciones (CIF)",2019]
["P085","Maquinaria para usos generales y especiales, sus partes y piezas, excepto electrodomésticos",9118.9531889999998,"Importaciones (CIF)",2019]
["P087","Maquinaria de oficina, contabilidad e informática, sus partes y piezas",1908.2921269999999,"Importaciones (CIF)",2019]
["P102","Servicios de comercio",0,"Importaciones (CIF)",2019]
["P113","Servicios de banco central",0,"Importaciones (CIF)",2019]
["P119","Otros servicios inmobiliarios, excepto alquiler de vivienda",0,"Importaciones (CIF)",2019]
["P135","Servicios de apoyo a la explotación de minas y canteras y los relacionados con la distribución de electricidad, gas y agua",0,"Importaciones (CIF)",2019]
["P146","Servicios audiovisuales, recreativos, culturales y deportivos",76.868467999999993,"Importaciones (CIF)",2019]
["P151","Compras directas en el exterior por residentes",6620.9107979999999,"Importaciones (CIF)",2019]
["P014","Berries, otras frutas y semillas de frutas",6.0276940000000003,"Impuestos y derechos sobre las importaciones excepto IVA",2019]
["P026","Otros productos de animales vivos",2.9363E-2,"Impuestos y derechos sobre las importaciones excepto IVA",2019]
["P029","Peces vivos, frescos o refrigerados",0.29973499999999997,"Impuestos y derechos sobre las importaciones excepto IVA",2019]
["P043","Aceites de origen vegetal",5.048781,"Impuestos y derechos sobre las importaciones excepto IVA",2019]
["P055","Aguardientes, licores, vinos, demás bebidas espirituosas y productos del tabaco",54.256576000000003,"Impuestos y derechos sobre las importaciones excepto IVA",2019]
["P064","Pasta de papel y papel",36.043134999999999,"Impuestos y derechos sobre las importaciones excepto IVA",2019]
["P081","Piedras talladas para construcción y otros productos minerales no metálicos n.c.p.",5.4429720000000001,"Impuestos y derechos sobre las importaciones excepto IVA",2019]
["P091","Equipo de transporte",135.50278,"Impuestos y derechos sobre las importaciones excepto IVA",2019]
["P096","Agua natural y distribución de agua natural",0,"Impuestos y derechos sobre las importaciones excepto IVA",2019]
["P108","Otros servicios de apoyo al transporte",0,"Impuestos y derechos sobre las importaciones excepto IVA",2019]
["P113","Servicios de banco central",0,"Impuestos y derechos sobre las importaciones excepto IVA",2019]
["P127","Servicios de agencias de viajes, operadores turísticos y actividades conexas",0,"Impuestos y derechos sobre las importaciones excepto IVA",2019]
["P140","Servicios públicos administrativos prestados a la comunidad en su conjunto",0,"Impuestos y derechos sobre las importaciones excepto IVA",2019]
["P149","Otros servicios",0,"Impuestos y derechos sobre las importaciones excepto IVA",2019]
["P005","Otros cereales",4.5234329999999998,"Impuesto tipo valor agregado (IVA)",2019]
["P023","Aves de corral",2.0175879999999999,"Impuesto tipo valor agregado (IVA)",2019]
["P032","Minerales metálicos",9.3479999999999994E-2,"Impuesto tipo valor agregado (IVA)",2019]
["P038","Pescado congelado, preparado o en conserva y sus productos",13.863833,"Impuesto tipo valor agregado (IVA)",2019]
["P053","Productos alimenticios n.c.p.",944.23151800000005,"Impuesto tipo valor agregado (IVA)",2019]
["P064","Pasta de papel y papel",379.11395700000003,"Impuesto tipo valor agregado (IVA)",2019]
["P070","Gases de petróleo, otros productos de la refinación de petróleo n.c.p.",392.87356599999998,"Impuesto tipo valor agregado (IVA)",2019]
["P085","Maquinaria para usos generales y especiales, sus partes y piezas, excepto electrodomésticos",67.667680000000004,"Impuesto tipo valor agregado (IVA)",2019]
["P095","Generación y distribución de energía eléctrica, gas, vapor y aire acondicionado",899.76605700000005,"Impuesto tipo valor agregado (IVA)",2019]
["P102","Servicios de comercio",0,"Impuesto tipo valor agregado (IVA)",2019]
["P110","Servicio de alojamiento",156.720843,"Impuesto tipo valor agregado (IVA)",2019]
["P119","Otros servicios inmobiliarios, excepto alquiler de vivienda",412.31121100000001,"Impuesto tipo valor agregado (IVA)",2019]
["P132","Servicios de mantenimiento, reparación e instalación de productos metálicos elaborados, maquinaria y equipo",63.611255999999997,"Impuesto tipo valor agregado (IVA)",2019]
["P146","Servicios audiovisuales, recreativos, culturales y deportivos",125.681867,"Impuesto tipo valor agregado (IVA)",2019]
["P006","Hortalizas",17041.280607000001,"Márgenes de comercio, transporte y distribución de energía",2019]
["P011","Tabaco y otras plantas no perennes",307.32314700000001,"Márgenes de comercio, transporte y distribución de energía",2019]
["P021","Ganado bovino",327.41867100000002,"Márgenes de comercio, transporte y distribución de energía",2019]
["P032","Minerales metálicos",1.4036E-2,"Márgenes de comercio, transporte y distribución de energía",2019]
["P043","Aceites de origen vegetal",1266.9648790000001,"Márgenes de comercio, transporte y distribución de energía",2019]
["P052","Azúcar de caña sin refinar y refinada, melaza y los demás azúcares n.c.p.",2564.3538669999998,"Márgenes de comercio, transporte y distribución de energía",2019]
["P064","Pasta de papel y papel",2815.2669329999999,"Márgenes de comercio, transporte y distribución de energía",2019]
["P078","Productos de cerámica y arcilla",492.62212,"Márgenes de comercio, transporte y distribución de energía",2019]
["P081","Piedras talladas para construcción y otros productos minerales no metálicos n.c.p.",108.303634,"Márgenes de comercio, transporte y distribución de energía",2019]
["P093","Otros artículos n.c.p.",3112.6524909999998,"Márgenes de comercio, transporte y distribución de energía",2019]
["P108","Otros servicios de apoyo al transporte",0,"Márgenes de comercio, transporte y distribución de energía",2019]
["P115","Servicios de Intermediación Financiera Medidos Indirectamente (SIFMI)",0,"Márgenes de comercio, transporte y distribución de energía",2019]
["P125","Servicios de arrendamiento o alquiler sin operador",0,"Márgenes de comercio, transporte y distribución de energía",2019]
["P141","Servicios administrativos relacionados con los sistemas de seguridad social de afiliación obligatoria",0,"Márgenes de comercio, transporte y distribución de energía",2019]
["P152","Compras directas en el territorio nacional por no residentes",0,"Márgenes de comercio, transporte y distribución de energía",2019]
["P005","Otros cereales",1282.2280619999999,"Consumo Intermedio (PC)",2019]
["P020","Otros frutos oleaginosos, otras plantas bebestibles y especias aromáticas",215.57830200000001,"Consumo Intermedio (PC)",2019]
["P032","Minerales metálicos",254.67737700000001,"Consumo Intermedio (PC)",2019]
["P035","Carne y despojos comestibles de ganado porcino",1101.588088,"Consumo Intermedio (PC)",2019]
["P053","Productos alimenticios n.c.p.",4800.7215230000002,"Consumo Intermedio (PC)",2019]
["P061","Cuero de piel curtida o adobada y cuero artificial o regenerado y artículos de cuero",843.92921799999999,"Consumo Intermedio (PC)",2019]
["P070","Gases de petróleo, otros productos de la refinación de petróleo n.c.p.",2005.740738,"Consumo Intermedio (PC)",2019]
["P076","Productos de caucho y plástico",12016.052656,"Consumo Intermedio (PC)",2019]
["P087","Maquinaria de oficina, contabilidad e informática, sus partes y piezas",405.42488100000003,"Consumo Intermedio (PC)",2019]
["P098","Edificaciones residenciales",0,"Consumo Intermedio (PC)",2019]
["P114","Otros servicios financieros y servicios de banca de inversión",2599.2265950000001,"Consumo Intermedio (PC)",2019]
["P119","Otros servicios inmobiliarios, excepto alquiler de vivienda",15748.445539,"Consumo Intermedio (PC)",2019]
["P129","Servicios de limpieza",1344.8372429999999,"Consumo Intermedio (PC)",2019]
["P146","Servicios audiovisuales, recreativos, culturales y deportivos",442.140986,"Consumo Intermedio (PC)",2019]
["P003","Leguminosas (legumbres secas) y semillas oleaginosas",207.22017299999999,"Consumo Final privado (PC)",2019]
["P011","Tabaco y otras plantas no perennes",395.40592199999998,"Consumo Final privado (PC)",2019]
["P018","Caucho natural",0,"Consumo Final privado (PC)",2019]
["P032","Minerales metálicos",0,"Consumo Final privado (PC)",2019]
["P044","Margarina, grasas y otros aceites de origen animal y vegetal",1106.2081539999999,"Consumo Final privado (PC)",2019]
["P049","Otros productos de molinería, almidones y productos de almidón",2448.6492130000001,"Consumo Final privado (PC)",2019]
["P059","Hilados, tejidos, telas y otros productos textiles excepto prendas de vestir",3278.0470030000001,"Consumo Final privado (PC)",2019]
["P076","Productos de caucho y plástico",6386.2440390000002,"Consumo Final privado (PC)",2019]
["P081","Piedras talladas para construcción y otros productos minerales no metálicos n.c.p.",49.930978000000003,"Consumo Final privado (PC)",2019]
["P090","Aparatos médicos, instrumentos ópticos y de precisión, relojes",346.837805,"Consumo Final privado (PC)",2019]
["P108","Otros servicios de apoyo al transporte",3227.2270830000002,"Consumo Final privado (PC)",2019]
["P112","Servicios de información, telecomunicaciones y radiodifusión",20330.316363000002,"Consumo Final privado (PC)",2019]
["P125","Servicios de arrendamiento o alquiler sin operador",413.64013599999998,"Consumo Final privado (PC)",2019]
["P138","Servicios públicos administrativos relacionados con la provisión de servicios educativos, de salud, servicios sociales, culturales y otros, sin contar los servicios de seguridad social",2.6181230000000002,"Consumo Final privado (PC)",2019]
["P152","Compras directas en el territorio nacional por no residentes",-9324.993332,"Consumo Final privado (PC)",2019]
["P001","Maíz",11.485080999999999,"Consumo Final del Gobierno (PC)",2019]
["P021","Ganado bovino",0,"Consumo Final del Gobierno (PC)",2019]
["P027","Troncos de madera y leña",0,"Consumo Final del Gobierno (PC)",2019]
["P038","Pescado congelado, preparado o en conserva y sus productos",0,"Consumo Final del Gobierno (PC)",2019]
["P043","Aceites de origen vegetal",16.373895000000001,"Consumo Final del Gobierno (PC)",2019]
["P058","Aguas minerales y otras aguas embotelladas",0.70499699999999998,"Consumo Final del Gobierno (PC)",2019]
["P070","Gases de petróleo, otros productos de la refinación de petróleo n.c.p.",0,"Consumo Final del Gobierno (PC)",2019]
["P084","Otros productos elaborados de metal",3.9259999999999998E-3,"Consumo Final del Gobierno (PC)",2019]
["P087","Maquinaria de oficina, contabilidad e informática, sus partes y piezas",0,"Consumo Final del Gobierno (PC)",2019]
["P095","Generación y distribución de energía eléctrica, gas, vapor y aire acondicionado",0,"Consumo Final del Gobierno (PC)",2019]
["P114","Otros servicios financieros y servicios de banca de inversión",0,"Consumo Final del Gobierno (PC)",2019]
["P121","Servicios de tecnología de la información",0,"Consumo Final del Gobierno (PC)",2019]
["P131","Servicios administrativos, de apoyo de oficina y otros servicios de apoyo a las empresas",0,"Consumo Final del Gobierno (PC)",2019]
["P147","Servicios de asociaciones que sirven a las empresas",0,"Consumo Final del Gobierno (PC)",2019]
["P152","Compras directas en el territorio nacional por no residentes",0,"Consumo Final del Gobierno (PC)",2019]
["P011","Tabaco y otras plantas no perennes",0,"Formación Bruta de Capital Fijo (PC)",2019]
["P026","Otros productos de animales vivos",0,"Formación Bruta de Capital Fijo (PC)",2019]
["P032","Minerales metálicos",0,"Formación Bruta de Capital Fijo (PC)",2019]
["P041","Preparaciones y conservas de frutas y nueces",0,"Formación Bruta de Capital Fijo (PC)",2019]
["P049","Otros productos de molinería, almidones y productos de almidón",0,"Formación Bruta de Capital Fijo (PC)",2019]
["P067","Productos de la impresión",0,"Formación Bruta de Capital Fijo (PC)",2019]
["P076","Productos de caucho y plástico",0,"Formación Bruta de Capital Fijo (PC)",2019]
["P089","Equipo y aparatos de radio, televisión y comunicaciones",2825.970233,"Formación Bruta de Capital Fijo (PC)",2019]
["P093","Otros artículos n.c.p.",399.66321699999997,"Formación Bruta de Capital Fijo (PC)",2019]
["P104","Servicio de transporte de pasajeros por vía terrestre",0,"Formación Bruta de Capital Fijo (PC)",2019]
["P120","Servicios jurídicos, de contabilidad, auditoría, teneduría de libros y consultoría fiscal",0,"Formación Bruta de Capital Fijo (PC)",2019]
["P125","Servicios de arrendamiento o alquiler sin operador",0,"Formación Bruta de Capital Fijo (PC)",2019]
["P135","Servicios de apoyo a la explotación de minas y canteras y los relacionados con la distribución de electricidad, gas y agua",0,"Formación Bruta de Capital Fijo (PC)",2019]
["P142","Servicios de enseñanza",0,"Formación Bruta de Capital Fijo (PC)",2019]
["P009","Raíces y tubérculos",228.38834600000001,"Exportaciones (fob)",2019]
["P011","Tabaco y otras plantas no perennes",302.10834599999998,"Exportaciones (fob)",2019]
["P024","Leche cruda",0,"Exportaciones (fob)",2019]
["P038","Pescado congelado, preparado o en conserva y sus productos",313.11429399999997,"Exportaciones (fob)",2019]
["P050","Pan y otros productos de panadería y repostería n.c.p.",837.69516899999996,"Exportaciones (fob)",2019]
["P055","Aguardientes, licores, vinos, demás bebidas espirituosas y productos del tabaco",794.23466299999995,"Exportaciones (fob)",2019]
["P072","Pinturas, barnices, tintas y productos relacionados",390.94773700000002,"Exportaciones (fob)",2019]
["P082","Métales básicos de hierro y acero, productos primarios de metales preciosos y otros metales no ferrosos",3749.4976109999998,"Exportaciones (fob)",2019]
["P087","Maquinaria de oficina, contabilidad e informática, sus partes y piezas",26.595208,"Exportaciones (fob)",2019]
["P103","Mantenimiento y reparación de vehículos automotores y motocicletas",10.844927999999999,"Exportaciones (fob)",2019]
["P114","Otros servicios financieros y servicios de banca de inversión",16.476324999999999,"Exportaciones (fob)",2019]
["P118","Servicios de alquiler de vivienda",0,"Exportaciones (fob)",2019]
["P131","Servicios administrativos, de apoyo de oficina y otros servicios de apoyo a las empresas",105.597881,"Exportaciones (fob)",2019]
["P144","Servicios médicos y dentales",304.46547700000002,"Exportaciones (fob)",2019]
["P152","Compras directas en el territorio nacional por no residentes",9324.993332,"Exportaciones (fob)",2019]
["P007","Sandías y melones",-16.72353,"Variación de existencias (PC)",2019]
["P017","Cardamomo",-369.877318,"Variación de existencias (PC)",2019]
["P033","Minerales no metálicos",97.798091999999997,"Variación de existencias (PC)",2019]
["P044","Margarina, grasas y otros aceites de origen animal y vegetal",8.6309000000000005,"Variación de existencias (PC)",2019]
["P049","Otros productos de molinería, almidones y productos de almidón",7.4286950000000003,"Variación de existencias (PC)",2019]
["P064","Pasta de papel y papel",-170.52957900000001,"Variación de existencias (PC)",2019]
["P076","Productos de caucho y plástico",18.257251,"Variación de existencias (PC)",2019]
["P086","Electrodomésticos y sus partes",-5.4624370000000004,"Variación de existencias (PC)",2019]
["P093","Otros artículos n.c.p.",85.696327999999994,"Variación de existencias (PC)",2019]
["P101","Servicios generales y especializados de construcción",0,"Variación de existencias (PC)",2019]
["P110","Servicio de alojamiento",0,"Variación de existencias (PC)",2019]
["P127","Servicios de agencias de viajes, operadores turísticos y actividades conexas",0,"Variación de existencias (PC)",2019]
["P131","Servicios administrativos, de apoyo de oficina y otros servicios de apoyo a las empresas",0,"Variación de existencias (PC)",2019]
["P142","Servicios de enseñanza",0,"Variación de existencias (PC)",2019]
["P006","Hortalizas",0,"Ajuste CIF/FOB",2019]
["P011","Tabaco y otras plantas no perennes",0,"Ajuste CIF/FOB",2019]
["P021","Ganado bovino",0,"Ajuste CIF/FOB",2019]
["P038","Pescado congelado, preparado o en conserva y sus productos",0,"Ajuste CIF/FOB",2019]
["P047","Harina de trigo",0,"Ajuste CIF/FOB",2019]
["P055","Aguardientes, licores, vinos, demás bebidas espirituosas y productos del tabaco",0,"Ajuste CIF/FOB",2019]
["P069","Aceites, grasas lubricantes y otros aceites preparados",0,"Ajuste CIF/FOB",2019]
["P082","Métales básicos de hierro y acero, productos primarios de metales preciosos y otros metales no ferrosos",0,"Ajuste CIF/FOB",2019]
["P084","Otros productos elaborados de metal",0,"Ajuste CIF/FOB",2019]
["P099","Edificaciones no residenciales",0,"Ajuste CIF/FOB",2019]
["P110","Servicio de alojamiento",0,"Ajuste CIF/FOB",2019]
["P120","Servicios jurídicos, de contabilidad, auditoría, teneduría de libros y consultoría fiscal",0,"Ajuste CIF/FOB",2019]
["P131","Servicios administrativos, de apoyo de oficina y otros servicios de apoyo a las empresas",0,"Ajuste CIF/FOB",2019]
["P141","Servicios administrativos relacionados con los sistemas de seguridad social de afiliación obligatoria",0,"Ajuste CIF/FOB",2019]
["P152","Compras directas en el territorio nacional por no residentes",0,"Ajuste CIF/FOB",2019]
["P004","Arroz",90.328373999999997,"Producción (PB)",2020]
["P017","Cardamomo",7440.9227609999998,"Producción (PB)",2020]
["P030","Crustáceos sin congelar y otros productos de la pesca",750.582944,"Producción (PB)",2020]
["P044","Margarina, grasas y otros aceites de origen animal y vegetal",1381.3622,"Producción (PB)",2020]
["P052","Azúcar de caña sin refinar y refinada, melaza y los demás azúcares n.c.p.",10713.746592,"Producción (PB)",2020]
["P061","Cuero de piel curtida o adobada y cuero artificial o regenerado y artículos de cuero",976.09885799999995,"Producción (PB)",2020]
["P067","Productos de la impresión",1834.849416,"Producción (PB)",2020]
["P078","Productos de cerámica y arcilla",1657.170791,"Producción (PB)",2020]
["P093","Otros artículos n.c.p.",1667.7399439999999,"Producción (PB)",2020]
["P098","Edificaciones residenciales",28143.156755,"Producción (PB)",2020]
["P110","Servicio de alojamiento",1858.2110339999999,"Producción (PB)",2020]
["P124","Servicios de publicidad y estudios de mercado",6067.4513079999997,"Producción (PB)",2020]
["P131","Servicios administrativos, de apoyo de oficina y otros servicios de apoyo a las empresas",2848.9968629999998,"Producción (PB)",2020]
["P150","Servicios domésticos",9882.0449050000007,"Producción (PB)",2020]
["P006","Hortalizas",0,"Impuestos sobre los productos, excepto IVA e impuestos sobre las importaciones",2020]
["P013","Frutas tropicales y subtropicales",0,"Impuestos sobre los productos, excepto IVA e impuestos sobre las importaciones",2020]
["P023","Aves de corral",0,"Impuestos sobre los productos, excepto IVA e impuestos sobre las importaciones",2020]
["P035","Carne y despojos comestibles de ganado porcino",0,"Impuestos sobre los productos, excepto IVA e impuestos sobre las importaciones",2020]
["P050","Pan y otros productos de panadería y repostería n.c.p.",0,"Impuestos sobre los productos, excepto IVA e impuestos sobre las importaciones",2020]
["P055","Aguardientes, licores, vinos, demás bebidas espirituosas y productos del tabaco",402.32177100000001,"Impuestos sobre los productos, excepto IVA e impuestos sobre las importaciones",2020]
["P066","Productos de la edición",0,"Impuestos sobre los productos, excepto IVA e impuestos sobre las importaciones",2020]
["P072","Pinturas, barnices, tintas y productos relacionados",0,"Impuestos sobre los productos, excepto IVA e impuestos sobre las importaciones",2020]
["P092","Muebles",0,"Impuestos sobre los productos, excepto IVA e impuestos sobre las importaciones",2020]
["P099","Edificaciones no residenciales",0,"Impuestos sobre los productos, excepto IVA e impuestos sobre las importaciones",2020]
["P107","Servicios de almacenamiento y depósito",0,"Impuestos sobre los productos, excepto IVA e impuestos sobre las importaciones",2020]
["P120","Servicios jurídicos, de contabilidad, auditoría, teneduría de libros y consultoría fiscal",0,"Impuestos sobre los productos, excepto IVA e impuestos sobre las importaciones",2020]
["P133","Servicios de reparación de otros bienes",0,"Impuestos sobre los productos, excepto IVA e impuestos sobre las importaciones",2020]
["P137","Servicios públicos del gobierno general",0,"Impuestos sobre los productos, excepto IVA e impuestos sobre las importaciones",2020]
["P148","Servicios de asociaciones que sirven a los hogares",0,"Impuestos sobre los productos, excepto IVA e impuestos sobre las importaciones",2020]
["P012","Bananos, plátanos y otros",0,"Subvenciones a los productos",2020]
["P017","Cardamomo",0,"Subvenciones a los productos",2020]
["P027","Troncos de madera y leña",0,"Subvenciones a los productos",2020]
["P044","Margarina, grasas y otros aceites de origen animal y vegetal",0,"Subvenciones a los productos",2020]
["P049","Otros productos de molinería, almidones y productos de almidón",0,"Subvenciones a los productos",2020]
["P061","Cuero de piel curtida o adobada y cuero artificial o regenerado y artículos de cuero",0,"Subvenciones a los productos",2020]
["P075","Productos farmacéuticos",0,"Subvenciones a los productos",2020]
["P078","Productos de cerámica y arcilla",0,"Subvenciones a los productos",2020]
["P090","Aparatos médicos, instrumentos ópticos y de precisión, relojes",0,"Subvenciones a los productos",2020]
["P099","Edificaciones no residenciales",0,"Subvenciones a los productos",2020]
["P116","Servicios de seguro, reaseguro y fondos de pensiones",0,"Subvenciones a los productos",2020]
["P126","Servicios  de agencias de empleo y de dotación de recursos humanos",0,"Subvenciones a los productos",2020]
["P137","Servicios públicos del gobierno general",0,"Subvenciones a los productos",2020]
["P147","Servicios de asociaciones que sirven a las empresas",0,"Subvenciones a los productos",2020]
["P006","Hortalizas",188.078452,"Importaciones (CIF)",2020]
["P010","Caña de azúcar y otras plantas azucareras",4.9439999999999996E-3,"Importaciones (CIF)",2020]
["P023","Aves de corral",148.18718200000001,"Importaciones (CIF)",2020]
["P032","Minerales metálicos",10.611995,"Importaciones (CIF)",2020]
["P040","Vegetales preparados o en conserva, legumbres y papas",725.48214499999995,"Importaciones (CIF)",2020]
["P058","Aguas minerales y otras aguas embotelladas",17.071148999999998,"Importaciones (CIF)",2020]
["P067","Productos de la impresión",75.316738999999998,"Importaciones (CIF)",2020]
["P073","Jabón, preparados de limpieza, perfumes y preparados de toilet",2954.1122169999999,"Importaciones (CIF)",2020]
["P088","Maquinaria y aparatos eléctricos, sus partes y piezas",3699.1535290000002,"Importaciones (CIF)",2020]
["P099","Edificaciones no residenciales",0,"Importaciones (CIF)",2020]
["P104","Servicio de transporte de pasajeros por vía terrestre",28.007711,"Importaciones (CIF)",2020]
["P120","Servicios jurídicos, de contabilidad, auditoría, teneduría de libros y consultoría fiscal",39.523173999999997,"Importaciones (CIF)",2020]
["P130","Servicios telefónicos de centros de llamadas",286.88197200000002,"Importaciones (CIF)",2020]
["P137","Servicios públicos del gobierno general",0,"Importaciones (CIF)",2020]
["P145","Otros servicios de atención de la salud humana",0.31075599999999998,"Importaciones (CIF)",2020]
["P012","Bananos, plátanos y otros",0.155918,"Impuestos y derechos sobre las importaciones excepto IVA",2020]
["P015","Palma africana",7.0500000000000001E-4,"Impuestos y derechos sobre las importaciones excepto IVA",2020]
["P029","Peces vivos, frescos o refrigerados",0.27446500000000001,"Impuestos y derechos sobre las importaciones excepto IVA",2020]
["P041","Preparaciones y conservas de frutas y nueces",7.7818670000000001,"Impuestos y derechos sobre las importaciones excepto IVA",2020]
["P046","Otros productos lácteos n.c.p.",100.598738,"Impuestos y derechos sobre las importaciones excepto IVA",2020]
["P061","Cuero de piel curtida o adobada y cuero artificial o regenerado y artículos de cuero",31.014851,"Impuestos y derechos sobre las importaciones excepto IVA",2020]
["P072","Pinturas, barnices, tintas y productos relacionados",11.499354,"Impuestos y derechos sobre las importaciones excepto IVA",2020]
["P078","Productos de cerámica y arcilla",41.995533999999999,"Impuestos y derechos sobre las importaciones excepto IVA",2020]
["P087","Maquinaria de oficina, contabilidad e informática, sus partes y piezas",0,"Impuestos y derechos sobre las importaciones excepto IVA",2020]
["P099","Edificaciones no residenciales",0,"Impuestos y derechos sobre las importaciones excepto IVA",2020]
["P113","Servicios de banco central",0,"Impuestos y derechos sobre las importaciones excepto IVA",2020]
["P126","Servicios  de agencias de empleo y de dotación de recursos humanos",0,"Impuestos y derechos sobre las importaciones excepto IVA",2020]
["P128","Servicios de seguridad, sistemas de seguridad e investigación privada",0,"Impuestos y derechos sobre las importaciones excepto IVA",2020]
["P143","Servicios de hospitalización",0,"Impuestos y derechos sobre las importaciones excepto IVA",2020]
["P150","Servicios domésticos",0,"Impuestos y derechos sobre las importaciones excepto IVA",2020]
["P008","Ejotes y arvejas",5.9437959999999999,"Impuesto tipo valor agregado (IVA)",2020]
["P023","Aves de corral",1.879937,"Impuesto tipo valor agregado (IVA)",2020]
["P029","Peces vivos, frescos o refrigerados",23.162773999999999,"Impuesto tipo valor agregado (IVA)",2020]
["P040","Vegetales preparados o en conserva, legumbres y papas",89.108841999999996,"Impuesto tipo valor agregado (IVA)",2020]
["P055","Aguardientes, licores, vinos, demás bebidas espirituosas y productos del tabaco",110.90039,"Impuesto tipo valor agregado (IVA)",2020]
["P067","Productos de la impresión",49.645921000000001,"Impuesto tipo valor agregado (IVA)",2020]
["P070","Gases de petróleo, otros productos de la refinación de petróleo n.c.p.",361.26904300000001,"Impuesto tipo valor agregado (IVA)",2020]
["P088","Maquinaria y aparatos eléctricos, sus partes y piezas",73.757693000000003,"Impuesto tipo valor agregado (IVA)",2020]
["P096","Agua natural y distribución de agua natural",108.350589,"Impuesto tipo valor agregado (IVA)",2020]
["P105","Servicio de transporte de carga por vía terrestre",32.953361999999998,"Impuesto tipo valor agregado (IVA)",2020]
["P122","Servicios de arquitectura e ingeniería, ensayos y análisis técnicos",46.685102000000001,"Impuesto tipo valor agregado (IVA)",2020]
["P132","Servicios de mantenimiento, reparación e instalación de productos metálicos elaborados, maquinaria y equipo",60.991599999999998,"Impuesto tipo valor agregado (IVA)",2020]
["P137","Servicios públicos del gobierno general",0,"Impuesto tipo valor agregado (IVA)",2020]
["P001","Maíz",2337.9927269999998,"Márgenes de comercio, transporte y distribución de energía",2020]
["P002","Frijoles",1239.93166,"Márgenes de comercio, transporte y distribución de energía",2020]
["P012","Bananos, plátanos y otros",3590.6396060000002,"Márgenes de comercio, transporte y distribución de energía",2020]
["P029","Peces vivos, frescos o refrigerados",760.60224200000005,"Márgenes de comercio, transporte y distribución de energía",2020]
["P038","Pescado congelado, preparado o en conserva y sus productos",229.18288699999999,"Márgenes de comercio, transporte y distribución de energía",2020]
["P046","Otros productos lácteos n.c.p.",2358.7329589999999,"Márgenes de comercio, transporte y distribución de energía",2020]
["P064","Pasta de papel y papel",2775.1720209999999,"Márgenes de comercio, transporte y distribución de energía",2020]
["P067","Productos de la impresión",410.55186500000002,"Márgenes de comercio, transporte y distribución de energía",2020]
["P079","Cemento, cal y yeso",573.00713299999995,"Márgenes de comercio, transporte y distribución de energía",2020]
["P094","Residuos y desechos",507.48239699999999,"Márgenes de comercio, transporte y distribución de energía",2020]
["P105","Servicio de transporte de carga por vía terrestre",-7195.5043850000002,"Márgenes de comercio, transporte y distribución de energía",2020]
["P110","Servicio de alojamiento",0,"Márgenes de comercio, transporte y distribución de energía",2020]
["P126","Servicios  de agencias de empleo y de dotación de recursos humanos",0,"Márgenes de comercio, transporte y distribución de energía",2020]
["P136","Servicios de manufactura",0,"Márgenes de comercio, transporte y distribución de energía",2020]
["P143","Servicios de hospitalización",0,"Márgenes de comercio, transporte y distribución de energía",2020]
["P006","Hortalizas",1380.067843,"Consumo Intermedio (PC)",2020]
["P008","Ejotes y arvejas",39.204709000000001,"Consumo Intermedio (PC)",2020]
["P021","Ganado bovino",4750.5886979999996,"Consumo Intermedio (PC)",2020]
["P035","Carne y despojos comestibles de ganado porcino",934.03517999999997,"Consumo Intermedio (PC)",2020]
["P047","Harina de trigo",2581.4773989999999,"Consumo Intermedio (PC)",2020]
["P056","Malta y cerveza de malta",391.56606599999998,"Consumo Intermedio (PC)",2020]
["P067","Productos de la impresión",2114.049317,"Consumo Intermedio (PC)",2020]
["P078","Productos de cerámica y arcilla",2119.1242400000001,"Consumo Intermedio (PC)",2020]
["P088","Maquinaria y aparatos eléctricos, sus partes y piezas",3132.5605500000001,"Consumo Intermedio (PC)",2020]
["P093","Otros artículos n.c.p.",1699.190349,"Consumo Intermedio (PC)",2020]
["P105","Servicio de transporte de carga por vía terrestre",6402.6272349999999,"Consumo Intermedio (PC)",2020]
["P119","Otros servicios inmobiliarios, excepto alquiler de vivienda",15513.002823000001,"Consumo Intermedio (PC)",2020]
["P122","Servicios de arquitectura e ingeniería, ensayos y análisis técnicos",2511.5097479999999,"Consumo Intermedio (PC)",2020]
["P141","Servicios administrativos relacionados con los sistemas de seguridad social de afiliación obligatoria",0,"Consumo Intermedio (PC)",2020]
["P149","Otros servicios",53.574139000000002,"Consumo Intermedio (PC)",2020]
["P004","Arroz",0,"Consumo Final privado (PC)",2020]
["P014","Berries, otras frutas y semillas de frutas",7035.053081,"Consumo Final privado (PC)",2020]
["P029","Peces vivos, frescos o refrigerados",2005.9333509999999,"Consumo Final privado (PC)",2020]
["P035","Carne y despojos comestibles de ganado porcino",1314.6796489999999,"Consumo Final privado (PC)",2020]
["P046","Otros productos lácteos n.c.p.",5999.4644310000003,"Consumo Final privado (PC)",2020]
["P061","Cuero de piel curtida o adobada y cuero artificial o regenerado y artículos de cuero",1268.3593940000001,"Consumo Final privado (PC)",2020]
["P067","Productos de la impresión",322.66875199999998,"Consumo Final privado (PC)",2020]
["P076","Productos de caucho y plástico",6636.5575449999997,"Consumo Final privado (PC)",2020]
["P094","Residuos y desechos",0,"Consumo Final privado (PC)",2020]
["P102","Servicios de comercio",0,"Consumo Final privado (PC)",2020]
["P111","Servicio de suministro de comidas y bebidas",30781.879392999999,"Consumo Final privado (PC)",2020]
["P124","Servicios de publicidad y estudios de mercado",4.2031080000000003,"Consumo Final privado (PC)",2020]
["P128","Servicios de seguridad, sistemas de seguridad e investigación privada",316.72065600000002,"Consumo Final privado (PC)",2020]
["P143","Servicios de hospitalización",3249.897168,"Consumo Final privado (PC)",2020]
["P148","Servicios de asociaciones que sirven a los hogares",2449.323292,"Consumo Final privado (PC)",2020]
["P008","Ejotes y arvejas",4.2503770000000003,"Consumo Final del Gobierno (PC)",2020]
["P018","Caucho natural",0,"Consumo Final del Gobierno (PC)",2020]
["P035","Carne y despojos comestibles de ganado porcino",0,"Consumo Final del Gobierno (PC)",2020]
["P044","Margarina, grasas y otros aceites de origen animal y vegetal",0,"Consumo Final del Gobierno (PC)",2020]
["P056","Malta y cerveza de malta",0,"Consumo Final del Gobierno (PC)",2020]
["P059","Hilados, tejidos, telas y otros productos textiles excepto prendas de vestir",22.826089,"Consumo Final del Gobierno (PC)",2020]
["P073","Jabón, preparados de limpieza, perfumes y preparados de toilet",0,"Consumo Final del Gobierno (PC)",2020]
["P085","Maquinaria para usos generales y especiales, sus partes y piezas, excepto electrodomésticos",0,"Consumo Final del Gobierno (PC)",2020]
["P090","Aparatos médicos, instrumentos ópticos y de precisión, relojes",16.713417,"Consumo Final del Gobierno (PC)",2020]
["P105","Servicio de transporte de carga por vía terrestre",0,"Consumo Final del Gobierno (PC)",2020]
["P116","Servicios de seguro, reaseguro y fondos de pensiones",70.492579000000006,"Consumo Final del Gobierno (PC)",2020]
["P122","Servicios de arquitectura e ingeniería, ensayos y análisis técnicos",0,"Consumo Final del Gobierno (PC)",2020]
["P138","Servicios públicos administrativos relacionados con la provisión de servicios educativos, de salud, servicios sociales, culturales y otros, sin contar los servicios de seguridad social",2238.1007359999999,"Consumo Final del Gobierno (PC)",2020]
["P149","Otros servicios",0,"Consumo Final del Gobierno (PC)",2020]
["P001","Maíz",0,"Formación Bruta de Capital Fijo (PC)",2020]
["P014","Berries, otras frutas y semillas de frutas",192.36544599999999,"Formación Bruta de Capital Fijo (PC)",2020]
["P027","Troncos de madera y leña",0,"Formación Bruta de Capital Fijo (PC)",2020]
["P035","Carne y despojos comestibles de ganado porcino",0,"Formación Bruta de Capital Fijo (PC)",2020]
["P042","Jugos de frutas",0,"Formación Bruta de Capital Fijo (PC)",2020]
["P062","Calzado y sus partes, de cualquier material y de cualquier uso",0,"Formación Bruta de Capital Fijo (PC)",2020]
["P063","Madera aserrada y acepillada, productos de madera, corcho, paja y materiales trenzables",8.1677140000000001,"Formación Bruta de Capital Fijo (PC)",2020]
["P073","Jabón, preparados de limpieza, perfumes y preparados de toilet",0,"Formación Bruta de Capital Fijo (PC)",2020]
["P084","Otros productos elaborados de metal",699.57590300000004,"Formación Bruta de Capital Fijo (PC)",2020]
["P099","Edificaciones no residenciales",9642.4173960000007,"Formación Bruta de Capital Fijo (PC)",2020]
["P111","Servicio de suministro de comidas y bebidas",0,"Formación Bruta de Capital Fijo (PC)",2020]
["P121","Servicios de tecnología de la información",617.22214199999996,"Formación Bruta de Capital Fijo (PC)",2020]
["P128","Servicios de seguridad, sistemas de seguridad e investigación privada",0,"Formación Bruta de Capital Fijo (PC)",2020]
["P136","Servicios de manufactura",0,"Formación Bruta de Capital Fijo (PC)",2020]
["P003","Leguminosas (legumbres secas) y semillas oleaginosas",284.85430700000001,"Exportaciones (fob)",2020]
["P010","Caña de azúcar y otras plantas azucareras",11.798855,"Exportaciones (fob)",2020]
["P024","Leche cruda",0,"Exportaciones (fob)",2020]
["P035","Carne y despojos comestibles de ganado porcino",0.32199800000000001,"Exportaciones (fob)",2020]
["P041","Preparaciones y conservas de frutas y nueces",818.27499499999999,"Exportaciones (fob)",2020]
["P056","Malta y cerveza de malta",79.257140000000007,"Exportaciones (fob)",2020]
["P067","Productos de la impresión",107.52205499999999,"Exportaciones (fob)",2020]
["P073","Jabón, preparados de limpieza, perfumes y preparados de toilet",2377.2122669999999,"Exportaciones (fob)",2020]
["P082","Métales básicos de hierro y acero, productos primarios de metales preciosos y otros metales no ferrosos",4193.8989119999997,"Exportaciones (fob)",2020]
["P090","Aparatos médicos, instrumentos ópticos y de precisión, relojes",245.410608,"Exportaciones (fob)",2020]
["P104","Servicio de transporte de pasajeros por vía terrestre",4.8198990000000004,"Exportaciones (fob)",2020]
["P117","Servicios auxiliares de la intermediación financiera",8.8509100000000007,"Exportaciones (fob)",2020]
["P130","Servicios telefónicos de centros de llamadas",5296.2985859999999,"Exportaciones (fob)",2020]
["P134","Servicios de apoyo a la agricultura, caza, silvicultura y pesca",0,"Exportaciones (fob)",2020]
["P149","Otros servicios",0,"Exportaciones (fob)",2020]
["P009","Raíces y tubérculos",0,"Variación de existencias (PC)",2020]
["P014","Berries, otras frutas y semillas de frutas",0,"Variación de existencias (PC)",2020]
["P024","Leche cruda",0,"Variación de existencias (PC)",2020]
["P035","Carne y despojos comestibles de ganado porcino",5.57768,"Variación de existencias (PC)",2020]
["P050","Pan y otros productos de panadería y repostería n.c.p.",-7.7020590000000002,"Variación de existencias (PC)",2020]
["P052","Azúcar de caña sin refinar y refinada, melaza y los demás azúcares n.c.p.",-406.13754599999999,"Variación de existencias (PC)",2020]
["P065","Envases de papel y cartón",14.118136,"Variación de existencias (PC)",2020]
["P079","Cemento, cal y yeso",131.59300300000001,"Variación de existencias (PC)",2020]
["P087","Maquinaria de oficina, contabilidad e informática, sus partes y piezas",95.435830999999993,"Variación de existencias (PC)",2020]
["P096","Agua natural y distribución de agua natural",0,"Variación de existencias (PC)",2020]
["P111","Servicio de suministro de comidas y bebidas",0,"Variación de existencias (PC)",2020]
["P122","Servicios de arquitectura e ingeniería, ensayos y análisis técnicos",0,"Variación de existencias (PC)",2020]
["P128","Servicios de seguridad, sistemas de seguridad e investigación privada",0,"Variación de existencias (PC)",2020]
["P144","Servicios médicos y dentales",0,"Variación de existencias (PC)",2020]
["P003","Leguminosas (legumbres secas) y semillas oleaginosas",0,"Ajuste CIF/FOB",2020]
["P007","Sandías y melones",0,"Ajuste CIF/FOB",2020]
["P024","Leche cruda",0,"Ajuste CIF/FOB",2020]
["P033","Minerales no metálicos",0,"Ajuste CIF/FOB",2020]
["P041","Preparaciones y conservas de frutas y nueces",0,"Ajuste CIF/FOB",2020]
["P048","Arroz sin cáscara",0,"Ajuste CIF/FOB",2020]
["P058","Aguas minerales y otras aguas embotelladas",0,"Ajuste CIF/FOB",2020]
["P073","Jabón, preparados de limpieza, perfumes y preparados de toilet",0,"Ajuste CIF/FOB",2020]
["P079","Cemento, cal y yeso",0,"Ajuste CIF/FOB",2020]
["P090","Aparatos médicos, instrumentos ópticos y de precisión, relojes",0,"Ajuste CIF/FOB",2020]
["P101","Servicios generales y especializados de construcción",0,"Ajuste CIF/FOB",2020]
["P117","Servicios auxiliares de la intermediación financiera",0,"Ajuste CIF/FOB",2020]
["P127","Servicios de agencias de viajes, operadores turísticos y actividades conexas",0,"Ajuste CIF/FOB",2020]
["P134","Servicios de apoyo a la agricultura, caza, silvicultura y pesca",0,"Ajuste CIF/FOB",2020]
["P142","Servicios de enseñanza",0,"Ajuste CIF/FOB",2020]
["P003","Leguminosas (legumbres secas) y semillas oleaginosas",545.52049899999997,"Producción (PB)",2021]
["P016","Café en grano",12030.685095999999,"Producción (PB)",2021]
["P020","Otros frutos oleaginosos, otras plantas bebestibles y especias aromáticas",575.47528399999999,"Producción (PB)",2021]
["P031","Petróleo crudo y gas natural",922.94518900000003,"Producción (PB)",2021]
["P047","Harina de trigo",2533.1456790000002,"Producción (PB)",2021]
["P052","Azúcar de caña sin refinar y refinada, melaza y los demás azúcares n.c.p.",11374.376015,"Producción (PB)",2021]
["P062","Calzado y sus partes, de cualquier material y de cualquier uso",1524.335124,"Producción (PB)",2021]
["P079","Cemento, cal y yeso",7420.6491830000004,"Producción (PB)",2021]
["P084","Otros productos elaborados de metal",4160.9285239999999,"Producción (PB)",2021]
["P096","Agua natural y distribución de agua natural",5485.0203700000002,"Producción (PB)",2021]
["P110","Servicio de alojamiento",2372.6576890000001,"Producción (PB)",2021]
["P123","Otros servicios profesionales, científicos y técnicos",9700.5175450000006,"Producción (PB)",2021]
["P125","Servicios de arrendamiento o alquiler sin operador",6342.893489,"Producción (PB)",2021]
["P144","Servicios médicos y dentales",10582.691926,"Producción (PB)",2021]
["P145","Otros servicios de atención de la salud humana",5212.378076,"Producción (PB)",2021]
["P004","Arroz",0,"Impuestos sobre los productos, excepto IVA e impuestos sobre las importaciones",2021]
["P014","Berries, otras frutas y semillas de frutas",0,"Impuestos sobre los productos, excepto IVA e impuestos sobre las importaciones",2021]
["P030","Crustáceos sin congelar y otros productos de la pesca",0,"Impuestos sobre los productos, excepto IVA e impuestos sobre las importaciones",2021]
["P041","Preparaciones y conservas de frutas y nueces",0,"Impuestos sobre los productos, excepto IVA e impuestos sobre las importaciones",2021]
["P045","Leche líquida y crema procesada",0,"Impuestos sobre los productos, excepto IVA e impuestos sobre las importaciones",2021]
["P058","Aguas minerales y otras aguas embotelladas",14.083017,"Impuestos sobre los productos, excepto IVA e impuestos sobre las importaciones",2021]
["P067","Productos de la impresión",0,"Impuestos sobre los productos, excepto IVA e impuestos sobre las importaciones",2021]
["P085","Maquinaria para usos generales y especiales, sus partes y piezas, excepto electrodomésticos",0,"Impuestos sobre los productos, excepto IVA e impuestos sobre las importaciones",2021]
["P093","Otros artículos n.c.p.",0,"Impuestos sobre los productos, excepto IVA e impuestos sobre las importaciones",2021]
["P102","Servicios de comercio",0,"Impuestos sobre los productos, excepto IVA e impuestos sobre las importaciones",2021]
["P117","Servicios auxiliares de la intermediación financiera",0,"Impuestos sobre los productos, excepto IVA e impuestos sobre las importaciones",2021]
["P124","Servicios de publicidad y estudios de mercado",0,"Impuestos sobre los productos, excepto IVA e impuestos sobre las importaciones",2021]
["P134","Servicios de apoyo a la agricultura, caza, silvicultura y pesca",0,"Impuestos sobre los productos, excepto IVA e impuestos sobre las importaciones",2021]
["P139","Otros servicios administrativos",0,"Impuestos sobre los productos, excepto IVA e impuestos sobre las importaciones",2021]
["P003","Leguminosas (legumbres secas) y semillas oleaginosas",0,"Subvenciones a los productos",2021]
["P013","Frutas tropicales y subtropicales",0,"Subvenciones a los productos",2021]
["P020","Otros frutos oleaginosos, otras plantas bebestibles y especias aromáticas",0,"Subvenciones a los productos",2021]
["P039","Crustáceos, moluscos y demás invertebrados acuáticos congelados, preparados o en conserva y sus productos",0,"Subvenciones a los productos",2021]
["P047","Harina de trigo",0,"Subvenciones a los productos",2021]
["P050","Pan y otros productos de panadería y repostería n.c.p.",0,"Subvenciones a los productos",2021]
["P064","Pasta de papel y papel",0,"Subvenciones a los productos",2021]
["P079","Cemento, cal y yeso",0,"Subvenciones a los productos",2021]
["P085","Maquinaria para usos generales y especiales, sus partes y piezas, excepto electrodomésticos",0,"Subvenciones a los productos",2021]
["P096","Agua natural y distribución de agua natural",0,"Subvenciones a los productos",2021]
["P107","Servicios de almacenamiento y depósito",0,"Subvenciones a los productos",2021]
["P113","Servicios de banco central",0,"Subvenciones a los productos",2021]
["P133","Servicios de reparación de otros bienes",0,"Subvenciones a los productos",2021]
["P134","Servicios de apoyo a la agricultura, caza, silvicultura y pesca",0,"Subvenciones a los productos",2021]
["P148","Servicios de asociaciones que sirven a los hogares",0,"Subvenciones a los productos",2021]
["P009","Raíces y tubérculos",32.449936000000001,"Importaciones (CIF)",2021]
["P022","Ganado porcino y otro tipo de animales vivos n.c.p.",19.778998999999999,"Importaciones (CIF)",2021]
["P026","Otros productos de animales vivos",5.2591830000000002,"Importaciones (CIF)",2021]
["P041","Preparaciones y conservas de frutas y nueces",741.25453400000004,"Importaciones (CIF)",2021]
["P053","Productos alimenticios n.c.p.",6779.5963320000001,"Importaciones (CIF)",2021]
["P058","Aguas minerales y otras aguas embotelladas",24.059179,"Importaciones (CIF)",2021]
["P075","Productos farmacéuticos",7759.180875,"Importaciones (CIF)",2021]
["P085","Maquinaria para usos generales y especiales, sus partes y piezas, excepto electrodomésticos",11493.735486,"Importaciones (CIF)",2021]
["P090","Aparatos médicos, instrumentos ópticos y de precisión, relojes",2387.6944979999998,"Importaciones (CIF)",2021]
["P102","Servicios de comercio",0,"Importaciones (CIF)",2021]
["P116","Servicios de seguro, reaseguro y fondos de pensiones",2615.225762,"Importaciones (CIF)",2021]
["P123","Otros servicios profesionales, científicos y técnicos",897.32577900000001,"Importaciones (CIF)",2021]
["P131","Servicios administrativos, de apoyo de oficina y otros servicios de apoyo a las empresas",46.932758999999997,"Importaciones (CIF)",2021]
["P140","Servicios públicos administrativos prestados a la comunidad en su conjunto",313.65483599999999,"Importaciones (CIF)",2021]
["P151","Compras directas en el exterior por residentes",2550.4768509999999,"Importaciones (CIF)",2021]
["P010","Caña de azúcar y otras plantas azucareras",0,"Impuestos y derechos sobre las importaciones excepto IVA",2021]
["P020","Otros frutos oleaginosos, otras plantas bebestibles y especias aromáticas",2.11694,"Impuestos y derechos sobre las importaciones excepto IVA",2021]
["P036","Carne y despojos comestibles de aves",13.882215,"Impuestos y derechos sobre las importaciones excepto IVA",2021]
["P047","Harina de trigo",0,"Impuestos y derechos sobre las importaciones excepto IVA",2021]
["P058","Aguas minerales y otras aguas embotelladas",1.009698,"Impuestos y derechos sobre las importaciones excepto IVA",2021]
["P064","Pasta de papel y papel",40.992446000000001,"Impuestos y derechos sobre las importaciones excepto IVA",2021]
["P073","Jabón, preparados de limpieza, perfumes y preparados de toilet",237.287644,"Impuestos y derechos sobre las importaciones excepto IVA",2021]
["P081","Piedras talladas para construcción y otros productos minerales no metálicos n.c.p.",7.4178750000000004,"Impuestos y derechos sobre las importaciones excepto IVA",2021]
["P099","Edificaciones no residenciales",0,"Impuestos y derechos sobre las importaciones excepto IVA",2021]
["P102","Servicios de comercio",0,"Impuestos y derechos sobre las importaciones excepto IVA",2021]
["P113","Servicios de banco central",0,"Impuestos y derechos sobre las importaciones excepto IVA",2021]
["P130","Servicios telefónicos de centros de llamadas",0,"Impuestos y derechos sobre las importaciones excepto IVA",2021]
["P140","Servicios públicos administrativos prestados a la comunidad en su conjunto",0,"Impuestos y derechos sobre las importaciones excepto IVA",2021]
["P145","Otros servicios de atención de la salud humana",0,"Impuestos y derechos sobre las importaciones excepto IVA",2021]
["P009","Raíces y tubérculos",124.138953,"Impuesto tipo valor agregado (IVA)",2021]
["P019","Propagación de plantas",1.3383769999999999,"Impuesto tipo valor agregado (IVA)",2021]
["P026","Otros productos de animales vivos",2.4876140000000002,"Impuesto tipo valor agregado (IVA)",2021]
["P041","Preparaciones y conservas de frutas y nueces",71.050228000000004,"Impuesto tipo valor agregado (IVA)",2021]
["P053","Productos alimenticios n.c.p.",1191.5020830000001,"Impuesto tipo valor agregado (IVA)",2021]
["P056","Malta y cerveza de malta",513.17635099999995,"Impuesto tipo valor agregado (IVA)",2021]
["P070","Gases de petróleo, otros productos de la refinación de petróleo n.c.p.",578.31069600000001,"Impuesto tipo valor agregado (IVA)",2021]
["P075","Productos farmacéuticos",1460.9658320000001,"Impuesto tipo valor agregado (IVA)",2021]
["P087","Maquinaria de oficina, contabilidad e informática, sus partes y piezas",145.07925399999999,"Impuesto tipo valor agregado (IVA)",2021]
["P102","Servicios de comercio",0,"Impuesto tipo valor agregado (IVA)",2021]
["P113","Servicios de banco central",0,"Impuesto tipo valor agregado (IVA)",2021]
["P123","Otros servicios profesionales, científicos y técnicos",177.47846100000001,"Impuesto tipo valor agregado (IVA)",2021]
["P128","Servicios de seguridad, sistemas de seguridad e investigación privada",98.241101999999998,"Impuesto tipo valor agregado (IVA)",2021]
["P140","Servicios públicos administrativos prestados a la comunidad en su conjunto",0,"Impuesto tipo valor agregado (IVA)",2021]
["P002","Frijoles",1362.362433,"Márgenes de comercio, transporte y distribución de energía",2021]
["P015","Palma africana",26.149097999999999,"Márgenes de comercio, transporte y distribución de energía",2021]
["P024","Leche cruda",238.836839,"Márgenes de comercio, transporte y distribución de energía",2021]
["P032","Minerales metálicos",5.849E-3,"Márgenes de comercio, transporte y distribución de energía",2021]
["P047","Harina de trigo",380.10016899999999,"Márgenes de comercio, transporte y distribución de energía",2021]
["P048","Arroz sin cáscara",507.96747499999998,"Márgenes de comercio, transporte y distribución de energía",2021]
["P064","Pasta de papel y papel",3249.049242,"Márgenes de comercio, transporte y distribución de energía",2021]
["P070","Gases de petróleo, otros productos de la refinación de petróleo n.c.p.",3612.6213280000002,"Márgenes de comercio, transporte y distribución de energía",2021]
["P081","Piedras talladas para construcción y otros productos minerales no metálicos n.c.p.",120.264844,"Márgenes de comercio, transporte y distribución de energía",2021]
["P096","Agua natural y distribución de agua natural",0,"Márgenes de comercio, transporte y distribución de energía",2021]
["P102","Servicios de comercio",-171717.64723900001,"Márgenes de comercio, transporte y distribución de energía",2021]
["P111","Servicio de suministro de comidas y bebidas",0,"Márgenes de comercio, transporte y distribución de energía",2021]
["P129","Servicios de limpieza",0,"Márgenes de comercio, transporte y distribución de energía",2021]
["P137","Servicios públicos del gobierno general",0,"Márgenes de comercio, transporte y distribución de energía",2021]
["P146","Servicios audiovisuales, recreativos, culturales y deportivos",0,"Márgenes de comercio, transporte y distribución de energía",2021]
["P009","Raíces y tubérculos",1106.626761,"Consumo Intermedio (PC)",2021]
["P016","Café en grano",5507.0082309999998,"Consumo Intermedio (PC)",2021]
["P026","Otros productos de animales vivos",66.782167000000001,"Consumo Intermedio (PC)",2021]
["P038","Pescado congelado, preparado o en conserva y sus productos",450.921179,"Consumo Intermedio (PC)",2021]
["P043","Aceites de origen vegetal",3337.9168770000001,"Consumo Intermedio (PC)",2021]
["P053","Productos alimenticios n.c.p.",5221.3759879999998,"Consumo Intermedio (PC)",2021]
["P070","Gases de petróleo, otros productos de la refinación de petróleo n.c.p.",1662.7670410000001,"Consumo Intermedio (PC)",2021]
["P079","Cemento, cal y yeso",9060.1327079999992,"Consumo Intermedio (PC)",2021]
["P091","Equipo de transporte",2025.7599029999999,"Consumo Intermedio (PC)",2021]
["P105","Servicio de transporte de carga por vía terrestre",7464.0940220000002,"Consumo Intermedio (PC)",2021]
["P108","Otros servicios de apoyo al transporte",3813.633131,"Consumo Intermedio (PC)",2021]
["P119","Otros servicios inmobiliarios, excepto alquiler de vivienda",17353.484188999999,"Consumo Intermedio (PC)",2021]
["P136","Servicios de manufactura",2346.5950050000001,"Consumo Intermedio (PC)",2021]
["P140","Servicios públicos administrativos prestados a la comunidad en su conjunto",0,"Consumo Intermedio (PC)",2021]
["P151","Compras directas en el exterior por residentes",241.90423100000001,"Consumo Intermedio (PC)",2021]
["P015","Palma africana",0,"Consumo Final privado (PC)",2021]
["P021","Ganado bovino",0,"Consumo Final privado (PC)",2021]
["P032","Minerales metálicos",0,"Consumo Final privado (PC)",2021]
["P047","Harina de trigo",109.51234700000001,"Consumo Final privado (PC)",2021]
["P049","Otros productos de molinería, almidones y productos de almidón",2828.8118599999998,"Consumo Final privado (PC)",2021]
["P062","Calzado y sus partes, de cualquier material y de cualquier uso",5492.1077130000003,"Consumo Final privado (PC)",2021]
["P070","Gases de petróleo, otros productos de la refinación de petróleo n.c.p.",5490.2757170000004,"Consumo Final privado (PC)",2021]
["P081","Piedras talladas para construcción y otros productos minerales no metálicos n.c.p.",57.303243999999999,"Consumo Final privado (PC)",2021]
["P093","Otros artículos n.c.p.",4834.0151159999996,"Consumo Final privado (PC)",2021]
["P108","Otros servicios de apoyo al transporte",3729.8948839999998,"Consumo Final privado (PC)",2021]
["P119","Otros servicios inmobiliarios, excepto alquiler de vivienda",49.992336000000002,"Consumo Final privado (PC)",2021]
["P129","Servicios de limpieza",48.816951000000003,"Consumo Final privado (PC)",2021]
["P134","Servicios de apoyo a la agricultura, caza, silvicultura y pesca",0,"Consumo Final privado (PC)",2021]
["P146","Servicios audiovisuales, recreativos, culturales y deportivos",2068.7915320000002,"Consumo Final privado (PC)",2021]
["P004","Arroz",0,"Consumo Final del Gobierno (PC)",2021]
["P011","Tabaco y otras plantas no perennes",4.8887970000000003,"Consumo Final del Gobierno (PC)",2021]
["P030","Crustáceos sin congelar y otros productos de la pesca",0,"Consumo Final del Gobierno (PC)",2021]
["P038","Pescado congelado, preparado o en conserva y sus productos",0,"Consumo Final del Gobierno (PC)",2021]
["P043","Aceites de origen vegetal",137.711793,"Consumo Final del Gobierno (PC)",2021]
["P061","Cuero de piel curtida o adobada y cuero artificial o regenerado y artículos de cuero",7.6702000000000006E-2,"Consumo Final del Gobierno (PC)",2021]
["P070","Gases de petróleo, otros productos de la refinación de petróleo n.c.p.",0,"Consumo Final del Gobierno (PC)",2021]
["P076","Productos de caucho y plástico",0,"Consumo Final del Gobierno (PC)",2021]
["P091","Equipo de transporte",0,"Consumo Final del Gobierno (PC)",2021]
["P102","Servicios de comercio",0,"Consumo Final del Gobierno (PC)",2021]
["P108","Otros servicios de apoyo al transporte",0,"Consumo Final del Gobierno (PC)",2021]
["P117","Servicios auxiliares de la intermediación financiera",0,"Consumo Final del Gobierno (PC)",2021]
["P135","Servicios de apoyo a la explotación de minas y canteras y los relacionados con la distribución de electricidad, gas y agua",0,"Consumo Final del Gobierno (PC)",2021]
["P139","Otros servicios administrativos",5747.4265349999996,"Consumo Final del Gobierno (PC)",2021]
["P152","Compras directas en el territorio nacional por no residentes",0,"Consumo Final del Gobierno (PC)",2021]
["P005","Otros cereales",0,"Formación Bruta de Capital Fijo (PC)",2021]
["P022","Ganado porcino y otro tipo de animales vivos n.c.p.",57.042783,"Formación Bruta de Capital Fijo (PC)",2021]
["P032","Minerales metálicos",0,"Formación Bruta de Capital Fijo (PC)",2021]
["P044","Margarina, grasas y otros aceites de origen animal y vegetal",0,"Formación Bruta de Capital Fijo (PC)",2021]
["P049","Otros productos de molinería, almidones y productos de almidón",0,"Formación Bruta de Capital Fijo (PC)",2021]
["P059","Hilados, tejidos, telas y otros productos textiles excepto prendas de vestir",0,"Formación Bruta de Capital Fijo (PC)",2021]
["P070","Gases de petróleo, otros productos de la refinación de petróleo n.c.p.",0,"Formación Bruta de Capital Fijo (PC)",2021]
["P085","Maquinaria para usos generales y especiales, sus partes y piezas, excepto electrodomésticos",10407.794301,"Formación Bruta de Capital Fijo (PC)",2021]
["P097","Evacuación de aguas residuales, recogida, tratamiento y eliminación de desechos",0,"Formación Bruta de Capital Fijo (PC)",2021]
["P100","Obras de ingeniería civil",19571.535977,"Formación Bruta de Capital Fijo (PC)",2021]
["P114","Otros servicios financieros y servicios de banca de inversión",0,"Formación Bruta de Capital Fijo (PC)",2021]
["P129","Servicios de limpieza",0,"Formación Bruta de Capital Fijo (PC)",2021]
["P131","Servicios administrativos, de apoyo de oficina y otros servicios de apoyo a las empresas",0,"Formación Bruta de Capital Fijo (PC)",2021]
["P146","Servicios audiovisuales, recreativos, culturales y deportivos",0,"Formación Bruta de Capital Fijo (PC)",2021]
["P001","Maíz",27.194572000000001,"Exportaciones (fob)",2021]
["P011","Tabaco y otras plantas no perennes",505.922596,"Exportaciones (fob)",2021]
["P027","Troncos de madera y leña",70.027412999999996,"Exportaciones (fob)",2021]
["P038","Pescado congelado, preparado o en conserva y sus productos",697.05087600000002,"Exportaciones (fob)",2021]
["P042","Jugos de frutas",352.41297300000002,"Exportaciones (fob)",2021]
["P059","Hilados, tejidos, telas y otros productos textiles excepto prendas de vestir",2616.8769870000001,"Exportaciones (fob)",2021]
["P068","Gasolinas, diésel oil y fuel oils",758.42477399999996,"Exportaciones (fob)",2021]
["P076","Productos de caucho y plástico",4055.2770489999998,"Exportaciones (fob)",2021]
["P087","Maquinaria de oficina, contabilidad e informática, sus partes y piezas",52.833905999999999,"Exportaciones (fob)",2021]
["P099","Edificaciones no residenciales",0,"Exportaciones (fob)",2021]
["P108","Otros servicios de apoyo al transporte",2180.684929,"Exportaciones (fob)",2021]
["P114","Otros servicios financieros y servicios de banca de inversión",13.649359,"Exportaciones (fob)",2021]
["P125","Servicios de arrendamiento o alquiler sin operador",136.84903600000001,"Exportaciones (fob)",2021]
["P136","Servicios de manufactura",3877.253733,"Exportaciones (fob)",2021]
["P152","Compras directas en el territorio nacional por no residentes",3079.3848889999999,"Exportaciones (fob)",2021]
["P010","Caña de azúcar y otras plantas azucareras",-101.175239,"Variación de existencias (PC)",2021]
["P017","Cardamomo",60.259763999999997,"Variación de existencias (PC)",2021]
["P025","Huevos",0,"Variación de existencias (PC)",2021]
["P038","Pescado congelado, preparado o en conserva y sus productos",-1.5508390000000001,"Variación de existencias (PC)",2021]
["P049","Otros productos de molinería, almidones y productos de almidón",-59.158985000000001,"Variación de existencias (PC)",2021]
["P056","Malta y cerveza de malta",-15.333449999999999,"Variación de existencias (PC)",2021]
["P076","Productos de caucho y plástico",174.68507299999999,"Variación de existencias (PC)",2021]
["P082","Métales básicos de hierro y acero, productos primarios de metales preciosos y otros metales no ferrosos",203.10367500000001,"Variación de existencias (PC)",2021]
["P097","Evacuación de aguas residuales, recogida, tratamiento y eliminación de desechos",0,"Variación de existencias (PC)",2021]
["P108","Otros servicios de apoyo al transporte",0,"Variación de existencias (PC)",2021]
["P114","Otros servicios financieros y servicios de banca de inversión",0,"Variación de existencias (PC)",2021]
["P119","Otros servicios inmobiliarios, excepto alquiler de vivienda",0,"Variación de existencias (PC)",2021]
["P131","Servicios administrativos, de apoyo de oficina y otros servicios de apoyo a las empresas",0,"Variación de existencias (PC)",2021]
["P145","Otros servicios de atención de la salud humana",0,"Variación de existencias (PC)",2021]
["P006","Hortalizas",0,"Ajuste CIF/FOB",2021]
["P011","Tabaco y otras plantas no perennes",0,"Ajuste CIF/FOB",2021]
["P024","Leche cruda",0,"Ajuste CIF/FOB",2021]
["P038","Pescado congelado, preparado o en conserva y sus productos",0,"Ajuste CIF/FOB",2021]
["P050","Pan y otros productos de panadería y repostería n.c.p.",0,"Ajuste CIF/FOB",2021]
["P059","Hilados, tejidos, telas y otros productos textiles excepto prendas de vestir",0,"Ajuste CIF/FOB",2021]
["P065","Envases de papel y cartón",0,"Ajuste CIF/FOB",2021]
["P076","Productos de caucho y plástico",0,"Ajuste CIF/FOB",2021]
["P091","Equipo de transporte",0,"Ajuste CIF/FOB",2021]
["P093","Otros artículos n.c.p.",0,"Ajuste CIF/FOB",2021]
["P113","Servicios de banco central",0,"Ajuste CIF/FOB",2021]
["P120","Servicios jurídicos, de contabilidad, auditoría, teneduría de libros y consultoría fiscal",0,"Ajuste CIF/FOB",2021]
["P125","Servicios de arrendamiento o alquiler sin operador",0,"Ajuste CIF/FOB",2021]
["P137","Servicios públicos del gobierno general",0,"Ajuste CIF/FOB",2021]
["P152","Compras directas en el territorio nacional por no residentes",0,"Ajuste CIF/FOB",2021]
["P007","Sandías y melones",1879.883343,"Producción (PB)","2022 p/"]
["P017","Cardamomo",4009.6045260000001,"Producción (PB)","2022 p/"]
["P033","Minerales no metálicos",3934.0272420000001,"Producción (PB)","2022 p/"]
["P038","Pescado congelado, preparado o en conserva y sus productos",743.18318399999998,"Producción (PB)","2022 p/"]
["P048","Arroz sin cáscara",967.80098699999996,"Producción (PB)","2022 p/"]
["P065","Envases de papel y cartón",5145.4263899999996,"Producción (PB)","2022 p/"]
["P074","Otros productos químicos",4483.2298600000004,"Producción (PB)","2022 p/"]
["P082","Métales básicos de hierro y acero, productos primarios de metales preciosos y otros metales no ferrosos",15435.222336000001,"Producción (PB)","2022 p/"]
["P087","Maquinaria de oficina, contabilidad e informática, sus partes y piezas",0,"Producción (PB)","2022 p/"]
["P105","Servicio de transporte de carga por vía terrestre",19194.481797,"Producción (PB)","2022 p/"]
["P114","Otros servicios financieros y servicios de banca de inversión",3815.5497479999999,"Producción (PB)","2022 p/"]
["P120","Servicios jurídicos, de contabilidad, auditoría, teneduría de libros y consultoría fiscal",6475.5747629999996,"Producción (PB)","2022 p/"]
["P131","Servicios administrativos, de apoyo de oficina y otros servicios de apoyo a las empresas",3716.3277520000001,"Producción (PB)","2022 p/"]
["P142","Servicios de enseñanza",35606.629269999998,"Producción (PB)","2022 p/"]
["P006","Hortalizas",0,"Impuestos sobre los productos, excepto IVA e impuestos sobre las importaciones","2022 p/"]
["P016","Café en grano",88.259178000000006,"Impuestos sobre los productos, excepto IVA e impuestos sobre las importaciones","2022 p/"]
["P027","Troncos de madera y leña",0,"Impuestos sobre los productos, excepto IVA e impuestos sobre las importaciones","2022 p/"]
["P031","Petróleo crudo y gas natural",0,"Impuestos sobre los productos, excepto IVA e impuestos sobre las importaciones","2022 p/"]
["P044","Margarina, grasas y otros aceites de origen animal y vegetal",0,"Impuestos sobre los productos, excepto IVA e impuestos sobre las importaciones","2022 p/"]
["P055","Aguardientes, licores, vinos, demás bebidas espirituosas y productos del tabaco",499.00300299999998,"Impuestos sobre los productos, excepto IVA e impuestos sobre las importaciones","2022 p/"]
["P062","Calzado y sus partes, de cualquier material y de cualquier uso",0,"Impuestos sobre los productos, excepto IVA e impuestos sobre las importaciones","2022 p/"]
["P076","Productos de caucho y plástico",0,"Impuestos sobre los productos, excepto IVA e impuestos sobre las importaciones","2022 p/"]
["P088","Maquinaria y aparatos eléctricos, sus partes y piezas",0,"Impuestos sobre los productos, excepto IVA e impuestos sobre las importaciones","2022 p/"]
["P093","Otros artículos n.c.p.",0,"Impuestos sobre los productos, excepto IVA e impuestos sobre las importaciones","2022 p/"]
["P110","Servicio de alojamiento",130.90339,"Impuestos sobre los productos, excepto IVA e impuestos sobre las importaciones","2022 p/"]
["P120","Servicios jurídicos, de contabilidad, auditoría, teneduría de libros y consultoría fiscal",0,"Impuestos sobre los productos, excepto IVA e impuestos sobre las importaciones","2022 p/"]
["P125","Servicios de arrendamiento o alquiler sin operador",0,"Impuestos sobre los productos, excepto IVA e impuestos sobre las importaciones","2022 p/"]
["P137","Servicios públicos del gobierno general",0,"Impuestos sobre los productos, excepto IVA e impuestos sobre las importaciones","2022 p/"]
["P151","Compras directas en el exterior por residentes",0,"Impuestos sobre los productos, excepto IVA e impuestos sobre las importaciones","2022 p/"]
["P006","Hortalizas",0,"Subvenciones a los productos","2022 p/"]
["P017","Cardamomo",0,"Subvenciones a los productos","2022 p/"]
["P030","Crustáceos sin congelar y otros productos de la pesca",0,"Subvenciones a los productos","2022 p/"]
["P034","Carne y despojos comestibles de ganado bovino; cueros y pieles de bovino y de otros animales",0,"Subvenciones a los productos","2022 p/"]
["P045","Leche líquida y crema procesada",0,"Subvenciones a los productos","2022 p/"]
["P055","Aguardientes, licores, vinos, demás bebidas espirituosas y productos del tabaco",0,"Subvenciones a los productos","2022 p/"]
["P071","Abonos, fertilizantes y pesticidas",0,"Subvenciones a los productos","2022 p/"]
["P082","Métales básicos de hierro y acero, productos primarios de metales preciosos y otros metales no ferrosos",0,"Subvenciones a los productos","2022 p/"]
["P093","Otros artículos n.c.p.",0,"Subvenciones a los productos","2022 p/"]
["P099","Edificaciones no residenciales",0,"Subvenciones a los productos","2022 p/"]
["P108","Otros servicios de apoyo al transporte",0,"Subvenciones a los productos","2022 p/"]
["P126","Servicios  de agencias de empleo y de dotación de recursos humanos",0,"Subvenciones a los productos","2022 p/"]
["P131","Servicios administrativos, de apoyo de oficina y otros servicios de apoyo a las empresas",0,"Subvenciones a los productos","2022 p/"]
["P139","Otros servicios administrativos",0,"Subvenciones a los productos","2022 p/"]
["P006","Hortalizas",215.28233700000001,"Importaciones (CIF)","2022 p/"]
["P013","Frutas tropicales y subtropicales",21.788709000000001,"Importaciones (CIF)","2022 p/"]
["P027","Troncos de madera y leña",1.794087,"Importaciones (CIF)","2022 p/"]
["P028","Productos forestales no madereros",44.022105000000003,"Importaciones (CIF)","2022 p/"]
["P044","Margarina, grasas y otros aceites de origen animal y vegetal",2872.0368290000001,"Importaciones (CIF)","2022 p/"]
["P054","Preparados para alimentación animal",1159.0337979999999,"Importaciones (CIF)","2022 p/"]
["P061","Cuero de piel curtida o adobada y cuero artificial o regenerado y artículos de cuero",620.52696300000002,"Importaciones (CIF)","2022 p/"]
["P076","Productos de caucho y plástico",8884.0015930000009,"Importaciones (CIF)","2022 p/"]
["P088","Maquinaria y aparatos eléctricos, sus partes y piezas",6086.5408699999998,"Importaciones (CIF)","2022 p/"]
["P093","Otros artículos n.c.p.",2662.458525,"Importaciones (CIF)","2022 p/"]
["P111","Servicio de suministro de comidas y bebidas",15.93276,"Importaciones (CIF)","2022 p/"]
["P120","Servicios jurídicos, de contabilidad, auditoría, teneduría de libros y consultoría fiscal",52.017986000000001,"Importaciones (CIF)","2022 p/"]
["P122","Servicios de arquitectura e ingeniería, ensayos y análisis técnicos",43.428587999999998,"Importaciones (CIF)","2022 p/"]
["P137","Servicios públicos del gobierno general",0,"Importaciones (CIF)","2022 p/"]
["P148","Servicios de asociaciones que sirven a los hogares",0,"Importaciones (CIF)","2022 p/"]
["P006","Hortalizas",6.1348929999999999,"Impuestos y derechos sobre las importaciones excepto IVA","2022 p/"]
["P022","Ganado porcino y otro tipo de animales vivos n.c.p.",5.4096890000000002,"Impuestos y derechos sobre las importaciones excepto IVA","2022 p/"]
["P023","Aves de corral",0,"Impuestos y derechos sobre las importaciones excepto IVA","2022 p/"]
["P037","Carne y despojos de otros animales y conservas y preparados de carne",12.167306999999999,"Impuestos y derechos sobre las importaciones excepto IVA","2022 p/"]
["P050","Pan y otros productos de panadería y repostería n.c.p.",9.0273570000000003,"Impuestos y derechos sobre las importaciones excepto IVA","2022 p/"]
["P055","Aguardientes, licores, vinos, demás bebidas espirituosas y productos del tabaco",84.344913000000005,"Impuestos y derechos sobre las importaciones excepto IVA","2022 p/"]
["P068","Gasolinas, diésel oil y fuel oils",8.8116E-2,"Impuestos y derechos sobre las importaciones excepto IVA","2022 p/"]
["P082","Métales básicos de hierro y acero, productos primarios de metales preciosos y otros metales no ferrosos",80.952725999999998,"Impuestos y derechos sobre las importaciones excepto IVA","2022 p/"]
["P094","Residuos y desechos",43.397922999999999,"Impuestos y derechos sobre las importaciones excepto IVA","2022 p/"]
["P099","Edificaciones no residenciales",0,"Impuestos y derechos sobre las importaciones excepto IVA","2022 p/"]
["P116","Servicios de seguro, reaseguro y fondos de pensiones",0,"Impuestos y derechos sobre las importaciones excepto IVA","2022 p/"]
["P126","Servicios  de agencias de empleo y de dotación de recursos humanos",0,"Impuestos y derechos sobre las importaciones excepto IVA","2022 p/"]
["P131","Servicios administrativos, de apoyo de oficina y otros servicios de apoyo a las empresas",0,"Impuestos y derechos sobre las importaciones excepto IVA","2022 p/"]
["P147","Servicios de asociaciones que sirven a las empresas",0,"Impuestos y derechos sobre las importaciones excepto IVA","2022 p/"]
["P005","Otros cereales",8.0181459999999998,"Impuesto tipo valor agregado (IVA)","2022 p/"]
["P012","Bananos, plátanos y otros",57.407530999999999,"Impuesto tipo valor agregado (IVA)","2022 p/"]
["P023","Aves de corral",2.3644180000000001,"Impuesto tipo valor agregado (IVA)","2022 p/"]
["P036","Carne y despojos comestibles de aves",944.55101500000001,"Impuesto tipo valor agregado (IVA)","2022 p/"]
["P044","Margarina, grasas y otros aceites de origen animal y vegetal",117.345274,"Impuesto tipo valor agregado (IVA)","2022 p/"]
["P051","Tortillas de maíz, incluso tostadas, horneadas o fritas",24.097269000000001,"Impuesto tipo valor agregado (IVA)","2022 p/"]
["P061","Cuero de piel curtida o adobada y cuero artificial o regenerado y artículos de cuero",110.507003,"Impuesto tipo valor agregado (IVA)","2022 p/"]
["P073","Jabón, preparados de limpieza, perfumes y preparados de toilet",1314.2168710000001,"Impuesto tipo valor agregado (IVA)","2022 p/"]
["P088","Maquinaria y aparatos eléctricos, sus partes y piezas",124.011309,"Impuesto tipo valor agregado (IVA)","2022 p/"]
["P099","Edificaciones no residenciales",205.49125799999999,"Impuesto tipo valor agregado (IVA)","2022 p/"]
["P105","Servicio de transporte de carga por vía terrestre",46.052475000000001,"Impuesto tipo valor agregado (IVA)","2022 p/"]
["P114","Otros servicios financieros y servicios de banca de inversión",0,"Impuesto tipo valor agregado (IVA)","2022 p/"]
["P126","Servicios  de agencias de empleo y de dotación de recursos humanos",121.076009,"Impuesto tipo valor agregado (IVA)","2022 p/"]
["P137","Servicios públicos del gobierno general",0,"Impuesto tipo valor agregado (IVA)","2022 p/"]
["P145","Otros servicios de atención de la salud humana",330.33594599999998,"Impuesto tipo valor agregado (IVA)","2022 p/"]
["P002","Frijoles",1570.114122,"Márgenes de comercio, transporte y distribución de energía","2022 p/"]
["P019","Propagación de plantas",117.96141299999999,"Márgenes de comercio, transporte y distribución de energía","2022 p/"]
["P023","Aves de corral",895.09852999999998,"Márgenes de comercio, transporte y distribución de energía","2022 p/"]
["P034","Carne y despojos comestibles de ganado bovino; cueros y pieles de bovino y de otros animales",6482.4846049999996,"Márgenes de comercio, transporte y distribución de energía","2022 p/"]
["P050","Pan y otros productos de panadería y repostería n.c.p.",1826.3392449999999,"Márgenes de comercio, transporte y distribución de energía","2022 p/"]
["P056","Malta y cerveza de malta",2268.8221490000001,"Márgenes de comercio, transporte y distribución de energía","2022 p/"]
["P067","Productos de la impresión",560.51759300000003,"Márgenes de comercio, transporte y distribución de energía","2022 p/"]
["P082","Métales básicos de hierro y acero, productos primarios de metales preciosos y otros metales no ferrosos",2489.2693800000002,"Márgenes de comercio, transporte y distribución de energía","2022 p/"]
["P094","Residuos y desechos",871.68369700000005,"Márgenes de comercio, transporte y distribución de energía","2022 p/"]
["P099","Edificaciones no residenciales",0,"Márgenes de comercio, transporte y distribución de energía","2022 p/"]
["P113","Servicios de banco central",0,"Márgenes de comercio, transporte y distribución de energía","2022 p/"]
["P116","Servicios de seguro, reaseguro y fondos de pensiones",0,"Márgenes de comercio, transporte y distribución de energía","2022 p/"]
["P128","Servicios de seguridad, sistemas de seguridad e investigación privada",0,"Márgenes de comercio, transporte y distribución de energía","2022 p/"]
["P143","Servicios de hospitalización",0,"Márgenes de comercio, transporte y distribución de energía","2022 p/"]
["P002","Frijoles",572.64318400000002,"Consumo Intermedio (PC)","2022 p/"]
["P012","Bananos, plátanos y otros",178.107224,"Consumo Intermedio (PC)","2022 p/"]
["P017","Cardamomo",1557.7379109999999,"Consumo Intermedio (PC)","2022 p/"]
["P029","Peces vivos, frescos o refrigerados",59.822378,"Consumo Intermedio (PC)","2022 p/"]
["P039","Crustáceos, moluscos y demás invertebrados acuáticos congelados, preparados o en conserva y sus productos",725.661113,"Consumo Intermedio (PC)","2022 p/"]
["P056","Malta y cerveza de malta",675.06417999999996,"Consumo Intermedio (PC)","2022 p/"]
["P061","Cuero de piel curtida o adobada y cuero artificial o regenerado y artículos de cuero",1006.808722,"Consumo Intermedio (PC)","2022 p/"]
["P074","Otros productos químicos",18846.801761999999,"Consumo Intermedio (PC)","2022 p/"]
["P088","Maquinaria y aparatos eléctricos, sus partes y piezas",4572.9695629999997,"Consumo Intermedio (PC)","2022 p/"]
["P096","Agua natural y distribución de agua natural",3994.1818750000002,"Consumo Intermedio (PC)","2022 p/"]
["P105","Servicio de transporte de carga por vía terrestre",8709.8872250000004,"Consumo Intermedio (PC)","2022 p/"]
["P111","Servicio de suministro de comidas y bebidas",2807.9666269999998,"Consumo Intermedio (PC)","2022 p/"]
["P126","Servicios  de agencias de empleo y de dotación de recursos humanos",8148.7840120000001,"Consumo Intermedio (PC)","2022 p/"]
["P137","Servicios públicos del gobierno general",0,"Consumo Intermedio (PC)","2022 p/"]
["P143","Servicios de hospitalización",0,"Consumo Intermedio (PC)","2022 p/"]
["P152","Compras directas en el territorio nacional por no residentes",0,"Consumo Intermedio (PC)","2022 p/"]
["P018","Caucho natural",0,"Consumo Final privado (PC)","2022 p/"]
["P023","Aves de corral",763.28234599999996,"Consumo Final privado (PC)","2022 p/"]
["P031","Petróleo crudo y gas natural",0,"Consumo Final privado (PC)","2022 p/"]
["P050","Pan y otros productos de panadería y repostería n.c.p.",13307.094397000001,"Consumo Final privado (PC)","2022 p/"]
["P057","Bebidas no alcohólicas",20824.029403,"Consumo Final privado (PC)","2022 p/"]
["P067","Productos de la impresión",378.43669999999997,"Consumo Final privado (PC)","2022 p/"]
["P079","Cemento, cal y yeso",116.206172,"Consumo Final privado (PC)","2022 p/"]
["P084","Otros productos elaborados de metal",1814.7299720000001,"Consumo Final privado (PC)","2022 p/"]
["P094","Residuos y desechos",0,"Consumo Final privado (PC)","2022 p/"]
["P105","Servicio de transporte de carga por vía terrestre",38.430024000000003,"Consumo Final privado (PC)","2022 p/"]
["P120","Servicios jurídicos, de contabilidad, auditoría, teneduría de libros y consultoría fiscal",234.053718,"Consumo Final privado (PC)","2022 p/"]
["P132","Servicios de mantenimiento, reparación e instalación de productos metálicos elaborados, maquinaria y equipo",2.823,"Consumo Final privado (PC)","2022 p/"]
["P143","Servicios de hospitalización",4478.8068800000001,"Consumo Final privado (PC)","2022 p/"]
["P151","Compras directas en el exterior por residentes",7568.269679,"Consumo Final privado (PC)","2022 p/"]
["P012","Bananos, plátanos y otros",110.316171,"Consumo Final del Gobierno (PC)","2022 p/"]
["P025","Huevos",320.62023599999998,"Consumo Final del Gobierno (PC)","2022 p/"]
["P029","Peces vivos, frescos o refrigerados",0,"Consumo Final del Gobierno (PC)","2022 p/"]
["P036","Carne y despojos comestibles de aves",8.1558000000000005E-2,"Consumo Final del Gobierno (PC)","2022 p/"]
["P056","Malta y cerveza de malta",0,"Consumo Final del Gobierno (PC)","2022 p/"]
["P062","Calzado y sus partes, de cualquier material y de cualquier uso",0,"Consumo Final del Gobierno (PC)","2022 p/"]
["P073","Jabón, preparados de limpieza, perfumes y preparados de toilet",0,"Consumo Final del Gobierno (PC)","2022 p/"]
["P088","Maquinaria y aparatos eléctricos, sus partes y piezas",0,"Consumo Final del Gobierno (PC)","2022 p/"]
["P094","Residuos y desechos",0,"Consumo Final del Gobierno (PC)","2022 p/"]
["P105","Servicio de transporte de carga por vía terrestre",0,"Consumo Final del Gobierno (PC)","2022 p/"]
["P119","Otros servicios inmobiliarios, excepto alquiler de vivienda",0,"Consumo Final del Gobierno (PC)","2022 p/"]
["P122","Servicios de arquitectura e ingeniería, ensayos y análisis técnicos",0,"Consumo Final del Gobierno (PC)","2022 p/"]
["P134","Servicios de apoyo a la agricultura, caza, silvicultura y pesca",0,"Consumo Final del Gobierno (PC)","2022 p/"]
["P143","Servicios de hospitalización",10306.576104,"Consumo Final del Gobierno (PC)","2022 p/"]
["P008","Ejotes y arvejas",0,"Formación Bruta de Capital Fijo (PC)","2022 p/"]
["P018","Caucho natural",14.746793,"Formación Bruta de Capital Fijo (PC)","2022 p/"]
["P030","Crustáceos sin congelar y otros productos de la pesca",0,"Formación Bruta de Capital Fijo (PC)","2022 p/"]
["P035","Carne y despojos comestibles de ganado porcino",0,"Formación Bruta de Capital Fijo (PC)","2022 p/"]
["P045","Leche líquida y crema procesada",0,"Formación Bruta de Capital Fijo (PC)","2022 p/"]
["P052","Azúcar de caña sin refinar y refinada, melaza y los demás azúcares n.c.p.",0,"Formación Bruta de Capital Fijo (PC)","2022 p/"]
["P067","Productos de la impresión",0,"Formación Bruta de Capital Fijo (PC)","2022 p/"]
["P076","Productos de caucho y plástico",0,"Formación Bruta de Capital Fijo (PC)","2022 p/"]
["P084","Otros productos elaborados de metal",855.55347099999994,"Formación Bruta de Capital Fijo (PC)","2022 p/"]
["P102","Servicios de comercio",0,"Formación Bruta de Capital Fijo (PC)","2022 p/"]
["P111","Servicio de suministro de comidas y bebidas",0,"Formación Bruta de Capital Fijo (PC)","2022 p/"]
["P117","Servicios auxiliares de la intermediación financiera",0,"Formación Bruta de Capital Fijo (PC)","2022 p/"]
["P132","Servicios de mantenimiento, reparación e instalación de productos metálicos elaborados, maquinaria y equipo",0,"Formación Bruta de Capital Fijo (PC)","2022 p/"]
["P143","Servicios de hospitalización",0,"Formación Bruta de Capital Fijo (PC)","2022 p/"]
["P149","Otros servicios",0,"Formación Bruta de Capital Fijo (PC)","2022 p/"]
["P013","Frutas tropicales y subtropicales",532.48016600000005,"Exportaciones (fob)","2022 p/"]
["P024","Leche cruda",0,"Exportaciones (fob)","2022 p/"]
["P029","Peces vivos, frescos o refrigerados",73.499174999999994,"Exportaciones (fob)","2022 p/"]
["P037","Carne y despojos de otros animales y conservas y preparados de carne",599.42694700000004,"Exportaciones (fob)","2022 p/"]
["P046","Otros productos lácteos n.c.p.",370.65133200000002,"Exportaciones (fob)","2022 p/"]
["P059","Hilados, tejidos, telas y otros productos textiles excepto prendas de vestir",3136.4579330000001,"Exportaciones (fob)","2022 p/"]
["P073","Jabón, preparados de limpieza, perfumes y preparados de toilet",3216.0488260000002,"Exportaciones (fob)","2022 p/"]
["P085","Maquinaria para usos generales y especiales, sus partes y piezas, excepto electrodomésticos",1421.132486,"Exportaciones (fob)","2022 p/"]
["P094","Residuos y desechos",853.84094300000004,"Exportaciones (fob)","2022 p/"]
["P100","Obras de ingeniería civil",0,"Exportaciones (fob)","2022 p/"]
["P111","Servicio de suministro de comidas y bebidas",59.840459000000003,"Exportaciones (fob)","2022 p/"]
["P126","Servicios  de agencias de empleo y de dotación de recursos humanos",0,"Exportaciones (fob)","2022 p/"]
["P138","Servicios públicos administrativos relacionados con la provisión de servicios educativos, de salud, servicios sociales, culturales y otros, sin contar los servicios de seguridad social",0,"Exportaciones (fob)","2022 p/"]
["P143","Servicios de hospitalización",225.78577300000001,"Exportaciones (fob)","2022 p/"]
["P005","Otros cereales",115.652243,"Variación de existencias (PC)","2022 p/"]
["P018","Caucho natural",0,"Variación de existencias (PC)","2022 p/"]
["P020","Otros frutos oleaginosos, otras plantas bebestibles y especias aromáticas",0,"Variación de existencias (PC)","2022 p/"]
["P035","Carne y despojos comestibles de ganado porcino",-9.7639440000000004,"Variación de existencias (PC)","2022 p/"]
["P042","Jugos de frutas",-36.311701999999997,"Variación de existencias (PC)","2022 p/"]
["P052","Azúcar de caña sin refinar y refinada, melaza y los demás azúcares n.c.p.",-829.12333599999999,"Variación de existencias (PC)","2022 p/"]
["P068","Gasolinas, diésel oil y fuel oils",-1884.395021,"Variación de existencias (PC)","2022 p/"]
["P073","Jabón, preparados de limpieza, perfumes y preparados de toilet",15.247624,"Variación de existencias (PC)","2022 p/"]
["P083","Productos metálicos estructurales y sus partes de hierro o de acero",12.090021,"Variación de existencias (PC)","2022 p/"]
["P100","Obras de ingeniería civil",0,"Variación de existencias (PC)","2022 p/"]
["P111","Servicio de suministro de comidas y bebidas",0,"Variación de existencias (PC)","2022 p/"]
["P114","Otros servicios financieros y servicios de banca de inversión",0,"Variación de existencias (PC)","2022 p/"]
["P132","Servicios de mantenimiento, reparación e instalación de productos metálicos elaborados, maquinaria y equipo",0,"Variación de existencias (PC)","2022 p/"]
["P140","Servicios públicos administrativos prestados a la comunidad en su conjunto",0,"Variación de existencias (PC)","2022 p/"]
["P149","Otros servicios",0,"Variación de existencias (PC)","2022 p/"]
["P010","Caña de azúcar y otras plantas azucareras",0,"Ajuste CIF/FOB","2022 p/"]
["P014","Berries, otras frutas y semillas de frutas",0,"Ajuste CIF/FOB","2022 p/"]
["P025","Huevos",0,"Ajuste CIF/FOB","2022 p/"]
["P041","Preparaciones y conservas de frutas y nueces",0,"Ajuste CIF/FOB","2022 p/"]
["P051","Tortillas de maíz, incluso tostadas, horneadas o fritas",0,"Ajuste CIF/FOB","2022 p/"]
["P062","Calzado y sus partes, de cualquier material y de cualquier uso",0,"Ajuste CIF/FOB","2022 p/"]
["P073","Jabón, preparados de limpieza, perfumes y preparados de toilet",0,"Ajuste CIF/FOB","2022 p/"]
["P082","Métales básicos de hierro y acero, productos primarios de metales preciosos y otros metales no ferrosos",0,"Ajuste CIF/FOB","2022 p/"]
["P090","Aparatos médicos, instrumentos ópticos y de precisión, relojes",0,"Ajuste CIF/FOB","2022 p/"]
["P097","Evacuación de aguas residuales, recogida, tratamiento y eliminación de desechos",0,"Ajuste CIF/FOB","2022 p/"]
["P111","Servicio de suministro de comidas y bebidas",0,"Ajuste CIF/FOB","2022 p/"]
["P123","Otros servicios profesionales, científicos y técnicos",0,"Ajuste CIF/FOB","2022 p/"]
["P138","Servicios públicos administrativos relacionados con la provisión de servicios educativos, de salud, servicios sociales, culturales y otros, sin contar los servicios de seguridad social",0,"Ajuste CIF/FOB","2022 p/"]
["P145","Otros servicios de atención de la salud humana",0,"Ajuste CIF/FOB","2022 p/"]
["P003","Leguminosas (legumbres secas) y semillas oleaginosas",920.62682400000006,"Producción (PB)","2023 p/"]
["P008","Ejotes y arvejas",1404.95091,"Producción (PB)","2023 p/"]
["P020","Otros frutos oleaginosos, otras plantas bebestibles y especias aromáticas",582.36276799999996,"Producción (PB)","2023 p/"]
["P035","Carne y despojos comestibles de ganado porcino",2142.8374260000001,"Producción (PB)","2023 p/"]
["P039","Crustáceos, moluscos y demás invertebrados acuáticos congelados, preparados o en conserva y sus productos",535.86857399999997,"Producción (PB)","2023 p/"]
["P052","Azúcar de caña sin refinar y refinada, melaza y los demás azúcares n.c.p.",13774.856481000001,"Producción (PB)","2023 p/"]
["P065","Envases de papel y cartón",5002.823461,"Producción (PB)","2023 p/"]
["P079","Cemento, cal y yeso",9134.2325639999999,"Producción (PB)","2023 p/"]
["P091","Equipo de transporte",1163.435336,"Producción (PB)","2023 p/"]
["P100","Obras de ingeniería civil",19653.389414000001,"Producción (PB)","2023 p/"]
["P106","Otros tipos de transporte",862.67771800000003,"Producción (PB)","2023 p/"]
["P117","Servicios auxiliares de la intermediación financiera",10659.807396,"Producción (PB)","2023 p/"]
["P128","Servicios de seguridad, sistemas de seguridad e investigación privada",5330.6186019999996,"Producción (PB)","2023 p/"]
["P134","Servicios de apoyo a la agricultura, caza, silvicultura y pesca",4110.6069269999998,"Producción (PB)","2023 p/"]
["P149","Otros servicios",12717.739385999999,"Producción (PB)","2023 p/"]
["P011","Tabaco y otras plantas no perennes",0,"Impuestos sobre los productos, excepto IVA e impuestos sobre las importaciones","2023 p/"]
["P014","Berries, otras frutas y semillas de frutas",0,"Impuestos sobre los productos, excepto IVA e impuestos sobre las importaciones","2023 p/"]
["P033","Minerales no metálicos",0,"Impuestos sobre los productos, excepto IVA e impuestos sobre las importaciones","2023 p/"]
["P041","Preparaciones y conservas de frutas y nueces",0,"Impuestos sobre los productos, excepto IVA e impuestos sobre las importaciones","2023 p/"]
["P048","Arroz sin cáscara",0,"Impuestos sobre los productos, excepto IVA e impuestos sobre las importaciones","2023 p/"]
["P062","Calzado y sus partes, de cualquier material y de cualquier uso",0,"Impuestos sobre los productos, excepto IVA e impuestos sobre las importaciones","2023 p/"]
["P074","Otros productos químicos",0,"Impuestos sobre los productos, excepto IVA e impuestos sobre las importaciones","2023 p/"]
["P079","Cemento, cal y yeso",201.463697,"Impuestos sobre los productos, excepto IVA e impuestos sobre las importaciones","2023 p/"]
["P089","Equipo y aparatos de radio, televisión y comunicaciones",0,"Impuestos sobre los productos, excepto IVA e impuestos sobre las importaciones","2023 p/"]
["P106","Otros tipos de transporte",0,"Impuestos sobre los productos, excepto IVA e impuestos sobre las importaciones","2023 p/"]
["P111","Servicio de suministro de comidas y bebidas",0,"Impuestos sobre los productos, excepto IVA e impuestos sobre las importaciones","2023 p/"]
["P120","Servicios jurídicos, de contabilidad, auditoría, teneduría de libros y consultoría fiscal",0,"Impuestos sobre los productos, excepto IVA e impuestos sobre las importaciones","2023 p/"]
["P128","Servicios de seguridad, sistemas de seguridad e investigación privada",0,"Impuestos sobre los productos, excepto IVA e impuestos sobre las importaciones","2023 p/"]
["P146","Servicios audiovisuales, recreativos, culturales y deportivos",0,"Impuestos sobre los productos, excepto IVA e impuestos sobre las importaciones","2023 p/"]
["P003","Leguminosas (legumbres secas) y semillas oleaginosas",0,"Subvenciones a los productos","2023 p/"]
["P016","Café en grano",0,"Subvenciones a los productos","2023 p/"]
["P020","Otros frutos oleaginosos, otras plantas bebestibles y especias aromáticas",0,"Subvenciones a los productos","2023 p/"]
["P031","Petróleo crudo y gas natural",0,"Subvenciones a los productos","2023 p/"]
["P041","Preparaciones y conservas de frutas y nueces",0,"Subvenciones a los productos","2023 p/"]
["P057","Bebidas no alcohólicas",0,"Subvenciones a los productos","2023 p/"]
["P068","Gasolinas, diésel oil y fuel oils",0,"Subvenciones a los productos","2023 p/"]
["P079","Cemento, cal y yeso",0,"Subvenciones a los productos","2023 p/"]
["P088","Maquinaria y aparatos eléctricos, sus partes y piezas",0,"Subvenciones a los productos","2023 p/"]
["P100","Obras de ingeniería civil",0,"Subvenciones a los productos","2023 p/"]
["P103","Mantenimiento y reparación de vehículos automotores y motocicletas",0,"Subvenciones a los productos","2023 p/"]
["P117","Servicios auxiliares de la intermediación financiera",0,"Subvenciones a los productos","2023 p/"]
["P129","Servicios de limpieza",0,"Subvenciones a los productos","2023 p/"]
["P134","Servicios de apoyo a la agricultura, caza, silvicultura y pesca",0,"Subvenciones a los productos","2023 p/"]
["P151","Compras directas en el exterior por residentes",0,"Subvenciones a los productos","2023 p/"]
["P009","Raíces y tubérculos",79.295402999999993,"Importaciones (CIF)","2023 p/"]
["P014","Berries, otras frutas y semillas de frutas",886.014273,"Importaciones (CIF)","2023 p/"]
["P030","Crustáceos sin congelar y otros productos de la pesca",24.884736,"Importaciones (CIF)","2023 p/"]
["P041","Preparaciones y conservas de frutas y nueces",993.49606000000006,"Importaciones (CIF)","2023 p/"]
["P045","Leche líquida y crema procesada",557.90293799999995,"Importaciones (CIF)","2023 p/"]
["P058","Aguas minerales y otras aguas embotelladas",37.101363999999997,"Importaciones (CIF)","2023 p/"]
["P071","Abonos, fertilizantes y pesticidas",4269.7731400000002,"Importaciones (CIF)","2023 p/"]
["P079","Cemento, cal y yeso",894.79143299999998,"Importaciones (CIF)","2023 p/"]
["P086","Electrodomésticos y sus partes",2220.765715,"Importaciones (CIF)","2023 p/"]
["P096","Agua natural y distribución de agua natural",0,"Importaciones (CIF)","2023 p/"]
["P108","Otros servicios de apoyo al transporte",226.45307,"Importaciones (CIF)","2023 p/"]
["P123","Otros servicios profesionales, científicos y técnicos",1997.924023,"Importaciones (CIF)","2023 p/"]
["P134","Servicios de apoyo a la agricultura, caza, silvicultura y pesca",0,"Importaciones (CIF)","2023 p/"]
["P140","Servicios públicos administrativos prestados a la comunidad en su conjunto",508.14972699999998,"Importaciones (CIF)","2023 p/"]
["P003","Leguminosas (legumbres secas) y semillas oleaginosas",0.81269000000000002,"Impuestos y derechos sobre las importaciones excepto IVA","2023 p/"]
["P013","Frutas tropicales y subtropicales",1.541064,"Impuestos y derechos sobre las importaciones excepto IVA","2023 p/"]
["P020","Otros frutos oleaginosos, otras plantas bebestibles y especias aromáticas",3.00814,"Impuestos y derechos sobre las importaciones excepto IVA","2023 p/"]
["P028","Productos forestales no madereros",0.109844,"Impuestos y derechos sobre las importaciones excepto IVA","2023 p/"]
["P047","Harina de trigo",0,"Impuestos y derechos sobre las importaciones excepto IVA","2023 p/"]
["P054","Preparados para alimentación animal",11.580137000000001,"Impuestos y derechos sobre las importaciones excepto IVA","2023 p/"]
["P068","Gasolinas, diésel oil y fuel oils",8.8512999999999994E-2,"Impuestos y derechos sobre las importaciones excepto IVA","2023 p/"]
["P069","Aceites, grasas lubricantes y otros aceites preparados",21.740272000000001,"Impuestos y derechos sobre las importaciones excepto IVA","2023 p/"]
["P085","Maquinaria para usos generales y especiales, sus partes y piezas, excepto electrodomésticos",90.237202999999994,"Impuestos y derechos sobre las importaciones excepto IVA","2023 p/"]
["P091","Equipo de transporte",242.02803,"Impuestos y derechos sobre las importaciones excepto IVA","2023 p/"]
["P102","Servicios de comercio",0,"Impuestos y derechos sobre las importaciones excepto IVA","2023 p/"]
["P117","Servicios auxiliares de la intermediación financiera",0,"Impuestos y derechos sobre las importaciones excepto IVA","2023 p/"]
["P126","Servicios  de agencias de empleo y de dotación de recursos humanos",0,"Impuestos y derechos sobre las importaciones excepto IVA","2023 p/"]
["P134","Servicios de apoyo a la agricultura, caza, silvicultura y pesca",0,"Impuestos y derechos sobre las importaciones excepto IVA","2023 p/"]
["P148","Servicios de asociaciones que sirven a los hogares",0,"Impuestos y derechos sobre las importaciones excepto IVA","2023 p/"]
["P009","Raíces y tubérculos",162.94583499999999,"Impuesto tipo valor agregado (IVA)","2023 p/"]
["P011","Tabaco y otras plantas no perennes",18.882966,"Impuesto tipo valor agregado (IVA)","2023 p/"]
["P030","Crustáceos sin congelar y otros productos de la pesca",11.853802,"Impuesto tipo valor agregado (IVA)","2023 p/"]
["P037","Carne y despojos de otros animales y conservas y preparados de carne",346.30994900000002,"Impuesto tipo valor agregado (IVA)","2023 p/"]
["P047","Harina de trigo",32.831088000000001,"Impuesto tipo valor agregado (IVA)","2023 p/"]
["P063","Madera aserrada y acepillada, productos de madera, corcho, paja y materiales trenzables",40.974227999999997,"Impuesto tipo valor agregado (IVA)","2023 p/"]
["P064","Pasta de papel y papel",569.05449299999998,"Impuesto tipo valor agregado (IVA)","2023 p/"]
["P079","Cemento, cal y yeso",187.95589799999999,"Impuesto tipo valor agregado (IVA)","2023 p/"]
["P094","Residuos y desechos",3.4172370000000001,"Impuesto tipo valor agregado (IVA)","2023 p/"]
["P096","Agua natural y distribución de agua natural",137.61648400000001,"Impuesto tipo valor agregado (IVA)","2023 p/"]
["P109","Servicios postales y de mensajería",87.035771999999994,"Impuesto tipo valor agregado (IVA)","2023 p/"]
["P123","Otros servicios profesionales, científicos y técnicos",259.83177499999999,"Impuesto tipo valor agregado (IVA)","2023 p/"]
["P131","Servicios administrativos, de apoyo de oficina y otros servicios de apoyo a las empresas",94.892623999999998,"Impuesto tipo valor agregado (IVA)","2023 p/"]
["P140","Servicios públicos administrativos prestados a la comunidad en su conjunto",0,"Impuesto tipo valor agregado (IVA)","2023 p/"]
["P005","Otros cereales",124.410838,"Márgenes de comercio, transporte y distribución de energía","2023 p/"]
["P009","Raíces y tubérculos",10724.456839,"Márgenes de comercio, transporte y distribución de energía","2023 p/"]
["P020","Otros frutos oleaginosos, otras plantas bebestibles y especias aromáticas",327.43874699999998,"Márgenes de comercio, transporte y distribución de energía","2023 p/"]
["P036","Carne y despojos comestibles de aves",4176.3343969999996,"Márgenes de comercio, transporte y distribución de energía","2023 p/"]
["P037","Carne y despojos de otros animales y conservas y preparados de carne",2056.8840270000001,"Márgenes de comercio, transporte y distribución de energía","2023 p/"]
["P051","Tortillas de maíz, incluso tostadas, horneadas o fritas",137.30910800000001,"Márgenes de comercio, transporte y distribución de energía","2023 p/"]
["P058","Aguas minerales y otras aguas embotelladas",707.22044500000004,"Márgenes de comercio, transporte y distribución de energía","2023 p/"]
["P077","Vidrio y productos de vidrio",303.33002900000002,"Márgenes de comercio, transporte y distribución de energía","2023 p/"]
["P085","Maquinaria para usos generales y especiales, sus partes y piezas, excepto electrodomésticos",3844.8794419999999,"Márgenes de comercio, transporte y distribución de energía","2023 p/"]
["P092","Muebles",2745.352719,"Márgenes de comercio, transporte y distribución de energía","2023 p/"]
["P102","Servicios de comercio",-214725.79112499999,"Márgenes de comercio, transporte y distribución de energía","2023 p/"]
["P114","Otros servicios financieros y servicios de banca de inversión",0,"Márgenes de comercio, transporte y distribución de energía","2023 p/"]
["P129","Servicios de limpieza",0,"Márgenes de comercio, transporte y distribución de energía","2023 p/"]
["P140","Servicios públicos administrativos prestados a la comunidad en su conjunto",0,"Márgenes de comercio, transporte y distribución de energía","2023 p/"]
["P150","Servicios domésticos",0,"Márgenes de comercio, transporte y distribución de energía","2023 p/"]
["P009","Raíces y tubérculos",1632.217615,"Consumo Intermedio (PC)","2023 p/"]
["P019","Propagación de plantas",662.99405400000001,"Consumo Intermedio (PC)","2023 p/"]
["P026","Otros productos de animales vivos",88.817584999999994,"Consumo Intermedio (PC)","2023 p/"]
["P034","Carne y despojos comestibles de ganado bovino; cueros y pieles de bovino y de otros animales",3969.1842900000001,"Consumo Intermedio (PC)","2023 p/"]
["P047","Harina de trigo",4140.0804250000001,"Consumo Intermedio (PC)","2023 p/"]
["P060","Prendas de vestir, adobo y teñido de pieles",1449.675035,"Consumo Intermedio (PC)","2023 p/"]
["P064","Pasta de papel y papel",8789.8218799999995,"Consumo Intermedio (PC)","2023 p/"]
["P082","Métales básicos de hierro y acero, productos primarios de metales preciosos y otros metales no ferrosos",22687.103099,"Consumo Intermedio (PC)","2023 p/"]
["P091","Equipo de transporte",2572.1287029999999,"Consumo Intermedio (PC)","2023 p/"]
["P097","Evacuación de aguas residuales, recogida, tratamiento y eliminación de desechos",580.53018599999996,"Consumo Intermedio (PC)","2023 p/"]
["P108","Otros servicios de apoyo al transporte",4520.7082360000004,"Consumo Intermedio (PC)","2023 p/"]
["P123","Otros servicios profesionales, científicos y técnicos",11265.960761,"Consumo Intermedio (PC)","2023 p/"]
["P128","Servicios de seguridad, sistemas de seguridad e investigación privada",5032.535132,"Consumo Intermedio (PC)","2023 p/"]
["P140","Servicios públicos administrativos prestados a la comunidad en su conjunto",0,"Consumo Intermedio (PC)","2023 p/"]
["P002","Frijoles",4440.7898990000003,"Consumo Final privado (PC)","2023 p/"]
["P005","Otros cereales",241.87842599999999,"Consumo Final privado (PC)","2023 p/"]
["P017","Cardamomo",0,"Consumo Final privado (PC)","2023 p/"]
["P026","Otros productos de animales vivos",69.277491999999995,"Consumo Final privado (PC)","2023 p/"]
["P043","Aceites de origen vegetal",5419.3014149999999,"Consumo Final privado (PC)","2023 p/"]
["P053","Productos alimenticios n.c.p.",21457.290249999998,"Consumo Final privado (PC)","2023 p/"]
["P065","Envases de papel y cartón",14.022563999999999,"Consumo Final privado (PC)","2023 p/"]
["P070","Gases de petróleo, otros productos de la refinación de petróleo n.c.p.",6392.7781210000003,"Consumo Final privado (PC)","2023 p/"]
["P085","Maquinaria para usos generales y especiales, sus partes y piezas, excepto electrodomésticos",229.61558600000001,"Consumo Final privado (PC)","2023 p/"]
["P089","Equipo y aparatos de radio, televisión y comunicaciones",14634.902239999999,"Consumo Final privado (PC)","2023 p/"]
["P102","Servicios de comercio",0,"Consumo Final privado (PC)","2023 p/"]
["P111","Servicio de suministro de comidas y bebidas",56758.858924,"Consumo Final privado (PC)","2023 p/"]
["P129","Servicios de limpieza",56.827449999999999,"Consumo Final privado (PC)","2023 p/"]
["P137","Servicios públicos del gobierno general",1241.1394330000001,"Consumo Final privado (PC)","2023 p/"]
["P146","Servicios audiovisuales, recreativos, culturales y deportivos",3444.730184,"Consumo Final privado (PC)","2023 p/"]
["P152","Compras directas en el territorio nacional por no residentes",-10686.425185,"Consumo Final privado (PC)","2023 p/"]
["P015","Palma africana",0,"Consumo Final del Gobierno (PC)","2023 p/"]
["P026","Otros productos de animales vivos",0,"Consumo Final del Gobierno (PC)","2023 p/"]
["P032","Minerales metálicos",0,"Consumo Final del Gobierno (PC)","2023 p/"]
["P047","Harina de trigo",45.464526999999997,"Consumo Final del Gobierno (PC)","2023 p/"]
["P057","Bebidas no alcohólicas",2.7785980000000001,"Consumo Final del Gobierno (PC)","2023 p/"]
["P064","Pasta de papel y papel",24.749281,"Consumo Final del Gobierno (PC)","2023 p/"]
["P072","Pinturas, barnices, tintas y productos relacionados",0,"Consumo Final del Gobierno (PC)","2023 p/"]
["P091","Equipo de transporte",0,"Consumo Final del Gobierno (PC)","2023 p/"]
["P094","Residuos y desechos",0,"Consumo Final del Gobierno (PC)","2023 p/"]
["P108","Otros servicios de apoyo al transporte",0,"Consumo Final del Gobierno (PC)","2023 p/"]
["P120","Servicios jurídicos, de contabilidad, auditoría, teneduría de libros y consultoría fiscal",0,"Consumo Final del Gobierno (PC)","2023 p/"]
["P129","Servicios de limpieza",0,"Consumo Final del Gobierno (PC)","2023 p/"]
["P135","Servicios de apoyo a la explotación de minas y canteras y los relacionados con la distribución de electricidad, gas y agua",0,"Consumo Final del Gobierno (PC)","2023 p/"]
["P146","Servicios audiovisuales, recreativos, culturales y deportivos",336.09709299999997,"Consumo Final del Gobierno (PC)","2023 p/"]
["P005","Otros cereales",0,"Formación Bruta de Capital Fijo (PC)","2023 p/"]
["P014","Berries, otras frutas y semillas de frutas",211.75170800000001,"Formación Bruta de Capital Fijo (PC)","2023 p/"]
["P026","Otros productos de animales vivos",0,"Formación Bruta de Capital Fijo (PC)","2023 p/"]
["P040","Vegetales preparados o en conserva, legumbres y papas",0,"Formación Bruta de Capital Fijo (PC)","2023 p/"]
["P053","Productos alimenticios n.c.p.",0,"Formación Bruta de Capital Fijo (PC)","2023 p/"]
["P066","Productos de la edición",0,"Formación Bruta de Capital Fijo (PC)","2023 p/"]
["P070","Gases de petróleo, otros productos de la refinación de petróleo n.c.p.",0,"Formación Bruta de Capital Fijo (PC)","2023 p/"]
["P077","Vidrio y productos de vidrio",0,"Formación Bruta de Capital Fijo (PC)","2023 p/"]
["P097","Evacuación de aguas residuales, recogida, tratamiento y eliminación de desechos",0,"Formación Bruta de Capital Fijo (PC)","2023 p/"]
["P103","Mantenimiento y reparación de vehículos automotores y motocicletas",0,"Formación Bruta de Capital Fijo (PC)","2023 p/"]
["P109","Servicios postales y de mensajería",0,"Formación Bruta de Capital Fijo (PC)","2023 p/"]
["P110","Servicio de alojamiento",0,"Formación Bruta de Capital Fijo (PC)","2023 p/"]
["P111","Servicio de suministro de comidas y bebidas",0,"Formación Bruta de Capital Fijo (PC)","2023 p/"]
["P112","Servicios de información, telecomunicaciones y radiodifusión",0,"Formación Bruta de Capital Fijo (PC)","2023 p/"]
["P113","Servicios de banco central",0,"Formación Bruta de Capital Fijo (PC)","2023 p/"]
["P114","Otros servicios financieros y servicios de banca de inversión",0,"Formación Bruta de Capital Fijo (PC)","2023 p/"]
["P115","Servicios de Intermediación Financiera Medidos Indirectamente (SIFMI)",0,"Formación Bruta de Capital Fijo (PC)","2023 p/"]
["P116","Servicios de seguro, reaseguro y fondos de pensiones",0,"Formación Bruta de Capital Fijo (PC)","2023 p/"]
["P117","Servicios auxiliares de la intermediación financiera",0,"Formación Bruta de Capital Fijo (PC)","2023 p/"]
["P118","Servicios de alquiler de vivienda",0,"Formación Bruta de Capital Fijo (PC)","2023 p/"]
["P119","Otros servicios inmobiliarios, excepto alquiler de vivienda",0,"Formación Bruta de Capital Fijo (PC)","2023 p/"]
["P120","Servicios jurídicos, de contabilidad, auditoría, teneduría de libros y consultoría fiscal",0,"Formación Bruta de Capital Fijo (PC)","2023 p/"]
["P121","Servicios de tecnología de la información",805.12875199999996,"Formación Bruta de Capital Fijo (PC)","2023 p/"]
["P122","Servicios de arquitectura e ingeniería, ensayos y análisis técnicos",225.64118199999999,"Formación Bruta de Capital Fijo (PC)","2023 p/"]
["P123","Otros servicios profesionales, científicos y técnicos",595.23771499999998,"Formación Bruta de Capital Fijo (PC)","2023 p/"]
["P124","Servicios de publicidad y estudios de mercado",0,"Formación Bruta de Capital Fijo (PC)","2023 p/"]
["P125","Servicios de arrendamiento o alquiler sin operador",0,"Formación Bruta de Capital Fijo (PC)","2023 p/"]
["P126","Servicios  de agencias de empleo y de dotación de recursos humanos",0,"Formación Bruta de Capital Fijo (PC)","2023 p/"]
["P127","Servicios de agencias de viajes, operadores turísticos y actividades conexas",0,"Formación Bruta de Capital Fijo (PC)","2023 p/"]
["P128","Servicios de seguridad, sistemas de seguridad e investigación privada",0,"Formación Bruta de Capital Fijo (PC)","2023 p/"]
["P129","Servicios de limpieza",0,"Formación Bruta de Capital Fijo (PC)","2023 p/"]
["P130","Servicios telefónicos de centros de llamadas",0,"Formación Bruta de Capital Fijo (PC)","2023 p/"]
["P131","Servicios administrativos, de apoyo de oficina y otros servicios de apoyo a las empresas",0,"Formación Bruta de Capital Fijo (PC)","2023 p/"]
["P132","Servicios de mantenimiento, reparación e instalación de productos metálicos elaborados, maquinaria y equipo",0,"Formación Bruta de Capital Fijo (PC)","2023 p/"]
["P133","Servicios de reparación de otros bienes",0,"Formación Bruta de Capital Fijo (PC)","2023 p/"]
["P134","Servicios de apoyo a la agricultura, caza, silvicultura y pesca",0,"Formación Bruta de Capital Fijo (PC)","2023 p/"]
["P135","Servicios de apoyo a la explotación de minas y canteras y los relacionados con la distribución de electricidad, gas y agua",0,"Formación Bruta de Capital Fijo (PC)","2023 p/"]
["P136","Servicios de manufactura",0,"Formación Bruta de Capital Fijo (PC)","2023 p/"]
["P137","Servicios públicos del gobierno general",0,"Formación Bruta de Capital Fijo (PC)","2023 p/"]
["P138","Servicios públicos administrativos relacionados con la provisión de servicios educativos, de salud, servicios sociales, culturales y otros, sin contar los servicios de seguridad social",0,"Formación Bruta de Capital Fijo (PC)","2023 p/"]
["P139","Otros servicios administrativos",0,"Formación Bruta de Capital Fijo (PC)","2023 p/"]
["P140","Servicios públicos administrativos prestados a la comunidad en su conjunto",0,"Formación Bruta de Capital Fijo (PC)","2023 p/"]
["P141","Servicios administrativos relacionados con los sistemas de seguridad social de afiliación obligatoria",0,"Formación Bruta de Capital Fijo (PC)","2023 p/"]
["P142","Servicios de enseñanza",0,"Formación Bruta de Capital Fijo (PC)","2023 p/"]
["P143","Servicios de hospitalización",0,"Formación Bruta de Capital Fijo (PC)","2023 p/"]
["P144","Servicios médicos y dentales",0,"Formación Bruta de Capital Fijo (PC)","2023 p/"]
["P145","Otros servicios de atención de la salud humana",0,"Formación Bruta de Capital Fijo (PC)","2023 p/"]
["P146","Servicios audiovisuales, recreativos, culturales y deportivos",0,"Formación Bruta de Capital Fijo (PC)","2023 p/"]
["P147","Servicios de asociaciones que sirven a las empresas",0,"Formación Bruta de Capital Fijo (PC)","2023 p/"]
["P148","Servicios de asociaciones que sirven a los hogares",0,"Formación Bruta de Capital Fijo (PC)","2023 p/"]
["P149","Otros servicios",0,"Formación Bruta de Capital Fijo (PC)","2023 p/"]
["P150","Servicios domésticos",0,"Formación Bruta de Capital Fijo (PC)","2023 p/"]
["P151","Compras directas en el exterior por residentes",10.433707999999999,"Formación Bruta de Capital Fijo (PC)","2023 p/"]
["P152","Compras directas en el territorio nacional por no residentes",0,"Formación Bruta de Capital Fijo (PC)","2023 p/"]
["P001","Maíz",83.139270999999994,"Exportaciones (fob)","2023 p/"]
["P002","Frijoles",11.863059,"Exportaciones (fob)","2023 p/"]
["P003","Leguminosas (legumbres secas) y semillas oleaginosas",423.842578,"Exportaciones (fob)","2023 p/"]
["P004","Arroz",0,"Exportaciones (fob)","2023 p/"]
["P005","Otros cereales",3.3017970000000001,"Exportaciones (fob)","2023 p/"]
["P006","Hortalizas",1953.1351199999999,"Exportaciones (fob)","2023 p/"]
["P007","Sandías y melones",1944.868465,"Exportaciones (fob)","2023 p/"]
["P008","Ejotes y arvejas",1190.5788700000001,"Exportaciones (fob)","2023 p/"]
["P009","Raíces y tubérculos",184.80625000000001,"Exportaciones (fob)","2023 p/"]
["P010","Caña de azúcar y otras plantas azucareras",2.0428259999999998,"Exportaciones (fob)","2023 p/"]
["P011","Tabaco y otras plantas no perennes",540.62256100000002,"Exportaciones (fob)","2023 p/"]
["P012","Bananos, plátanos y otros",8991.8794180000004,"Exportaciones (fob)","2023 p/"]
["P013","Frutas tropicales y subtropicales",549.87775399999998,"Exportaciones (fob)","2023 p/"]
["P014","Berries, otras frutas y semillas de frutas",306.71270299999998,"Exportaciones (fob)","2023 p/"]
["P015","Palma africana",0.29024699999999998,"Exportaciones (fob)","2023 p/"]
["P016","Café en grano",7402.4093579999999,"Exportaciones (fob)","2023 p/"]
["P017","Cardamomo",2795.8142010000001,"Exportaciones (fob)","2023 p/"]
["P018","Caucho natural",1365.6008099999999,"Exportaciones (fob)","2023 p/"]
["P019","Propagación de plantas",431.07910199999998,"Exportaciones (fob)","2023 p/"]
["P020","Otros frutos oleaginosos, otras plantas bebestibles y especias aromáticas",90.721688,"Exportaciones (fob)","2023 p/"]
["P021","Ganado bovino",77.671649000000002,"Exportaciones (fob)","2023 p/"]
["P022","Ganado porcino y otro tipo de animales vivos n.c.p.",1.2636350000000001,"Exportaciones (fob)","2023 p/"]
["P023","Aves de corral",24.967472000000001,"Exportaciones (fob)","2023 p/"]
["P024","Leche cruda",0,"Exportaciones (fob)","2023 p/"]
["P025","Huevos",27.700817000000001,"Exportaciones (fob)","2023 p/"]
["P026","Otros productos de animales vivos",26.601963000000001,"Exportaciones (fob)","2023 p/"]
["P027","Troncos de madera y leña",72.592190000000002,"Exportaciones (fob)","2023 p/"]
["P028","Productos forestales no madereros",256.03894200000002,"Exportaciones (fob)","2023 p/"]
["P029","Peces vivos, frescos o refrigerados",69.547258999999997,"Exportaciones (fob)","2023 p/"]
["P030","Crustáceos sin congelar y otros productos de la pesca",9.3937589999999993,"Exportaciones (fob)","2023 p/"]
["P031","Petróleo crudo y gas natural",305.336071,"Exportaciones (fob)","2023 p/"]
["P032","Minerales metálicos",228.24819099999999,"Exportaciones (fob)","2023 p/"]
["P033","Minerales no metálicos",240.30957699999999,"Exportaciones (fob)","2023 p/"]
["P034","Carne y despojos comestibles de ganado bovino; cueros y pieles de bovino y de otros animales",74.350476999999998,"Exportaciones (fob)","2023 p/"]
["P035","Carne y despojos comestibles de ganado porcino",0.47870299999999999,"Exportaciones (fob)","2023 p/"]
["P036","Carne y despojos comestibles de aves",29.196853000000001,"Exportaciones (fob)","2023 p/"]
["P037","Carne y despojos de otros animales y conservas y preparados de carne",622.27758200000005,"Exportaciones (fob)","2023 p/"]
["P038","Pescado congelado, preparado o en conserva y sus productos",581.78490099999999,"Exportaciones (fob)","2023 p/"]
["P039","Crustáceos, moluscos y demás invertebrados acuáticos congelados, preparados o en conserva y sus productos",530.20102799999995,"Exportaciones (fob)","2023 p/"]
["P040","Vegetales preparados o en conserva, legumbres y papas",994.64937899999995,"Exportaciones (fob)","2023 p/"]
["P041","Preparaciones y conservas de frutas y nueces",1148.887033,"Exportaciones (fob)","2023 p/"]
["P042","Jugos de frutas",526.13610800000004,"Exportaciones (fob)","2023 p/"]
["P043","Aceites de origen vegetal",7459.8790310000004,"Exportaciones (fob)","2023 p/"]
["P044","Margarina, grasas y otros aceites de origen animal y vegetal",879.743109,"Exportaciones (fob)","2023 p/"]
["P045","Leche líquida y crema procesada",10.575758,"Exportaciones (fob)","2023 p/"]
["P046","Otros productos lácteos n.c.p.",468.89674300000001,"Exportaciones (fob)","2023 p/"]
["P047","Harina de trigo",32.761749000000002,"Exportaciones (fob)","2023 p/"]
["P048","Arroz sin cáscara",4.1787590000000003,"Exportaciones (fob)","2023 p/"]
["P049","Otros productos de molinería, almidones y productos de almidón",737.23902099999998,"Exportaciones (fob)","2023 p/"]
["P050","Pan y otros productos de panadería y repostería n.c.p.",1586.3568130000001,"Exportaciones (fob)","2023 p/"]
["P051","Tortillas de maíz, incluso tostadas, horneadas o fritas",0,"Exportaciones (fob)","2023 p/"]
["P052","Azúcar de caña sin refinar y refinada, melaza y los demás azúcares n.c.p.",5251.4166459999997,"Exportaciones (fob)","2023 p/"]
["P053","Productos alimenticios n.c.p.",3930.553625,"Exportaciones (fob)","2023 p/"]
["P054","Preparados para alimentación animal",1133.892881,"Exportaciones (fob)","2023 p/"]
["P055","Aguardientes, licores, vinos, demás bebidas espirituosas y productos del tabaco",871.77452200000005,"Exportaciones (fob)","2023 p/"]
["P056","Malta y cerveza de malta",142.545511,"Exportaciones (fob)","2023 p/"]
["P057","Bebidas no alcohólicas",1461.858187,"Exportaciones (fob)","2023 p/"]
["P058","Aguas minerales y otras aguas embotelladas",64.306803000000002,"Exportaciones (fob)","2023 p/"]
["P059","Hilados, tejidos, telas y otros productos textiles excepto prendas de vestir",2639.1352270000002,"Exportaciones (fob)","2023 p/"]
["P060","Prendas de vestir, adobo y teñido de pieles",5316.6551030000001,"Exportaciones (fob)","2023 p/"]
["P061","Cuero de piel curtida o adobada y cuero artificial o regenerado y artículos de cuero",113.353499,"Exportaciones (fob)","2023 p/"]
["P062","Calzado y sus partes, de cualquier material y de cualquier uso",429.74374399999999,"Exportaciones (fob)","2023 p/"]
["P063","Madera aserrada y acepillada, productos de madera, corcho, paja y materiales trenzables",844.32170299999996,"Exportaciones (fob)","2023 p/"]
["P064","Pasta de papel y papel",1946.3311220000001,"Exportaciones (fob)","2023 p/"]
["P065","Envases de papel y cartón",1499.1018180000001,"Exportaciones (fob)","2023 p/"]
["P066","Productos de la edición",176.461896,"Exportaciones (fob)","2023 p/"]
["P067","Productos de la impresión",138.152896,"Exportaciones (fob)","2023 p/"]
["P068","Gasolinas, diésel oil y fuel oils",1372.746971,"Exportaciones (fob)","2023 p/"]
["P069","Aceites, grasas lubricantes y otros aceites preparados",27.120819000000001,"Exportaciones (fob)","2023 p/"]
["P070","Gases de petróleo, otros productos de la refinación de petróleo n.c.p.",1939.8675370000001,"Exportaciones (fob)","2023 p/"]
["P071","Abonos, fertilizantes y pesticidas",2036.8486439999999,"Exportaciones (fob)","2023 p/"]
["P072","Pinturas, barnices, tintas y productos relacionados",668.94485199999997,"Exportaciones (fob)","2023 p/"]
["P073","Jabón, preparados de limpieza, perfumes y preparados de toilet",3527.9216120000001,"Exportaciones (fob)","2023 p/"]
["P074","Otros productos químicos",3011.973559,"Exportaciones (fob)","2023 p/"]
["P075","Productos farmacéuticos",2213.2133699999999,"Exportaciones (fob)","2023 p/"]
["P076","Productos de caucho y plástico",4396.1964610000005,"Exportaciones (fob)","2023 p/"]
["P077","Vidrio y productos de vidrio",621.83554800000002,"Exportaciones (fob)","2023 p/"]
["P078","Productos de cerámica y arcilla",741.04981099999998,"Exportaciones (fob)","2023 p/"]
["P079","Cemento, cal y yeso",291.01612499999999,"Exportaciones (fob)","2023 p/"]
["P080","Artículos de hormigón, cemento y yeso",50.197633000000003,"Exportaciones (fob)","2023 p/"]
["P081","Piedras talladas para construcción y otros productos minerales no metálicos n.c.p.",47.164577999999999,"Exportaciones (fob)","2023 p/"]
["P082","Métales básicos de hierro y acero, productos primarios de metales preciosos y otros metales no ferrosos",3209.5679230000001,"Exportaciones (fob)","2023 p/"]
["P083","Productos metálicos estructurales y sus partes de hierro o de acero",429.886032,"Exportaciones (fob)","2023 p/"]
["P084","Otros productos elaborados de metal",1356.0974570000001,"Exportaciones (fob)","2023 p/"]
["P085","Maquinaria para usos generales y especiales, sus partes y piezas, excepto electrodomésticos",1401.484905,"Exportaciones (fob)","2023 p/"]
["P086","Electrodomésticos y sus partes",82.788048000000003,"Exportaciones (fob)","2023 p/"]
["P087","Maquinaria de oficina, contabilidad e informática, sus partes y piezas",64.525812999999999,"Exportaciones (fob)","2023 p/"]
["P088","Maquinaria y aparatos eléctricos, sus partes y piezas",420.38945899999999,"Exportaciones (fob)","2023 p/"]
["P089","Equipo y aparatos de radio, televisión y comunicaciones",159.62952899999999,"Exportaciones (fob)","2023 p/"]
["P090","Aparatos médicos, instrumentos ópticos y de precisión, relojes",243.33947900000001,"Exportaciones (fob)","2023 p/"]
["P091","Equipo de transporte",335.916878,"Exportaciones (fob)","2023 p/"]
["P092","Muebles",607.47028799999998,"Exportaciones (fob)","2023 p/"]
["P093","Otros artículos n.c.p.",426.71522499999998,"Exportaciones (fob)","2023 p/"]
["P094","Residuos y desechos",730.24190699999997,"Exportaciones (fob)","2023 p/"]
["P095","Generación y distribución de energía eléctrica, gas, vapor y aire acondicionado",500.83926200000002,"Exportaciones (fob)","2023 p/"]
["P096","Agua natural y distribución de agua natural",0,"Exportaciones (fob)","2023 p/"]
["P097","Evacuación de aguas residuales, recogida, tratamiento y eliminación de desechos",0,"Exportaciones (fob)","2023 p/"]
["P098","Edificaciones residenciales",0,"Exportaciones (fob)","2023 p/"]
["P099","Edificaciones no residenciales",0,"Exportaciones (fob)","2023 p/"]
["P100","Obras de ingeniería civil",0,"Exportaciones (fob)","2023 p/"]
["P101","Servicios generales y especializados de construcción",168.05099300000001,"Exportaciones (fob)","2023 p/"]
["P102","Servicios de comercio",0,"Exportaciones (fob)","2023 p/"]
["P103","Mantenimiento y reparación de vehículos automotores y motocicletas",14.35633,"Exportaciones (fob)","2023 p/"]
["P104","Servicio de transporte de pasajeros por vía terrestre",5.1654790000000004,"Exportaciones (fob)","2023 p/"]
["P105","Servicio de transporte de carga por vía terrestre",955.78311699999995,"Exportaciones (fob)","2023 p/"]
["P106","Otros tipos de transporte",25.517212000000001,"Exportaciones (fob)","2023 p/"]
["P107","Servicios de almacenamiento y depósito",13.932808,"Exportaciones (fob)","2023 p/"]
["P108","Otros servicios de apoyo al transporte",2659.6849579999998,"Exportaciones (fob)","2023 p/"]
["P109","Servicios postales y de mensajería",52.828377000000003,"Exportaciones (fob)","2023 p/"]
["P110","Servicio de alojamiento",0,"Exportaciones (fob)","2023 p/"]
["P111","Servicio de suministro de comidas y bebidas",30.032871,"Exportaciones (fob)","2023 p/"]
["P112","Servicios de información, telecomunicaciones y radiodifusión",1529.8291119999999,"Exportaciones (fob)","2023 p/"]
["P113","Servicios de banco central",0,"Exportaciones (fob)","2023 p/"]
["P114","Otros servicios financieros y servicios de banca de inversión",24.169122999999999,"Exportaciones (fob)","2023 p/"]
["P115","Servicios de Intermediación Financiera Medidos Indirectamente (SIFMI)",514.27931000000001,"Exportaciones (fob)","2023 p/"]
["P116","Servicios de seguro, reaseguro y fondos de pensiones",404.89154300000001,"Exportaciones (fob)","2023 p/"]
["P117","Servicios auxiliares de la intermediación financiera",0,"Exportaciones (fob)","2023 p/"]
["P118","Servicios de alquiler de vivienda",0,"Exportaciones (fob)","2023 p/"]
["P119","Otros servicios inmobiliarios, excepto alquiler de vivienda",0,"Exportaciones (fob)","2023 p/"]
["P120","Servicios jurídicos, de contabilidad, auditoría, teneduría de libros y consultoría fiscal",14.493263000000001,"Exportaciones (fob)","2023 p/"]
["P121","Servicios de tecnología de la información",536.77487599999995,"Exportaciones (fob)","2023 p/"]
["P122","Servicios de arquitectura e ingeniería, ensayos y análisis técnicos",6.791315,"Exportaciones (fob)","2023 p/"]
["P123","Otros servicios profesionales, científicos y técnicos",1019.463482,"Exportaciones (fob)","2023 p/"]
["P124","Servicios de publicidad y estudios de mercado",89.897617999999994,"Exportaciones (fob)","2023 p/"]
["P125","Servicios de arrendamiento o alquiler sin operador",162.80808999999999,"Exportaciones (fob)","2023 p/"]
["P126","Servicios  de agencias de empleo y de dotación de recursos humanos",0,"Exportaciones (fob)","2023 p/"]
["P127","Servicios de agencias de viajes, operadores turísticos y actividades conexas",632.90293999999994,"Exportaciones (fob)","2023 p/"]
["P128","Servicios de seguridad, sistemas de seguridad e investigación privada",12.875280999999999,"Exportaciones (fob)","2023 p/"]
["P129","Servicios de limpieza",0,"Exportaciones (fob)","2023 p/"]
["P130","Servicios telefónicos de centros de llamadas",8723.7013719999995,"Exportaciones (fob)","2023 p/"]
["P131","Servicios administrativos, de apoyo de oficina y otros servicios de apoyo a las empresas",174.96969100000001,"Exportaciones (fob)","2023 p/"]
["P132","Servicios de mantenimiento, reparación e instalación de productos metálicos elaborados, maquinaria y equipo",171.10626099999999,"Exportaciones (fob)","2023 p/"]
["P133","Servicios de reparación de otros bienes",0,"Exportaciones (fob)","2023 p/"]
["P134","Servicios de apoyo a la agricultura, caza, silvicultura y pesca",0,"Exportaciones (fob)","2023 p/"]
["P135","Servicios de apoyo a la explotación de minas y canteras y los relacionados con la distribución de electricidad, gas y agua",0,"Exportaciones (fob)","2023 p/"]
["P136","Servicios de manufactura",4222.5643920000002,"Exportaciones (fob)","2023 p/"]
["P137","Servicios públicos del gobierno general",0,"Exportaciones (fob)","2023 p/"]
["P138","Servicios públicos administrativos relacionados con la provisión de servicios educativos, de salud, servicios sociales, culturales y otros, sin contar los servicios de seguridad social",0,"Exportaciones (fob)","2023 p/"]
["P139","Otros servicios administrativos",0,"Exportaciones (fob)","2023 p/"]
["P140","Servicios públicos administrativos prestados a la comunidad en su conjunto",51.922482000000002,"Exportaciones (fob)","2023 p/"]
["P141","Servicios administrativos relacionados con los sistemas de seguridad social de afiliación obligatoria",0,"Exportaciones (fob)","2023 p/"]
["P142","Servicios de enseñanza",3.4006880000000002,"Exportaciones (fob)","2023 p/"]
["P143","Servicios de hospitalización",223.81080700000001,"Exportaciones (fob)","2023 p/"]
["P144","Servicios médicos y dentales",335.71621099999999,"Exportaciones (fob)","2023 p/"]
["P145","Otros servicios de atención de la salud humana",99.021856999999997,"Exportaciones (fob)","2023 p/"]
["P146","Servicios audiovisuales, recreativos, culturales y deportivos",0,"Exportaciones (fob)","2023 p/"]
["P147","Servicios de asociaciones que sirven a las empresas",0,"Exportaciones (fob)","2023 p/"]
["P148","Servicios de asociaciones que sirven a los hogares",0,"Exportaciones (fob)","2023 p/"]
["P149","Otros servicios",0,"Exportaciones (fob)","2023 p/"]
["P150","Servicios domésticos",0,"Exportaciones (fob)","2023 p/"]
["P151","Compras directas en el exterior por residentes",0,"Exportaciones (fob)","2023 p/"]
["P152","Compras directas en el territorio nacional por no residentes",10686.425185,"Exportaciones (fob)","2023 p/"]
["P001","Maíz",-38.710821000000003,"Variación de existencias (PC)","2023 p/"]
["P002","Frijoles",6.538958,"Variación de existencias (PC)","2023 p/"]
["P003","Leguminosas (legumbres secas) y semillas oleaginosas",462.22410200000002,"Variación de existencias (PC)","2023 p/"]
["P004","Arroz",-37.050333999999999,"Variación de existencias (PC)","2023 p/"]
["P005","Otros cereales",-186.67222799999999,"Variación de existencias (PC)","2023 p/"]
["P006","Hortalizas",0,"Variación de existencias (PC)","2023 p/"]
["P007","Sandías y melones",2.5597569999999998,"Variación de existencias (PC)","2023 p/"]
["P008","Ejotes y arvejas",0,"Variación de existencias (PC)","2023 p/"]
["P009","Raíces y tubérculos",0,"Variación de existencias (PC)","2023 p/"]
["P010","Caña de azúcar y otras plantas azucareras",170.85991300000001,"Variación de existencias (PC)","2023 p/"]
["P011","Tabaco y otras plantas no perennes",-61.513021999999999,"Variación de existencias (PC)","2023 p/"]
["P012","Bananos, plátanos y otros",0,"Variación de existencias (PC)","2023 p/"]
["P013","Frutas tropicales y subtropicales",0,"Variación de existencias (PC)","2023 p/"]
["P014","Berries, otras frutas y semillas de frutas",0,"Variación de existencias (PC)","2023 p/"]
["P015","Palma africana",0,"Variación de existencias (PC)","2023 p/"]
["P016","Café en grano",293.52140200000002,"Variación de existencias (PC)","2023 p/"]
["P017","Cardamomo",-384.70505100000003,"Variación de existencias (PC)","2023 p/"]
["P018","Caucho natural",0,"Variación de existencias (PC)","2023 p/"]
["P019","Propagación de plantas",0,"Variación de existencias (PC)","2023 p/"]
["P020","Otros frutos oleaginosos, otras plantas bebestibles y especias aromáticas",0,"Variación de existencias (PC)","2023 p/"]
["P021","Ganado bovino",-17.313645000000001,"Variación de existencias (PC)","2023 p/"]
["P022","Ganado porcino y otro tipo de animales vivos n.c.p.",1.7941910000000001,"Variación de existencias (PC)","2023 p/"]
["P023","Aves de corral",17.910912,"Variación de existencias (PC)","2023 p/"]
["P024","Leche cruda",0,"Variación de existencias (PC)","2023 p/"]
["P025","Huevos",0,"Variación de existencias (PC)","2023 p/"]
["P026","Otros productos de animales vivos",0,"Variación de existencias (PC)","2023 p/"]
["P027","Troncos de madera y leña",0,"Variación de existencias (PC)","2023 p/"]
["P028","Productos forestales no madereros",0,"Variación de existencias (PC)","2023 p/"]
["P029","Peces vivos, frescos o refrigerados",0,"Variación de existencias (PC)","2023 p/"]
["P030","Crustáceos sin congelar y otros productos de la pesca",0,"Variación de existencias (PC)","2023 p/"]
["P031","Petróleo crudo y gas natural",84.923680000000004,"Variación de existencias (PC)","2023 p/"]
["P032","Minerales metálicos",-6.0464650000000004,"Variación de existencias (PC)","2023 p/"]
["P033","Minerales no metálicos",-95.086318000000006,"Variación de existencias (PC)","2023 p/"]
["P034","Carne y despojos comestibles de ganado bovino; cueros y pieles de bovino y de otros animales",-10.169457,"Variación de existencias (PC)","2023 p/"]
["P035","Carne y despojos comestibles de ganado porcino",9.7561149999999994,"Variación de existencias (PC)","2023 p/"]
["P036","Carne y despojos comestibles de aves",18.995186,"Variación de existencias (PC)","2023 p/"]
["P037","Carne y despojos de otros animales y conservas y preparados de carne",-28.920432000000002,"Variación de existencias (PC)","2023 p/"]
["P038","Pescado congelado, preparado o en conserva y sus productos",-19.578004,"Variación de existencias (PC)","2023 p/"]
["P039","Crustáceos, moluscos y demás invertebrados acuáticos congelados, preparados o en conserva y sus productos",-4.9301570000000003,"Variación de existencias (PC)","2023 p/"]
["P040","Vegetales preparados o en conserva, legumbres y papas",37.097346999999999,"Variación de existencias (PC)","2023 p/"]
["P041","Preparaciones y conservas de frutas y nueces",75.545236000000003,"Variación de existencias (PC)","2023 p/"]
["P042","Jugos de frutas",-20.721319999999999,"Variación de existencias (PC)","2023 p/"]
["P043","Aceites de origen vegetal",-167.09490299999999,"Variación de existencias (PC)","2023 p/"]
["P044","Margarina, grasas y otros aceites de origen animal y vegetal",51.166139000000001,"Variación de existencias (PC)","2023 p/"]
["P045","Leche líquida y crema procesada",12.372168,"Variación de existencias (PC)","2023 p/"]
["P046","Otros productos lácteos n.c.p.",-21.360721000000002,"Variación de existencias (PC)","2023 p/"]
["P047","Harina de trigo",58.845472000000001,"Variación de existencias (PC)","2023 p/"]
["P048","Arroz sin cáscara",16.383118,"Variación de existencias (PC)","2023 p/"]
["P049","Otros productos de molinería, almidones y productos de almidón",-3.965125,"Variación de existencias (PC)","2023 p/"]
["P050","Pan y otros productos de panadería y repostería n.c.p.",-10.586940999999999,"Variación de existencias (PC)","2023 p/"]
["P051","Tortillas de maíz, incluso tostadas, horneadas o fritas",0.13975199999999999,"Variación de existencias (PC)","2023 p/"]
["P052","Azúcar de caña sin refinar y refinada, melaza y los demás azúcares n.c.p.",-278.36992299999997,"Variación de existencias (PC)","2023 p/"]
["P053","Productos alimenticios n.c.p.",64.634859000000006,"Variación de existencias (PC)","2023 p/"]
["P054","Preparados para alimentación animal",40.659376000000002,"Variación de existencias (PC)","2023 p/"]
["P055","Aguardientes, licores, vinos, demás bebidas espirituosas y productos del tabaco",91.024736000000004,"Variación de existencias (PC)","2023 p/"]
["P056","Malta y cerveza de malta",129.55161899999999,"Variación de existencias (PC)","2023 p/"]
["P057","Bebidas no alcohólicas",172.83162100000001,"Variación de existencias (PC)","2023 p/"]
["P058","Aguas minerales y otras aguas embotelladas",115.068218,"Variación de existencias (PC)","2023 p/"]
["P059","Hilados, tejidos, telas y otros productos textiles excepto prendas de vestir",-121.764338,"Variación de existencias (PC)","2023 p/"]
["P060","Prendas de vestir, adobo y teñido de pieles",-97.489992000000001,"Variación de existencias (PC)","2023 p/"]
["P061","Cuero de piel curtida o adobada y cuero artificial o regenerado y artículos de cuero",108.154391,"Variación de existencias (PC)","2023 p/"]
["P062","Calzado y sus partes, de cualquier material y de cualquier uso",76.257501000000005,"Variación de existencias (PC)","2023 p/"]
["P063","Madera aserrada y acepillada, productos de madera, corcho, paja y materiales trenzables",-98.845777999999996,"Variación de existencias (PC)","2023 p/"]
["P064","Pasta de papel y papel",-752.35240799999997,"Variación de existencias (PC)","2023 p/"]
["P065","Envases de papel y cartón",-51.656157,"Variación de existencias (PC)","2023 p/"]
["P066","Productos de la edición",-4.4847200000000003,"Variación de existencias (PC)","2023 p/"]
["P067","Productos de la impresión",53.628825999999997,"Variación de existencias (PC)","2023 p/"]
["P068","Gasolinas, diésel oil y fuel oils",1245.497807,"Variación de existencias (PC)","2023 p/"]
["P069","Aceites, grasas lubricantes y otros aceites preparados",133.75095400000001,"Variación de existencias (PC)","2023 p/"]
["P070","Gases de petróleo, otros productos de la refinación de petróleo n.c.p.",292.89579099999997,"Variación de existencias (PC)","2023 p/"]
["P071","Abonos, fertilizantes y pesticidas",-385.94133900000003,"Variación de existencias (PC)","2023 p/"]
["P072","Pinturas, barnices, tintas y productos relacionados",37.335569,"Variación de existencias (PC)","2023 p/"]
["P073","Jabón, preparados de limpieza, perfumes y preparados de toilet",30.909462000000001,"Variación de existencias (PC)","2023 p/"]
["P074","Otros productos químicos",-189.28797399999999,"Variación de existencias (PC)","2023 p/"]
["P075","Productos farmacéuticos",114.341162,"Variación de existencias (PC)","2023 p/"]
["P076","Productos de caucho y plástico",131.61068299999999,"Variación de existencias (PC)","2023 p/"]
["P077","Vidrio y productos de vidrio",88.012365000000003,"Variación de existencias (PC)","2023 p/"]
["P078","Productos de cerámica y arcilla",4.6691200000000004,"Variación de existencias (PC)","2023 p/"]
["P079","Cemento, cal y yeso",-289.37678299999999,"Variación de existencias (PC)","2023 p/"]
["P080","Artículos de hormigón, cemento y yeso",35.385022999999997,"Variación de existencias (PC)","2023 p/"]
["P081","Piedras talladas para construcción y otros productos minerales no metálicos n.c.p.",16.629265,"Variación de existencias (PC)","2023 p/"]
["P082","Métales básicos de hierro y acero, productos primarios de metales preciosos y otros metales no ferrosos",-112.077262,"Variación de existencias (PC)","2023 p/"]
["P083","Productos metálicos estructurales y sus partes de hierro o de acero",82.116861,"Variación de existencias (PC)","2023 p/"]
["P084","Otros productos elaborados de metal",-25.742411000000001,"Variación de existencias (PC)","2023 p/"]
["P085","Maquinaria para usos generales y especiales, sus partes y piezas, excepto electrodomésticos",343.66286400000001,"Variación de existencias (PC)","2023 p/"]
["P086","Electrodomésticos y sus partes",62.026985000000003,"Variación de existencias (PC)","2023 p/"]
["P087","Maquinaria de oficina, contabilidad e informática, sus partes y piezas",-64.813072000000005,"Variación de existencias (PC)","2023 p/"]
["P088","Maquinaria y aparatos eléctricos, sus partes y piezas",183.59797599999999,"Variación de existencias (PC)","2023 p/"]
["P089","Equipo y aparatos de radio, televisión y comunicaciones",156.47349,"Variación de existencias (PC)","2023 p/"]
["P090","Aparatos médicos, instrumentos ópticos y de precisión, relojes",149.922709,"Variación de existencias (PC)","2023 p/"]
["P091","Equipo de transporte",230.73306099999999,"Variación de existencias (PC)","2023 p/"]
["P092","Muebles",-29.147110999999999,"Variación de existencias (PC)","2023 p/"]
["P093","Otros artículos n.c.p.",75.777625,"Variación de existencias (PC)","2023 p/"]
["P094","Residuos y desechos",-180.57850199999999,"Variación de existencias (PC)","2023 p/"]
["P095","Generación y distribución de energía eléctrica, gas, vapor y aire acondicionado",0,"Variación de existencias (PC)","2023 p/"]
["P096","Agua natural y distribución de agua natural",0,"Variación de existencias (PC)","2023 p/"]
["P097","Evacuación de aguas residuales, recogida, tratamiento y eliminación de desechos",0,"Variación de existencias (PC)","2023 p/"]
["P098","Edificaciones residenciales",-125.24743700000001,"Variación de existencias (PC)","2023 p/"]
["P099","Edificaciones no residenciales",-567.11728700000003,"Variación de existencias (PC)","2023 p/"]
["P100","Obras de ingeniería civil",0,"Variación de existencias (PC)","2023 p/"]
["P101","Servicios generales y especializados de construcción",0,"Variación de existencias (PC)","2023 p/"]
["P102","Servicios de comercio",0,"Variación de existencias (PC)","2023 p/"]
["P103","Mantenimiento y reparación de vehículos automotores y motocicletas",0,"Variación de existencias (PC)","2023 p/"]
["P104","Servicio de transporte de pasajeros por vía terrestre",0,"Variación de existencias (PC)","2023 p/"]
["P105","Servicio de transporte de carga por vía terrestre",0,"Variación de existencias (PC)","2023 p/"]
["P106","Otros tipos de transporte",0,"Variación de existencias (PC)","2023 p/"]
["P107","Servicios de almacenamiento y depósito",0,"Variación de existencias (PC)","2023 p/"]
["P108","Otros servicios de apoyo al transporte",0,"Variación de existencias (PC)","2023 p/"]
["P109","Servicios postales y de mensajería",0,"Variación de existencias (PC)","2023 p/"]
["P110","Servicio de alojamiento",0,"Variación de existencias (PC)","2023 p/"]
["P111","Servicio de suministro de comidas y bebidas",0,"Variación de existencias (PC)","2023 p/"]
["P112","Servicios de información, telecomunicaciones y radiodifusión",0,"Variación de existencias (PC)","2023 p/"]
["P113","Servicios de banco central",0,"Variación de existencias (PC)","2023 p/"]
["P114","Otros servicios financieros y servicios de banca de inversión",0,"Variación de existencias (PC)","2023 p/"]
["P115","Servicios de Intermediación Financiera Medidos Indirectamente (SIFMI)",0,"Variación de existencias (PC)","2023 p/"]
["P116","Servicios de seguro, reaseguro y fondos de pensiones",0,"Variación de existencias (PC)","2023 p/"]
["P117","Servicios auxiliares de la intermediación financiera",0,"Variación de existencias (PC)","2023 p/"]
["P118","Servicios de alquiler de vivienda",0,"Variación de existencias (PC)","2023 p/"]
["P119","Otros servicios inmobiliarios, excepto alquiler de vivienda",0,"Variación de existencias (PC)","2023 p/"]
["P120","Servicios jurídicos, de contabilidad, auditoría, teneduría de libros y consultoría fiscal",0,"Variación de existencias (PC)","2023 p/"]
["P121","Servicios de tecnología de la información",0,"Variación de existencias (PC)","2023 p/"]
["P122","Servicios de arquitectura e ingeniería, ensayos y análisis técnicos",0,"Variación de existencias (PC)","2023 p/"]
["P123","Otros servicios profesionales, científicos y técnicos",0,"Variación de existencias (PC)","2023 p/"]
["P124","Servicios de publicidad y estudios de mercado",0,"Variación de existencias (PC)","2023 p/"]
["P125","Servicios de arrendamiento o alquiler sin operador",0,"Variación de existencias (PC)","2023 p/"]
["P126","Servicios  de agencias de empleo y de dotación de recursos humanos",0,"Variación de existencias (PC)","2023 p/"]
["P127","Servicios de agencias de viajes, operadores turísticos y actividades conexas",0,"Variación de existencias (PC)","2023 p/"]
["P128","Servicios de seguridad, sistemas de seguridad e investigación privada",0,"Variación de existencias (PC)","2023 p/"]
["P129","Servicios de limpieza",0,"Variación de existencias (PC)","2023 p/"]
["P130","Servicios telefónicos de centros de llamadas",0,"Variación de existencias (PC)","2023 p/"]
["P131","Servicios administrativos, de apoyo de oficina y otros servicios de apoyo a las empresas",0,"Variación de existencias (PC)","2023 p/"]
["P132","Servicios de mantenimiento, reparación e instalación de productos metálicos elaborados, maquinaria y equipo",0,"Variación de existencias (PC)","2023 p/"]
["P133","Servicios de reparación de otros bienes",0,"Variación de existencias (PC)","2023 p/"]
["P134","Servicios de apoyo a la agricultura, caza, silvicultura y pesca",0,"Variación de existencias (PC)","2023 p/"]
["P135","Servicios de apoyo a la explotación de minas y canteras y los relacionados con la distribución de electricidad, gas y agua",0,"Variación de existencias (PC)","2023 p/"]
["P136","Servicios de manufactura",0,"Variación de existencias (PC)","2023 p/"]
["P137","Servicios públicos del gobierno general",0,"Variación de existencias (PC)","2023 p/"]
["P138","Servicios públicos administrativos relacionados con la provisión de servicios educativos, de salud, servicios sociales, culturales y otros, sin contar los servicios de seguridad social",0,"Variación de existencias (PC)","2023 p/"]
["P139","Otros servicios administrativos",0,"Variación de existencias (PC)","2023 p/"]
["P140","Servicios públicos administrativos prestados a la comunidad en su conjunto",0,"Variación de existencias (PC)","2023 p/"]
["P141","Servicios administrativos relacionados con los sistemas de seguridad social de afiliación obligatoria",0,"Variación de existencias (PC)","2023 p/"]
["P142","Servicios de enseñanza",0,"Variación de existencias (PC)","2023 p/"]
["P143","Servicios de hospitalización",0,"Variación de existencias (PC)","2023 p/"]
["P144","Servicios médicos y dentales",0,"Variación de existencias (PC)","2023 p/"]
["P145","Otros servicios de atención de la salud humana",0,"Variación de existencias (PC)","2023 p/"]
["P146","Servicios audiovisuales, recreativos, culturales y deportivos",0,"Variación de existencias (PC)","2023 p/"]
["P147","Servicios de asociaciones que sirven a las empresas",0,"Variación de existencias (PC)","2023 p/"]
["P148","Servicios de asociaciones que sirven a los hogares",0,"Variación de existencias (PC)","2023 p/"]
["P149","Otros servicios",0,"Variación de existencias (PC)","2023 p/"]
["P150","Servicios domésticos",0,"Variación de existencias (PC)","2023 p/"]
["P151","Compras directas en el exterior por residentes",0,"Variación de existencias (PC)","2023 p/"]
["P152","Compras directas en el territorio nacional por no residentes",0,"Variación de existencias (PC)","2023 p/"]
["P001","Maíz",0,"Ajuste CIF/FOB","2023 p/"]
["P002","Frijoles",0,"Ajuste CIF/FOB","2023 p/"]
["P003","Leguminosas (legumbres secas) y semillas oleaginosas",0,"Ajuste CIF/FOB","2023 p/"]
["P004","Arroz",0,"Ajuste CIF/FOB","2023 p/"]
["P005","Otros cereales",0,"Ajuste CIF/FOB","2023 p/"]
["P006","Hortalizas",0,"Ajuste CIF/FOB","2023 p/"]
["P007","Sandías y melones",0,"Ajuste CIF/FOB","2023 p/"]
["P008","Ejotes y arvejas",0,"Ajuste CIF/FOB","2023 p/"]
["P009","Raíces y tubérculos",0,"Ajuste CIF/FOB","2023 p/"]
["P010","Caña de azúcar y otras plantas azucareras",0,"Ajuste CIF/FOB","2023 p/"]
["P011","Tabaco y otras plantas no perennes",0,"Ajuste CIF/FOB","2023 p/"]
["P012","Bananos, plátanos y otros",0,"Ajuste CIF/FOB","2023 p/"]
["P013","Frutas tropicales y subtropicales",0,"Ajuste CIF/FOB","2023 p/"]
["P014","Berries, otras frutas y semillas de frutas",0,"Ajuste CIF/FOB","2023 p/"]
["P015","Palma africana",0,"Ajuste CIF/FOB","2023 p/"]
["P016","Café en grano",0,"Ajuste CIF/FOB","2023 p/"]
["P017","Cardamomo",0,"Ajuste CIF/FOB","2023 p/"]
["P018","Caucho natural",0,"Ajuste CIF/FOB","2023 p/"]
["P019","Propagación de plantas",0,"Ajuste CIF/FOB","2023 p/"]
["P020","Otros frutos oleaginosos, otras plantas bebestibles y especias aromáticas",0,"Ajuste CIF/FOB","2023 p/"]
["P021","Ganado bovino",0,"Ajuste CIF/FOB","2023 p/"]
["P022","Ganado porcino y otro tipo de animales vivos n.c.p.",0,"Ajuste CIF/FOB","2023 p/"]
["P023","Aves de corral",0,"Ajuste CIF/FOB","2023 p/"]
["P024","Leche cruda",0,"Ajuste CIF/FOB","2023 p/"]
["P025","Huevos",0,"Ajuste CIF/FOB","2023 p/"]
["P026","Otros productos de animales vivos",0,"Ajuste CIF/FOB","2023 p/"]
["P027","Troncos de madera y leña",0,"Ajuste CIF/FOB","2023 p/"]
["P028","Productos forestales no madereros",0,"Ajuste CIF/FOB","2023 p/"]
["P029","Peces vivos, frescos o refrigerados",0,"Ajuste CIF/FOB","2023 p/"]
["P030","Crustáceos sin congelar y otros productos de la pesca",0,"Ajuste CIF/FOB","2023 p/"]
["P031","Petróleo crudo y gas natural",0,"Ajuste CIF/FOB","2023 p/"]
["P032","Minerales metálicos",0,"Ajuste CIF/FOB","2023 p/"]
["P033","Minerales no metálicos",0,"Ajuste CIF/FOB","2023 p/"]
["P034","Carne y despojos comestibles de ganado bovino; cueros y pieles de bovino y de otros animales",0,"Ajuste CIF/FOB","2023 p/"]
["P035","Carne y despojos comestibles de ganado porcino",0,"Ajuste CIF/FOB","2023 p/"]
["P036","Carne y despojos comestibles de aves",0,"Ajuste CIF/FOB","2023 p/"]
["P037","Carne y despojos de otros animales y conservas y preparados de carne",0,"Ajuste CIF/FOB","2023 p/"]
["P038","Pescado congelado, preparado o en conserva y sus productos",0,"Ajuste CIF/FOB","2023 p/"]
["P039","Crustáceos, moluscos y demás invertebrados acuáticos congelados, preparados o en conserva y sus productos",0,"Ajuste CIF/FOB","2023 p/"]
["P040","Vegetales preparados o en conserva, legumbres y papas",0,"Ajuste CIF/FOB","2023 p/"]
["P041","Preparaciones y conservas de frutas y nueces",0,"Ajuste CIF/FOB","2023 p/"]
["P042","Jugos de frutas",0,"Ajuste CIF/FOB","2023 p/"]
["P043","Aceites de origen vegetal",0,"Ajuste CIF/FOB","2023 p/"]
["P044","Margarina, grasas y otros aceites de origen animal y vegetal",0,"Ajuste CIF/FOB","2023 p/"]
["P045","Leche líquida y crema procesada",0,"Ajuste CIF/FOB","2023 p/"]
["P046","Otros productos lácteos n.c.p.",0,"Ajuste CIF/FOB","2023 p/"]
["P047","Harina de trigo",0,"Ajuste CIF/FOB","2023 p/"]
["P048","Arroz sin cáscara",0,"Ajuste CIF/FOB","2023 p/"]
["P049","Otros productos de molinería, almidones y productos de almidón",0,"Ajuste CIF/FOB","2023 p/"]
["P050","Pan y otros productos de panadería y repostería n.c.p.",0,"Ajuste CIF/FOB","2023 p/"]
["P051","Tortillas de maíz, incluso tostadas, horneadas o fritas",0,"Ajuste CIF/FOB","2023 p/"]
["P052","Azúcar de caña sin refinar y refinada, melaza y los demás azúcares n.c.p.",0,"Ajuste CIF/FOB","2023 p/"]
["P053","Productos alimenticios n.c.p.",0,"Ajuste CIF/FOB","2023 p/"]
["P054","Preparados para alimentación animal",0,"Ajuste CIF/FOB","2023 p/"]
["P055","Aguardientes, licores, vinos, demás bebidas espirituosas y productos del tabaco",0,"Ajuste CIF/FOB","2023 p/"]
["P056","Malta y cerveza de malta",0,"Ajuste CIF/FOB","2023 p/"]
["P057","Bebidas no alcohólicas",0,"Ajuste CIF/FOB","2023 p/"]
["P058","Aguas minerales y otras aguas embotelladas",0,"Ajuste CIF/FOB","2023 p/"]
["P059","Hilados, tejidos, telas y otros productos textiles excepto prendas de vestir",0,"Ajuste CIF/FOB","2023 p/"]
["P060","Prendas de vestir, adobo y teñido de pieles",0,"Ajuste CIF/FOB","2023 p/"]
["P061","Cuero de piel curtida o adobada y cuero artificial o regenerado y artículos de cuero",0,"Ajuste CIF/FOB","2023 p/"]
["P062","Calzado y sus partes, de cualquier material y de cualquier uso",0,"Ajuste CIF/FOB","2023 p/"]
["P063","Madera aserrada y acepillada, productos de madera, corcho, paja y materiales trenzables",0,"Ajuste CIF/FOB","2023 p/"]
["P064","Pasta de papel y papel",0,"Ajuste CIF/FOB","2023 p/"]
["P065","Envases de papel y cartón",0,"Ajuste CIF/FOB","2023 p/"]
["P066","Productos de la edición",0,"Ajuste CIF/FOB","2023 p/"]
["P067","Productos de la impresión",0,"Ajuste CIF/FOB","2023 p/"]
["P068","Gasolinas, diésel oil y fuel oils",0,"Ajuste CIF/FOB","2023 p/"]
["P069","Aceites, grasas lubricantes y otros aceites preparados",0,"Ajuste CIF/FOB","2023 p/"]
["P070","Gases de petróleo, otros productos de la refinación de petróleo n.c.p.",0,"Ajuste CIF/FOB","2023 p/"]
["P071","Abonos, fertilizantes y pesticidas",0,"Ajuste CIF/FOB","2023 p/"]
["P072","Pinturas, barnices, tintas y productos relacionados",0,"Ajuste CIF/FOB","2023 p/"]
["P073","Jabón, preparados de limpieza, perfumes y preparados de toilet",0,"Ajuste CIF/FOB","2023 p/"]
["P074","Otros productos químicos",0,"Ajuste CIF/FOB","2023 p/"]
["P075","Productos farmacéuticos",0,"Ajuste CIF/FOB","2023 p/"]
["P076","Productos de caucho y plástico",0,"Ajuste CIF/FOB","2023 p/"]
["P077","Vidrio y productos de vidrio",0,"Ajuste CIF/FOB","2023 p/"]
["P078","Productos de cerámica y arcilla",0,"Ajuste CIF/FOB","2023 p/"]
["P079","Cemento, cal y yeso",0,"Ajuste CIF/FOB","2023 p/"]
["P080","Artículos de hormigón, cemento y yeso",0,"Ajuste CIF/FOB","2023 p/"]
["P081","Piedras talladas para construcción y otros productos minerales no metálicos n.c.p.",0,"Ajuste CIF/FOB","2023 p/"]
["P082","Métales básicos de hierro y acero, productos primarios de metales preciosos y otros metales no ferrosos",0,"Ajuste CIF/FOB","2023 p/"]
["P083","Productos metálicos estructurales y sus partes de hierro o de acero",0,"Ajuste CIF/FOB","2023 p/"]
["P084","Otros productos elaborados de metal",0,"Ajuste CIF/FOB","2023 p/"]
["P085","Maquinaria para usos generales y especiales, sus partes y piezas, excepto electrodomésticos",0,"Ajuste CIF/FOB","2023 p/"]
["P086","Electrodomésticos y sus partes",0,"Ajuste CIF/FOB","2023 p/"]
["P087","Maquinaria de oficina, contabilidad e informática, sus partes y piezas",0,"Ajuste CIF/FOB","2023 p/"]
["P088","Maquinaria y aparatos eléctricos, sus partes y piezas",0,"Ajuste CIF/FOB","2023 p/"]
["P089","Equipo y aparatos de radio, televisión y comunicaciones",0,"Ajuste CIF/FOB","2023 p/"]
["P090","Aparatos médicos, instrumentos ópticos y de precisión, relojes",0,"Ajuste CIF/FOB","2023 p/"]
["P091","Equipo de transporte",0,"Ajuste CIF/FOB","2023 p/"]
["P092","Muebles",0,"Ajuste CIF/FOB","2023 p/"]
["P093","Otros artículos n.c.p.",0,"Ajuste CIF/FOB","2023 p/"]
["P094","Residuos y desechos",0,"Ajuste CIF/FOB","2023 p/"]
["P095","Generación y distribución de energía eléctrica, gas, vapor y aire acondicionado",0,"Ajuste CIF/FOB","2023 p/"]
["P096","Agua natural y distribución de agua natural",0,"Ajuste CIF/FOB","2023 p/"]
["P097","Evacuación de aguas residuales, recogida, tratamiento y eliminación de desechos",0,"Ajuste CIF/FOB","2023 p/"]
["P098","Edificaciones residenciales",0,"Ajuste CIF/FOB","2023 p/"]
["P099","Edificaciones no residenciales",0,"Ajuste CIF/FOB","2023 p/"]
["P100","Obras de ingeniería civil",0,"Ajuste CIF/FOB","2023 p/"]
["P101","Servicios generales y especializados de construcción",0,"Ajuste CIF/FOB","2023 p/"]
["P102","Servicios de comercio",0,"Ajuste CIF/FOB","2023 p/"]
["P103","Mantenimiento y reparación de vehículos automotores y motocicletas",0,"Ajuste CIF/FOB","2023 p/"]
["P104","Servicio de transporte de pasajeros por vía terrestre",0,"Ajuste CIF/FOB","2023 p/"]
["P105","Servicio de transporte de carga por vía terrestre",-3038.4621849999999,"Ajuste CIF/FOB","2023 p/"]
["P106","Otros tipos de transporte",-12904.495703000001,"Ajuste CIF/FOB","2023 p/"]
["P107","Servicios de almacenamiento y depósito",0,"Ajuste CIF/FOB","2023 p/"]
["P108","Otros servicios de apoyo al transporte",0,"Ajuste CIF/FOB","2023 p/"]
["P109","Servicios postales y de mensajería",0,"Ajuste CIF/FOB","2023 p/"]
["P110","Servicio de alojamiento",0,"Ajuste CIF/FOB","2023 p/"]
["P111","Servicio de suministro de comidas y bebidas",0,"Ajuste CIF/FOB","2023 p/"]
["P112","Servicios de información, telecomunicaciones y radiodifusión",0,"Ajuste CIF/FOB","2023 p/"]
["P113","Servicios de banco central",0,"Ajuste CIF/FOB","2023 p/"]
["P114","Otros servicios financieros y servicios de banca de inversión",0,"Ajuste CIF/FOB","2023 p/"]
["P115","Servicios de Intermediación Financiera Medidos Indirectamente (SIFMI)",0,"Ajuste CIF/FOB","2023 p/"]
["P116","Servicios de seguro, reaseguro y fondos de pensiones",-1141.3266960000001,"Ajuste CIF/FOB","2023 p/"]
["P117","Servicios auxiliares de la intermediación financiera",0,"Ajuste CIF/FOB","2023 p/"]
["P118","Servicios de alquiler de vivienda",0,"Ajuste CIF/FOB","2023 p/"]
["P119","Otros servicios inmobiliarios, excepto alquiler de vivienda",0,"Ajuste CIF/FOB","2023 p/"]
["P120","Servicios jurídicos, de contabilidad, auditoría, teneduría de libros y consultoría fiscal",0,"Ajuste CIF/FOB","2023 p/"]
["P121","Servicios de tecnología de la información",0,"Ajuste CIF/FOB","2023 p/"]
["P122","Servicios de arquitectura e ingeniería, ensayos y análisis técnicos",0,"Ajuste CIF/FOB","2023 p/"]
["P123","Otros servicios profesionales, científicos y técnicos",0,"Ajuste CIF/FOB","2023 p/"]
["P124","Servicios de publicidad y estudios de mercado",0,"Ajuste CIF/FOB","2023 p/"]
["P125","Servicios de arrendamiento o alquiler sin operador",0,"Ajuste CIF/FOB","2023 p/"]
["P126","Servicios  de agencias de empleo y de dotación de recursos humanos",0,"Ajuste CIF/FOB","2023 p/"]
["P127","Servicios de agencias de viajes, operadores turísticos y actividades conexas",0,"Ajuste CIF/FOB","2023 p/"]
["P128","Servicios de seguridad, sistemas de seguridad e investigación privada",0,"Ajuste CIF/FOB","2023 p/"]
["P129","Servicios de limpieza",0,"Ajuste CIF/FOB","2023 p/"]
["P130","Servicios telefónicos de centros de llamadas",0,"Ajuste CIF/FOB","2023 p/"]
["P131","Servicios administrativos, de apoyo de oficina y otros servicios de apoyo a las empresas",0,"Ajuste CIF/FOB","2023 p/"]
["P132","Servicios de mantenimiento, reparación e instalación de productos metálicos elaborados, maquinaria y equipo",0,"Ajuste CIF/FOB","2023 p/"]
["P133","Servicios de reparación de otros bienes",0,"Ajuste CIF/FOB","2023 p/"]
["P134","Servicios de apoyo a la agricultura, caza, silvicultura y pesca",0,"Ajuste CIF/FOB","2023 p/"]
["P135","Servicios de apoyo a la explotación de minas y canteras y los relacionados con la distribución de electricidad, gas y agua",0,"Ajuste CIF/FOB","2023 p/"]
["P136","Servicios de manufactura",0,"Ajuste CIF/FOB","2023 p/"]
["P137","Servicios públicos del gobierno general",0,"Ajuste CIF/FOB","2023 p/"]
["P138","Servicios públicos administrativos relacionados con la provisión de servicios educativos, de salud, servicios sociales, culturales y otros, sin contar los servicios de seguridad social",0,"Ajuste CIF/FOB","2023 p/"]
["P139","Otros servicios administrativos",0,"Ajuste CIF/FOB","2023 p/"]
["P140","Servicios públicos administrativos prestados a la comunidad en su conjunto",0,"Ajuste CIF/FOB","2023 p/"]
["P141","Servicios administrativos relacionados con los sistemas de seguridad social de afiliación obligatoria",0,"Ajuste CIF/FOB","2023 p/"]
["P142","Servicios de enseñanza",0,"Ajuste CIF/FOB","2023 p/"]
["P143","Servicios de hospitalización",0,"Ajuste CIF/FOB","2023 p/"]
["P144","Servicios médicos y dentales",0,"Ajuste CIF/FOB","2023 p/"]
["P145","Otros servicios de atención de la salud humana",0,"Ajuste CIF/FOB","2023 p/"]
["P146","Servicios audiovisuales, recreativos, culturales y deportivos",0,"Ajuste CIF/FOB","2023 p/"]
["P147","Servicios de asociaciones que sirven a las empresas",0,"Ajuste CIF/FOB","2023 p/"]
["P148","Servicios de asociaciones que sirven a los hogares",0,"Ajuste CIF/FOB","2023 p/"]
["P149","Otros servicios",0,"Ajuste CIF/FOB","2023 p/"]
["P150","Servicios domésticos",0,"Ajuste CIF/FOB","2023 p/"]
["P151","Compras directas en el exterior por residentes",0,"Ajuste CIF/FOB","2023 p/"]
["P152","Compras directas en el territorio nacional por no residentes",0,"Ajuste CIF/FOB","2023 p/"]